Workbook

Sheet INICIO

Sheet Combobox (hidden)
A1: FECHAS | F1: Indicador | G1: Formato de Moneda | H1: Valor Unidad
A2: 2018-03-31 | F2: 1 | G2: En miles de soles | H2: 1
A3: 2018-06-30 | F3: 2 | G3: En millones de soles | H3: =1/1000 -> 0.001
A4: 2018-09-30
A5: 2018-12-31 | G5: Opcion Seleccionado | H5: 2
A6: 2019-03-31 | G6: Valor Seleccionado | H6: =+VLOOKUP(H5,$F$1:$H$3,3,0) -> 0.001
A7: 2019-06-30
A8: 2019-09-30
A9: 2019-12-31
A10: 2020-03-31
A11: 2020-06-30
A12: 30/09/2020
A13: 31/12/2020
A14: 31/03/2021
A15: 30/06/2021
A16: 30/09/2021
A17: 31/12/2021
A18: 31/03/2022 | G18: X:\IFS-REPORTE FINANCIERO\Reportes automáticos\Generación y Validaciones\2. Generados\1T - 2022\1. Modelo reportes para generación_trimestral\Serie Histórica por segmentos.xlsm
A19: 30/06/2022

Sheet BD_Segmentos (hidden)
A1: ID_SEGMENTO | B1: DESC_SEGMENTO | C1: Cod_Auditado | D1: 2018-03-31 | E1: 2018-06-30 | F1: 2018-09-30 | G1: 2018-12-31 | H1: 2019-03-31 | I1: 2019-06-30 | J1: 2019-09-30 | K1: 2019-12-31 | L1: 2020-03-31 | M1: 2020-06-30 | N1: 30/09/2020 | O1: 31/12/2020 | P1: 31/03/2021 | Q1: 30/06/2021 | R1: 30/09/2021 | S1: 31/12/2021 | T1: 31/03/2022 | U1: 30/06/2022 | V1: 2022-09-30 | W1: 2022-12-31
A2: S1 | B2: Banking Segment | C2: 1 | D2: 4401237.825 | E2: 3542755.597 | F2: 3658273.795 | G2: 3946664.229 | H2: 2841821.783 | I2: 3613163.101 | J2: 3919882.054 | K2: 3708598.13 | L2: 3747325.238 | M2: 3307736.641 | N2: 2851312.873 | O2: 3623523.127 | P2: 3613473.629 | Q2: 6160160.043 | R2: 3798391.273 | S2: 3893921.442 | T2: 3423714.27 | U2: 3365359.752
A3: S1 | B3: Banking Segment | C3: 2 | D3: 4630815.51 | E3: 3852949.147 | F3: 3154071.929 | G3: 3775246.938 | H3: 6306061.32 | I3: 6287655.186 | J3: 6105378.171 | K3: 6077293.998 | L3: 6398474.382 | M3: 10490797.48 | N3: 13487068.58 | O3: 14078888.45 | P3: 14354977.21 | Q3: 10526029.79 | R3: 13635383.65 | S3: 10496837.92 | T3: 7844655.336 | U3: 7110772.558
A4: S1 | B4: Banking Segment | C4: 1014 | D4: 0 | E4: 0 | F4: 0 | G4: 0 | H4: 0 | I4: 0 | J4: 0 | K4: 0 | L4: 0 | M4: 0 | N4: 0 | O4: 0 | P4: 0 | Q4: 0 | R4: 0 | S4: 0 | T4: 0 | U4: 0
A5: S1 | B5: Banking Segment | C5: 3 | D5: 179054 | E5: 231848 | F5: 30007 | G5: 495037 | H5: 70017 | I5: 230137 | J5: 0 | K5: 85006 | L5: 150005 | M5: 31841 | N5: 0 | O5: 18105 | P5: 0 | Q5: 0 | R5: 0 | S5: 30002.05793 | T5: 250027.2381 | U5: 200029.7471
A6: S1 | B6: Banking Segment | C6: 4 | D6: 4662 | E6: 30657.804 | F6: 78311.881 | G6: 38894 | H6: 22137 | I6: 25189 | J6: 17210 | K6: 4788 | L6: 45549.72238 | M6: 19439 | N6: 50094 | O6: 190331 | P6: 109438.5814 | Q6: 107359.9291 | R6: 78953.17172 | S6: 33441.49583 | T6: 63893.87923 | U6: 29265.74577
A7: S1 | B7: Banking Segment | C7: 5 | D7: 4448366 | E7: 4308473.196 | F7: 4287613.119 | G7: 3886580 | H7: 3640573.307 | I7: 3361841 | J7: 2908405 | K7: 3362741 | L7: 3730915 | M7: 5034913 | N7: 5748794 | O7: 6068687 | P7: 7122027.603 | Q7: 6822448.965 | R7: 6490523.211 | S7: 6732771.646 | T7: 7209489.818 | U7: 7179454.598
A8: S1 | B8: Banking Segment | C8: 6 | D8: 1871237.6 | E8: 1893530.6 | F8: 1861634.6 | G8: 1884067.009 | H8: 1848731.575 | I8: 1867425.674 | J8: 2130793.674 | K8: 2206985.674 | L8: 2275888.559 | M8: 2550865.674 | N8: 2671523.674 | O8: 2707297.674 | P8: 2771616.897 | Q8: 2804092.844 | R8: 2768103.192 | S8: 3296030.222 | T8: 3275904.412 | U8: 3316565.53
A9: S1 | B9: Banking Segment | C9: 7 | D9: 28723248.83 | E9: 30331804.77 | F9: 31380684.26 | G9: 32749499.59 | H9: 33555225.07 | I9: 34128987.74 | J9: 35311033.81 | K9: 36907140.62 | L9: 36945425.62 | M9: 40399322.45 | N9: 42339012.51 | O9: 41843724.71 | P9: 41767174.48 | Q9: 42155587.04 | R9: 42282087.86 | S9: 43369504.56 | T9: 42662166.69 | U9: 44263065.36
A10: S1 | B10: Banking Segment | C10: 8 | D10: -1257620.85 | E10: -1273455.889 | F10: -1281045.225 | G10: -1364705.163 | H10: -1396074.097 | I10: -1411706.586 | J10: -1464909.618 | K10: -1394657.736 | L10: -1494400.647 | M10: -2731190.714 | N10: -3116249.377 | O10: -2984696.56 | P10: -2654317.58 | Q10: -2466778.112 | R10: -2296250.536 | S10: -2062135.588 | T10: -2038680.143 | U10: -2044117.381
A11: S1 | B11: Banking Segment | C11: 9 | D11: 0 | E11: 0 | F11: 0 | G11: 0 | H11: 0 | I11: 0 | J11: 0 | K11: 0 | L11: 0 | M11: 0 | N11: 0 | O11: 0 | P11: 0 | Q11: 0 | R11: 0 | S11: 0 | T11: 0 | U11: 0
A12: S1 | B12: Banking Segment | C12: 11 | D12: 565837.149 | E12: 557136.8563 | F12: 557104.4996 | G12: 571157.1243 | H12: 830793.4064 | I12: 785548.0957 | J12: 766713.8348 | K12: 825674.295 | L12: 809895.9837 | M12: 774587.5871 | N12: 753006.5207 | O12: 726963.2591 | P12: 702791.2083 | Q12: 677340.6131 | R12: 684365.463 | S12: 678386.1003 | T12: 674726.2432 | U12: 611556.0607
A13: S1 | B13: Banking Segment | C13: 20 | D13: 65070 | E13: 84146 | F13: 117392 | G13: 132961 | H13: 89748 | I13: 57685 | J13: 124690 | K13: 139685 | L13: 32068 | M13: 16577 | N13: 15693 | O13: 16320 | P13: 72453.27759 | Q13: 137259.6834 | R13: 91487.90544 | S13: 152422.769 | T13: 48174.15829 | U13: 36406.18535
A14: S1 | B14: Banking Segment | C14: 10 | D14: 61631.09122 | E14: 53571.94751 | F14: 58907.01065 | G14: 63229.34859 | H14: 66504.66761 | I14: 60934.56388 | J14: 66777.09301 | K14: 72299.38 | L14: 76975.467 | M14: 69381.849 | N14: 64422.2359 | O14: 70344.1447 | P14: =78006.4072007437+('Extorno Izipay'!$D$10*1000) -> 12358.85077 | Q14: =80502.3785211227+('Extorno Izipay'!$E$10*1000) -> 9207.222301 | R14: =90061.9653418196+('Extorno Izipay'!$F$10*1000) -> 12301.45643 | S14: =99766.6211465658+('Extorno Izipay'!$G$10*1000) -> 15916.82504 | T14: =109088.883448337+('Extorno Izipay'!$H$10*1000) -> 20205.93926 | U14: 13751.26489
A15: S1 | B15: Banking Segment | C15: 12 | D15: 898274.9938 | E15: 809286.7772 | F15: 722738.4197 | G15: 857922.5916 | H15: 954472.0143 | I15: 814704.9211 | J15: 2458229.771 | K15: 575305.7885 | L15: 735845.4068 | M15: 2333151.851 | N15: 1097783.17 | O15: 887196.9715 | P15: 1320493.329 | Q15: 1484478.907 | R15: 1987036.126 | S15: 1263029.644 | T15: 1222189.04 | U15: 1182158.583
A16: S1 | B16: Banking Segment | C16: 12.1 | D16: 316997.1876 | E16: 328039.7301 | F16: 337703.0011 | G16: 366139.9952 | H16: 364910.6848 | I16: 377706.907 | J16: 379749.6866 | K16: 409789.6605 | L16: 404185.4822 | M16: 420002.5063 | N16: 427345.8896 | O16: 444777.1717 | P16: 438139.709 | Q16: 436833.0119 | R16: 448691.1853 | S16: 465146.1742 | T16: 462753.7994 | U16: 455439.3009
A17: S1 | B17: Banking Segment | C17: 14 | D17: 42013.25697 | E17: 31213.70023 | F17: 20337.97676 | G17: 37699.39283 | H17: 36182.07869 | I17: 21899.31874 | J17: 45282.99133 | K17: 38711.44616 | L17: 75432.17994 | M17: 284636.627 | N17: 228723.3084 | O17: 347158.6391 | P17: 274102.1338 | Q17: 249350.488 | R17: 254829.0511 | S17: 134893.9643 | T17: 194500.683 | U17: 209013.6014
A18: S1 | B18: Banking Segment | C18: 31 | D18: 20953827 | E18: 18956211 | F18: 23129404 | G18: 23745770 | H18: 22307168 | I18: 26706050 | J18: 31792368 | K18: 32655414 | L18: 34832159 | M18: 31566587 | N18: 33282054 | O18: 27397482 | P18: 33580663.9 | Q18: 34060146.21 | R18: 34429994.09 | S18: 34590719.04 | T18: 36324174.19 | U18: 30312553.72
A19: S1 | B19: Banking Segment | C19: 32 | D19: 90482549.26 | E19: 95032292.69 | F19: 94136438.69 | G19: 95823510.69 | H19: 98694999.17 | I19: 101095987.7 | J19: 105273625 | K19: 107688522.2 | L19: 115673677 | M19: 131864419 | N19: 136874245.7 | O19: 135369333.8 | P19: 138421876.2 | Q19: 139270638 | R19: 155857961.7 | S19: 155011140 | T19: 154916352 | U19: 160308068.6
A20: S1 | B20: Banking Segment | C20: 15 | D20: 3454551.299 | E20: 3656112.714 | F20: 3100195.916 | G20: 4397389.111 | H20: 6237033.863 | I20: 4476408.455 | J20: 4693425.999 | K20: 4900518 | L20: 4653216.15 | M20: 6956780 | N20: 6758998 | O20: 8080602.281 | P20: 7830202.239 | Q20: 6423082.525 | R20: 7351818.648 | S20: 7147687.403 | T20: 6537580.238 | U20: 6775685.896
A21: S1 | B21: Banking Segment | C21: 16 | D21: 25723460.41 | E21: 25338887.12 | F21: 25983991.67 | G21: 26894368 | H21: 26324684.52 | I21: 28635991.85 | J21: 29048408.81 | K21: 30677242 | L21: 30408891.25 | M21: 34492623 | N21: 35779214 | O21: 36496233.96 | P21: 38806616.18 | Q21: 38786194.47 | R21: 39213777.04 | S21: 37818642.34 | T21: 36348330.68 | U21: 36801115.85
A22: S1 | B22: Banking Segment | C22: 17 | D22: 129539 | E22: 311166 | F22: 233553 | G22: 0 | H22: 106524 | I22: 50013 | J22: 15001 | K22: 169138 | L22: 111504 | M22: 0 | N22: 0 | O22: 28971 | P22: 0 | Q22: 0 | R22: 100002.764 | S22: 0 | T22: 0 | U22: 0
A23: S1 | B23: Banking Segment | C23: 18 | D23: 3955876 | E23: 3961501.453 | F23: 3828248 | G23: 3968789.643 | H23: 3406108 | I23: 4262933 | J23: 4110926 | K23: 3662250 | L23: 4976204.76 | M23: 7681552.802 | N23: 10254580.12 | O23: 9359157 | P23: 8672393.62 | Q23: 8695476.735 | R23: 7994459.956 | S23: 8112667.355 | T23: 7237682.259 | U23: 7538378.205
A24: S1 | B24: Banking Segment | C24: 19 | D24: 5164759.11 | E24: 5227628.37 | F24: 5280513.768 | G24: 5386941 | H24: 5610943.445 | I24: 5569917.52 | J24: 7226545.775 | K24: 5805465.277 | L24: 5832332.094 | M24: 6336916.294 | N24: 6412243.946 | O24: 6491890.12 | P24: 6674679.518 | Q24: 6876562.819 | R24: 7128663.311 | S24: 6938988.458 | T24: 6472143.835 | U24: 6568032.542
A25: S1 | B25: Banking Segment | C25: 22 | D25: 0 | E25: 0 | F25: 0 | G25: 0 | H25: 0 | I25: 0 | J25: 0 | K25: 0 | L25: 0 | M25: 0 | N25: 0 | O25: 0 | P25: 0 | Q25: 0 | R25: 0 | S25: 0 | T25: 0 | U25: 0
A26: S1 | B26: Banking Segment | C26: 21 | D26: 1808280.432 | E26: 1287302.298 | F26: 1266137.366 | G26: 1205963.596 | H26: 2075799.414 | I26: 1465444.063 | J26: 1512025.776 | K26: 1322174.597 | L26: 1418399.907 | M26: 1799881.658 | N26: 1480520.744 | O26: 1340921.47 | P26: 1639108.501 | Q26: 1837033.631 | R26: 1971767.595 | S26: 1411573.366 | T26: 2219932.765 | U26: 1620108.077
A27: S1 | B27: Banking Segment | C27: 23 | D27: 0 | E27: 0 | F27: 0 | G27: 0 | H27: 0 | I27: 0 | J27: 0 | K27: 0 | L27: 881.98139 | M27: 1104.165 | N27: 1346.57839 | O27: 0 | P27: 408.693 | Q27: 759.199 | R27: 1625.78239 | S27: 0 | T27: 993 | U27: 2141.30939
A28: S1 | B28: Banking Segment | C28: 24 | D28: 3470408.498 | E28: 3470408.155 | F28: 3470409 | G28: 3470409 | H28: 3937453 | I28: 3937453 | J28: 3937453 | K28: 3937453 | L28: 3937453 | M28: 4723362 | N28: 4723363 | O28: 4723362 | P28: 4961757.249 | Q28: 4961757.249 | R28: 4961757.249 | S28: 4961757.249 | T28: 5441947.475 | U28: 5441947.475
A29: S1 | B29: Banking Segment | C29: 25 | D29: 0 | E29: 0 | F29: 0 | G29: 0 | H29: 0 | I29: 0 | J29: 0 | K29: 0 | L29: 0 | M29: 0 | N29: 0 | O29: 0 | P29: 0 | Q29: 0 | R29: 0 | S29: 0 | T29: 0 | U29: 0
A30: S1 | B30: Banking Segment | C30: 26 | D30: -33909 | E30: -33909 | F30: -33909 | G30: -33909 | H30: -33909 | I30: -33909 | J30: -33909 | K30: -33909 | L30: -33909 | M30: -33909 | N30: -33909 | O30: -33909 | P30: -33909.76435 | Q30: -33909.76435 | R30: -33909.76435 | S30: -33909.76435 | T30: -33909.76435 | U30: -33909.76435
A31: S1 | B31: Banking Segment | C31: 27 | D31: 794754.0054 | E31: 794754.0054 | F31: 794754 | G31: 794754 | H31: 898541 | I31: 898541 | J31: 898541 | K31: 898541 | L31: 898541 | M31: 1019451 | N31: 1019451 | O31: 1019451 | P31: 1045939.296 | Q31: 1045939.296 | R31: 1045939.296 | S31: 1045939.296 | T31: 1165986.852 | U31: 1165986.852
A32: S1 | B32: Banking Segment | C32: 28 | D32: 42162.71086 | E32: 10551.73005 | F32: 25071.6211 | G32: 52131.69256 | H32: 99613.04715 | I32: 121880.8812 | J32: 49131.45404 | K32: 28936.83914 | L32: -35338.24062 | M32: 51222.4024 | N32: 103783.5839 | O32: 218540.0965 | P32: -51181.80481 | Q32: -181663.6813 | R32: -439025.7828 | S32: -364130.0632 | T32: -550590.0576 | U32: -725144.9748
A33: S1 | B33: Banking Segment | C33: 29 | D33: 375872.4092 | E33: 673409.857 | F33: 917377.6629 | G33: 1170591.237 | H33: 478565.0616 | I33: 778811.9874 | J33: 1186997.066 | K33: 1511865.82 | L33: 1733342.684 | M33: -43498.31328 | N33: 103245.0972 | O33: 297081.2023 | P33: 351909.7876 | Q33: 626173.4185 | R33: 925299.5107 | S33: 1392380.619 | T33: 514332.8636 | U33: 737973.2432
A34: S1 | B34: Banking Segment | C34: 30 | D34: 0 | E34: 0 | F34: 0 | G34: 0 | H34: 0 | I34: 0 | J34: 0 | K34: 0 | L34: 0 | M34: 0 | N34: 0 | O34: 0 | P34: 0 | Q34: 0 | R34: 0 | S34: 0 | T34: 0 | U34: 0
A35: S1 | B35: Banking Segment | C35: 41 | D35: 843132.0142 | E35: 1723002.586 | F35: 2621387.734 | G35: 3559112.349 | H35: 964986.4452 | I35: 1984136.263 | J35: 3022293.685 | K35: 4073998.236 | L35: 1037126.676 | M35: 1890247.154 | N35: 2877209.274 | O35: 3836413.866 | P35: 865024.2639 | Q35: 1746324.163 | R35: 2653337.377 | S35: 3636810.2 | T35: 1009959.841 | U35: 2117352.9
A36: S1 | B36: Banking Segment | C36: 42 | D36: -242451.0503 | E36: -503455.3755 | F36: -782320.888 | G36: -1067709.601 | H36: -307417.559 | I36: -622279.812 | J36: -936847.1853 | K36: -1290055.461 | L36: -302830.8208 | M36: -576639.477 | N36: -821469.1837 | O36: -1053355.991 | P36: -218063.3033 | Q36: -429278.6083 | R36: -655150.8802 | S36: -893060.6217 | T36: -261927.6621 | U36: -578838.3864
A37: S1 | B37: Banking Segment | C37: 54 | D37: -129.632146 | E37: -12.372 | F37: 9.388 | G37: -63.82956139 | H37: -2 | I37: 56.45270076 | J37: 41.66974281 | K37: 44.00302333 | L37: -196 | M37: -35 | N37: -164.56 | O37: 170.5085651 | P37: -42.72641901 | Q37: -404.5719101 | R37: -656.4428682 | S37: -527.3000817 | T37: -50.67540419 | U37: -48.50484634
A38: S1 | B38: Banking Segment | C38: 43 | D38: -173268.1428 | E38: -286229.186 | F38: -452030.911 | G38: -660858.048 | H38: -186341.6814 | I38: -379296.4698 | J38: -602907.5671 | K38: -750787.6145 | L38: -312610.9612 | M38: -1603139.082 | N38: -2066356.473 | O38: -2393922.525 | P38: -188943.9821 | Q38: -366830.9619 | R38: -476807.1992 | S38: -379033.6666 | T38: -151693.5123 | U38: -345114.5656
A39: S1 | B39: Banking Segment | C39: 44 | D39: 179719.2402 | E39: 366867.6555 | F39: 550705.222 | G39: 759518.4999 | H39: 193361.1012 | I39: 393935.7278 | J39: 607345.9566 | K39: 827063.3896 | L39: 190360.2248 | M39: 303374.7002 | N39: 456511.137 | O39: 619841.0678 | P39: 160217.5851 | Q39: 323146.3892 | R39: 489233.8877 | S39: 677462.1164 | T39: 183154.4078 | U39: 373250.0919
A40: S1 | B40: Banking Segment | C40: 45 | D40: 40878 | E40: 107968 | F40: 163017 | G40: 228160 | H40: 41306 | I40: 77125 | J40: 191543 | K40: 201353 | L40: 131339 | M40: 241440 | N40: 248698 | O40: 318422 | P40: 51506.32044 | Q40: 170296.287 | R40: 310253.34 | S40: 423021.904 | T40: 113484.8777 | U40: 136822.4531
A41: S1 | B41: Banking Segment | C41: 46 | D41: 11583.27011 | E41: 11596.27 | F41: 11529.27 | G41: 16363.279 | H41: 11541.51855 | I41: 29929.71537 | J41: 37212.57512 | K41: 39327.23174 | L41: 37466.69822 | M41: 67759.46957 | N41: 96086.43373 | O41: 103772.9009 | P41: 98505.50303 | Q41: 105045.2352 | R41: 101143.2525 | S41: 100867.3754 | T41: -3262.20468 | U41: -8203.7752
A42: S1 | B42: Banking Segment | C42: 46.1 | D42: 0 | E42: 0 | F42: 0 | G42: 0 | H42: 0 | I42: 0 | J42: 0 | K42: 0 | L42: 0 | M42: 0 | N42: 0 | O42: 0 | P42: 0 | Q42: 0 | R42: 0 | S42: 0 | T42: 0 | U42: 0
A43: S1 | B43: Banking Segment | C43: 78 | D43: 20568.86758 | E43: 10903.263 | F43: 13062.587 | G43: -8594.83 | H43: 8005 | I43: 35799.59533 | J43: -3257.136542 | K43: 64785.64167 | L43: -71454.99675 | M43: -111489.3291 | N43: -47740.95941 | O43: -38087.60208 | P43: 18105.77085 | Q43: 7160.588977 | R43: -27702.93596 | S43: -56410.0634 | T43: -33910.75502 | U43: 29531.65231
A44: S1 | B44: Banking Segment | C44: 79 | D44: 0 | E44: 0 | F44: 0 | G44: 0 | H44: 0 | I44: 0 | J44: 0 | K44: 0 | L44: 0 | M44: 0 | N44: 0 | O44: 0 | P44: 0 | Q44: 0 | R44: 0 | S44: 0 | T44: 0 | U44: 0
A45: S1 | B45: Banking Segment | C45: 80 | D45: 0 | E45: 0 | F45: 0 | G45: 0 | H45: 0 | I45: 0 | J45: 0 | K45: 0 | L45: 0 | M45: 0 | N45: 0 | O45: 0 | P45: 0 | Q45: 0 | R45: 0 | S45: 0 | T45: 0 | U45: 0
A46: S1 | B46: Banking Segment | C46: 81 | D46: 0 | E46: 0 | F46: 0 | G46: 0 | H46: 0 | I46: 0 | J46: 0 | K46: 0 | L46: 0 | M46: 0 | N46: 0 | O46: 0 | P46: 0 | Q46: 0 | R46: 0 | S46: 0 | T46: 0 | U46: 0
A47: S1 | B47: Banking Segment | C47: 47 | D47: 17195.96503 | E47: 27549.77794 | F47: 43475.48916 | G47: 73809.82184 | H47: 72206.83892 | I47: 85544.80312 | J47: 101506.5043 | K47: 128858.5755 | L47: 12387.94796 | M47: 14237.27412 | N47: 34622.94888 | O47: 60037.87309 | P47: =16458.8765054693+('Extorno Izipay'!$D$16*1000) -> 11421.72052 | Q47: =33976.9352899994+('Extorno Izipay'!$E$16*1000) -> 23292.17948 | R47: =49086.4477699998+('Extorno Izipay'!$F$16*1000) -> 31936.33928 | S47: =85025.0508799997+('Extorno Izipay'!$G$16*1000) -> 61785.65519 | T47: =34784.9493900001+('Extorno Izipay'!$H$16*1000) -> 29751.80131 | U47: 53058.52735
A48: S1 | B48: Banking Segment | C48: 48 | D48: 0 | E48: 0 | F48: 0 | G48: 0 | H48: 0 | I48: 0 | J48: 0 | K48: 0 | L48: 0 | M48: 0 | N48: 0 | O48: 0 | P48: 0 | Q48: 0 | R48: 0 | S48: 0 | T48: 0 | U48: 0
A49: S1 | B49: Banking Segment | C49: 48.1 | D49: 0 | E49: 0 | F49: 0 | G49: 0 | H49: 0 | I49: 0 | J49: 0 | K49: 0 | L49: 0 | M49: 0 | N49: 0 | O49: 0 | P49: 0 | Q49: 0 | R49: 0 | S49: 0 | T49: 0 | U49: 0
A50: S1 | B50: Banking Segment | C50: 48.2 | D50: 0 | E50: 0 | F50: 0 | G50: 0 | H50: 0 | I50: 0 | J50: 0 | K50: 0 | L50: 0 | M50: 0 | N50: 0 | O50: 0 | P50: 0 | Q50: 0 | R50: 0 | S50: 0 | T50: 0 | U50: 0
A51: S1 | B51: Banking Segment | C51: 48.3 | D51: 0 | E51: 0 | F51: 0 | G51: 0 | H51: 0 | I51: 0 | J51: 0 | K51: 0 | L51: 0 | M51: 0 | N51: 0 | O51: 0 | P51: 0 | Q51: 0 | R51: 0 | S51: 0 | T51: 0 | U51: 0
A52: S1 | B52: Banking Segment | C52: 49 | D52: 0 | E52: 0 | F52: 0 | G52: 0 | H52: 0 | I52: 0 | J52: 0 | K52: 0 | L52: 0 | M52: 0 | N52: 0 | O52: 0 | P52: 0 | Q52: 0 | R52: 0 | S52: 0 | T52: 0 | U52: 0
A53: S1 | B53: Banking Segment | C53: 50 | D53: -150836.7773 | E53: -306965.7861 | F53: -460550.0415 | G53: -622829.5193 | H53: -162266.7832 | I53: -325882.9016 | J53: -495430.6037 | K53: -659606.6898 | L53: -168638.2885 | M53: -296011.6671 | N53: -424328.0025 | O53: -594364.1634 | P53: -136144.2149 | Q53: -293560.0475 | R53: -458248.1598 | S53: -618542.9751 | T53: -162789.5874 | U53: -334095.7266
A54: S1 | B54: Banking Segment | C54: 51 | D54: -164381.7586 | E54: -331639.9094 | F54: -512583.9086 | G54: -693683.0464 | H54: -157857.4065 | I54: -330257.4115 | J54: -507937.358 | K54: -687936.7124 | L54: -175403.1591 | M54: -320246.1995 | N54: -493224.753 | O54: -656568.1889 | P54: -192442.4758 | Q54: -387369.2216 | R54: -615219.9058 | S54: -832782.469 | T54: -210497.2295 | U54: -437161.5516
A55: S1 | B55: Banking Segment | C55: 52 | D55: -34136.87954 | E55: -66374.78848 | F55: -99908.25967 | G55: -138542.6463 | H55: -55398.13181 | I55: -110158.5117 | J55: -168726.32 | K55: -227070.5861 | L55: -57444.80379 | M55: -114211.6682 | N55: -170095.9834 | O55: -234478.4709 | P55: -59123.5735 | Q55: -117167.1579 | R55: -178589.8772 | S55: -245431.2322 | T55: -61084.23009 | U55: -125880.7585
A56: S1 | B56: Banking Segment | C56: 53 | D56: 0 | E56: 0 | F56: 0 | G56: 0 | H56: 0 | I56: 0 | J56: 0 | K56: 0 | L56: 0 | M56: 0 | N56: 0 | O56: 0 | P56: 0 | Q56: 0 | R56: 0 | S56: 0 | T56: 0 | U56: 0
A57: S1 | B57: Banking Segment | C57: 83 | D57: 0 | E57: 0 | F57: 0 | G57: 0 | H57: 0 | I57: 0 | J57: 0 | K57: 0 | L57: 0 | M57: 0 | N57: 0 | O57: 0 | P57: 0 | Q57: 0 | R57: 0 | S57: 0 | T57: 0 | U57: 0
A58: S1 | B58: Banking Segment | C58: 55 | D58: -12748.46945 | E58: -22003.25004 | F58: -30605.87763 | G58: -47641.00089 | H58: -15266.98378 | I58: -20275.54746 | J58: -26284.64503 | K58: -36888.22195 | L58: -14265.4864 | M58: -21623.72396 | N58: -31756.63099 | O58: -48096.43154 | P58: -16228.51203 | Q58: -25422.23507 | R58: -39874.7146 | S58: -91160.89308 | T58: -20113.49828 | U58: -38237.96094
A59: S1 | B59: Banking Segment | C59: 56 | D59: 1900.228177 | E59: -1641.138078 | F59: -5192.127512 | G59: -10208.66797 | H59: 231.7270601 | I59: -3445.583461 | J59: -2272.14931 | K59: -5591.536313 | L59: -2904.92212 | M59: -1819.25773 | N59: -4797.74548 | O59: -5965.61753 | P59: 1645.19352 | Q59: 1849.59319 | R59: 21397.89161 | S59: 7239.557742 | T59: -28402.03149 | U59: -19542.32815
A60: S1 | B60: Banking Segment | C60: 57 | D60: -94468.97459 | E60: -201402.712 | F60: -287930.5759 | G60: -375910.8959 | H60: -107385.605 | I60: -215035.3676 | J60: -325209.8334 | K60: -448955.8913 | L60: -81433.70514 | M60: 181907.4083 | N60: 147298.743 | O60: 80508.85264 | P60: -80665.63652 | Q60: -173694.6645 | R60: -279003.8075 | S60: -453198.0615 | T60: -85222.42285 | U60: -193109.3225
A61: S1 | B61: Banking Segment | C61: 58 | D61: 0 | E61: 0 | F61: 0 | G61: 0 | H61: 0 | I61: 0 | J61: 0 | K61: 0 | L61: 0 | M61: 0 | N61: 0 | O61: 0 | P61: 0 | Q61: 0 | R61: 0 | S61: 0 | T61: 0 | U61: 0
A62: S1 | B62: Banking Segment | C62: 386 | D62: 780883.9234 | E62: 1589615.57 | F62: 2421923.006 | G62: 3290870.901 | H62: 887978.2112 | I62: 1818865.575 | J62: 2780316.565 | K62: 3758372.415 | L62: 969448.9801 | M62: 1762801.41 | N62: 2681004.501 | O62: 3570038.378 | P62: 796033.0088 | Q62: 1607437.919 | R62: 2440162.845 | S62: 3330159.506 | T62: 888200.3279 | U62: 1877385.847
A63: S1 | B63: Banking Segment | C63: 387 | D63: 51262 | E63: 104011 | F63: 157087 | G63: 209133 | H63: 51005 | I63: 98677 | J63: 145909 | K63: 195396 | L63: 51396 | M63: 108888 | N63: 173236 | O63: 237793 | P63: 62554.67558 | Q63: 127507.8262 | R63: 192924.7126 | S63: 265131.7048 | T63: 87334.27326 | U63: 190142.7395
A64: S1 | B64: Banking Segment | C64: 387.1 | D64: 0 | E64: 0 | F64: 0 | G64: 0 | H64: 0 | I64: 0 | J64: 0 | K64: 0 | L64: 0 | M64: 0 | N64: 0 | O64: 0 | P64: 0 | Q64: 0 | R64: 0 | S64: 0 | T64: 0 | U64: 0
A65: S1 | B65: Banking Segment | C65: 388 | D65: 10346.38383 | E65: 19064.01573 | F65: 31367.72773 | G65: 47214.44819 | H65: 25233.60778 | I65: 54553.58458 | J65: 83536.53983 | K65: 107497.0624 | L65: 15937.09883 | M65: 17974.74356 | N65: 21911.44788 | O65: 27401.34723 | P65: 6053.73573 | Q65: 10532.62785 | R65: 18746.98516 | S65: 39869.93662 | T65: 34395.52663 | U65: 49400.63705
A66: S1 | B66: Banking Segment | C66: 390 | D66: 3 | E66: 9040 | F66: 9042 | G66: 9045 | H66: 3 | I66: 11507 | J66: 11510 | K66: 11512 | L66: 3 | M66: 5 | N66: 6 | O66: 8 | P66: 1.92614 | Q66: 75.47269 | R66: 77.58616 | S66: 79.68825 | T66: 62.81615 | U66: 228.62524
A67: S1 | B67: Banking Segment | C67: 391 | D67: 636.707 | E67: 1272 | F67: 1968 | G67: 2849 | H67: 766.6262521 | I67: 533.10311 | J67: 1021.57987 | K67: 1220.75828 | L67: 341.59746 | M67: 578 | N67: 1051.3247 | O67: 1173.14059 | P67: 380.91763 | Q67: 770.31819 | R67: 1425.24825 | S67: 1569.36371 | T67: -33.10262 | U67: 195.05062
A68: S1 | B68: Banking Segment | C68: 397 | D68: -121066.9398 | E68: -243043.0055 | F68: -384148.12 | G68: -529254.6006 | H68: -168195.4362 | I68: -331010.6945 | J68: -497388.7729 | K68: -663972 | L68: -162631 | M68: -294891 | N68: -393331 | O68: -479840 | P68: -74712.32479 | Q68: -142368.9465 | R68: -213274.036 | S68: -299133.1258 | T68: -115453.6784 | U68: -280767.18
A69: S1 | B69: Banking Segment | C69: 399 | D69: -43716 | E69: -87019 | F69: -126654 | G69: -167055 | H69: -39006 | I69: -82012 | J69: -125017 | K69: -164498 | L69: -38102 | M69: -85731 | N69: -131197 | O69: -172608 | P69: -38115.3172 | Q69: -73455.22737 | R69: -109113.8742 | S69: -148693.4977 | T69: -38816.26347 | U69: -81240.80024
A70: S1 | B70: Banking Segment | C70: 398 | D70: -66403.11048 | E70: -150758.37 | F70: -237166.768 | G70: -324970 | H70: -87287.66452 | I70: -178407.7393 | J70: -267682.9943 | K70: -398797.4964 | L70: -85465.81694 | M70: -162624.017 | N70: -244717.6691 | O70: -329705.8428 | P70: -85813.68096 | Q70: -174541.0899 | R70: -272060.7515 | S70: -362003.7169 | T70: -85937.85022 | U70: -173770.5488
A71: S1 | B71: Banking Segment | C71: 418 | D71: -9824 | E71: -19766 | F71: -30084 | G71: -40697 | H71: -10900 | I71: -21985 | J71: -33465 | K71: -45199 | L71: -12213 | M71: -25545 | N71: -40739 | O71: -56177 | P71: -16104.78797 | Q71: -32562.87471 | R71: -51363.64429 | S71: -70669.53893 | T71: -18862.90433 | U71: -37533.39407
A72: S1 | B72: Banking Segment | C72: 400 | D72: 0 | E72: 0 | F72: 0 | G72: 0 | H72: 0 | I72: 0 | J72: 0 | K72: 0 | L72: 0 | M72: 0 | N72: 0 | O72: 0 | P72: 0 | Q72: 0 | R72: 0 | S72: 0 | T72: 0 | U72: 0
A73: S1 | B73: Banking Segment | C73: 402 | D73: 0 | E73: 0 | F73: 0 | G73: 0 | H73: 0 | I73: 0 | J73: 0 | K73: 0 | L73: 0 | M73: 0 | N73: 0 | O73: 0 | P73: 0 | Q73: 0 | R73: 0 | S73: 0 | T73: 0 | U73: 0
A74: S1 | B74: Banking Segment | C74: 401 | D74: -1441 | E74: -2869 | F74: -4268 | G74: -5733 | H74: -2028.458323 | I74: -8864.378145 | J74: -13293.41815 | K74: -17588.96462 | L74: -4419.003887 | M74: -7848.459952 | N74: -11484.51462 | O74: -15025.14863 | P74: -3317.192397 | Q74: -6350.469791 | R74: -9338.574089 | S74: -12560.74234 | T74: -2856.965717 | U74: -5526.463274
A75: S1 | B75: Banking Segment | C75: 409 | D75: 81423.81149 | E75: 158003.6476 | F75: 227119.0236 | G75: 316478.474 | H75: 76479.19237 | I75: 153572.1737 | J75: 237962.9179 | K75: 329402.8399 | L75: 86049.74981 | M75: 144175.8346 | N75: 213827.4515 | O75: 293398.2934 | P75: 74462.87957 | Q75: 150876.0794 | R75: 223803.2456 | S75: 299755.9704 | T75: 80167.75213 | U75: 157223.4841
A76: S1 | B76: Banking Segment | C76: 411 | D76: 150433.1828 | E76: 302174.0768 | F76: 457189.9493 | G76: 620632.6816 | H76: 154535.0254 | I76: 315905.3348 | J76: 479377.3435 | K76: 648354.8956 | L76: 147150.7435 | M76: 229941.4206 | N76: 348778.126 | O76: 473791.338 | P76: 124562.2054 | Q76: 250434.5376 | R76: 400671.2812 | S76: 560961.6608 | T76: 155207.0206 | U76: 324542.5165
A77: S1 | B77: Banking Segment | C77: 417 | D77: 0 | E77: 0 | F77: 0 | G77: 0 | H77: 0 | I77: 0 | J77: 0 | K77: 0 | L77: 0 | M77: 0 | N77: 0 | O77: 0 | P77: 0 | Q77: 0 | R77: 0 | S77: 0 | T77: 0 | U77: 0
A78: S1 | B78: Banking Segment | C78: 412 | D78: 15242 | E78: 31544.975 | F78: 47202.075 | G78: 61826 | H78: 13823.75 | I78: 28133 | J78: 42799.275 | K78: 56203 | L78: 12945 | M78: 24367 | N78: 37701 | O78: 52519 | P78: 15902.05161 | Q78: 32141.52606 | R78: 48877.87353 | S78: 64988.821 | T78: 15691.69868 | U78: 34422.16535
A79: S1 | B79: Banking Segment | C79: 413 | D79: 8462 | E79: 18287 | F79: 27940 | G79: 37310 | H79: 9874 | I79: 19967 | J79: 30743 | K79: 41336 | L79: 9961 | M79: 18392 | N79: 29800 | O79: 41306 | P79: 12543.71472 | Q79: 25319.10223 | R79: 39054.03042 | S79: 53205.27718 | T79: 13784.39408 | U79: 29204.19853
A80: S1 | B80: Banking Segment | C80: 415 | D80: 0 | E80: 0 | F80: 0 | G80: 0 | H80: 0 | I80: 0 | J80: 0 | K80: 0 | L80: 0 | M80: 0 | N80: 0 | O80: 0 | P80: 0 | Q80: 0 | R80: 0 | S80: 0 | T80: 0 | U80: 0
A81: S1 | B81: Banking Segment | C81: 414 | D81: 7543.74077 | E81: 15555.60192 | F81: 22713.33615 | G81: 30007.81822 | H81: 8328.41284 | I81: 18270.75746 | J81: 27821.8734 | K81: 39311.89418 | L81: 8385.15854 | M81: 19655.05437 | N81: 27561.62122 | O81: 38250.90964 | P81: 14461.75004 | Q81: 32739.93584 | R81: 49991.7225 | S81: 60412.46463 | T81: 10661.91877 | U81: 25356.33117
A82: S1 | B82: Banking Segment | C82: 423 | D82: -24090.9886 | E82: -49529.28791 | F82: -76375.84547 | G82: -103645.5687 | H82: -24385 | I82: -56715 | J82: -87750 | K82: -119606 | L82: -30828 | M82: -53391 | N82: -80421.77403 | O82: -105771.569 | P82: -30124.54581 | Q82: -52840.51059 | R82: -92480.99077 | S82: -128565.5573 | T82: -36421.2116 | U82: -76399.2663
A83: S1 | B83: Banking Segment | C83: 419 | D83: -3262 | E83: -7363.70937 | F83: -11307 | G83: -15324 | H83: -3671 | I83: -8085 | J83: -12748 | K83: -17172 | L83: -3234 | M83: -6186 | N83: -10223 | O83: -15106 | P83: -5467.8025 | Q83: -16789.98469 | R83: -25756.99646 | S83: -31767.61552 | T83: -5718.69134 | U83: -12111.80488
A84: S1 | B84: Banking Segment | C84: 420 | D84: -41794 | E84: -76878.47777 | F84: -109709 | G84: -143371 | H84: -27092 | I84: -51017 | J84: -75042 | K84: -99660 | L84: -25441 | M84: -50269 | N84: -74582 | O84: -101792 | P84: -26312.35122 | Q84: -52408.10181 | R84: -77921.9707 | S84: -102843.384 | T84: -25524.97132 | U84: -50561.92765
A85: S1 | B85: Banking Segment | C85: 422 | D85: 0 | E85: 0 | F85: 0 | G85: 0 | H85: 0 | I85: 0 | J85: 0 | K85: 0 | L85: 0 | M85: 0 | N85: 0 | O85: 0 | P85: 0 | Q85: 0 | R85: 0 | S85: 0 | T85: 0 | U85: 0
A86: S1 | B86: Banking Segment | C86: 421 | D86: -14238.50626 | E86: -24926.17122 | F86: -34067.31662 | G86: -44395.9053 | H86: -14531.27943 | I86: -26095.53822 | J86: -35818.45321 | K86: -51107.2401 | L86: -14628.42709 | M86: -23310.60927 | N86: -35930.06176 | O86: -56754.47326 | P86: -19810.47839 | Q86: -46326.19483 | R86: -77004.30769 | S86: -98685.52085 | T86: -24693.50217 | U86: -58425.60486
A87: S1 | B87: Banking Segment | C87: 442 | D87: 877 | E87: 1775 | F87: 3370 | G87: 5114 | H87: 1484 | I87: 2424 | J87: 3622 | K87: 4537 | L87: 1171 | M87: 2005 | N87: 2896 | O87: 3971 | P87: 1164.08299 | Q87: 2303.86785 | R87: 3305.25089 | S87: 4943.64263 | T87: 1000.32618 | U87: 3483.50366
A88: S1 | B88: Banking Segment | C88: 443 | D88: 2835.3562 | E88: 6071.53506 | F88: 8853 | G88: 11556 | H88: 3095.37 | I88: 6013 | J88: 9369.0585 | K88: 12155 | L88: 2567.61013 | M88: 3817 | N88: 5551 | O88: 7843 | P88: 2285.11319 | Q88: 4206.30241 | R88: 5812.47917 | S88: 6822.21559 | T88: 1320.28079 | U88: 3009.119
A89: S1 | B89: Banking Segment | C89: 444 | D89: 0 | E89: 0 | F89: 0 | G89: 0 | H89: 0 | I89: 0 | J89: 0 | K89: 0 | L89: 0 | M89: 0 | N89: 0 | O89: 0 | P89: 0 | Q89: 0 | R89: 0 | S89: 0 | T89: 0 | U89: 0
A90: S1 | B90: Banking Segment | C90: 445 | D90: 0 | E90: 0 | F90: 0 | G90: 0 | H90: 0 | I90: 0 | J90: 0 | K90: 0 | L90: 0 | M90: 0 | N90: 0 | O90: 0 | P90: 0 | Q90: 0 | R90: 0 | S90: 0 | T90: 0 | U90: 0
A91: S1 | B91: Banking Segment | C91: 446 | D91: 0 | E91: 0 | F91: 0 | G91: 0 | H91: 0 | I91: 0 | J91: 0 | K91: 0 | L91: 0 | M91: 0 | N91: 0 | O91: 0 | P91: 0 | Q91: 0 | R91: 0 | S91: 0 | T91: 0 | U91: 0
A92: S1 | B92: Banking Segment | C92: 447 | D92: 0 | E92: 0 | F92: 0 | G92: 0 | H92: 0 | I92: 0 | J92: 0 | K92: 0 | L92: 0 | M92: 0 | N92: 0 | O92: 0 | P92: 0 | Q92: 0 | R92: 0 | S92: 0 | T92: 0 | U92: 0
A93: S1 | B93: Banking Segment | C93: 448 | D93: 0 | E93: 0 | F93: 12.42447 | G93: 12.42447 | H93: 0 | I93: 0 | J93: 0.5365 | K93: 0.5365 | L93: 0 | M93: 0 | N93: 0 | O93: 0 | P93: 0 | Q93: 0 | R93: 0 | S93: 19.05675 | T93: 8.3634 | U93: 8.3634
A94: S1 | B94: Banking Segment | C94: 449 | D94: 685 | E94: 697 | F94: 940 | G94: 940 | H94: 0 | I94: 0 | J94: 0 | K94: 0 | L94: 0 | M94: 0 | N94: 10 | O94: 35 | P94: 0 | Q94: 84.14323 | R94: 132.53506 | S94: 241.29647 | T94: 141.09248 | U94: 93.07523
A95: S1 | B95: Banking Segment | C95: 450 | D95: 11 | E95: 45 | F95: 0 | G95: 0 | H95: 0 | I95: 0 | J95: 0 | K95: 0 | L95: 0 | M95: 0 | N95: 0 | O95: 0 | P95: 0 | Q95: 0 | R95: 0 | S95: 0 | T95: 0 | U95: 0
A96: S1 | B96: Banking Segment | C96: 451 | D96: 0 | E96: 0 | F96: 0 | G96: 0 | H96: 0 | I96: 0 | J96: 0 | K96: 0 | L96: 0 | M96: 0 | N96: 0 | O96: 0 | P96: 0 | Q96: 0 | R96: 0 | S96: 0 | T96: 0 | U96: 0
A97: S1 | B97: Banking Segment | C97: 453 | D97: 0 | E97: 0 | F97: 0 | G97: 0 | H97: 0 | I97: 0 | J97: 0 | K97: 0 | L97: 0 | M97: 0 | N97: 0 | O97: 0 | P97: 0 | Q97: 0 | R97: 0 | S97: 0 | T97: 0 | U97: 0
A98: S1 | B98: Banking Segment | C98: 389 | D98: 4495.09992 | E98: 8188.09414 | F98: 12978.69899 | G98: 17187.39954 | H98: 57950.73273 | I98: 61765.52506 | J98: 67314.51409 | K98: 73011.23138 | L98: 5144.43892 | M98: 1036.942 | N98: 2820.8974 | O98: 9115.205 | P98: 7667.659335 | Q98: 13672.17843 | R98: 23177.3287 | S98: 32878.90741 | T98: 9345.7302 | U98: 7385.236664
A99: S1 | B99: Banking Segment | C99: 457 | D99: 8292.508913 | E99: 10773.14874 | F99: 17321.3657 | G99: 38999.99783 | H99: 9676.96121 | I99: 15341.9286 | J99: 21200.39519 | K99: 39154.80759 | L99: 3504.89891 | M99: 7378.33212 | N99: 23345.05148 | O99: 39073.66809 | P99: 5342.02099 | Q99: 13710.44337 | R99: 16658.85395 | S99: 40119.93203 | T99: 22969.15634 | U99: 39079.2294
A100: S1 | B100: Banking Segment | C100: 491 | D100: -302.132 | E100: -450.648 | F100: -1082.9975 | G100: -1585.03941 | H100: -721.80765 | I100: -1207.83391 | J100: -1656.15419 | K100: -2625.12717 | L100: -441.00795 | M100: -1298.1916 | N100: -1910.80371 | O100: -2339.05315 | P100: -646.79112 | Q100: -1196.01506 | R100: -1438.12439 | S100: -2416.2025 | T100: -1484.14452 | U100: -2609.26752
A101: S1 | B101: Banking Segment | C101: 492 | D101: -1361 | E101: -2789 | F101: -3774 | G101: -5068 | H101: -1291 | I101: -2828 | J101: -3868 | K101: -5352 | L101: -1076 | M101: -3031 | N101: -4256 | O101: -5491 | P101: -1148.42461 | Q101: -2399.41329 | R101: -3694.13263 | S101: -4984.97681 | T101: -1000.0245 | U101: -2199.82305
A102: S1 | B102: Banking Segment | C102: 493 | D102: 0 | E102: 0 | F102: 0 | G102: 0 | H102: 0 | I102: 0 | J102: 0 | K102: 0 | L102: 0 | M102: 0 | N102: 0 | O102: 0 | P102: 0 | Q102: 0 | R102: 0 | S102: 0 | T102: 0 | U102: 0
A103: S1 | B103: Banking Segment | C103: 494 | D103: -369 | E103: -733 | F103: -2391 | G103: -2770.35187 | H103: -198.767 | I103: -412.17233 | J103: -665.17233 | K103: -849.663 | L103: -428.114 | M103: -398.153 | N103: -1402.479 | O103: -2414.479 | P103: -691.64319 | Q103: -1125.16837 | R103: -1552.00489 | S103: -2996.52003 | T103: -1516.57086 | U103: -2838.07918
A104: S1 | B104: Banking Segment | C104: 495 | D104: -473 | E104: -2452 | F104: -2172 | G104: -3504 | H104: -3190 | I104: -1703 | J104: -2934.776037 | K104: -3871.89274 | L104: -2382.2741 | M104: -3220.28212 | N104: -3287.13091 | O104: -4917.93915 | P104: -2041.73668 | Q104: -4353.65335 | R104: -7214.53626 | S104: -14872.23919 | T104: -5793.27123 | U104: -6367.9427
A105: S1 | B105: Banking Segment | C105: 496 | D105: 0 | E105: 0 | F105: 0 | G105: 0 | H105: 0 | I105: 0 | J105: 0 | K105: 0 | L105: 0 | M105: 0 | N105: 0 | O105: 0 | P105: 0 | Q105: 0 | R105: 0 | S105: 0 | T105: 0 | U105: 0
A106: S1 | B106: Banking Segment | C106: 497 | D106: 0 | E106: 0 | F106: 0 | G106: 0 | H106: 0 | I106: 0 | J106: 0 | K106: 0 | L106: 0 | M106: 0 | N106: 0 | O106: 0 | P106: 0 | Q106: 0 | R106: 0 | S106: 0 | T106: 0 | U106: 0
A107: S1 | B107: Banking Segment | C107: 498 | D107: 0 | E107: 0 | F107: 0 | G107: -21.04329429 | H107: -2.977219311 | I107: -4.12430558 | J107: -2.797076759 | K107: -2.896990287 | L107: 0 | M107: 0 | N107: 0 | O107: 0 | P107: 0 | Q107: 0 | R107: 0 | S107: 0 | T107: 0 | U107: 0
A108: S1 | B108: Banking Segment | C108: 499 | D108: 0 | E108: 0 | F108: 0 | G108: 0 | H108: 0 | I108: 0 | J108: 0 | K108: 0 | L108: 0 | M108: 0 | N108: 0 | O108: 0 | P108: 0 | Q108: 0 | R108: 0 | S108: 0 | T108: 0 | U108: 0
A109: S1 | B109: Banking Segment | C109: 500 | D109: 0 | E109: 0 | F109: 0 | G109: 0 | H109: 0 | I109: 0 | J109: 0 | K109: 0 | L109: 0 | M109: 0 | N109: 0 | O109: 0 | P109: 0 | Q109: 0 | R109: 0 | S109: 0 | T109: 0 | U109: 0
A110: S1 | B110: Banking Segment | C110: 501 | D110: 0 | E110: 0 | F110: 0 | G110: 0 | H110: 0 | I110: 0 | J110: 0 | K110: 0 | L110: 0 | M110: 0 | N110: 0 | O110: 0 | P110: 0 | Q110: 0 | R110: 0 | S110: 0 | T110: 0 | U110: 0
A111: S1 | B111: Banking Segment | C111: 502 | D111: -10243.33745 | E111: -15578.60204 | F111: -21185.88013 | G111: -34692.56632 | H111: -9862.43191 | I111: -14120.93579 | J111: -17158.1204 | K111: -24186.64205 | L111: -9938.09035 | M111: -13676.09724 | N111: -20900.21737 | O111: -32933.96024 | P111: -11699.91643 | Q111: -16347.985 | R111: -25975.91643 | S111: -65890.95455 | T111: -10319.48717 | U111: -24222.84849
A112: S1 | B112: Banking Segment | C112: 600 | D112: 27941663.83 | E112: 29512273.77 | F112: 30565503.26 | G112: 31892589.59 | H112: 32687985.92 | I112: 33222876.34 | J112: 34335881.6 | K112: 35963972.41 | L112: 35941259.64 | M112: 39421674.32 | N112: 41192041.61 | O112: 40438538.79 | P112: 40419348.7 | Q112: 40893108.93 | R112: 40893837.21 | S112: 41818784.27 | T112: 41328000.86 | U112: 43044995.55
A113: S1 | B113: Banking Segment | C113: 601 | D113: 781585 | E113: 819531 | F113: 815181 | G113: 856910 | H113: 867239.147 | I113: 906111.4034 | J113: 975152.2165 | K113: 943168.2062 | L113: 1004165.985 | M113: 977648.128 | N113: 1146970.9 | O113: 1405185.915 | P113: 1347825.778 | Q113: 1262478.108 | R113: 1388250.65 | S113: 1550720.291 | T113: 1334165.829 | U113: 1218069.809
A114: S1 | B114: Banking Segment | C114: 700 | D114: 0 | E114: 0 | F114: 0 | G114: 0 | H114: 0 | I114: 0 | J114: 0 | K114: 0 | L114: 0 | M114: 0 | N114: 0 | O114: 0 | P114: 0 | Q114: 0 | R114: 0 | S114: 0 | T114: 0 | U114: 0
A115: S1 | B115: Banking Segment | C115: 701 | D115: 0 | E115: 0 | F115: 0 | G115: 0 | H115: 0 | I115: 0 | J115: 0 | K115: 0 | L115: 0 | M115: 0 | N115: 0 | O115: 0 | P115: 0 | Q115: 0 | R115: 0 | S115: 0 | T115: 0 | U115: 0
A116: S1 | B116: Banking Segment | C116: 702 | D116: 0 | E116: 0 | F116: 0 | G116: 0 | H116: 0 | I116: 0 | J116: 0 | K116: 0 | L116: 0 | M116: 0 | N116: 0 | O116: 0 | P116: 0 | Q116: 0 | R116: 0 | S116: 0 | T116: 0 | U116: 0
A117: S1 | B117: Banking Segment | C117: 705 | D117: 27456991 | E117: 29065766 | F117: 30123642.89 | G117: 31434864.43 | H117: 32200452.29 | I117: 32749294.03 | J117: 33839301.22 | K117: 35465704.39 | L117: 35419379.04 | M117: 38927391.45 | N117: 40541237.28 | O117: 39751318.41 | P117: 39777588.32 | Q117: 40295057.12 | R117: 40311254.2 | S117: 41224565.06 | T117: 40712045.08 | U117: 42386266.95
A118: S1 | B118: Banking Segment | C118: 706 | D118: 266776 | E118: 238247 | F118: 215514 | G118: 210384 | H118: 213747 | I118: 211094 | J118: 223459 | K118: 251180 | L118: 258769 | M118: 258639 | N118: 272770 | O118: 287119 | P118: 267862.438 | Q118: 246490.1756 | R118: 226061.0065 | S118: 236519.5915 | T118: 254229.5139 | U118: 258001.0086
A119: S1 | B119: Banking Segment | C119: 707 | D119: 781585 | E119: 819531 | F119: 815181 | G119: 856910 | H119: 867239.147 | I119: 906111.4034 | J119: 975152.2165 | K119: 943168.2062 | L119: 1004165.985 | M119: 977648.128 | N119: 1146970.9 | O119: 1405185.915 | P119: 1347825.778 | Q119: 1262478.108 | R119: 1388250.65 | S119: 1550720.291 | T119: 1334165.829 | U119: 1218069.809
A120: S1 | B120: Banking Segment | C120: 708 | D120: 271358.0854 | E120: 259275.771 | F120: 275373.371 | G120: 295078.1607 | H120: 316103.4762 | I120: 303691.5551 | J120: 315742.7674 | K120: 288771.3836 | L120: 304757.7585 | M120: 336067.2046 | N120: 396243.8969 | O120: 422853.1399 | P120: 398159.8226 | Q120: 375755.7678 | R120: 380336.6326 | S120: 380345.1082 | T120: 383067.2323 | U120: 421426.0214
A121: S1 | B121: Banking Segment | C121: 709 | D121: -53461.257 | E121: -51015 | F121: -49027 | G121: -47737 | H121: -42316.84032 | I121: -41203.24822 | J121: -42621.38784 | K121: -41683.36134 | L121: -41646.16201 | M121: -100423.34 | N121: -18209.56701 | O121: -22751.76236 | P121: -24261.88056 | Q121: -24194.12923 | R121: -23814.62995 | S121: -22645.48575 | T121: -21340.97229 | U121: -20698.42868
A122: S1 | B122: Banking Segment | C122: 710 | D122: -1257620.85 | E122: -1273455.889 | F122: -1281045.225 | G122: -1364705.163 | H122: -1396074.097 | I122: -1411706.586 | J122: -1464909.618 | K122: -1394657.736 | L122: -1494400.647 | M122: -2731190.714 | N122: -3116249.377 | O122: -2984696.56 | P122: -2654317.58 | Q122: -2466778.112 | R122: -2296250.536 | S122: -2062135.588 | T122: -2038680.143 | U122: -2044117.381
A123: S1 | B123: Banking Segment | C123: ST1 | D123: 9032053.335 | E123: 7395704.744 | F123: 6812345.724 | G123: 7721911.167 | H123: 9147883.103 | I123: 9900818.287 | J123: 10025260.23 | K123: 9785892.127 | L123: 10145799.62 | M123: 13798534.12 | N123: 16338381.46 | O123: 17702411.57 | P123: 17968450.84 | Q123: 16686189.83 | R123: 17433774.92 | S123: 14390759.36 | T123: 11268369.61 | U123: 10476132.31
A124: S1 | B124: Banking Segment | C124: ST2 | D124: 6324265.6 | E124: 6232661.6 | F124: 6227559.6 | G124: 5809541.009 | H124: 5511441.882 | I124: 5254455.674 | J124: 5056408.674 | K124: 5574514.674 | L124: 6052353.282 | M124: 7605217.674 | N124: 8470411.674 | O124: 8966315.674 | P124: 10003083.08 | Q124: 9733901.738 | R124: 9337579.574 | S124: 10062243.36 | T124: 10549288.11 | U124: 10525285.87
A125: S1 | B125: Banking Segment | C125: ST3 | D125: 27465627.98 | E125: 29058348.88 | F125: 30099639.03 | G125: 31384794.43 | H125: 32159150.97 | I125: 32717281.15 | J125: 33846124.19 | K125: 35512482.88 | L125: 35451024.98 | M125: 37668131.73 | N125: 39222763.13 | O125: 38859028.14 | P125: 39112856.9 | Q125: 39688808.93 | R125: 39985837.32 | S125: 41307368.97 | T125: 40623486.54 | U125: 42218947.98
A126: S1 | B126: Banking Segment | C126: ST4 | D126: 44950824.59 | E126: 44781958.24 | F126: 44983734.27 | G126: 47440393.06 | H126: 49231103.81 | I126: 50221170.92 | J126: 52769236.47 | K126: 53019361.25 | L126: 53933585.4 | M126: 63002061.94 | N126: 66618530.39 | O126: 68038620.58 | P126: =69970376.8849042+('Extorno Izipay'!$D$10*1000) -> 69904729.33 | Q126: =69174665.5784539+('Extorno Izipay'!$E$10*1000) -> 69103370.42 | R126: =70313663.5101896+('Extorno Izipay'!$F$10*1000) -> 70235903 | S126: =68584019.0331001+('Extorno Izipay'!$G$10*1000) -> 68500169.24 | T126: =65402604.3049089+('Extorno Izipay'!$H$10*1000) -> 65313721.36 | U126: 65928720.9
A127: S1 | B127: Banking Segment | C127: ST5 | D127: 111436376.3 | E127: 113988503.7 | F127: 117265842.7 | G127: 119569280.7 | H127: 121002167.2 | I127: 127802037.7 | J127: 137065993 | K127: 140343936.2 | L127: 150505836 | M127: 163431006 | N127: 170156299.7 | O127: 162766815.8 | P127: 172002540.1 | Q127: 173330784.2 | R127: 190287955.8 | S127: 189601859 | T127: 191240526.2 | U127: 190620622.3
A128: S1 | B128: Banking Segment | C128: ST6 | D128: 29178011.7 | E128: 28994999.83 | F128: 29084187.59 | G128: 31291757.11 | H128: 32561718.38 | I128: 33112400.3 | J128: 33741834.81 | K128: 35577760 | L128: 35062107.4 | M128: 41449403 | N128: 42538212 | O128: 44576836.24 | P128: 46636818.42 | Q128: 45209276.99 | R128: 46565595.69 | S128: 44966329.75 | T128: 42885910.92 | U128: 43576801.75
A129: S1 | B129: Banking Segment | C129: ST7 | D129: 40301536.25 | E129: 39866743.96 | F129: 39810031.72 | G129: 41986412.35 | H129: 43850841.24 | I129: 44518392.89 | J129: 46731023.36 | K129: 46676472.87 | L129: 47433498.14 | M129: 57285434.92 | N129: 60702596.39 | O129: 61814095.83 | P129: 63695862.03 | Q129: 62756369.06 | R129: 63853603 | S129: 61581981.7 | T129: 58864836.94 | U129: 59341868.07
A130: S1 | B130: Banking Segment | C130: ST8 | D130: 4649288.624 | E130: 4915214.747 | F130: 5173703.284 | G130: 5453976.929 | H130: 5380263.109 | I130: 5702777.869 | J130: 6038213.52 | K130: 6342887.659 | L130: 6500089.443 | M130: 5716628.089 | N130: 5915933.681 | O130: 6224525.299 | P130: =6274514.76331349+SUM('Extorno Izipay'!$D$16:$D$18)*1000 -> 6208867.207 | Q130: =6418296.51775307+SUM('Extorno Izipay'!$E$16:$E$18)*1000 -> 6347001.362 | R130: =6460060.50838972+SUM('Extorno Izipay'!$F$16:$F$18)*1000 -> 6382299.999 | S130: =7002037.33649839+SUM('Extorno Izipay'!$G$16:$G$18)*1000 -> 6918187.54 | T130: =6537767.36891115+SUM('Extorno Izipay'!$H$16:$H$18)*1000 -> 6448884.425 | U130: 6586852.831
A131: S1 | B131: Banking Segment | C131: ST9 | D131: 4649288.624 | E131: 4915214.747 | F131: 5173703.284 | G131: 5453976.929 | H131: 5380263.109 | I131: 5702777.869 | J131: 6038213.52 | K131: 6342887.659 | L131: 6500089.443 | M131: 5716628.089 | N131: 5915933.681 | O131: 6224525.299 | P131: =6274514.76331349+SUM('Extorno Izipay'!$D$16:$D$18)*1000 -> 6208867.207 | Q131: =6418296.51775307+SUM('Extorno Izipay'!$E$16:$E$18)*1000 -> 6347001.362 | R131: =6460060.50838972+SUM('Extorno Izipay'!$F$16:$F$18)*1000 -> 6382299.999 | S131: =7002037.33649839+SUM('Extorno Izipay'!$G$16:$G$18)*1000 -> 6918187.54 | T131: =6537767.36891115+SUM('Extorno Izipay'!$H$16:$H$18)*1000 -> 6448884.425 | U131: 6586852.831
A132: S1 | B132: Banking Segment | C132: ST10 | D132: 44950824.87 | E132: 44781958.7 | F132: 44983735.01 | G132: 47440389.28 | H132: 49231104.35 | I132: 50221170.76 | J132: 52769236.88 | K132: 53019360.53 | L132: 53933587.59 | M132: 63002063.01 | N132: 66618530.07 | O132: 68038621.12 | P132: =69970376.7887628+SUM('Extorno Izipay'!$D$16:$D$18)*1000 -> 69904729.23 | Q132: =69174665.5791068+SUM('Extorno Izipay'!$E$16:$E$18)*1000 -> 69103370.42 | R132: =70313663.5103579+SUM('Extorno Izipay'!$F$16:$F$18)*1000 -> 70235903 | S132: =68584019.0318526+SUM('Extorno Izipay'!$G$16:$G$18)*1000 -> 68500169.24 | T132: =65402604.3040036+SUM('Extorno Izipay'!$H$16:$H$18)*1000 -> 65313721.36 | U132: 65928720.9
A133: S1 | B133: Banking Segment | C133: ST11 | D133: 111436376.3 | E133: 113988503.7 | F133: 117265842.7 | G133: 119569280.7 | H133: 121002167.2 | I133: 127802037.7 | J133: 137065993 | K133: 140343936.2 | L133: 150505836 | M133: 163431006 | N133: 170156299.7 | O133: 162766815.8 | P133: 172002540.1 | Q133: 173330784.2 | R133: 190287955.8 | S133: 189601859 | T133: 191240526.2 | U133: 190620622.3
A134: S1 | B134: Banking Segment | C134: ST12 | D134: 600680.964 | E134: 1219547.21 | F134: 1839066.846 | G134: 2491402.749 | H134: 657568.8862 | I134: 1361856.451 | J134: 2085446.5 | K134: 2783942.775 | L134: 734295.8556 | M134: 1313607.677 | N134: 2055740.09 | O134: 2783057.875 | P134: 646960.9606 | Q134: 1317045.555 | R134: 1998186.497 | S134: 2743749.578 | T134: 748032.1792 | U134: 1538514.513
A135: S1 | B135: Banking Segment | C135: ST13 | D135: 427283.189 | E135: 933305.6522 | F135: 1387045.323 | G135: 1830480.871 | H135: 471225.2047 | I135: 982616.4336 | J135: 1482580.602 | K135: 2033199.163 | L135: 421488.8944 | M135: -289566.4053 | N135: -10780.9426 | O135: 389305.8584 | P135: 457974.2521 | Q135: 949810.0214 | R135: 1520722.854 | S135: 2364188.611 | T135: 596287.9915 | U135: 1193351.443
A136: S1 | B136: Banking Segment | C136: ST14 | D136: 269945.3429 | E136: 524884.9664 | F136: 781789.5681 | G136: 1069256.771 | H136: 326420.4586 | I136: 622334.8416 | J136: 934350.8994 | K136: 1261387.838 | L136: 300098.8742 | M136: 515322.1148 | N136: 788177.5602 | O136: 1063986.24 | P136: 344794.056 | Q136: 639625.4356 | R136: 922013.9921 | S136: 1229966.383 | T136: 294251.2752 | U136: 584458.9495
A137: S1 | B137: Banking Segment | C137: ST15 | D137: 0 | E137: 0 | F137: 0 | G137: 0 | H137: 0 | I137: 0 | J137: 0 | K137: 0 | L137: 0 | M137: 0 | N137: 0 | O137: 0 | P137: 0 | Q137: 0 | R137: 0 | S137: 0 | T137: 0 | U137: 0
A138: S1 | B138: Banking Segment | C138: ST16 | D138: -362103.8849 | E138: -726983.7341 | F138: -1103648.087 | G138: -1502696.213 | H138: -390789.3053 | I138: -786574.3722 | J138: -1198378.927 | K138: -1611502.21 | L138: -415751.7378 | M138: -752093.2587 | N138: -1119405.37 | O138: -1533507.255 | P138: -403938.7762 | Q138: -823518.6621 | R138: -1291932.657 | S138: -1787917.569 | T138: -454484.5452 | U138: -935375.9977
A139: S1 | B139: Banking Segment | C139: ST17 | D139: 335124.647 | E139: 731206.8846 | F139: 1065186.804 | G139: 1397041.429 | H139: 406856.358 | I139: 818376.903 | J139: 1218552.575 | K139: 1683084.791 | L139: 305836.0309 | M139: -526337.5492 | N139: -342008.7524 | O139: -80215.15669 | P139: =398829.531841887+('Extorno Izipay'!$D$16*1000) -> 393792.3759 | Q139: =765916.794977652+('Extorno Izipay'!$E$16*1000) -> 755232.0392 | R139: =1150804.18915655+('Extorno Izipay'!$F$16*1000) -> 1133654.081 | S139: =1806237.4251385+('Extorno Izipay'!$G$16*1000) -> 1782998.029 | T139: =436054.721441618+('Extorno Izipay'!$H$16*1000) -> 431021.5734 | U139: 842434.3947
A140: S1 | B140: Banking Segment | C140: ST18 | D140: 242555.9005 | E140: 528163.0345 | F140: 772064.1002 | G140: 1010921.865 | H140: 299702.4801 | I140: 599895.952 | J140: 891070.5924 | K140: 1228537.364 | L140: 221497.4036 | M140: -346249.3986 | N140: -199507.7549 | O140: -5671.92158 | P140: =319809.088844187+('Extorno Izipay'!$D$16*1000) -> 314771.9329 | Q140: =594071.723620313+('Extorno Izipay'!$E$16*1000) -> 583386.9678 | R140: =893198.27325558+('Extorno Izipay'!$F$16*1000) -> 876048.1648 | S140: =1360278.9213816+('Extorno Izipay'!$G$16*1000) -> 1337039.526 | T140: =322430.267107963+('Extorno Izipay'!$H$16*1000) -> 317397.119 | U140: 629782.7441
A141: S1 | B141: Banking Segment | C141: ST19 | D141: 242555.9005 | E141: 528163.0345 | F141: 772064.1002 | G141: 1010921.865 | H141: 299702.4801 | I141: 599895.952 | J141: 891070.5924 | K141: 1228537.364 | L141: 221497.4036 | M141: -346249.3986 | N141: -199507.7549 | O141: -5671.92158 | P141: 319809.0888 | Q141: 594071.7236 | R141: 893198.2733 | S141: 1360278.921 | T141: 322430.2671 | U141: 629782.7441
A142: S2 | B142: Insurance Segment | C142: 1 | D142: 132000.981 | E142: 83839.46758 | F142: 39691.18972 | G142: 120436.9276 | H142: 46168.15705 | I142: 81715.65402 | J142: 250446.552 | K142: 163309.352 | L142: 159331.243 | M142: 154296.877 | N142: 121428.647 | O142: 210263.651 | P142: 178455.6698 | Q142: 128038.676 | R142: 235264.864 | S142: 481095.6 | T142: 187764.921 | U142: 218065.9537
A143: S2 | B143: Insurance Segment | C143: 2 | D143: 193064.979 | E143: 20722.199 | F143: 87727.002 | G143: 86221.84 | H143: 110368.923 | I143: 164800 | J143: 455385.193 | K143: 296063.794 | L143: 341017.162 | M143: 307942.318 | N143: 326125.961 | O143: 147771.34 | P143: 246556.802 | Q143: 427734.191 | R143: 671844.995 | S143: 574009.747 | T143: 455434.234 | U143: 320783.72
A144: S2 | B144: Insurance Segment | C144: 1014 | D144: 0 | E144: 0 | F144: 0 | G144: 0 | H144: 0 | I144: 0 | J144: 0 | K144: 0 | L144: 0 | M144: 0 | N144: 0 | O144: 0 | P144: 0 | Q144: 0 | R144: 0 | S144: 0 | T144: 0 | U144: 0
A145: S2 | B145: Insurance Segment | C145: 3 | D145: 0 | E145: 0 | F145: 0 | G145: 0 | H145: 0 | I145: 0 | J145: 0 | K145: 0 | L145: 0 | M145: 0 | N145: 0 | O145: 0 | P145: 0 | Q145: 0 | R145: 0 | S145: 0 | T145: 0 | U145: 0
A146: S2 | B146: Insurance Segment | C146: 4 | D146: 217027.852 | E146: 235819.022 | F146: 256949.427 | G146: 264027.028 | H146: 288389.778 | I146: 177414.249 | J146: 261555.86 | K146: 240513.496 | L146: 196123.545 | M146: 223632.084 | N146: 244309.144 | O146: 234776.228 | P146: 334642.431 | Q146: 420399.804 | R146: 405264.241 | S146: 443668.519 | T146: 437229.273 | U146: 378479.609
A147: S2 | B147: Insurance Segment | C147: 5 | D147: 10110018.54 | E147: 9756708.046 | F147: 10018391.66 | G147: 9985703.831 | H147: 10403465.62 | I147: 10923179.81 | J147: 11079530 | K147: 11223160.09 | L147: 10588876.91 | M147: 11394763.23 | N147: 11874369.71 | O147: 12660240.79 | P147: 11759757.56 | Q147: 11481249.56 | R147: 11223994.56 | S147: 11507784.74 | T147: 11069517.24 | U147: 10503884.53
A148: S2 | B148: Insurance Segment | C148: 6 | D148: -0.5589859296 | E148: 1.417 | F148: 0.7448899997 | G148: -0.3310000002 | H148: -0.3440000002 | I148: 0.1870000001 | J148: 0.0169999999 | K148: 0.1679999997 | L148: 0.1639999991 | M148: -0.006999999896 | N148: 0.6870000012 | O148: 0.1395099988 | P148: 1.209 | Q148: -0.001 | R148: 0.204 | S148: 0.001 | T148: 0.328 | U148: -0.096
A149: S2 | B149: Insurance Segment | C149: 7 | D149: 0 | E149: 0 | F149: 0 | G149: 0 | H149: 0 | I149: 0 | J149: 0 | K149: 0 | L149: 0 | M149: 0 | N149: 0 | O149: 0 | P149: 0 | Q149: 0 | R149: 0 | S149: 0 | T149: 0 | U149: 0
A150: S2 | B150: Insurance Segment | C150: 8 | D150: 0 | E150: 0 | F150: 0 | G150: 0 | H150: 0 | I150: 0 | J150: 0 | K150: 0 | L150: 0 | M150: 0 | N150: 0 | O150: 0 | P150: 0 | Q150: 0 | R150: 0 | S150: 0 | T150: 0 | U150: 0
A151: S2 | B151: Insurance Segment | C151: 9 | D151: 943527.2243 | E151: 939560.888 | F151: 981703.922 | G151: 986537.6673 | H151: 989594.6324 | I151: 999773.3104 | J151: 962195.7514 | K151: 972095.8494 | L151: 985362.453 | M151: 1031239.799 | N151: 1044770.734 | O151: 1043978.033 | P151: 1203898.141 | Q151: 1226745.698 | R151: 1242171.941 | S151: 1224454.296 | T151: 1199759.825 | U151: 1280321.808
A152: S2 | B152: Insurance Segment | C152: 11 | D152: 12445.782 | E152: 21431.85 | F152: 29825.822 | G152: 32220.754 | H152: 89769.184 | I152: 87712.12 | J152: 87721.966 | K152: 97860.788 | L152: 98463.721 | M152: 98105.78047 | N152: 92809.44024 | O152: 92594.328 | P152: 87367.808 | Q152: 86333.459 | R152: 85985.46 | S152: 85214.854 | T152: 84360.047 | U152: 71940.16
A153: S2 | B153: Insurance Segment | C153: 20 | D153: 0 | E153: 0 | F153: 0 | G153: 0 | H153: 0 | I153: 0 | J153: 0 | K153: 0 | L153: 0 | M153: 0 | N153: 0 | O153: 0 | P153: 0 | Q153: 0 | R153: 0 | S153: 0 | T153: 0 | U153: 0
A154: S2 | B154: Insurance Segment | C154: 10 | D154: 2.551 | E154: 2.551 | F154: 2.551 | G154: 2.551 | H154: 2.551 | I154: 2.55 | J154: 2.55 | K154: 2.55 | L154: 2.55 | M154: 2.55 | N154: 2.55 | O154: 2.55 | P154: 2.549951935 | Q154: 2.55004 | R154: 2.55004 | S154: 2.55006033 | T154: 2.549 | U154: 2.550020573
A155: S2 | B155: Insurance Segment | C155: 12 | D155: 401260.6655 | E155: 466469.7133 | F155: 441496.7149 | G155: 484140.0415 | H155: 432585.6596 | I155: 367628.2261 | J155: 349014.8939 | K155: 327242.1334 | L155: 388547.2526 | M155: 319269.8061 | N155: 302153.6777 | O155: 296715.3787 | P155: 345113.3601 | Q155: 316831.0502 | R155: 451760.1219 | S155: 334065.8256 | T155: 352857.3161 | U155: 385758.2704
A156: S2 | B156: Insurance Segment | C156: 12.1 | D156: 421901.3201 | E156: 621833.2073 | F156: 617458.1583 | G156: 613105.2412 | H156: 607204.2577 | I156: 604439.4707 | J156: 600526.9257 | K156: 597392.8256 | L156: 638633.9316 | M156: 635435.3616 | N156: 630180.1306 | O156: 624924.8997 | P156: 619669.8691 | Q156: 614414.8385 | R156: 609159.807 | S156: 604197.2975 | T156: 599318.551 | U156: 595651.233
A157: S2 | B157: Insurance Segment | C157: 14 | D157: 0 | E157: 0 | F157: 0 | G157: 0 | H157: 0 | I157: 0 | J157: 0 | K157: 0 | L157: 0 | M157: 0 | N157: 0 | O157: 0 | P157: 0 | Q157: 0 | R157: 0 | S157: 0 | T157: 0 | U157: 0
A158: S2 | B158: Insurance Segment | C158: 31 | D158: 3741.378 | E158: 3750.116 | F158: 3755.553 | G158: 3769.728 | H158: 3759.048 | I158: 3753.028 | J158: 3771.67 | K158: 22941.27 | L158: 23745.501 | M158: 23747.592 | N158: 23748.813 | O158: 23763.267 | P158: 23766.082 | Q158: 23768.173 | R158: 23773.886 | S158: 4587.844 | T158: 2875.427 | U158: 6783.668
A159: S2 | B159: Insurance Segment | C159: 32 | D159: 41945 | E159: 39101.89 | F159: 13989.431 | G159: 12306.304 | H159: 12306.304 | I159: 9931.305 | J159: 9906.073 | K159: 9946.622 | L159: 9946.622 | M159: 9992.384 | N159: 10321.631 | O159: 45.76 | P159: 45.759 | Q159: 67.791 | R159: 22.027 | S159: 22.025 | T159: 22.025 | U159: 4.628
A160: S2 | B160: Insurance Segment | C160: 15 | D160: 0 | E160: 0 | F160: 0 | G160: 0 | H160: 0 | I160: 0 | J160: 0 | K160: 0 | L160: 0 | M160: 0 | N160: 0 | O160: 0 | P160: 0 | Q160: 0 | R160: 0 | S160: 0 | T160: 0 | U160: 0
A161: S2 | B161: Insurance Segment | C161: 16 | D161: 0 | E161: 0 | F161: 0 | G161: 0 | H161: 0 | I161: 0 | J161: 0 | K161: 0 | L161: 0 | M161: 0 | N161: 0 | O161: 0 | P161: 0 | Q161: 0 | R161: 0 | S161: 0 | T161: 0 | U161: 0
A162: S2 | B162: Insurance Segment | C162: 17 | D162: 0 | E162: 0 | F162: 0 | G162: 0 | H162: 0 | I162: 0 | J162: 0 | K162: 0 | L162: 0 | M162: 0 | N162: 0 | O162: 0 | P162: 0 | Q162: 0 | R162: 0 | S162: 0 | T162: 0 | U162: 0
A163: S2 | B163: Insurance Segment | C163: 18 | D163: 4595.919 | E163: 6104.739 | F163: 3470.638 | G163: 763.217 | H163: 1389.314 | I163: 5006.919 | J163: 4183.442 | K163: 2048.916 | L163: 90207.11208 | M163: 22392.05064 | N163: 1736.776 | O163: 1116.93178 | P163: 197.7543536 | Q163: 100391.801 | R163: 189068.879 | S163: 226741.705 | T163: 108304.729 | U163: 293376.706
A164: S2 | B164: Insurance Segment | C164: 19 | D164: 995823.5529 | E164: 1002319.304 | F164: 1018254.838 | G164: 1023237.854 | H164: 964170.5436 | I164: 955408.8447 | J164: 983058.7555 | K164: 971144.9219 | L164: 1015890.748 | M164: 1036683.802 | N164: 1153003.229 | O164: 1152730.363 | P164: 1203976.834 | Q164: 1227856.176 | R164: 1324911.212 | S164: 1269027.843 | T164: 1185069.559 | U164: 1217353.518
A165: S2 | B165: Insurance Segment | C165: 22 | D165: 10365376.48 | E165: 9938409.716 | F165: 10038258.19 | G165: 10350653.35 | H165: 10470515.61 | I165: 11002690.76 | J165: 11533687.71 | K165: 11426631.57 | L165: 11157397.62 | M165: 11803017.45 | N165: 11896615 | O165: 12501723.39 | P165: 11768342.65 | Q165: 11567720.09 | R165: 11412030.52 | S165: 11958057.8 | T165: 11031107.05 | U165: 10351717.57
A166: S2 | B166: Insurance Segment | C166: 21 | D166: 400863.3725 | E166: 339033.6936 | F166: 376570.0375 | G166: 420653.7527 | H166: 502921.9032 | I166: 535067.5177 | J166: 606643.6793 | K166: 543892.237 | L166: 788712.183 | M166: 636079.4868 | N166: 761676.5683 | O166: 720379.2927 | P166: 801000.3873 | Q166: 793438.6775 | R166: 982921.6418 | S166: 927020.0148 | T166: 968823.8999 | U166: 1035121.759
A167: S2 | B167: Insurance Segment | C167: 23 | D167: 0 | E167: 0 | F167: 0 | G167: 0 | H167: 0 | I167: 0 | J167: 0 | K167: 0 | L167: 0 | M167: 0 | N167: 0 | O167: 0 | P167: 0 | Q167: 0 | R167: 0 | S167: 0 | T167: 0 | U167: 0
A168: S2 | B168: Insurance Segment | C168: 24 | D168: 676630.1942 | E168: 777382.7316 | F168: 777381.7475 | G168: 777381.9402 | H168: 777382.5707 | I168: 777381.9664 | J168: 777381.497 | K168: 777381.8571 | L168: 777381.84 | M168: 777381.84 | N168: 777381.84 | O168: 825529.988 | P168: 888492.951 | Q168: 891833.447 | R168: 891833.447 | S168: 891833.447 | T168: 891833.447 | U168: 958281.63
A169: S2 | B169: Insurance Segment | C169: 25 | D169: 0 | E169: 0 | F169: 0 | G169: 0.23 | H169: 0.23 | I169: 0.23 | J169: 0.23 | K169: 0.23 | L169: 0.23 | M169: 0.23 | N169: 0.23 | O169: 0.23 | P169: 0.23 | Q169: 0.23 | R169: 0.23 | S169: 0.23 | T169: 0.23 | U169: 0.23
A170: S2 | B170: Insurance Segment | C170: 26 | D170: 0 | E170: -41592.5996 | F170: -41592.5996 | G170: -41592.5996 | H170: -41592.5996 | I170: -41592.5996 | J170: -41592.5996 | K170: -41592.5996 | L170: -41592.5996 | M170: -41592.5996 | N170: -41592.5996 | O170: -41592.5996 | P170: -41592.6 | Q170: -41592.6 | R170: -41592.6 | S170: -41592.6 | T170: -41592.6 | U170: -23884.87
A171: S2 | B171: Insurance Segment | C171: 27 | D171: 148657.99 | E171: 177834.901 | F171: 177834.901 | G171: 177834.901 | H171: 177834.901 | I171: 277834.901 | J171: 277834.901 | K171: 277834.901 | L171: 277834.901 | M171: 277834.901 | N171: 277834.901 | O171: 294686.753 | P171: 316723.79 | Q171: 317892.964 | R171: 317892.964 | S171: 317892.964 | T171: 317892.964 | U171: 335400.034
A172: S2 | B172: Insurance Segment | C172: 28 | D172: -402983.1749 | E172: -11157.65488 | F172: 151610.8931 | G172: -128289.9399 | H172: 73263.34147 | I172: 37853.22435 | J172: 14397.65835 | K172: 103424.7963 | L172: -238585.3287 | M172: 31361.97035 | N172: 129161.3013 | O172: 177916.2873 | P172: 67939.285 | Q172: 161575.083 | R172: 134039.468 | S172: -91134.052 | T172: 5729.242 | U172: -96920.785
A173: S2 | B173: Insurance Segment | C173: 29 | D173: 242284.998 | E173: -41946.4695 | F173: -28541.54913 | G173: -8246.760619 | H173: 41662.89836 | I173: -142986.8249 | J173: -109213.1755 | K173: -143124.1547 | L173: -430888.3414 | M173: -378472.0704 | N173: -319666.4878 | O173: -321223.8615 | P173: -229615.8888 | Q173: -317366.038 | R173: -285657.0151 | S173: -203353.9267 | T173: -80924.22915 | U173: -315558.0607
A174: S2 | B174: Insurance Segment | C174: 30 | D174: 0 | E174: 0 | F174: 0 | G174: 0 | H174: 0 | I174: 0 | J174: 0 | K174: 0 | L174: 0 | M174: 0 | N174: 0 | O174: 0 | P174: 0 | Q174: 0 | R174: 0 | S174: 0 | T174: 0 | U174: 0
A175: S2 | B175: Insurance Segment | C175: 41 | D175: 157632.036 | E175: 315148.216 | F175: 462488.612 | G175: 610990.43 | H175: 156800.5099 | I175: 308960.23 | J175: 456940.778 | K175: 612549.3191 | L175: 167949.065 | M175: 318466.378 | N175: 479004.889 | O175: 654974.674 | P175: 175921.412 | Q175: 366268.839 | R175: 591057.193 | S175: 802961.006 | T175: 202626.835 | U175: 452542.146
A176: S2 | B176: Insurance Segment | C176: 42 | D176: -13832.75127 | E176: -28460.43656 | F176: -44799.15772 | G176: -61050.9941 | H176: -17478.69266 | I176: -33617.2433 | J176: -51663.70434 | K176: -72484.27308 | L176: -19833.61018 | M176: -40513.33507 | N176: -61250.7997 | O176: -83991.52611 | P176: -22514.555 | Q176: -45153.84646 | R176: -76976.74362 | S176: -117530.8437 | T176: -30712.86275 | U176: -62294.22833
A177: S2 | B177: Insurance Segment | C177: 54 | D177: 96.549 | E177: 1795.149 | F177: 316.453 | G177: 11348.692 | H177: 2361.002 | I177: 2776.897 | J177: 2133.389 | K177: -6170.377 | L177: -40135.199 | M177: -45229.199 | N177: -47715.199 | O177: -33818.904 | P177: 46873 | Q177: 40426.766 | R177: 32167.364 | S177: 33197.722 | T177: 5092.43 | U177: 4934.43
A178: S2 | B178: Insurance Segment | C178: 43 | D178: 0 | E178: 0 | F178: 0 | G178: 0 | H178: 0 | I178: 0 | J178: 0 | K178: 0 | L178: 0 | M178: 0 | N178: 0 | O178: 0 | P178: 0 | Q178: 0 | R178: 0 | S178: 0 | T178: 0 | U178: 0
A179: S2 | B179: Insurance Segment | C179: 44 | D179: -1682.451449 | E179: -2442.025 | F179: -3445.211 | G179: -4592.726 | H179: -998.690051 | I179: -1950.760391 | J179: -3148.230261 | K179: -3980.057687 | L179: -1027.143125 | M179: -2303.4114 | N179: -3825.909006 | O179: -6056.04929 | P179: -2408.243822 | Q179: -2089.583657 | R179: -4147.641791 | S179: -6802.470745 | T179: -2116.804641 | U179: -3523.916773
A180: S2 | B180: Insurance Segment | C180: 45 | D180: 0 | E180: 0 | F180: 0 | G180: 0 | H180: 0 | I180: 0 | J180: 0 | K180: 0 | L180: 0 | M180: 0 | N180: 0 | O180: 0 | P180: 0 | Q180: 0 | R180: 0 | S180: 0 | T180: 0 | U180: 0
A181: S2 | B181: Insurance Segment | C181: 46 | D181: 2090.770288 | E181: -1633.418622 | F181: -9560.415622 | G181: -30684.23262 | H181: -6169.085 | I181: 8100.313 | J181: 25767.11 | K181: 39234.494 | L181: 23937.297 | M181: 58166.083 | N181: 83887.359 | O181: 105038.399 | P181: 87619.235 | Q181: 96177.528 | R181: 114421.084 | S181: 145713.934 | T181: -7294.6 | U181: -7442.834
A182: S2 | B182: Insurance Segment | C182: 46.1 | D182: 0 | E182: 0 | F182: 0 | G182: 0 | H182: 0 | I182: 0 | J182: 0 | K182: 0 | L182: 0 | M182: 0 | N182: 0 | O182: 0 | P182: 0 | Q182: 0 | R182: 0 | S182: 0 | T182: 0 | U182: 0
A183: S2 | B183: Insurance Segment | C183: 78 | D183: 2871.573 | E183: -15602.994 | F183: -10667.143 | G183: -1405.299 | H183: 15517.912 | I183: 5823.491 | J183: 6285.946 | K183: 18581.56 | L183: -31604.799 | M183: -9114.097 | N183: 8843.161 | O183: 39242.956 | P183: 16269.756 | Q183: 52689.564 | R183: 26795.257 | S183: 247.588 | T183: 2467.551 | U183: -78467.679
A184: S2 | B184: Insurance Segment | C184: 79 | D184: 6722.014 | E184: 14110.13641 | F184: 24227.49575 | G184: 32877.9272 | H184: 10551.70407 | I184: 22852.54134 | J184: 36473.32683 | K184: 48838.85935 | L184: 10461.90102 | M184: 19380.61038 | N184: 29288.54969 | O184: 39491.25624 | P184: 8501.24244 | Q184: 23918.53436 | R184: 40554.3141 | S184: 57429.6368 | T184: 16984.98486 | U184: 34889.89175
A185: S2 | B185: Insurance Segment | C185: 80 | D185: 1558.582 | E185: 1558.582 | F185: 1558.582 | G185: 4655.114 | H185: 0 | I185: -1555.619279 | J185: -5936.283 | K185: -7163.612 | L185: 0 | M185: 0 | N185: 0 | O185: 0 | P185: 0 | Q185: 0 | R185: 0 | S185: 0 | T185: 0 | U185: 0
A186: S2 | B186: Insurance Segment | C186: 81 | D186: -5105.709481 | E186: 6432.333002 | F186: 31149.247 | G186: 47765.131 | H186: 1322.001 | I186: 21981.04428 | J186: 44655.43 | K186: 54492.973 | L186: 11481 | M186: 6482.725208 | N186: 11918.5 | O186: 5437.63641 | P186: 35506.094 | Q186: 56595.111 | R186: 69219 | S186: 21968.594 | T186: -30767.58 | U186: 28905.018
A187: S2 | B187: Insurance Segment | C187: 47 | D187: 3664.714413 | E187: 7507.94476 | F187: 11885.61418 | G187: 14435.24189 | H187: 3605.198 | I187: 6329.567973 | J187: 11140.044 | K187: 15034.072 | L187: 2989.328772 | M187: 5922.556869 | N187: 9449.857 | O187: 12469.358 | P187: 2722.318476 | Q187: 4352.473273 | R187: 6359.002331 | S187: 9354.486235 | T187: 1955.74673 | U187: 26077.7774
A188: S2 | B188: Insurance Segment | C188: 48 | D188: 93523.88975 | E188: 88299.51018 | F188: 199911.8881 | G188: 319578.6642 | H188: 96495.13619 | I188: 195327.9674 | J188: 313946.3375 | K188: 420644.0826 | L188: 125316.0489 | M188: 240957.3757 | N188: 390113.7371 | O188: 514981.2726 | P188: 123008.845 | Q188: 302055.226 | R188: 448191.492 | S188: 645309.515 | T188: 177424.258 | U188: 336112.73
A189: S2 | B189: Insurance Segment | C189: 48.1 | D189: 170415.7767 | E189: 365245.3027 | F189: 580316.0633 | G189: 798540.6056 | H189: 187321.4762 | I189: 361756.6258 | J189: 534933.712 | K189: 702527.6107 | L189: 180659.4389 | M189: 302745.7229 | N189: 444904.0005 | O189: 625931.1988 | P189: 214881.103 | Q189: 443103.932 | R189: 701398.02 | S189: 1051438.675 | T189: 275854.718 | U189: 513232.863
A190: S2 | B190: Insurance Segment | C190: 48.2 | D190: -48768.96795 | E190: -220472.9035 | F190: -295759.7382 | G190: -362246.5444 | H190: -86588.00601 | I190: -158973.9024 | J190: -210799.7245 | K190: -268713.4611 | L190: -52891.08297 | M190: -56826.29117 | N190: -47302.03433 | O190: -100790.8492 | P190: -88935.902 | Q190: -134939.239 | R190: -243727.578 | S190: -395265.291 | T190: -94886.763 | U190: -170174.371
A191: S2 | B191: Insurance Segment | C191: 48.3 | D191: -28122.919 | E191: -56472.889 | F191: -84644.437 | G191: -116715.397 | H191: -4238.334 | I191: -7454.756 | J191: -10187.65 | K191: -13170.067 | L191: -2452.307 | M191: -4962.056 | N191: -7488.229 | O191: -10159.077 | P191: -2936.356 | Q191: -6109.467 | R191: -9478.95 | S191: -10863.869 | T191: -3543.697 | U191: -6945.762
A192: S2 | B192: Insurance Segment | C192: 49 | D192: -172286.6579 | E192: -351566.09 | F192: -535712.6958 | G192: -720336.2336 | H192: -166729.6229 | I192: -341177.7207 | J192: -519121.7803 | K192: -700264.6915 | L192: -186105.8669 | M192: -367093.3305 | N192: -579520.5889 | O192: -794050.6604 | P192: -240941.501 | Q192: -465925.582 | R192: -699775.816 | S192: -917345.57 | T192: -198149.05 | U192: -417573.838
A193: S2 | B193: Insurance Segment | C193: 50 | D193: -17263.945 | E193: -36230.117 | F193: -55122.365 | G193: -74844.94 | H193: -17976.568 | I193: -36087.98 | J193: -53997.973 | K193: -73669.443 | L193: -18906.028 | M193: -36026.871 | N193: -53686.836 | O193: -75500.048 | P193: -23314.658 | Q193: -45995.587 | R193: -72528.877 | S193: -100430.832 | T193: -27245.589 | U193: -43324.997
A194: S2 | B194: Insurance Segment | C194: 51 | D194: -7924.875674 | E194: -19162.9501 | F194: -30210.14935 | G194: -44625.18565 | H194: -11064.17429 | I194: -24453.05969 | J194: -38304.64624 | K194: -54007.28153 | L194: -9193.228819 | M194: -17941.939 | N194: -27271.57597 | O194: -39496.14852 | P194: -12662.35877 | Q194: -26351.62436 | R194: -42774.14068 | S194: -64374.35589 | T194: -19270.951 | U194: -35373.65201
A195: S2 | B195: Insurance Segment | C195: 52 | D195: -2244.19355 | E195: -6926.54155 | F195: -11985.98255 | G195: -16981.92355 | H195: -5031.467 | I195: -11885.623 | J195: -16677.177 | K195: -22395.746 | L195: -6378.04 | M195: -12810.24563 | N195: -19182.329 | O195: -25590.05162 | P195: -6311.396 | Q195: -12601.695 | R195: -18985.599 | S195: -25035.172 | T195: -6108.416 | U195: -12552.645
A196: S2 | B196: Insurance Segment | C196: 53 | D196: 0 | E196: 0 | F196: 0 | G196: 0 | H196: 0 | I196: 0 | J196: 0 | K196: 0 | L196: 0 | M196: 0 | N196: 0 | O196: 0 | P196: 0 | Q196: 0 | R196: 0 | S196: 0 | T196: 0 | U196: 0
A197: S2 | B197: Insurance Segment | C197: 83 | D197: -41.629 | E197: -1054.31 | F197: -2441.224 | G197: -3900.661 | H197: -1544.054 | I197: -1246.519 | J197: -2348.26 | K197: -3456.287 | L197: -1403.527 | M197: -576.791912 | N197: -925.695 | O197: -1992.647 | P197: -231.388 | Q197: -896.321 | R197: -2426.177 | S197: -4379.522 | T197: -610.515 | U197: -4407.102
A198: S2 | B198: Insurance Segment | C198: 55 | D198: -34305.0959 | E198: -68074.66213 | F198: -100717.8275 | G198: -133300.2104 | H198: -35072.01635 | I198: -71410.37021 | J198: -108527.6177 | K198: -145217.8814 | L198: -36538.29181 | M198: -60808.29908 | N198: -90949.66159 | O198: -143416.3919 | P198: -36230.89332 | Q198: -72668.57362 | R198: -112678.466 | S198: -156056.7823 | T198: -46074.51156 | U198: -101145.75
A199: S2 | B199: Insurance Segment | C199: 56 | D199: 1020.040435 | E199: -2877.046643 | F199: -6139.098097 | G199: -11404.85201 | H199: 4353.3549 | I199: 13000.08261 | J199: -1887.709757 | K199: 9826.187057 | L199: -12583.39404 | M199: -20060.24843 | N199: -24731.41561 | O199: -26591.17561 | P199: -14738.636 | Q199: -24846.021 | R199: -39092.992 | S199: -51492.918 | T199: 445.947 | U199: -1757.161
A200: S2 | B200: Insurance Segment | C200: 57 | D200: 0 | E200: 0 | F200: 0 | G200: 0 | H200: 0 | I200: 0 | J200: 0 | K200: 0 | L200: 0 | M200: 0 | N200: 0 | O200: 0 | P200: 0 | Q200: 0 | R200: 0 | S200: 0 | T200: 0 | U200: 0
... 501 more rows

Sheet Extorno Izipay
B2: Extorno de registros de Izipay (50%)
C4: Históricos | I4: Actual
C5: 2020-12-31 | D5: 2021-03-31 | E5: 2021-06-30 | F5: 2021-09-30 | G5: 2021-12-31 | H5: 2022-03-31 | I5: 2022-06-30
A6: 10 | B6: Inversiones en Asociadas
B7: Inversión registrada en IBK (Local) | BG 17010200000107 | C7: -60.61040073 | D7: -65.64755643 | E7: -71.29515622 | F7: -77.76050891 | G7: -83.84979611 | H7: -88.88294419 | I7: -96.09936219
B8: Inversión registrada en IBK (Ajuste IFRS) | BG | C8: 0 | D8: 0 | E8: 0 | F8: 0 | G8: 0 | H8: 0 | I8: -3.232906579
B9: Ajuste para regularizar inversión | C9: 0 | D9: 0 | E9: 0 | F9: 0 | G9: 0 | H9: 0 | I9: 2.920903315
B10: Subtotal registro de PMP en IBK IFRS | BG | C10: =SUM(C7:C9) -> -60.61040073 | D10: =SUM(D7:D9) -> -65.64755643 | E10: =SUM(E7:E9) -> -71.29515622 | F10: -77.76050891 | G10: -83.84979611 | H10: -88.88294419 | I10: -96.41136545
A12: 47 | B12: Otros ingresos
B13: Ganancia Patrimonial registrada en IBK (Local) | P&L | C13: -6.836062445 | D13: -5.03715599 | E13: -10.6847558 | F13: -17.15010849 | G13: -23.23939569 | H13: -5.033148085 | I13: -12.24956608
B14: Extorno de la utilidad Dic21 | C14: 0 | D14: 0 | E14: 0 | F14: 0 | G14: 0 | H14: 0 | I14: 1.634247395
B15: Incorporación Utilidad Jun-22 (registro 1 mes de desfase) | C15: 0 | D15: 0 | E15: 0 | F15: 0 | G15: 0 | H15: 0 | I15: -3.232906579
B16: Subtotal registro de PMP en IBK IFRS | P&L | C16: =SUM(C13:C15) -> -6.836062445 | D16: =SUM(D13:D15) -> -5.03715599 | E16: =SUM(E13:E15) -> -10.6847558 | F16: -17.15010849 | G16: -23.23939569 | H16: -5.033148085 | I16: -13.84822526
A18: 29 | B18: Utilidades acumuladas | C18: =C10-C16 -> -53.77433828 | D18: -60.61040044 | E18: -60.61040041 | F18: -60.61040042 | G18: -60.61040042 | H18: -83.84979611 | I18: -82.56314019

Sheet IFS
C5: Intercorp Financial Services' P&L statement
C6: S/ million
E7: 2018-03-31 | F7: =+EOMONTH(E7,3) -> 2018-06-30 | G7: =+EOMONTH(F7,3) -> 2018-09-30 | H7: 2018-12-31 | I7: 2019-03-31 | J7: 2019-06-30 | K7: 2019-09-30 | L7: 2019-12-31 | M7: 2020-03-31 | N7: 2020-06-30 | O7: 2020-09-30 | P7: 2020-12-31 | Q7: 2021-03-31 | R7: 2021-06-30 | S7: 2021-09-30 | T7: 2021-12-31 | U7: 2022-03-31 | V7: =+EOMONTH(U7,3) -> 2022-06-30
E8: =MONTH(E$7)/3&"Q"&RIGHT(YEAR(E$7),2) -> 1Q18 | F8: =MONTH(F$7)/3&"Q"&RIGHT(YEAR(F$7),2) -> 2Q18 | G8: 3Q18 | H8: 4Q18 | I8: 1Q19 | J8: 2Q19 | K8: 3Q19 | L8: 4Q19 | M8: 1Q20 | N8: 2Q20 | O8: 3Q20 | P8: 4Q20 | Q8: 1Q21 | R8: 2Q21 | S8: 3Q21 | T8: 4Q21 | U8: 1Q22 | V8: 2Q22
B10: 41 | C10: Interest and similar income | E10: =IF(MONTH(E$7)=3,SUMIFS(BD_Segmentos!D:D,BD_Segmentos!$C:$C,$B10,BD_Segmentos!$A:$A,"S4")*ValorUnidad,SUMIFS(BD_Segmentos!D:D,BD_Segmentos!$C:$C,$B10,BD_Segmentos!$A:$A,"S4")*ValorUnidad-SUMIFS(BD_Segmentos!C:C,BD_Segmentos!$C:$C,$B10,BD_Segmentos!$A:$A,"S4")*ValorUnidad) -> 1036.274618 | F10: =IF(MONTH(F$7)=3,SUMIFS(BD_Segmentos!E:E,BD_Segmentos!$C:$C,$B10,BD_Segmentos!$A:$A,"S4")*ValorUnidad,SUMIFS(BD_Segmentos!E:E,BD_Segmentos!$C:$C,$B10,BD_Segmentos!$A:$A,"S4")*ValorUnidad-SUMIFS(BD_Segmentos!D:D,BD_Segmentos!$C:$C,$B10,BD_Segmentos!$A:$A,"S4")*ValorUnidad) -> 1070.181116 | G10: =IF(MONTH(G$7)=3,SUMIFS(BD_Segmentos!F:F,BD_Segmentos!$C:$C,$B10,BD_Segmentos!$A:$A,"S4")*ValorUnidad,SUMIFS(BD_Segmentos!F:F,BD_Segmentos!$C:$C,$B10,BD_Segmentos!$A:$A,"S4")*ValorUnidad-SUMIFS(BD_Segmentos!E:E,BD_Segmentos!$C:$C,$B10,BD_Segmentos!$A:$A,"S4")*ValorUnidad) -> 1086.245561 | H10: =IF(MONTH(H$7)=3,SUMIFS(BD_Segmentos!G:G,BD_Segmentos!$C:$C,$B10,BD_Segmentos!$A:$A,"S4")*ValorUnidad,SUMIFS(BD_Segmentos!G:G,BD_Segmentos!$C:$C,$B10,BD_Segmentos!$A:$A,"S4")*ValorUnidad-SUMIFS(BD_Segmentos!F:F,BD_Segmentos!$C:$C,$B10,BD_Segmentos!$A:$A,"S4")*ValorUnidad) -> 1128.58038 | I10: =IF(MONTH(I$7)=3,SUMIFS(BD_Segmentos!H:H,BD_Segmentos!$C:$C,$B10,BD_Segmentos!$A:$A,"S4")*ValorUnidad,SUMIFS(BD_Segmentos!H:H,BD_Segmentos!$C:$C,$B10,BD_Segmentos!$A:$A,"S4")*ValorUnidad-SUMIFS(BD_Segmentos!G:G,BD_Segmentos!$C:$C,$B10,BD_Segmentos!$A:$A,"S4")*ValorUnidad) -> 1166.740287 | J10: =IF(MONTH(J$7)=3,SUMIFS(BD_Segmentos!I:I,BD_Segmentos!$C:$C,$B10,BD_Segmentos!$A:$A,"S4")*ValorUnidad,SUMIFS(BD_Segmentos!I:I,BD_Segmentos!$C:$C,$B10,BD_Segmentos!$A:$A,"S4")*ValorUnidad-SUMIFS(BD_Segmentos!H:H,BD_Segmentos!$C:$C,$B10,BD_Segmentos!$A:$A,"S4")*ValorUnidad) -> 1201.730987 | K10: =IF(MONTH(K$7)=3,SUMIFS(BD_Segmentos!J:J,BD_Segmentos!$C:$C,$B10,BD_Segmentos!$A:$A,"S4")*ValorUnidad,SUMIFS(BD_Segmentos!J:J,BD_Segmentos!$C:$C,$B10,BD_Segmentos!$A:$A,"S4")*ValorUnidad-SUMIFS(BD_Segmentos!I:I,BD_Segmentos!$C:$C,$B10,BD_Segmentos!$A:$A,"S4")*ValorUnidad) -> 1228.876588 | L10: =IF(MONTH(L$7)=3,SUMIFS(BD_Segmentos!K:K,BD_Segmentos!$C:$C,$B10,BD_Segmentos!$A:$A,"S4")*ValorUnidad,SUMIFS(BD_Segmentos!K:K,BD_Segmentos!$C:$C,$B10,BD_Segmentos!$A:$A,"S4")*ValorUnidad-SUMIFS(BD_Segmentos!J:J,BD_Segmentos!$C:$C,$B10,BD_Segmentos!$A:$A,"S4")*ValorUnidad) -> 1249.868521 | M10: =IF(MONTH(M$7)=3,SUMIFS(BD_Segmentos!L:L,BD_Segmentos!$C:$C,$B10,BD_Segmentos!$A:$A,"S4")*ValorUnidad,SUMIFS(BD_Segmentos!L:L,BD_Segmentos!$C:$C,$B10,BD_Segmentos!$A:$A,"S4")*ValorUnidad-SUMIFS(BD_Segmentos!K:K,BD_Segmentos!$C:$C,$B10,BD_Segmentos!$A:$A,"S4")*ValorUnidad) -> 1248.210308 | N10: =IF(MONTH(N$7)=3,SUMIFS(BD_Segmentos!M:M,BD_Segmentos!$C:$C,$B10,BD_Segmentos!$A:$A,"S4")*ValorUnidad,SUMIFS(BD_Segmentos!M:M,BD_Segmentos!$C:$C,$B10,BD_Segmentos!$A:$A,"S4")*ValorUnidad-SUMIFS(BD_Segmentos!L:L,BD_Segmentos!$C:$C,$B10,BD_Segmentos!$A:$A,"S4")*ValorUnidad) -> 1043.492218 | O10: =IF(MONTH(O$7)=3,SUMIFS(BD_Segmentos!N:N,BD_Segmentos!$C:$C,$B10,BD_Segmentos!$A:$A,"S4")*ValorUnidad,SUMIFS(BD_Segmentos!N:N,BD_Segmentos!$C:$C,$B10,BD_Segmentos!$A:$A,"S4")*ValorUnidad-SUMIFS(BD_Segmentos!M:M,BD_Segmentos!$C:$C,$B10,BD_Segmentos!$A:$A,"S4")*ValorUnidad) -> 1186.062868 | P10: =IF(MONTH(P$7)=3,SUMIFS(BD_Segmentos!O:O,BD_Segmentos!$C:$C,$B10,BD_Segmentos!$A:$A,"S4")*ValorUnidad,SUMIFS(BD_Segmentos!O:O,BD_Segmentos!$C:$C,$B10,BD_Segmentos!$A:$A,"S4")*ValorUnidad-SUMIFS(BD_Segmentos!N:N,BD_Segmentos!$C:$C,$B10,BD_Segmentos!$A:$A,"S4")*ValorUnidad) -> 1187.201879 | Q10: =IF(MONTH(Q$7)=3,SUMIFS(BD_Segmentos!P:P,BD_Segmentos!$C:$C,$B10,BD_Segmentos!$A:$A,"S4")*ValorUnidad,SUMIFS(BD_Segmentos!P:P,BD_Segmentos!$C:$C,$B10,BD_Segmentos!$A:$A,"S4")*ValorUnidad-SUMIFS(BD_Segmentos!O:O,BD_Segmentos!$C:$C,$B10,BD_Segmentos!$A:$A,"S4")*ValorUnidad) -> 1085.687216 | R10: =IF(MONTH(R$7)=3,SUMIFS(BD_Segmentos!Q:Q,BD_Segmentos!$C:$C,$B10,BD_Segmentos!$A:$A,"S4")*ValorUnidad,SUMIFS(BD_Segmentos!Q:Q,BD_Segmentos!$C:$C,$B10,BD_Segmentos!$A:$A,"S4")*ValorUnidad-SUMIFS(BD_Segmentos!P:P,BD_Segmentos!$C:$C,$B10,BD_Segmentos!$A:$A,"S4")*ValorUnidad) -> 1112.341827 | S10: =IF(MONTH(S$7)=3,SUMIFS(BD_Segmentos!R:R,BD_Segmentos!$C:$C,$B10,BD_Segmentos!$A:$A,"S4")*ValorUnidad,SUMIFS(BD_Segmentos!R:R,BD_Segmentos!$C:$C,$B10,BD_Segmentos!$A:$A,"S4")*ValorUnidad-SUMIFS(BD_Segmentos!Q:Q,BD_Segmentos!$C:$C,$B10,BD_Segmentos!$A:$A,"S4")*ValorUnidad) -> 1170.522678 | T10: =IF(MONTH(T$7)=3,SUMIFS(BD_Segmentos!S:S,BD_Segmentos!$C:$C,$B10,BD_Segmentos!$A:$A,"S4")*ValorUnidad,SUMIFS(BD_Segmentos!S:S,BD_Segmentos!$C:$C,$B10,BD_Segmentos!$A:$A,"S4")*ValorUnidad-SUMIFS(BD_Segmentos!R:R,BD_Segmentos!$C:$C,$B10,BD_Segmentos!$A:$A,"S4")*ValorUnidad) -> 1237.073132 | U10: =IF(MONTH(U$7)=3,SUMIFS(BD_Segmentos!T:T,BD_Segmentos!$C:$C,$B10,BD_Segmentos!$A:$A,"S4")*ValorUnidad,SUMIFS(BD_Segmentos!T:T,BD_Segmentos!$C:$C,$B10,BD_Segmentos!$A:$A,"S4")*ValorUnidad-SUMIFS(BD_Segmentos!S:S,BD_Segmentos!$C:$C,$B10,BD_Segmentos!$A:$A,"S4")*ValorUnidad) -> 1248.117751 | V10: =IF(MONTH(V$7)=3,SUMIFS(BD_Segmentos!U:U,BD_Segmentos!$C:$C,$B10,BD_Segmentos!$A:$A,"S4")*ValorUnidad,SUMIFS(BD_Segmentos!U:U,BD_Segmentos!$C:$C,$B10,BD_Segmentos!$A:$A,"S4")*ValorUnidad-SUMIFS(BD_Segmentos!T:T,BD_Segmentos!$C:$C,$B10,BD_Segmentos!$A:$A,"S4")*ValorUnidad) -> 1392.082282
B11: 42 | C11: Interest and similar expenses | E11: =IF(MONTH(E$7)=3,SUMIFS(BD_Segmentos!D:D,BD_Segmentos!$C:$C,$B11,BD_Segmentos!$A:$A,"S4")*ValorUnidad,SUMIFS(BD_Segmentos!D:D,BD_Segmentos!$C:$C,$B11,BD_Segmentos!$A:$A,"S4")*ValorUnidad-SUMIFS(BD_Segmentos!C:C,BD_Segmentos!$C:$C,$B11,BD_Segmentos!$A:$A,"S4")*ValorUnidad) -> -266.9995001 | F11: =IF(MONTH(F$7)=3,SUMIFS(BD_Segmentos!E:E,BD_Segmentos!$C:$C,$B11,BD_Segmentos!$A:$A,"S4")*ValorUnidad,SUMIFS(BD_Segmentos!E:E,BD_Segmentos!$C:$C,$B11,BD_Segmentos!$A:$A,"S4")*ValorUnidad-SUMIFS(BD_Segmentos!D:D,BD_Segmentos!$C:$C,$B11,BD_Segmentos!$A:$A,"S4")*ValorUnidad) -> -287.7320998 | G11: =IF(MONTH(G$7)=3,SUMIFS(BD_Segmentos!F:F,BD_Segmentos!$C:$C,$B11,BD_Segmentos!$A:$A,"S4")*ValorUnidad,SUMIFS(BD_Segmentos!F:F,BD_Segmentos!$C:$C,$B11,BD_Segmentos!$A:$A,"S4")*ValorUnidad-SUMIFS(BD_Segmentos!E:E,BD_Segmentos!$C:$C,$B11,BD_Segmentos!$A:$A,"S4")*ValorUnidad) -> -307.8440029 | H11: =IF(MONTH(H$7)=3,SUMIFS(BD_Segmentos!G:G,BD_Segmentos!$C:$C,$B11,BD_Segmentos!$A:$A,"S4")*ValorUnidad,SUMIFS(BD_Segmentos!G:G,BD_Segmentos!$C:$C,$B11,BD_Segmentos!$A:$A,"S4")*ValorUnidad-SUMIFS(BD_Segmentos!F:F,BD_Segmentos!$C:$C,$B11,BD_Segmentos!$A:$A,"S4")*ValorUnidad) -> -314.7185918 | I11: =IF(MONTH(I$7)=3,SUMIFS(BD_Segmentos!H:H,BD_Segmentos!$C:$C,$B11,BD_Segmentos!$A:$A,"S4")*ValorUnidad,SUMIFS(BD_Segmentos!H:H,BD_Segmentos!$C:$C,$B11,BD_Segmentos!$A:$A,"S4")*ValorUnidad-SUMIFS(BD_Segmentos!G:G,BD_Segmentos!$C:$C,$B11,BD_Segmentos!$A:$A,"S4")*ValorUnidad) -> -339.6236578 | J11: =IF(MONTH(J$7)=3,SUMIFS(BD_Segmentos!I:I,BD_Segmentos!$C:$C,$B11,BD_Segmentos!$A:$A,"S4")*ValorUnidad,SUMIFS(BD_Segmentos!I:I,BD_Segmentos!$C:$C,$B11,BD_Segmentos!$A:$A,"S4")*ValorUnidad-SUMIFS(BD_Segmentos!H:H,BD_Segmentos!$C:$C,$B11,BD_Segmentos!$A:$A,"S4")*ValorUnidad) -> -346.1620031 | K11: =IF(MONTH(K$7)=3,SUMIFS(BD_Segmentos!J:J,BD_Segmentos!$C:$C,$B11,BD_Segmentos!$A:$A,"S4")*ValorUnidad,SUMIFS(BD_Segmentos!J:J,BD_Segmentos!$C:$C,$B11,BD_Segmentos!$A:$A,"S4")*ValorUnidad-SUMIFS(BD_Segmentos!I:I,BD_Segmentos!$C:$C,$B11,BD_Segmentos!$A:$A,"S4")*ValorUnidad) -> -348.2228158 | L11: =IF(MONTH(L$7)=3,SUMIFS(BD_Segmentos!K:K,BD_Segmentos!$C:$C,$B11,BD_Segmentos!$A:$A,"S4")*ValorUnidad,SUMIFS(BD_Segmentos!K:K,BD_Segmentos!$C:$C,$B11,BD_Segmentos!$A:$A,"S4")*ValorUnidad-SUMIFS(BD_Segmentos!J:J,BD_Segmentos!$C:$C,$B11,BD_Segmentos!$A:$A,"S4")*ValorUnidad) -> -389.9542832 | M11: =IF(MONTH(M$7)=3,SUMIFS(BD_Segmentos!L:L,BD_Segmentos!$C:$C,$B11,BD_Segmentos!$A:$A,"S4")*ValorUnidad,SUMIFS(BD_Segmentos!L:L,BD_Segmentos!$C:$C,$B11,BD_Segmentos!$A:$A,"S4")*ValorUnidad-SUMIFS(BD_Segmentos!K:K,BD_Segmentos!$C:$C,$B11,BD_Segmentos!$A:$A,"S4")*ValorUnidad) -> -338.0937958 | N11: =IF(MONTH(N$7)=3,SUMIFS(BD_Segmentos!M:M,BD_Segmentos!$C:$C,$B11,BD_Segmentos!$A:$A,"S4")*ValorUnidad,SUMIFS(BD_Segmentos!M:M,BD_Segmentos!$C:$C,$B11,BD_Segmentos!$A:$A,"S4")*ValorUnidad-SUMIFS(BD_Segmentos!L:L,BD_Segmentos!$C:$C,$B11,BD_Segmentos!$A:$A,"S4")*ValorUnidad) -> -308.2424316 | O11: =IF(MONTH(O$7)=3,SUMIFS(BD_Segmentos!N:N,BD_Segmentos!$C:$C,$B11,BD_Segmentos!$A:$A,"S4")*ValorUnidad,SUMIFS(BD_Segmentos!N:N,BD_Segmentos!$C:$C,$B11,BD_Segmentos!$A:$A,"S4")*ValorUnidad-SUMIFS(BD_Segmentos!M:M,BD_Segmentos!$C:$C,$B11,BD_Segmentos!$A:$A,"S4")*ValorUnidad) -> -279.4398744 | P11: =IF(MONTH(P$7)=3,SUMIFS(BD_Segmentos!O:O,BD_Segmentos!$C:$C,$B11,BD_Segmentos!$A:$A,"S4")*ValorUnidad,SUMIFS(BD_Segmentos!O:O,BD_Segmentos!$C:$C,$B11,BD_Segmentos!$A:$A,"S4")*ValorUnidad-SUMIFS(BD_Segmentos!N:N,BD_Segmentos!$C:$C,$B11,BD_Segmentos!$A:$A,"S4")*ValorUnidad) -> -266.5077185 | Q11: =IF(MONTH(Q$7)=3,SUMIFS(BD_Segmentos!P:P,BD_Segmentos!$C:$C,$B11,BD_Segmentos!$A:$A,"S4")*ValorUnidad,SUMIFS(BD_Segmentos!P:P,BD_Segmentos!$C:$C,$B11,BD_Segmentos!$A:$A,"S4")*ValorUnidad-SUMIFS(BD_Segmentos!O:O,BD_Segmentos!$C:$C,$B11,BD_Segmentos!$A:$A,"S4")*ValorUnidad) -> -251.8071785 | R11: =IF(MONTH(R$7)=3,SUMIFS(BD_Segmentos!Q:Q,BD_Segmentos!$C:$C,$B11,BD_Segmentos!$A:$A,"S4")*ValorUnidad,SUMIFS(BD_Segmentos!Q:Q,BD_Segmentos!$C:$C,$B11,BD_Segmentos!$A:$A,"S4")*ValorUnidad-SUMIFS(BD_Segmentos!P:P,BD_Segmentos!$C:$C,$B11,BD_Segmentos!$A:$A,"S4")*ValorUnidad) -> -244.8564982 | S11: =IF(MONTH(S$7)=3,SUMIFS(BD_Segmentos!R:R,BD_Segmentos!$C:$C,$B11,BD_Segmentos!$A:$A,"S4")*ValorUnidad,SUMIFS(BD_Segmentos!R:R,BD_Segmentos!$C:$C,$B11,BD_Segmentos!$A:$A,"S4")*ValorUnidad-SUMIFS(BD_Segmentos!Q:Q,BD_Segmentos!$C:$C,$B11,BD_Segmentos!$A:$A,"S4")*ValorUnidad) -> -270.5480545 | T11: =IF(MONTH(T$7)=3,SUMIFS(BD_Segmentos!S:S,BD_Segmentos!$C:$C,$B11,BD_Segmentos!$A:$A,"S4")*ValorUnidad,SUMIFS(BD_Segmentos!S:S,BD_Segmentos!$C:$C,$B11,BD_Segmentos!$A:$A,"S4")*ValorUnidad-SUMIFS(BD_Segmentos!R:R,BD_Segmentos!$C:$C,$B11,BD_Segmentos!$A:$A,"S4")*ValorUnidad) -> -290.7250999 | U11: =IF(MONTH(U$7)=3,SUMIFS(BD_Segmentos!T:T,BD_Segmentos!$C:$C,$B11,BD_Segmentos!$A:$A,"S4")*ValorUnidad,SUMIFS(BD_Segmentos!T:T,BD_Segmentos!$C:$C,$B11,BD_Segmentos!$A:$A,"S4")*ValorUnidad-SUMIFS(BD_Segmentos!S:S,BD_Segmentos!$C:$C,$B11,BD_Segmentos!$A:$A,"S4")*ValorUnidad) -> -303.4269117 | V11: =IF(MONTH(V$7)=3,SUMIFS(BD_Segmentos!U:U,BD_Segmentos!$C:$C,$B11,BD_Segmentos!$A:$A,"S4")*ValorUnidad,SUMIFS(BD_Segmentos!U:U,BD_Segmentos!$C:$C,$B11,BD_Segmentos!$A:$A,"S4")*ValorUnidad-SUMIFS(BD_Segmentos!T:T,BD_Segmentos!$C:$C,$B11,BD_Segmentos!$A:$A,"S4")*ValorUnidad) -> -360.3308656
B12: ST12 | C12: Net interest and similar income | E12: =IF(MONTH(E$7)=3,SUMIFS(BD_Segmentos!D:D,BD_Segmentos!$C:$C,$B12,BD_Segmentos!$A:$A,"S4")*ValorUnidad,SUMIFS(BD_Segmentos!D:D,BD_Segmentos!$C:$C,$B12,BD_Segmentos!$A:$A,"S4")*ValorUnidad-SUMIFS(BD_Segmentos!C:C,BD_Segmentos!$C:$C,$B12,BD_Segmentos!$A:$A,"S4")*ValorUnidad) -> 769.2751181 | F12: =IF(MONTH(F$7)=3,SUMIFS(BD_Segmentos!E:E,BD_Segmentos!$C:$C,$B12,BD_Segmentos!$A:$A,"S4")*ValorUnidad,SUMIFS(BD_Segmentos!E:E,BD_Segmentos!$C:$C,$B12,BD_Segmentos!$A:$A,"S4")*ValorUnidad-SUMIFS(BD_Segmentos!D:D,BD_Segmentos!$C:$C,$B12,BD_Segmentos!$A:$A,"S4")*ValorUnidad) -> 782.4490163 | G12: =IF(MONTH(G$7)=3,SUMIFS(BD_Segmentos!F:F,BD_Segmentos!$C:$C,$B12,BD_Segmentos!$A:$A,"S4")*ValorUnidad,SUMIFS(BD_Segmentos!F:F,BD_Segmentos!$C:$C,$B12,BD_Segmentos!$A:$A,"S4")*ValorUnidad-SUMIFS(BD_Segmentos!E:E,BD_Segmentos!$C:$C,$B12,BD_Segmentos!$A:$A,"S4")*ValorUnidad) -> 778.4015582 | H12: =IF(MONTH(H$7)=3,SUMIFS(BD_Segmentos!G:G,BD_Segmentos!$C:$C,$B12,BD_Segmentos!$A:$A,"S4")*ValorUnidad,SUMIFS(BD_Segmentos!G:G,BD_Segmentos!$C:$C,$B12,BD_Segmentos!$A:$A,"S4")*ValorUnidad-SUMIFS(BD_Segmentos!F:F,BD_Segmentos!$C:$C,$B12,BD_Segmentos!$A:$A,"S4")*ValorUnidad) -> 813.8617878 | I12: =IF(MONTH(I$7)=3,SUMIFS(BD_Segmentos!H:H,BD_Segmentos!$C:$C,$B12,BD_Segmentos!$A:$A,"S4")*ValorUnidad,SUMIFS(BD_Segmentos!H:H,BD_Segmentos!$C:$C,$B12,BD_Segmentos!$A:$A,"S4")*ValorUnidad-SUMIFS(BD_Segmentos!G:G,BD_Segmentos!$C:$C,$B12,BD_Segmentos!$A:$A,"S4")*ValorUnidad) -> 827.1166291 | J12: =IF(MONTH(J$7)=3,SUMIFS(BD_Segmentos!I:I,BD_Segmentos!$C:$C,$B12,BD_Segmentos!$A:$A,"S4")*ValorUnidad,SUMIFS(BD_Segmentos!I:I,BD_Segmentos!$C:$C,$B12,BD_Segmentos!$A:$A,"S4")*ValorUnidad-SUMIFS(BD_Segmentos!H:H,BD_Segmentos!$C:$C,$B12,BD_Segmentos!$A:$A,"S4")*ValorUnidad) -> 855.5689836 | K12: =IF(MONTH(K$7)=3,SUMIFS(BD_Segmentos!J:J,BD_Segmentos!$C:$C,$B12,BD_Segmentos!$A:$A,"S4")*ValorUnidad,SUMIFS(BD_Segmentos!J:J,BD_Segmentos!$C:$C,$B12,BD_Segmentos!$A:$A,"S4")*ValorUnidad-SUMIFS(BD_Segmentos!I:I,BD_Segmentos!$C:$C,$B12,BD_Segmentos!$A:$A,"S4")*ValorUnidad) -> 880.6537727 | L12: =IF(MONTH(L$7)=3,SUMIFS(BD_Segmentos!K:K,BD_Segmentos!$C:$C,$B12,BD_Segmentos!$A:$A,"S4")*ValorUnidad,SUMIFS(BD_Segmentos!K:K,BD_Segmentos!$C:$C,$B12,BD_Segmentos!$A:$A,"S4")*ValorUnidad-SUMIFS(BD_Segmentos!J:J,BD_Segmentos!$C:$C,$B12,BD_Segmentos!$A:$A,"S4")*ValorUnidad) -> 859.9142377 | M12: =IF(MONTH(M$7)=3,SUMIFS(BD_Segmentos!L:L,BD_Segmentos!$C:$C,$B12,BD_Segmentos!$A:$A,"S4")*ValorUnidad,SUMIFS(BD_Segmentos!L:L,BD_Segmentos!$C:$C,$B12,BD_Segmentos!$A:$A,"S4")*ValorUnidad-SUMIFS(BD_Segmentos!K:K,BD_Segmentos!$C:$C,$B12,BD_Segmentos!$A:$A,"S4")*ValorUnidad) -> 910.1165124 | N12: =IF(MONTH(N$7)=3,SUMIFS(BD_Segmentos!M:M,BD_Segmentos!$C:$C,$B12,BD_Segmentos!$A:$A,"S4")*ValorUnidad,SUMIFS(BD_Segmentos!M:M,BD_Segmentos!$C:$C,$B12,BD_Segmentos!$A:$A,"S4")*ValorUnidad-SUMIFS(BD_Segmentos!L:L,BD_Segmentos!$C:$C,$B12,BD_Segmentos!$A:$A,"S4")*ValorUnidad) -> 735.2497867 | O12: =IF(MONTH(O$7)=3,SUMIFS(BD_Segmentos!N:N,BD_Segmentos!$C:$C,$B12,BD_Segmentos!$A:$A,"S4")*ValorUnidad,SUMIFS(BD_Segmentos!N:N,BD_Segmentos!$C:$C,$B12,BD_Segmentos!$A:$A,"S4")*ValorUnidad-SUMIFS(BD_Segmentos!M:M,BD_Segmentos!$C:$C,$B12,BD_Segmentos!$A:$A,"S4")*ValorUnidad) -> 906.6229933 | P12: =IF(MONTH(P$7)=3,SUMIFS(BD_Segmentos!O:O,BD_Segmentos!$C:$C,$B12,BD_Segmentos!$A:$A,"S4")*ValorUnidad,SUMIFS(BD_Segmentos!O:O,BD_Segmentos!$C:$C,$B12,BD_Segmentos!$A:$A,"S4")*ValorUnidad-SUMIFS(BD_Segmentos!N:N,BD_Segmentos!$C:$C,$B12,BD_Segmentos!$A:$A,"S4")*ValorUnidad) -> 920.6941609 | Q12: =IF(MONTH(Q$7)=3,SUMIFS(BD_Segmentos!P:P,BD_Segmentos!$C:$C,$B12,BD_Segmentos!$A:$A,"S4")*ValorUnidad,SUMIFS(BD_Segmentos!P:P,BD_Segmentos!$C:$C,$B12,BD_Segmentos!$A:$A,"S4")*ValorUnidad-SUMIFS(BD_Segmentos!O:O,BD_Segmentos!$C:$C,$B12,BD_Segmentos!$A:$A,"S4")*ValorUnidad) -> 833.8800376 | R12: =IF(MONTH(R$7)=3,SUMIFS(BD_Segmentos!Q:Q,BD_Segmentos!$C:$C,$B12,BD_Segmentos!$A:$A,"S4")*ValorUnidad,SUMIFS(BD_Segmentos!Q:Q,BD_Segmentos!$C:$C,$B12,BD_Segmentos!$A:$A,"S4")*ValorUnidad-SUMIFS(BD_Segmentos!P:P,BD_Segmentos!$C:$C,$B12,BD_Segmentos!$A:$A,"S4")*ValorUnidad) -> 867.4853289 | S12: =IF(MONTH(S$7)=3,SUMIFS(BD_Segmentos!R:R,BD_Segmentos!$C:$C,$B12,BD_Segmentos!$A:$A,"S4")*ValorUnidad,SUMIFS(BD_Segmentos!R:R,BD_Segmentos!$C:$C,$B12,BD_Segmentos!$A:$A,"S4")*ValorUnidad-SUMIFS(BD_Segmentos!Q:Q,BD_Segmentos!$C:$C,$B12,BD_Segmentos!$A:$A,"S4")*ValorUnidad) -> 899.9746232 | T12: =IF(MONTH(T$7)=3,SUMIFS(BD_Segmentos!S:S,BD_Segmentos!$C:$C,$B12,BD_Segmentos!$A:$A,"S4")*ValorUnidad,SUMIFS(BD_Segmentos!S:S,BD_Segmentos!$C:$C,$B12,BD_Segmentos!$A:$A,"S4")*ValorUnidad-SUMIFS(BD_Segmentos!R:R,BD_Segmentos!$C:$C,$B12,BD_Segmentos!$A:$A,"S4")*ValorUnidad) -> 946.3480323 | U12: =IF(MONTH(U$7)=3,SUMIFS(BD_Segmentos!T:T,BD_Segmentos!$C:$C,$B12,BD_Segmentos!$A:$A,"S4")*ValorUnidad,SUMIFS(BD_Segmentos!T:T,BD_Segmentos!$C:$C,$B12,BD_Segmentos!$A:$A,"S4")*ValorUnidad-SUMIFS(BD_Segmentos!S:S,BD_Segmentos!$C:$C,$B12,BD_Segmentos!$A:$A,"S4")*ValorUnidad) -> 944.6908394 | V12: =IF(MONTH(V$7)=3,SUMIFS(BD_Segmentos!U:U,BD_Segmentos!$C:$C,$B12,BD_Segmentos!$A:$A,"S4")*ValorUnidad,SUMIFS(BD_Segmentos!U:U,BD_Segmentos!$C:$C,$B12,BD_Segmentos!$A:$A,"S4")*ValorUnidad-SUMIFS(BD_Segmentos!T:T,BD_Segmentos!$C:$C,$B12,BD_Segmentos!$A:$A,"S4")*ValorUnidad) -> 1031.751416
B13: 43 | C13: Impairment loss on loans, net of recoveries | E13: =IF(MONTH(E$7)=3,SUMIFS(BD_Segmentos!D:D,BD_Segmentos!$C:$C,$B13,BD_Segmentos!$A:$A,"S4")*ValorUnidad,SUMIFS(BD_Segmentos!D:D,BD_Segmentos!$C:$C,$B13,BD_Segmentos!$A:$A,"S4")*ValorUnidad-SUMIFS(BD_Segmentos!C:C,BD_Segmentos!$C:$C,$B13,BD_Segmentos!$A:$A,"S4")*ValorUnidad) -> -172.8847028 | F13: =IF(MONTH(F$7)=3,SUMIFS(BD_Segmentos!E:E,BD_Segmentos!$C:$C,$B13,BD_Segmentos!$A:$A,"S4")*ValorUnidad,SUMIFS(BD_Segmentos!E:E,BD_Segmentos!$C:$C,$B13,BD_Segmentos!$A:$A,"S4")*ValorUnidad-SUMIFS(BD_Segmentos!D:D,BD_Segmentos!$C:$C,$B13,BD_Segmentos!$A:$A,"S4")*ValorUnidad) -> -112.569676 | G13: =IF(MONTH(G$7)=3,SUMIFS(BD_Segmentos!F:F,BD_Segmentos!$C:$C,$B13,BD_Segmentos!$A:$A,"S4")*ValorUnidad,SUMIFS(BD_Segmentos!F:F,BD_Segmentos!$C:$C,$B13,BD_Segmentos!$A:$A,"S4")*ValorUnidad-SUMIFS(BD_Segmentos!E:E,BD_Segmentos!$C:$C,$B13,BD_Segmentos!$A:$A,"S4")*ValorUnidad) -> -165.8044409 | H13: =IF(MONTH(H$7)=3,SUMIFS(BD_Segmentos!G:G,BD_Segmentos!$C:$C,$B13,BD_Segmentos!$A:$A,"S4")*ValorUnidad,SUMIFS(BD_Segmentos!G:G,BD_Segmentos!$C:$C,$B13,BD_Segmentos!$A:$A,"S4")*ValorUnidad-SUMIFS(BD_Segmentos!F:F,BD_Segmentos!$C:$C,$B13,BD_Segmentos!$A:$A,"S4")*ValorUnidad) -> -208.8135847 | I13: =IF(MONTH(I$7)=3,SUMIFS(BD_Segmentos!H:H,BD_Segmentos!$C:$C,$B13,BD_Segmentos!$A:$A,"S4")*ValorUnidad,SUMIFS(BD_Segmentos!H:H,BD_Segmentos!$C:$C,$B13,BD_Segmentos!$A:$A,"S4")*ValorUnidad-SUMIFS(BD_Segmentos!G:G,BD_Segmentos!$C:$C,$B13,BD_Segmentos!$A:$A,"S4")*ValorUnidad) -> -186.4135231 | J13: =IF(MONTH(J$7)=3,SUMIFS(BD_Segmentos!I:I,BD_Segmentos!$C:$C,$B13,BD_Segmentos!$A:$A,"S4")*ValorUnidad,SUMIFS(BD_Segmentos!I:I,BD_Segmentos!$C:$C,$B13,BD_Segmentos!$A:$A,"S4")*ValorUnidad-SUMIFS(BD_Segmentos!H:H,BD_Segmentos!$C:$C,$B13,BD_Segmentos!$A:$A,"S4")*ValorUnidad) -> -192.9416775 | K13: =IF(MONTH(K$7)=3,SUMIFS(BD_Segmentos!J:J,BD_Segmentos!$C:$C,$B13,BD_Segmentos!$A:$A,"S4")*ValorUnidad,SUMIFS(BD_Segmentos!J:J,BD_Segmentos!$C:$C,$B13,BD_Segmentos!$A:$A,"S4")*ValorUnidad-SUMIFS(BD_Segmentos!I:I,BD_Segmentos!$C:$C,$B13,BD_Segmentos!$A:$A,"S4")*ValorUnidad) -> -223.6013413 | L13: =IF(MONTH(L$7)=3,SUMIFS(BD_Segmentos!K:K,BD_Segmentos!$C:$C,$B13,BD_Segmentos!$A:$A,"S4")*ValorUnidad,SUMIFS(BD_Segmentos!K:K,BD_Segmentos!$C:$C,$B13,BD_Segmentos!$A:$A,"S4")*ValorUnidad-SUMIFS(BD_Segmentos!J:J,BD_Segmentos!$C:$C,$B13,BD_Segmentos!$A:$A,"S4")*ValorUnidad) -> -147.8549513 | M13: =IF(MONTH(M$7)=3,SUMIFS(BD_Segmentos!L:L,BD_Segmentos!$C:$C,$B13,BD_Segmentos!$A:$A,"S4")*ValorUnidad,SUMIFS(BD_Segmentos!L:L,BD_Segmentos!$C:$C,$B13,BD_Segmentos!$A:$A,"S4")*ValorUnidad-SUMIFS(BD_Segmentos!K:K,BD_Segmentos!$C:$C,$B13,BD_Segmentos!$A:$A,"S4")*ValorUnidad) -> -312.6177655 | N13: =IF(MONTH(N$7)=3,SUMIFS(BD_Segmentos!M:M,BD_Segmentos!$C:$C,$B13,BD_Segmentos!$A:$A,"S4")*ValorUnidad,SUMIFS(BD_Segmentos!M:M,BD_Segmentos!$C:$C,$B13,BD_Segmentos!$A:$A,"S4")*ValorUnidad-SUMIFS(BD_Segmentos!L:L,BD_Segmentos!$C:$C,$B13,BD_Segmentos!$A:$A,"S4")*ValorUnidad) -> -1290.548095 | O13: =IF(MONTH(O$7)=3,SUMIFS(BD_Segmentos!N:N,BD_Segmentos!$C:$C,$B13,BD_Segmentos!$A:$A,"S4")*ValorUnidad,SUMIFS(BD_Segmentos!N:N,BD_Segmentos!$C:$C,$B13,BD_Segmentos!$A:$A,"S4")*ValorUnidad-SUMIFS(BD_Segmentos!M:M,BD_Segmentos!$C:$C,$B13,BD_Segmentos!$A:$A,"S4")*ValorUnidad) -> -463.2594128 | P13: =IF(MONTH(P$7)=3,SUMIFS(BD_Segmentos!O:O,BD_Segmentos!$C:$C,$B13,BD_Segmentos!$A:$A,"S4")*ValorUnidad,SUMIFS(BD_Segmentos!O:O,BD_Segmentos!$C:$C,$B13,BD_Segmentos!$A:$A,"S4")*ValorUnidad-SUMIFS(BD_Segmentos!N:N,BD_Segmentos!$C:$C,$B13,BD_Segmentos!$A:$A,"S4")*ValorUnidad) -> -327.5184617 | Q13: =IF(MONTH(Q$7)=3,SUMIFS(BD_Segmentos!P:P,BD_Segmentos!$C:$C,$B13,BD_Segmentos!$A:$A,"S4")*ValorUnidad,SUMIFS(BD_Segmentos!P:P,BD_Segmentos!$C:$C,$B13,BD_Segmentos!$A:$A,"S4")*ValorUnidad-SUMIFS(BD_Segmentos!O:O,BD_Segmentos!$C:$C,$B13,BD_Segmentos!$A:$A,"S4")*ValorUnidad) -> -189.0044886 | R13: =IF(MONTH(R$7)=3,SUMIFS(BD_Segmentos!Q:Q,BD_Segmentos!$C:$C,$B13,BD_Segmentos!$A:$A,"S4")*ValorUnidad,SUMIFS(BD_Segmentos!Q:Q,BD_Segmentos!$C:$C,$B13,BD_Segmentos!$A:$A,"S4")*ValorUnidad-SUMIFS(BD_Segmentos!P:P,BD_Segmentos!$C:$C,$B13,BD_Segmentos!$A:$A,"S4")*ValorUnidad) -> -177.8444073 | S13: =IF(MONTH(S$7)=3,SUMIFS(BD_Segmentos!R:R,BD_Segmentos!$C:$C,$B13,BD_Segmentos!$A:$A,"S4")*ValorUnidad,SUMIFS(BD_Segmentos!R:R,BD_Segmentos!$C:$C,$B13,BD_Segmentos!$A:$A,"S4")*ValorUnidad-SUMIFS(BD_Segmentos!Q:Q,BD_Segmentos!$C:$C,$B13,BD_Segmentos!$A:$A,"S4")*ValorUnidad) -> -112.1008988 | T13: =IF(MONTH(T$7)=3,SUMIFS(BD_Segmentos!S:S,BD_Segmentos!$C:$C,$B13,BD_Segmentos!$A:$A,"S4")*ValorUnidad,SUMIFS(BD_Segmentos!S:S,BD_Segmentos!$C:$C,$B13,BD_Segmentos!$A:$A,"S4")*ValorUnidad-SUMIFS(BD_Segmentos!R:R,BD_Segmentos!$C:$C,$B13,BD_Segmentos!$A:$A,"S4")*ValorUnidad) -> 97.37304959 | U13: =IF(MONTH(U$7)=3,SUMIFS(BD_Segmentos!T:T,BD_Segmentos!$C:$C,$B13,BD_Segmentos!$A:$A,"S4")*ValorUnidad,SUMIFS(BD_Segmentos!T:T,BD_Segmentos!$C:$C,$B13,BD_Segmentos!$A:$A,"S4")*ValorUnidad-SUMIFS(BD_Segmentos!S:S,BD_Segmentos!$C:$C,$B13,BD_Segmentos!$A:$A,"S4")*ValorUnidad) -> -149.5947529 | V13: =IF(MONTH(V$7)=3,SUMIFS(BD_Segmentos!U:U,BD_Segmentos!$C:$C,$B13,BD_Segmentos!$A:$A,"S4")*ValorUnidad,SUMIFS(BD_Segmentos!U:U,BD_Segmentos!$C:$C,$B13,BD_Segmentos!$A:$A,"S4")*ValorUnidad-SUMIFS(BD_Segmentos!T:T,BD_Segmentos!$C:$C,$B13,BD_Segmentos!$A:$A,"S4")*ValorUnidad) -> -193.2874518
B14: 54 | C14: Recovery (loss) due to impairment of financial investments | E14: =IF(MONTH(E$7)=3,SUMIFS(BD_Segmentos!D:D,BD_Segmentos!$C:$C,$B14,BD_Segmentos!$A:$A,"S4")*ValorUnidad,SUMIFS(BD_Segmentos!D:D,BD_Segmentos!$C:$C,$B14,BD_Segmentos!$A:$A,"S4")*ValorUnidad-SUMIFS(BD_Segmentos!C:C,BD_Segmentos!$C:$C,$B14,BD_Segmentos!$A:$A,"S4")*ValorUnidad) -> 2.257845914 | F14: =IF(MONTH(F$7)=3,SUMIFS(BD_Segmentos!E:E,BD_Segmentos!$C:$C,$B14,BD_Segmentos!$A:$A,"S4")*ValorUnidad,SUMIFS(BD_Segmentos!E:E,BD_Segmentos!$C:$C,$B14,BD_Segmentos!$A:$A,"S4")*ValorUnidad-SUMIFS(BD_Segmentos!D:D,BD_Segmentos!$C:$C,$B14,BD_Segmentos!$A:$A,"S4")*ValorUnidad) -> 1.29890579 | G14: =IF(MONTH(G$7)=3,SUMIFS(BD_Segmentos!F:F,BD_Segmentos!$C:$C,$B14,BD_Segmentos!$A:$A,"S4")*ValorUnidad,SUMIFS(BD_Segmentos!F:F,BD_Segmentos!$C:$C,$B14,BD_Segmentos!$A:$A,"S4")*ValorUnidad-SUMIFS(BD_Segmentos!E:E,BD_Segmentos!$C:$C,$B14,BD_Segmentos!$A:$A,"S4")*ValorUnidad) -> -1.230704736 | H14: =IF(MONTH(H$7)=3,SUMIFS(BD_Segmentos!G:G,BD_Segmentos!$C:$C,$B14,BD_Segmentos!$A:$A,"S4")*ValorUnidad,SUMIFS(BD_Segmentos!G:G,BD_Segmentos!$C:$C,$B14,BD_Segmentos!$A:$A,"S4")*ValorUnidad-SUMIFS(BD_Segmentos!F:F,BD_Segmentos!$C:$C,$B14,BD_Segmentos!$A:$A,"S4")*ValorUnidad) -> 10.75099093 | I14: =IF(MONTH(I$7)=3,SUMIFS(BD_Segmentos!H:H,BD_Segmentos!$C:$C,$B14,BD_Segmentos!$A:$A,"S4")*ValorUnidad,SUMIFS(BD_Segmentos!H:H,BD_Segmentos!$C:$C,$B14,BD_Segmentos!$A:$A,"S4")*ValorUnidad-SUMIFS(BD_Segmentos!G:G,BD_Segmentos!$C:$C,$B14,BD_Segmentos!$A:$A,"S4")*ValorUnidad) -> 1.886705832 | J14: =IF(MONTH(J$7)=3,SUMIFS(BD_Segmentos!I:I,BD_Segmentos!$C:$C,$B14,BD_Segmentos!$A:$A,"S4")*ValorUnidad,SUMIFS(BD_Segmentos!I:I,BD_Segmentos!$C:$C,$B14,BD_Segmentos!$A:$A,"S4")*ValorUnidad-SUMIFS(BD_Segmentos!H:H,BD_Segmentos!$C:$C,$B14,BD_Segmentos!$A:$A,"S4")*ValorUnidad) -> 0.7877923614 | K14: =IF(MONTH(K$7)=3,SUMIFS(BD_Segmentos!J:J,BD_Segmentos!$C:$C,$B14,BD_Segmentos!$A:$A,"S4")*ValorUnidad,SUMIFS(BD_Segmentos!J:J,BD_Segmentos!$C:$C,$B14,BD_Segmentos!$A:$A,"S4")*ValorUnidad-SUMIFS(BD_Segmentos!I:I,BD_Segmentos!$C:$C,$B14,BD_Segmentos!$A:$A,"S4")*ValorUnidad) -> -1.145296984 | L14: =IF(MONTH(L$7)=3,SUMIFS(BD_Segmentos!K:K,BD_Segmentos!$C:$C,$B14,BD_Segmentos!$A:$A,"S4")*ValorUnidad,SUMIFS(BD_Segmentos!K:K,BD_Segmentos!$C:$C,$B14,BD_Segmentos!$A:$A,"S4")*ValorUnidad-SUMIFS(BD_Segmentos!J:J,BD_Segmentos!$C:$C,$B14,BD_Segmentos!$A:$A,"S4")*ValorUnidad) -> -8.318875332 | M14: =IF(MONTH(M$7)=3,SUMIFS(BD_Segmentos!L:L,BD_Segmentos!$C:$C,$B14,BD_Segmentos!$A:$A,"S4")*ValorUnidad,SUMIFS(BD_Segmentos!L:L,BD_Segmentos!$C:$C,$B14,BD_Segmentos!$A:$A,"S4")*ValorUnidad-SUMIFS(BD_Segmentos!K:K,BD_Segmentos!$C:$C,$B14,BD_Segmentos!$A:$A,"S4")*ValorUnidad) -> -40.52198057 | N14: =IF(MONTH(N$7)=3,SUMIFS(BD_Segmentos!M:M,BD_Segmentos!$C:$C,$B14,BD_Segmentos!$A:$A,"S4")*ValorUnidad,SUMIFS(BD_Segmentos!M:M,BD_Segmentos!$C:$C,$B14,BD_Segmentos!$A:$A,"S4")*ValorUnidad-SUMIFS(BD_Segmentos!L:L,BD_Segmentos!$C:$C,$B14,BD_Segmentos!$A:$A,"S4")*ValorUnidad) -> -11.87390912 | O14: =IF(MONTH(O$7)=3,SUMIFS(BD_Segmentos!N:N,BD_Segmentos!$C:$C,$B14,BD_Segmentos!$A:$A,"S4")*ValorUnidad,SUMIFS(BD_Segmentos!N:N,BD_Segmentos!$C:$C,$B14,BD_Segmentos!$A:$A,"S4")*ValorUnidad-SUMIFS(BD_Segmentos!M:M,BD_Segmentos!$C:$C,$B14,BD_Segmentos!$A:$A,"S4")*ValorUnidad) -> -2.79878083 | P14: =IF(MONTH(P$7)=3,SUMIFS(BD_Segmentos!O:O,BD_Segmentos!$C:$C,$B14,BD_Segmentos!$A:$A,"S4")*ValorUnidad,SUMIFS(BD_Segmentos!O:O,BD_Segmentos!$C:$C,$B14,BD_Segmentos!$A:$A,"S4")*ValorUnidad-SUMIFS(BD_Segmentos!N:N,BD_Segmentos!$C:$C,$B14,BD_Segmentos!$A:$A,"S4")*ValorUnidad) -> 22.29116222 | Q14: =IF(MONTH(Q$7)=3,SUMIFS(BD_Segmentos!P:P,BD_Segmentos!$C:$C,$B14,BD_Segmentos!$A:$A,"S4")*ValorUnidad,SUMIFS(BD_Segmentos!P:P,BD_Segmentos!$C:$C,$B14,BD_Segmentos!$A:$A,"S4")*ValorUnidad-SUMIFS(BD_Segmentos!O:O,BD_Segmentos!$C:$C,$B14,BD_Segmentos!$A:$A,"S4")*ValorUnidad) -> 47.2225437 | R14: =IF(MONTH(R$7)=3,SUMIFS(BD_Segmentos!Q:Q,BD_Segmentos!$C:$C,$B14,BD_Segmentos!$A:$A,"S4")*ValorUnidad,SUMIFS(BD_Segmentos!Q:Q,BD_Segmentos!$C:$C,$B14,BD_Segmentos!$A:$A,"S4")*ValorUnidad-SUMIFS(BD_Segmentos!P:P,BD_Segmentos!$C:$C,$B14,BD_Segmentos!$A:$A,"S4")*ValorUnidad) -> -7.754358123 | S14: =IF(MONTH(S$7)=3,SUMIFS(BD_Segmentos!R:R,BD_Segmentos!$C:$C,$B14,BD_Segmentos!$A:$A,"S4")*ValorUnidad,SUMIFS(BD_Segmentos!R:R,BD_Segmentos!$C:$C,$B14,BD_Segmentos!$A:$A,"S4")*ValorUnidad-SUMIFS(BD_Segmentos!Q:Q,BD_Segmentos!$C:$C,$B14,BD_Segmentos!$A:$A,"S4")*ValorUnidad) -> -8.521322452 | T14: =IF(MONTH(T$7)=3,SUMIFS(BD_Segmentos!S:S,BD_Segmentos!$C:$C,$B14,BD_Segmentos!$A:$A,"S4")*ValorUnidad,SUMIFS(BD_Segmentos!S:S,BD_Segmentos!$C:$C,$B14,BD_Segmentos!$A:$A,"S4")*ValorUnidad-SUMIFS(BD_Segmentos!R:R,BD_Segmentos!$C:$C,$B14,BD_Segmentos!$A:$A,"S4")*ValorUnidad) -> -0.04933254364 | U14: =IF(MONTH(U$7)=3,SUMIFS(BD_Segmentos!T:T,BD_Segmentos!$C:$C,$B14,BD_Segmentos!$A:$A,"S4")*ValorUnidad,SUMIFS(BD_Segmentos!T:T,BD_Segmentos!$C:$C,$B14,BD_Segmentos!$A:$A,"S4")*ValorUnidad-SUMIFS(BD_Segmentos!S:S,BD_Segmentos!$C:$C,$B14,BD_Segmentos!$A:$A,"S4")*ValorUnidad) -> 2.025621997 | V14: =IF(MONTH(V$7)=3,SUMIFS(BD_Segmentos!U:U,BD_Segmentos!$C:$C,$B14,BD_Segmentos!$A:$A,"S4")*ValorUnidad,SUMIFS(BD_Segmentos!U:U,BD_Segmentos!$C:$C,$B14,BD_Segmentos!$A:$A,"S4")*ValorUnidad-SUMIFS(BD_Segmentos!T:T,BD_Segmentos!$C:$C,$B14,BD_Segmentos!$A:$A,"S4")*ValorUnidad) -> 0.3312496586
B15: ST13 | C15: Net interest and similar income after impairment loss | E15: =IF(MONTH(E$7)=3,SUMIFS(BD_Segmentos!D:D,BD_Segmentos!$C:$C,$B15,BD_Segmentos!$A:$A,"S4")*ValorUnidad,SUMIFS(BD_Segmentos!D:D,BD_Segmentos!$C:$C,$B15,BD_Segmentos!$A:$A,"S4")*ValorUnidad-SUMIFS(BD_Segmentos!C:C,BD_Segmentos!$C:$C,$B15,BD_Segmentos!$A:$A,"S4")*ValorUnidad) -> 598.6482612 | F15: =IF(MONTH(F$7)=3,SUMIFS(BD_Segmentos!E:E,BD_Segmentos!$C:$C,$B15,BD_Segmentos!$A:$A,"S4")*ValorUnidad,SUMIFS(BD_Segmentos!E:E,BD_Segmentos!$C:$C,$B15,BD_Segmentos!$A:$A,"S4")*ValorUnidad-SUMIFS(BD_Segmentos!D:D,BD_Segmentos!$C:$C,$B15,BD_Segmentos!$A:$A,"S4")*ValorUnidad) -> 671.178246 | G15: =IF(MONTH(G$7)=3,SUMIFS(BD_Segmentos!F:F,BD_Segmentos!$C:$C,$B15,BD_Segmentos!$A:$A,"S4")*ValorUnidad,SUMIFS(BD_Segmentos!F:F,BD_Segmentos!$C:$C,$B15,BD_Segmentos!$A:$A,"S4")*ValorUnidad-SUMIFS(BD_Segmentos!E:E,BD_Segmentos!$C:$C,$B15,BD_Segmentos!$A:$A,"S4")*ValorUnidad) -> 611.3664126 | H15: =IF(MONTH(H$7)=3,SUMIFS(BD_Segmentos!G:G,BD_Segmentos!$C:$C,$B15,BD_Segmentos!$A:$A,"S4")*ValorUnidad,SUMIFS(BD_Segmentos!G:G,BD_Segmentos!$C:$C,$B15,BD_Segmentos!$A:$A,"S4")*ValorUnidad-SUMIFS(BD_Segmentos!F:F,BD_Segmentos!$C:$C,$B15,BD_Segmentos!$A:$A,"S4")*ValorUnidad) -> 615.799194 | I15: =IF(MONTH(I$7)=3,SUMIFS(BD_Segmentos!H:H,BD_Segmentos!$C:$C,$B15,BD_Segmentos!$A:$A,"S4")*ValorUnidad,SUMIFS(BD_Segmentos!H:H,BD_Segmentos!$C:$C,$B15,BD_Segmentos!$A:$A,"S4")*ValorUnidad-SUMIFS(BD_Segmentos!G:G,BD_Segmentos!$C:$C,$B15,BD_Segmentos!$A:$A,"S4")*ValorUnidad) -> 642.5898119 | J15: =IF(MONTH(J$7)=3,SUMIFS(BD_Segmentos!I:I,BD_Segmentos!$C:$C,$B15,BD_Segmentos!$A:$A,"S4")*ValorUnidad,SUMIFS(BD_Segmentos!I:I,BD_Segmentos!$C:$C,$B15,BD_Segmentos!$A:$A,"S4")*ValorUnidad-SUMIFS(BD_Segmentos!H:H,BD_Segmentos!$C:$C,$B15,BD_Segmentos!$A:$A,"S4")*ValorUnidad) -> 663.4150985 | K15: =IF(MONTH(K$7)=3,SUMIFS(BD_Segmentos!J:J,BD_Segmentos!$C:$C,$B15,BD_Segmentos!$A:$A,"S4")*ValorUnidad,SUMIFS(BD_Segmentos!J:J,BD_Segmentos!$C:$C,$B15,BD_Segmentos!$A:$A,"S4")*ValorUnidad-SUMIFS(BD_Segmentos!I:I,BD_Segmentos!$C:$C,$B15,BD_Segmentos!$A:$A,"S4")*ValorUnidad) -> 655.9071344 | L15: =IF(MONTH(L$7)=3,SUMIFS(BD_Segmentos!K:K,BD_Segmentos!$C:$C,$B15,BD_Segmentos!$A:$A,"S4")*ValorUnidad,SUMIFS(BD_Segmentos!K:K,BD_Segmentos!$C:$C,$B15,BD_Segmentos!$A:$A,"S4")*ValorUnidad-SUMIFS(BD_Segmentos!J:J,BD_Segmentos!$C:$C,$B15,BD_Segmentos!$A:$A,"S4")*ValorUnidad) -> 703.7404111 | M15: =IF(MONTH(M$7)=3,SUMIFS(BD_Segmentos!L:L,BD_Segmentos!$C:$C,$B15,BD_Segmentos!$A:$A,"S4")*ValorUnidad,SUMIFS(BD_Segmentos!L:L,BD_Segmentos!$C:$C,$B15,BD_Segmentos!$A:$A,"S4")*ValorUnidad-SUMIFS(BD_Segmentos!K:K,BD_Segmentos!$C:$C,$B15,BD_Segmentos!$A:$A,"S4")*ValorUnidad) -> 556.9767663 | N15: =IF(MONTH(N$7)=3,SUMIFS(BD_Segmentos!M:M,BD_Segmentos!$C:$C,$B15,BD_Segmentos!$A:$A,"S4")*ValorUnidad,SUMIFS(BD_Segmentos!M:M,BD_Segmentos!$C:$C,$B15,BD_Segmentos!$A:$A,"S4")*ValorUnidad-SUMIFS(BD_Segmentos!L:L,BD_Segmentos!$C:$C,$B15,BD_Segmentos!$A:$A,"S4")*ValorUnidad) -> -567.1722169 | O15: =IF(MONTH(O$7)=3,SUMIFS(BD_Segmentos!N:N,BD_Segmentos!$C:$C,$B15,BD_Segmentos!$A:$A,"S4")*ValorUnidad,SUMIFS(BD_Segmentos!N:N,BD_Segmentos!$C:$C,$B15,BD_Segmentos!$A:$A,"S4")*ValorUnidad-SUMIFS(BD_Segmentos!M:M,BD_Segmentos!$C:$C,$B15,BD_Segmentos!$A:$A,"S4")*ValorUnidad) -> 440.5647997 | P15: =IF(MONTH(P$7)=3,SUMIFS(BD_Segmentos!O:O,BD_Segmentos!$C:$C,$B15,BD_Segmentos!$A:$A,"S4")*ValorUnidad,SUMIFS(BD_Segmentos!O:O,BD_Segmentos!$C:$C,$B15,BD_Segmentos!$A:$A,"S4")*ValorUnidad-SUMIFS(BD_Segmentos!N:N,BD_Segmentos!$C:$C,$B15,BD_Segmentos!$A:$A,"S4")*ValorUnidad) -> 615.4668614 | Q15: =IF(MONTH(Q$7)=3,SUMIFS(BD_Segmentos!P:P,BD_Segmentos!$C:$C,$B15,BD_Segmentos!$A:$A,"S4")*ValorUnidad,SUMIFS(BD_Segmentos!P:P,BD_Segmentos!$C:$C,$B15,BD_Segmentos!$A:$A,"S4")*ValorUnidad-SUMIFS(BD_Segmentos!O:O,BD_Segmentos!$C:$C,$B15,BD_Segmentos!$A:$A,"S4")*ValorUnidad) -> 692.0980927 | R15: =IF(MONTH(R$7)=3,SUMIFS(BD_Segmentos!Q:Q,BD_Segmentos!$C:$C,$B15,BD_Segmentos!$A:$A,"S4")*ValorUnidad,SUMIFS(BD_Segmentos!Q:Q,BD_Segmentos!$C:$C,$B15,BD_Segmentos!$A:$A,"S4")*ValorUnidad-SUMIFS(BD_Segmentos!P:P,BD_Segmentos!$C:$C,$B15,BD_Segmentos!$A:$A,"S4")*ValorUnidad) -> 681.8865634 | S15: =IF(MONTH(S$7)=3,SUMIFS(BD_Segmentos!R:R,BD_Segmentos!$C:$C,$B15,BD_Segmentos!$A:$A,"S4")*ValorUnidad,SUMIFS(BD_Segmentos!R:R,BD_Segmentos!$C:$C,$B15,BD_Segmentos!$A:$A,"S4")*ValorUnidad-SUMIFS(BD_Segmentos!Q:Q,BD_Segmentos!$C:$C,$B15,BD_Segmentos!$A:$A,"S4")*ValorUnidad) -> 779.3524019 | T15: =IF(MONTH(T$7)=3,SUMIFS(BD_Segmentos!S:S,BD_Segmentos!$C:$C,$B15,BD_Segmentos!$A:$A,"S4")*ValorUnidad,SUMIFS(BD_Segmentos!S:S,BD_Segmentos!$C:$C,$B15,BD_Segmentos!$A:$A,"S4")*ValorUnidad-SUMIFS(BD_Segmentos!R:R,BD_Segmentos!$C:$C,$B15,BD_Segmentos!$A:$A,"S4")*ValorUnidad) -> 1043.671749 | U15: =IF(MONTH(U$7)=3,SUMIFS(BD_Segmentos!T:T,BD_Segmentos!$C:$C,$B15,BD_Segmentos!$A:$A,"S4")*ValorUnidad,SUMIFS(BD_Segmentos!T:T,BD_Segmentos!$C:$C,$B15,BD_Segmentos!$A:$A,"S4")*ValorUnidad-SUMIFS(BD_Segmentos!S:S,BD_Segmentos!$C:$C,$B15,BD_Segmentos!$A:$A,"S4")*ValorUnidad) -> 797.1217085 | V15: =IF(MONTH(V$7)=3,SUMIFS(BD_Segmentos!U:U,BD_Segmentos!$C:$C,$B15,BD_Segmentos!$A:$A,"S4")*ValorUnidad,SUMIFS(BD_Segmentos!U:U,BD_Segmentos!$C:$C,$B15,BD_Segmentos!$A:$A,"S4")*ValorUnidad-SUMIFS(BD_Segmentos!T:T,BD_Segmentos!$C:$C,$B15,BD_Segmentos!$A:$A,"S4")*ValorUnidad) -> 838.7952142
B16: 44 | C16: Fee income from financial services, net | E16: =IF(MONTH(E$7)=3,SUMIFS(BD_Segmentos!D:D,BD_Segmentos!$C:$C,$B16,BD_Segmentos!$A:$A,"S4")*ValorUnidad,SUMIFS(BD_Segmentos!D:D,BD_Segmentos!$C:$C,$B16,BD_Segmentos!$A:$A,"S4")*ValorUnidad-SUMIFS(BD_Segmentos!C:C,BD_Segmentos!$C:$C,$B16,BD_Segmentos!$A:$A,"S4")*ValorUnidad) -> 216.5969264 | F16: =IF(MONTH(F$7)=3,SUMIFS(BD_Segmentos!E:E,BD_Segmentos!$C:$C,$B16,BD_Segmentos!$A:$A,"S4")*ValorUnidad,SUMIFS(BD_Segmentos!E:E,BD_Segmentos!$C:$C,$B16,BD_Segmentos!$A:$A,"S4")*ValorUnidad-SUMIFS(BD_Segmentos!D:D,BD_Segmentos!$C:$C,$B16,BD_Segmentos!$A:$A,"S4")*ValorUnidad) -> 220.374157 | G16: =IF(MONTH(G$7)=3,SUMIFS(BD_Segmentos!F:F,BD_Segmentos!$C:$C,$B16,BD_Segmentos!$A:$A,"S4")*ValorUnidad,SUMIFS(BD_Segmentos!F:F,BD_Segmentos!$C:$C,$B16,BD_Segmentos!$A:$A,"S4")*ValorUnidad-SUMIFS(BD_Segmentos!E:E,BD_Segmentos!$C:$C,$B16,BD_Segmentos!$A:$A,"S4")*ValorUnidad) -> 204.5719672 | H16: =IF(MONTH(H$7)=3,SUMIFS(BD_Segmentos!G:G,BD_Segmentos!$C:$C,$B16,BD_Segmentos!$A:$A,"S4")*ValorUnidad,SUMIFS(BD_Segmentos!G:G,BD_Segmentos!$C:$C,$B16,BD_Segmentos!$A:$A,"S4")*ValorUnidad-SUMIFS(BD_Segmentos!F:F,BD_Segmentos!$C:$C,$B16,BD_Segmentos!$A:$A,"S4")*ValorUnidad) -> 232.8833042 | I16: =IF(MONTH(I$7)=3,SUMIFS(BD_Segmentos!H:H,BD_Segmentos!$C:$C,$B16,BD_Segmentos!$A:$A,"S4")*ValorUnidad,SUMIFS(BD_Segmentos!H:H,BD_Segmentos!$C:$C,$B16,BD_Segmentos!$A:$A,"S4")*ValorUnidad-SUMIFS(BD_Segmentos!G:G,BD_Segmentos!$C:$C,$B16,BD_Segmentos!$A:$A,"S4")*ValorUnidad) -> 222.997796 | J16: =IF(MONTH(J$7)=3,SUMIFS(BD_Segmentos!I:I,BD_Segmentos!$C:$C,$B16,BD_Segmentos!$A:$A,"S4")*ValorUnidad,SUMIFS(BD_Segmentos!I:I,BD_Segmentos!$C:$C,$B16,BD_Segmentos!$A:$A,"S4")*ValorUnidad-SUMIFS(BD_Segmentos!H:H,BD_Segmentos!$C:$C,$B16,BD_Segmentos!$A:$A,"S4")*ValorUnidad) -> 222.7151266 | K16: =IF(MONTH(K$7)=3,SUMIFS(BD_Segmentos!J:J,BD_Segmentos!$C:$C,$B16,BD_Segmentos!$A:$A,"S4")*ValorUnidad,SUMIFS(BD_Segmentos!J:J,BD_Segmentos!$C:$C,$B16,BD_Segmentos!$A:$A,"S4")*ValorUnidad-SUMIFS(BD_Segmentos!I:I,BD_Segmentos!$C:$C,$B16,BD_Segmentos!$A:$A,"S4")*ValorUnidad) -> 229.8352202 | L16: =IF(MONTH(L$7)=3,SUMIFS(BD_Segmentos!K:K,BD_Segmentos!$C:$C,$B16,BD_Segmentos!$A:$A,"S4")*ValorUnidad,SUMIFS(BD_Segmentos!K:K,BD_Segmentos!$C:$C,$B16,BD_Segmentos!$A:$A,"S4")*ValorUnidad-SUMIFS(BD_Segmentos!J:J,BD_Segmentos!$C:$C,$B16,BD_Segmentos!$A:$A,"S4")*ValorUnidad) -> 250.3365391 | M16: =IF(MONTH(M$7)=3,SUMIFS(BD_Segmentos!L:L,BD_Segmentos!$C:$C,$B16,BD_Segmentos!$A:$A,"S4")*ValorUnidad,SUMIFS(BD_Segmentos!L:L,BD_Segmentos!$C:$C,$B16,BD_Segmentos!$A:$A,"S4")*ValorUnidad-SUMIFS(BD_Segmentos!K:K,BD_Segmentos!$C:$C,$B16,BD_Segmentos!$A:$A,"S4")*ValorUnidad) -> 220.307538 | N16: =IF(MONTH(N$7)=3,SUMIFS(BD_Segmentos!M:M,BD_Segmentos!$C:$C,$B16,BD_Segmentos!$A:$A,"S4")*ValorUnidad,SUMIFS(BD_Segmentos!M:M,BD_Segmentos!$C:$C,$B16,BD_Segmentos!$A:$A,"S4")*ValorUnidad-SUMIFS(BD_Segmentos!L:L,BD_Segmentos!$C:$C,$B16,BD_Segmentos!$A:$A,"S4")*ValorUnidad) -> 142.5763532 | O16: =IF(MONTH(O$7)=3,SUMIFS(BD_Segmentos!N:N,BD_Segmentos!$C:$C,$B16,BD_Segmentos!$A:$A,"S4")*ValorUnidad,SUMIFS(BD_Segmentos!N:N,BD_Segmentos!$C:$C,$B16,BD_Segmentos!$A:$A,"S4")*ValorUnidad-SUMIFS(BD_Segmentos!M:M,BD_Segmentos!$C:$C,$B16,BD_Segmentos!$A:$A,"S4")*ValorUnidad) -> 174.6719686 | P16: =IF(MONTH(P$7)=3,SUMIFS(BD_Segmentos!O:O,BD_Segmentos!$C:$C,$B16,BD_Segmentos!$A:$A,"S4")*ValorUnidad,SUMIFS(BD_Segmentos!O:O,BD_Segmentos!$C:$C,$B16,BD_Segmentos!$A:$A,"S4")*ValorUnidad-SUMIFS(BD_Segmentos!N:N,BD_Segmentos!$C:$C,$B16,BD_Segmentos!$A:$A,"S4")*ValorUnidad) -> 185.9441077 | Q16: =IF(MONTH(Q$7)=3,SUMIFS(BD_Segmentos!P:P,BD_Segmentos!$C:$C,$B16,BD_Segmentos!$A:$A,"S4")*ValorUnidad,SUMIFS(BD_Segmentos!P:P,BD_Segmentos!$C:$C,$B16,BD_Segmentos!$A:$A,"S4")*ValorUnidad-SUMIFS(BD_Segmentos!O:O,BD_Segmentos!$C:$C,$B16,BD_Segmentos!$A:$A,"S4")*ValorUnidad) -> 201.2577016 | R16: =IF(MONTH(R$7)=3,SUMIFS(BD_Segmentos!Q:Q,BD_Segmentos!$C:$C,$B16,BD_Segmentos!$A:$A,"S4")*ValorUnidad,SUMIFS(BD_Segmentos!Q:Q,BD_Segmentos!$C:$C,$B16,BD_Segmentos!$A:$A,"S4")*ValorUnidad-SUMIFS(BD_Segmentos!P:P,BD_Segmentos!$C:$C,$B16,BD_Segmentos!$A:$A,"S4")*ValorUnidad) -> 200.6155121 | S16: =IF(MONTH(S$7)=3,SUMIFS(BD_Segmentos!R:R,BD_Segmentos!$C:$C,$B16,BD_Segmentos!$A:$A,"S4")*ValorUnidad,SUMIFS(BD_Segmentos!R:R,BD_Segmentos!$C:$C,$B16,BD_Segmentos!$A:$A,"S4")*ValorUnidad-SUMIFS(BD_Segmentos!Q:Q,BD_Segmentos!$C:$C,$B16,BD_Segmentos!$A:$A,"S4")*ValorUnidad) -> 199.0626242 | T16: =IF(MONTH(T$7)=3,SUMIFS(BD_Segmentos!S:S,BD_Segmentos!$C:$C,$B16,BD_Segmentos!$A:$A,"S4")*ValorUnidad,SUMIFS(BD_Segmentos!S:S,BD_Segmentos!$C:$C,$B16,BD_Segmentos!$A:$A,"S4")*ValorUnidad-SUMIFS(BD_Segmentos!R:R,BD_Segmentos!$C:$C,$B16,BD_Segmentos!$A:$A,"S4")*ValorUnidad) -> 222.8717073 | U16: =IF(MONTH(U$7)=3,SUMIFS(BD_Segmentos!T:T,BD_Segmentos!$C:$C,$B16,BD_Segmentos!$A:$A,"S4")*ValorUnidad,SUMIFS(BD_Segmentos!T:T,BD_Segmentos!$C:$C,$B16,BD_Segmentos!$A:$A,"S4")*ValorUnidad-SUMIFS(BD_Segmentos!S:S,BD_Segmentos!$C:$C,$B16,BD_Segmentos!$A:$A,"S4")*ValorUnidad) -> 204.2356353 | V16: =IF(MONTH(V$7)=3,SUMIFS(BD_Segmentos!U:U,BD_Segmentos!$C:$C,$B16,BD_Segmentos!$A:$A,"S4")*ValorUnidad,SUMIFS(BD_Segmentos!U:U,BD_Segmentos!$C:$C,$B16,BD_Segmentos!$A:$A,"S4")*ValorUnidad-SUMIFS(BD_Segmentos!T:T,BD_Segmentos!$C:$C,$B16,BD_Segmentos!$A:$A,"S4")*ValorUnidad) -> 284.6838545
B17: 45 | C17: Net gain on foreign exchange transactions | E17: =IF(MONTH(E$7)=3,SUMIFS(BD_Segmentos!D:D,BD_Segmentos!$C:$C,$B17,BD_Segmentos!$A:$A,"S4")*ValorUnidad,SUMIFS(BD_Segmentos!D:D,BD_Segmentos!$C:$C,$B17,BD_Segmentos!$A:$A,"S4")*ValorUnidad-SUMIFS(BD_Segmentos!C:C,BD_Segmentos!$C:$C,$B17,BD_Segmentos!$A:$A,"S4")*ValorUnidad) -> 40.878019 | F17: =IF(MONTH(F$7)=3,SUMIFS(BD_Segmentos!E:E,BD_Segmentos!$C:$C,$B17,BD_Segmentos!$A:$A,"S4")*ValorUnidad,SUMIFS(BD_Segmentos!E:E,BD_Segmentos!$C:$C,$B17,BD_Segmentos!$A:$A,"S4")*ValorUnidad-SUMIFS(BD_Segmentos!D:D,BD_Segmentos!$C:$C,$B17,BD_Segmentos!$A:$A,"S4")*ValorUnidad) -> 67.089981 | G17: =IF(MONTH(G$7)=3,SUMIFS(BD_Segmentos!F:F,BD_Segmentos!$C:$C,$B17,BD_Segmentos!$A:$A,"S4")*ValorUnidad,SUMIFS(BD_Segmentos!F:F,BD_Segmentos!$C:$C,$B17,BD_Segmentos!$A:$A,"S4")*ValorUnidad-SUMIFS(BD_Segmentos!E:E,BD_Segmentos!$C:$C,$B17,BD_Segmentos!$A:$A,"S4")*ValorUnidad) -> 55.049002 | H17: =IF(MONTH(H$7)=3,SUMIFS(BD_Segmentos!G:G,BD_Segmentos!$C:$C,$B17,BD_Segmentos!$A:$A,"S4")*ValorUnidad,SUMIFS(BD_Segmentos!G:G,BD_Segmentos!$C:$C,$B17,BD_Segmentos!$A:$A,"S4")*ValorUnidad-SUMIFS(BD_Segmentos!F:F,BD_Segmentos!$C:$C,$B17,BD_Segmentos!$A:$A,"S4")*ValorUnidad) -> 65.142999 | I17: =IF(MONTH(I$7)=3,SUMIFS(BD_Segmentos!H:H,BD_Segmentos!$C:$C,$B17,BD_Segmentos!$A:$A,"S4")*ValorUnidad,SUMIFS(BD_Segmentos!H:H,BD_Segmentos!$C:$C,$B17,BD_Segmentos!$A:$A,"S4")*ValorUnidad-SUMIFS(BD_Segmentos!G:G,BD_Segmentos!$C:$C,$B17,BD_Segmentos!$A:$A,"S4")*ValorUnidad) -> 41.305994 | J17: =IF(MONTH(J$7)=3,SUMIFS(BD_Segmentos!I:I,BD_Segmentos!$C:$C,$B17,BD_Segmentos!$A:$A,"S4")*ValorUnidad,SUMIFS(BD_Segmentos!I:I,BD_Segmentos!$C:$C,$B17,BD_Segmentos!$A:$A,"S4")*ValorUnidad-SUMIFS(BD_Segmentos!H:H,BD_Segmentos!$C:$C,$B17,BD_Segmentos!$A:$A,"S4")*ValorUnidad) -> 35.818993 | K17: =IF(MONTH(K$7)=3,SUMIFS(BD_Segmentos!J:J,BD_Segmentos!$C:$C,$B17,BD_Segmentos!$A:$A,"S4")*ValorUnidad,SUMIFS(BD_Segmentos!J:J,BD_Segmentos!$C:$C,$B17,BD_Segmentos!$A:$A,"S4")*ValorUnidad-SUMIFS(BD_Segmentos!I:I,BD_Segmentos!$C:$C,$B17,BD_Segmentos!$A:$A,"S4")*ValorUnidad) -> 114.417906 | L17: =IF(MONTH(L$7)=3,SUMIFS(BD_Segmentos!K:K,BD_Segmentos!$C:$C,$B17,BD_Segmentos!$A:$A,"S4")*ValorUnidad,SUMIFS(BD_Segmentos!K:K,BD_Segmentos!$C:$C,$B17,BD_Segmentos!$A:$A,"S4")*ValorUnidad-SUMIFS(BD_Segmentos!J:J,BD_Segmentos!$C:$C,$B17,BD_Segmentos!$A:$A,"S4")*ValorUnidad) -> 9.809447 | M17: =IF(MONTH(M$7)=3,SUMIFS(BD_Segmentos!L:L,BD_Segmentos!$C:$C,$B17,BD_Segmentos!$A:$A,"S4")*ValorUnidad,SUMIFS(BD_Segmentos!L:L,BD_Segmentos!$C:$C,$B17,BD_Segmentos!$A:$A,"S4")*ValorUnidad-SUMIFS(BD_Segmentos!K:K,BD_Segmentos!$C:$C,$B17,BD_Segmentos!$A:$A,"S4")*ValorUnidad) -> 131.3388751 | N17: =IF(MONTH(N$7)=3,SUMIFS(BD_Segmentos!M:M,BD_Segmentos!$C:$C,$B17,BD_Segmentos!$A:$A,"S4")*ValorUnidad,SUMIFS(BD_Segmentos!M:M,BD_Segmentos!$C:$C,$B17,BD_Segmentos!$A:$A,"S4")*ValorUnidad-SUMIFS(BD_Segmentos!L:L,BD_Segmentos!$C:$C,$B17,BD_Segmentos!$A:$A,"S4")*ValorUnidad) -> 110.1008709 | O17: =IF(MONTH(O$7)=3,SUMIFS(BD_Segmentos!N:N,BD_Segmentos!$C:$C,$B17,BD_Segmentos!$A:$A,"S4")*ValorUnidad,SUMIFS(BD_Segmentos!N:N,BD_Segmentos!$C:$C,$B17,BD_Segmentos!$A:$A,"S4")*ValorUnidad-SUMIFS(BD_Segmentos!M:M,BD_Segmentos!$C:$C,$B17,BD_Segmentos!$A:$A,"S4")*ValorUnidad) -> 7.258254 | P17: =IF(MONTH(P$7)=3,SUMIFS(BD_Segmentos!O:O,BD_Segmentos!$C:$C,$B17,BD_Segmentos!$A:$A,"S4")*ValorUnidad,SUMIFS(BD_Segmentos!O:O,BD_Segmentos!$C:$C,$B17,BD_Segmentos!$A:$A,"S4")*ValorUnidad-SUMIFS(BD_Segmentos!N:N,BD_Segmentos!$C:$C,$B17,BD_Segmentos!$A:$A,"S4")*ValorUnidad) -> 69.724 | Q17: =IF(MONTH(Q$7)=3,SUMIFS(BD_Segmentos!P:P,BD_Segmentos!$C:$C,$B17,BD_Segmentos!$A:$A,"S4")*ValorUnidad,SUMIFS(BD_Segmentos!P:P,BD_Segmentos!$C:$C,$B17,BD_Segmentos!$A:$A,"S4")*ValorUnidad-SUMIFS(BD_Segmentos!O:O,BD_Segmentos!$C:$C,$B17,BD_Segmentos!$A:$A,"S4")*ValorUnidad) -> 51.50632044 | R17: =IF(MONTH(R$7)=3,SUMIFS(BD_Segmentos!Q:Q,BD_Segmentos!$C:$C,$B17,BD_Segmentos!$A:$A,"S4")*ValorUnidad,SUMIFS(BD_Segmentos!Q:Q,BD_Segmentos!$C:$C,$B17,BD_Segmentos!$A:$A,"S4")*ValorUnidad-SUMIFS(BD_Segmentos!P:P,BD_Segmentos!$C:$C,$B17,BD_Segmentos!$A:$A,"S4")*ValorUnidad) -> 118.7899666 | S17: =IF(MONTH(S$7)=3,SUMIFS(BD_Segmentos!R:R,BD_Segmentos!$C:$C,$B17,BD_Segmentos!$A:$A,"S4")*ValorUnidad,SUMIFS(BD_Segmentos!R:R,BD_Segmentos!$C:$C,$B17,BD_Segmentos!$A:$A,"S4")*ValorUnidad-SUMIFS(BD_Segmentos!Q:Q,BD_Segmentos!$C:$C,$B17,BD_Segmentos!$A:$A,"S4")*ValorUnidad) -> 139.957053 | T17: =IF(MONTH(T$7)=3,SUMIFS(BD_Segmentos!S:S,BD_Segmentos!$C:$C,$B17,BD_Segmentos!$A:$A,"S4")*ValorUnidad,SUMIFS(BD_Segmentos!S:S,BD_Segmentos!$C:$C,$B17,BD_Segmentos!$A:$A,"S4")*ValorUnidad-SUMIFS(BD_Segmentos!R:R,BD_Segmentos!$C:$C,$B17,BD_Segmentos!$A:$A,"S4")*ValorUnidad) -> 112.768564 | U17: =IF(MONTH(U$7)=3,SUMIFS(BD_Segmentos!T:T,BD_Segmentos!$C:$C,$B17,BD_Segmentos!$A:$A,"S4")*ValorUnidad,SUMIFS(BD_Segmentos!T:T,BD_Segmentos!$C:$C,$B17,BD_Segmentos!$A:$A,"S4")*ValorUnidad-SUMIFS(BD_Segmentos!S:S,BD_Segmentos!$C:$C,$B17,BD_Segmentos!$A:$A,"S4")*ValorUnidad) -> 113.4848777 | V17: =IF(MONTH(V$7)=3,SUMIFS(BD_Segmentos!U:U,BD_Segmentos!$C:$C,$B17,BD_Segmentos!$A:$A,"S4")*ValorUnidad,SUMIFS(BD_Segmentos!U:U,BD_Segmentos!$C:$C,$B17,BD_Segmentos!$A:$A,"S4")*ValorUnidad-SUMIFS(BD_Segmentos!T:T,BD_Segmentos!$C:$C,$B17,BD_Segmentos!$A:$A,"S4")*ValorUnidad) -> 23.33757543
B18: 46 | C18: Net gain (loss) on sale of financial investments | E18: =IF(MONTH(E$7)=3,SUMIFS(BD_Segmentos!D:D,BD_Segmentos!$C:$C,$B18,BD_Segmentos!$A:$A,"S4")*ValorUnidad,SUMIFS(BD_Segmentos!D:D,BD_Segmentos!$C:$C,$B18,BD_Segmentos!$A:$A,"S4")*ValorUnidad-SUMIFS(BD_Segmentos!C:C,BD_Segmentos!$C:$C,$B18,BD_Segmentos!$A:$A,"S4")*ValorUnidad) -> 25.26242348 | F18: =IF(MONTH(F$7)=3,SUMIFS(BD_Segmentos!E:E,BD_Segmentos!$C:$C,$B18,BD_Segmentos!$A:$A,"S4")*ValorUnidad,SUMIFS(BD_Segmentos!E:E,BD_Segmentos!$C:$C,$B18,BD_Segmentos!$A:$A,"S4")*ValorUnidad-SUMIFS(BD_Segmentos!D:D,BD_Segmentos!$C:$C,$B18,BD_Segmentos!$A:$A,"S4")*ValorUnidad) -> -3.509917658 | G18: =IF(MONTH(G$7)=3,SUMIFS(BD_Segmentos!F:F,BD_Segmentos!$C:$C,$B18,BD_Segmentos!$A:$A,"S4")*ValorUnidad,SUMIFS(BD_Segmentos!F:F,BD_Segmentos!$C:$C,$B18,BD_Segmentos!$A:$A,"S4")*ValorUnidad-SUMIFS(BD_Segmentos!E:E,BD_Segmentos!$C:$C,$B18,BD_Segmentos!$A:$A,"S4")*ValorUnidad) -> -0.3837434541 | H18: =IF(MONTH(H$7)=3,SUMIFS(BD_Segmentos!G:G,BD_Segmentos!$C:$C,$B18,BD_Segmentos!$A:$A,"S4")*ValorUnidad,SUMIFS(BD_Segmentos!G:G,BD_Segmentos!$C:$C,$B18,BD_Segmentos!$A:$A,"S4")*ValorUnidad-SUMIFS(BD_Segmentos!F:F,BD_Segmentos!$C:$C,$B18,BD_Segmentos!$A:$A,"S4")*ValorUnidad) -> -7.128622429 | I18: =IF(MONTH(I$7)=3,SUMIFS(BD_Segmentos!H:H,BD_Segmentos!$C:$C,$B18,BD_Segmentos!$A:$A,"S4")*ValorUnidad,SUMIFS(BD_Segmentos!H:H,BD_Segmentos!$C:$C,$B18,BD_Segmentos!$A:$A,"S4")*ValorUnidad-SUMIFS(BD_Segmentos!G:G,BD_Segmentos!$C:$C,$B18,BD_Segmentos!$A:$A,"S4")*ValorUnidad) -> 29.91654718 | J18: =IF(MONTH(J$7)=3,SUMIFS(BD_Segmentos!I:I,BD_Segmentos!$C:$C,$B18,BD_Segmentos!$A:$A,"S4")*ValorUnidad,SUMIFS(BD_Segmentos!I:I,BD_Segmentos!$C:$C,$B18,BD_Segmentos!$A:$A,"S4")*ValorUnidad-SUMIFS(BD_Segmentos!H:H,BD_Segmentos!$C:$C,$B18,BD_Segmentos!$A:$A,"S4")*ValorUnidad) -> 46.20460816 | K18: =IF(MONTH(K$7)=3,SUMIFS(BD_Segmentos!J:J,BD_Segmentos!$C:$C,$B18,BD_Segmentos!$A:$A,"S4")*ValorUnidad,SUMIFS(BD_Segmentos!J:J,BD_Segmentos!$C:$C,$B18,BD_Segmentos!$A:$A,"S4")*ValorUnidad-SUMIFS(BD_Segmentos!I:I,BD_Segmentos!$C:$C,$B18,BD_Segmentos!$A:$A,"S4")*ValorUnidad) -> 29.17623407 | L18: =IF(MONTH(L$7)=3,SUMIFS(BD_Segmentos!K:K,BD_Segmentos!$C:$C,$B18,BD_Segmentos!$A:$A,"S4")*ValorUnidad,SUMIFS(BD_Segmentos!K:K,BD_Segmentos!$C:$C,$B18,BD_Segmentos!$A:$A,"S4")*ValorUnidad-SUMIFS(BD_Segmentos!J:J,BD_Segmentos!$C:$C,$B18,BD_Segmentos!$A:$A,"S4")*ValorUnidad) -> 15.39171684 | M18: =IF(MONTH(M$7)=3,SUMIFS(BD_Segmentos!L:L,BD_Segmentos!$C:$C,$B18,BD_Segmentos!$A:$A,"S4")*ValorUnidad,SUMIFS(BD_Segmentos!L:L,BD_Segmentos!$C:$C,$B18,BD_Segmentos!$A:$A,"S4")*ValorUnidad-SUMIFS(BD_Segmentos!K:K,BD_Segmentos!$C:$C,$B18,BD_Segmentos!$A:$A,"S4")*ValorUnidad) -> 28.28794301 | N18: =IF(MONTH(N$7)=3,SUMIFS(BD_Segmentos!M:M,BD_Segmentos!$C:$C,$B18,BD_Segmentos!$A:$A,"S4")*ValorUnidad,SUMIFS(BD_Segmentos!M:M,BD_Segmentos!$C:$C,$B18,BD_Segmentos!$A:$A,"S4")*ValorUnidad-SUMIFS(BD_Segmentos!L:L,BD_Segmentos!$C:$C,$B18,BD_Segmentos!$A:$A,"S4")*ValorUnidad) -> 57.14678529 | O18: =IF(MONTH(O$7)=3,SUMIFS(BD_Segmentos!N:N,BD_Segmentos!$C:$C,$B18,BD_Segmentos!$A:$A,"S4")*ValorUnidad,SUMIFS(BD_Segmentos!N:N,BD_Segmentos!$C:$C,$B18,BD_Segmentos!$A:$A,"S4")*ValorUnidad-SUMIFS(BD_Segmentos!M:M,BD_Segmentos!$C:$C,$B18,BD_Segmentos!$A:$A,"S4")*ValorUnidad) -> 47.77045356 | P18: =IF(MONTH(P$7)=3,SUMIFS(BD_Segmentos!O:O,BD_Segmentos!$C:$C,$B18,BD_Segmentos!$A:$A,"S4")*ValorUnidad,SUMIFS(BD_Segmentos!O:O,BD_Segmentos!$C:$C,$B18,BD_Segmentos!$A:$A,"S4")*ValorUnidad-SUMIFS(BD_Segmentos!N:N,BD_Segmentos!$C:$C,$B18,BD_Segmentos!$A:$A,"S4")*ValorUnidad) -> 52.17771073 | Q18: =IF(MONTH(Q$7)=3,SUMIFS(BD_Segmentos!P:P,BD_Segmentos!$C:$C,$B18,BD_Segmentos!$A:$A,"S4")*ValorUnidad,SUMIFS(BD_Segmentos!P:P,BD_Segmentos!$C:$C,$B18,BD_Segmentos!$A:$A,"S4")*ValorUnidad-SUMIFS(BD_Segmentos!O:O,BD_Segmentos!$C:$C,$B18,BD_Segmentos!$A:$A,"S4")*ValorUnidad) -> 206.0836453 | R18: =IF(MONTH(R$7)=3,SUMIFS(BD_Segmentos!Q:Q,BD_Segmentos!$C:$C,$B18,BD_Segmentos!$A:$A,"S4")*ValorUnidad,SUMIFS(BD_Segmentos!Q:Q,BD_Segmentos!$C:$C,$B18,BD_Segmentos!$A:$A,"S4")*ValorUnidad-SUMIFS(BD_Segmentos!P:P,BD_Segmentos!$C:$C,$B18,BD_Segmentos!$A:$A,"S4")*ValorUnidad) -> 15.38497399 | S18: =IF(MONTH(S$7)=3,SUMIFS(BD_Segmentos!R:R,BD_Segmentos!$C:$C,$B18,BD_Segmentos!$A:$A,"S4")*ValorUnidad,SUMIFS(BD_Segmentos!R:R,BD_Segmentos!$C:$C,$B18,BD_Segmentos!$A:$A,"S4")*ValorUnidad-SUMIFS(BD_Segmentos!Q:Q,BD_Segmentos!$C:$C,$B18,BD_Segmentos!$A:$A,"S4")*ValorUnidad) -> 23.44718906 | T18: =IF(MONTH(T$7)=3,SUMIFS(BD_Segmentos!S:S,BD_Segmentos!$C:$C,$B18,BD_Segmentos!$A:$A,"S4")*ValorUnidad,SUMIFS(BD_Segmentos!S:S,BD_Segmentos!$C:$C,$B18,BD_Segmentos!$A:$A,"S4")*ValorUnidad-SUMIFS(BD_Segmentos!R:R,BD_Segmentos!$C:$C,$B18,BD_Segmentos!$A:$A,"S4")*ValorUnidad) -> 44.00676529 | U18: =IF(MONTH(U$7)=3,SUMIFS(BD_Segmentos!T:T,BD_Segmentos!$C:$C,$B18,BD_Segmentos!$A:$A,"S4")*ValorUnidad,SUMIFS(BD_Segmentos!T:T,BD_Segmentos!$C:$C,$B18,BD_Segmentos!$A:$A,"S4")*ValorUnidad-SUMIFS(BD_Segmentos!S:S,BD_Segmentos!$C:$C,$B18,BD_Segmentos!$A:$A,"S4")*ValorUnidad) -> -35.3860592 | V18: =IF(MONTH(V$7)=3,SUMIFS(BD_Segmentos!U:U,BD_Segmentos!$C:$C,$B18,BD_Segmentos!$A:$A,"S4")*ValorUnidad,SUMIFS(BD_Segmentos!U:U,BD_Segmentos!$C:$C,$B18,BD_Segmentos!$A:$A,"S4")*ValorUnidad-SUMIFS(BD_Segmentos!T:T,BD_Segmentos!$C:$C,$B18,BD_Segmentos!$A:$A,"S4")*ValorUnidad) -> -11.8591898
B19: 46.1 | C19: Net gain from derecognition of financial assets at amortized cost | E19: =IF(MONTH(E$7)=3,SUMIFS(BD_Segmentos!D:D,BD_Segmentos!$C:$C,$B19,BD_Segmentos!$A:$A,"S4")*ValorUnidad,SUMIFS(BD_Segmentos!D:D,BD_Segmentos!$C:$C,$B19,BD_Segmentos!$A:$A,"S4")*ValorUnidad-SUMIFS(BD_Segmentos!C:C,BD_Segmentos!$C:$C,$B19,BD_Segmentos!$A:$A,"S4")*ValorUnidad) -> 0 | F19: =IF(MONTH(F$7)=3,SUMIFS(BD_Segmentos!E:E,BD_Segmentos!$C:$C,$B19,BD_Segmentos!$A:$A,"S4")*ValorUnidad,SUMIFS(BD_Segmentos!E:E,BD_Segmentos!$C:$C,$B19,BD_Segmentos!$A:$A,"S4")*ValorUnidad-SUMIFS(BD_Segmentos!D:D,BD_Segmentos!$C:$C,$B19,BD_Segmentos!$A:$A,"S4")*ValorUnidad) -> 0 | G19: =IF(MONTH(G$7)=3,SUMIFS(BD_Segmentos!F:F,BD_Segmentos!$C:$C,$B19,BD_Segmentos!$A:$A,"S4")*ValorUnidad,SUMIFS(BD_Segmentos!F:F,BD_Segmentos!$C:$C,$B19,BD_Segmentos!$A:$A,"S4")*ValorUnidad-SUMIFS(BD_Segmentos!E:E,BD_Segmentos!$C:$C,$B19,BD_Segmentos!$A:$A,"S4")*ValorUnidad) -> 0 | H19: =IF(MONTH(H$7)=3,SUMIFS(BD_Segmentos!G:G,BD_Segmentos!$C:$C,$B19,BD_Segmentos!$A:$A,"S4")*ValorUnidad,SUMIFS(BD_Segmentos!G:G,BD_Segmentos!$C:$C,$B19,BD_Segmentos!$A:$A,"S4")*ValorUnidad-SUMIFS(BD_Segmentos!F:F,BD_Segmentos!$C:$C,$B19,BD_Segmentos!$A:$A,"S4")*ValorUnidad) -> 0 | I19: =IF(MONTH(I$7)=3,SUMIFS(BD_Segmentos!H:H,BD_Segmentos!$C:$C,$B19,BD_Segmentos!$A:$A,"S4")*ValorUnidad,SUMIFS(BD_Segmentos!H:H,BD_Segmentos!$C:$C,$B19,BD_Segmentos!$A:$A,"S4")*ValorUnidad-SUMIFS(BD_Segmentos!G:G,BD_Segmentos!$C:$C,$B19,BD_Segmentos!$A:$A,"S4")*ValorUnidad) -> 0 | J19: =IF(MONTH(J$7)=3,SUMIFS(BD_Segmentos!I:I,BD_Segmentos!$C:$C,$B19,BD_Segmentos!$A:$A,"S4")*ValorUnidad,SUMIFS(BD_Segmentos!I:I,BD_Segmentos!$C:$C,$B19,BD_Segmentos!$A:$A,"S4")*ValorUnidad-SUMIFS(BD_Segmentos!H:H,BD_Segmentos!$C:$C,$B19,BD_Segmentos!$A:$A,"S4")*ValorUnidad) -> 0 | K19: =IF(MONTH(K$7)=3,SUMIFS(BD_Segmentos!J:J,BD_Segmentos!$C:$C,$B19,BD_Segmentos!$A:$A,"S4")*ValorUnidad,SUMIFS(BD_Segmentos!J:J,BD_Segmentos!$C:$C,$B19,BD_Segmentos!$A:$A,"S4")*ValorUnidad-SUMIFS(BD_Segmentos!I:I,BD_Segmentos!$C:$C,$B19,BD_Segmentos!$A:$A,"S4")*ValorUnidad) -> 0 | L19: =IF(MONTH(L$7)=3,SUMIFS(BD_Segmentos!K:K,BD_Segmentos!$C:$C,$B19,BD_Segmentos!$A:$A,"S4")*ValorUnidad,SUMIFS(BD_Segmentos!K:K,BD_Segmentos!$C:$C,$B19,BD_Segmentos!$A:$A,"S4")*ValorUnidad-SUMIFS(BD_Segmentos!J:J,BD_Segmentos!$C:$C,$B19,BD_Segmentos!$A:$A,"S4")*ValorUnidad) -> 0 | M19: =IF(MONTH(M$7)=3,SUMIFS(BD_Segmentos!L:L,BD_Segmentos!$C:$C,$B19,BD_Segmentos!$A:$A,"S4")*ValorUnidad,SUMIFS(BD_Segmentos!L:L,BD_Segmentos!$C:$C,$B19,BD_Segmentos!$A:$A,"S4")*ValorUnidad-SUMIFS(BD_Segmentos!K:K,BD_Segmentos!$C:$C,$B19,BD_Segmentos!$A:$A,"S4")*ValorUnidad) -> 0 | N19: =IF(MONTH(N$7)=3,SUMIFS(BD_Segmentos!M:M,BD_Segmentos!$C:$C,$B19,BD_Segmentos!$A:$A,"S4")*ValorUnidad,SUMIFS(BD_Segmentos!M:M,BD_Segmentos!$C:$C,$B19,BD_Segmentos!$A:$A,"S4")*ValorUnidad-SUMIFS(BD_Segmentos!L:L,BD_Segmentos!$C:$C,$B19,BD_Segmentos!$A:$A,"S4")*ValorUnidad) -> 0 | O19: =IF(MONTH(O$7)=3,SUMIFS(BD_Segmentos!N:N,BD_Segmentos!$C:$C,$B19,BD_Segmentos!$A:$A,"S4")*ValorUnidad,SUMIFS(BD_Segmentos!N:N,BD_Segmentos!$C:$C,$B19,BD_Segmentos!$A:$A,"S4")*ValorUnidad-SUMIFS(BD_Segmentos!M:M,BD_Segmentos!$C:$C,$B19,BD_Segmentos!$A:$A,"S4")*ValorUnidad) -> 0 | P19: =IF(MONTH(P$7)=3,SUMIFS(BD_Segmentos!O:O,BD_Segmentos!$C:$C,$B19,BD_Segmentos!$A:$A,"S4")*ValorUnidad,SUMIFS(BD_Segmentos!O:O,BD_Segmentos!$C:$C,$B19,BD_Segmentos!$A:$A,"S4")*ValorUnidad-SUMIFS(BD_Segmentos!N:N,BD_Segmentos!$C:$C,$B19,BD_Segmentos!$A:$A,"S4")*ValorUnidad) -> 0 | Q19: =IF(MONTH(Q$7)=3,SUMIFS(BD_Segmentos!P:P,BD_Segmentos!$C:$C,$B19,BD_Segmentos!$A:$A,"S4")*ValorUnidad,SUMIFS(BD_Segmentos!P:P,BD_Segmentos!$C:$C,$B19,BD_Segmentos!$A:$A,"S4")*ValorUnidad-SUMIFS(BD_Segmentos!O:O,BD_Segmentos!$C:$C,$B19,BD_Segmentos!$A:$A,"S4")*ValorUnidad) -> 0 | R19: =IF(MONTH(R$7)=3,SUMIFS(BD_Segmentos!Q:Q,BD_Segmentos!$C:$C,$B19,BD_Segmentos!$A:$A,"S4")*ValorUnidad,SUMIFS(BD_Segmentos!Q:Q,BD_Segmentos!$C:$C,$B19,BD_Segmentos!$A:$A,"S4")*ValorUnidad-SUMIFS(BD_Segmentos!P:P,BD_Segmentos!$C:$C,$B19,BD_Segmentos!$A:$A,"S4")*ValorUnidad) -> 0 | S19: =IF(MONTH(S$7)=3,SUMIFS(BD_Segmentos!R:R,BD_Segmentos!$C:$C,$B19,BD_Segmentos!$A:$A,"S4")*ValorUnidad,SUMIFS(BD_Segmentos!R:R,BD_Segmentos!$C:$C,$B19,BD_Segmentos!$A:$A,"S4")*ValorUnidad-SUMIFS(BD_Segmentos!Q:Q,BD_Segmentos!$C:$C,$B19,BD_Segmentos!$A:$A,"S4")*ValorUnidad) -> 0 | T19: =IF(MONTH(T$7)=3,SUMIFS(BD_Segmentos!S:S,BD_Segmentos!$C:$C,$B19,BD_Segmentos!$A:$A,"S4")*ValorUnidad,SUMIFS(BD_Segmentos!S:S,BD_Segmentos!$C:$C,$B19,BD_Segmentos!$A:$A,"S4")*ValorUnidad-SUMIFS(BD_Segmentos!R:R,BD_Segmentos!$C:$C,$B19,BD_Segmentos!$A:$A,"S4")*ValorUnidad) -> 0 | U19: =IF(MONTH(U$7)=3,SUMIFS(BD_Segmentos!T:T,BD_Segmentos!$C:$C,$B19,BD_Segmentos!$A:$A,"S4")*ValorUnidad,SUMIFS(BD_Segmentos!T:T,BD_Segmentos!$C:$C,$B19,BD_Segmentos!$A:$A,"S4")*ValorUnidad-SUMIFS(BD_Segmentos!S:S,BD_Segmentos!$C:$C,$B19,BD_Segmentos!$A:$A,"S4")*ValorUnidad) -> 0 | V19: =IF(MONTH(V$7)=3,SUMIFS(BD_Segmentos!U:U,BD_Segmentos!$C:$C,$B19,BD_Segmentos!$A:$A,"S4")*ValorUnidad,SUMIFS(BD_Segmentos!U:U,BD_Segmentos!$C:$C,$B19,BD_Segmentos!$A:$A,"S4")*ValorUnidad-SUMIFS(BD_Segmentos!T:T,BD_Segmentos!$C:$C,$B19,BD_Segmentos!$A:$A,"S4")*ValorUnidad) -> 0
B20: 78 | C20: Net gain (loss) on financial assets at fair value through profit or loss | E20: =IF(MONTH(E$7)=3,SUMIFS(BD_Segmentos!D:D,BD_Segmentos!$C:$C,$B20,BD_Segmentos!$A:$A,"S4")*ValorUnidad,SUMIFS(BD_Segmentos!D:D,BD_Segmentos!$C:$C,$B20,BD_Segmentos!$A:$A,"S4")*ValorUnidad-SUMIFS(BD_Segmentos!C:C,BD_Segmentos!$C:$C,$B20,BD_Segmentos!$A:$A,"S4")*ValorUnidad) -> 13.16966265 | F20: =IF(MONTH(F$7)=3,SUMIFS(BD_Segmentos!E:E,BD_Segmentos!$C:$C,$B20,BD_Segmentos!$A:$A,"S4")*ValorUnidad,SUMIFS(BD_Segmentos!E:E,BD_Segmentos!$C:$C,$B20,BD_Segmentos!$A:$A,"S4")*ValorUnidad-SUMIFS(BD_Segmentos!D:D,BD_Segmentos!$C:$C,$B20,BD_Segmentos!$A:$A,"S4")*ValorUnidad) -> -17.36088362 | G20: =IF(MONTH(G$7)=3,SUMIFS(BD_Segmentos!F:F,BD_Segmentos!$C:$C,$B20,BD_Segmentos!$A:$A,"S4")*ValorUnidad,SUMIFS(BD_Segmentos!F:F,BD_Segmentos!$C:$C,$B20,BD_Segmentos!$A:$A,"S4")*ValorUnidad-SUMIFS(BD_Segmentos!E:E,BD_Segmentos!$C:$C,$B20,BD_Segmentos!$A:$A,"S4")*ValorUnidad) -> 30.81277945 | H20: =IF(MONTH(H$7)=3,SUMIFS(BD_Segmentos!G:G,BD_Segmentos!$C:$C,$B20,BD_Segmentos!$A:$A,"S4")*ValorUnidad,SUMIFS(BD_Segmentos!G:G,BD_Segmentos!$C:$C,$B20,BD_Segmentos!$A:$A,"S4")*ValorUnidad-SUMIFS(BD_Segmentos!F:F,BD_Segmentos!$C:$C,$B20,BD_Segmentos!$A:$A,"S4")*ValorUnidad) -> -14.64304624 | I20: =IF(MONTH(I$7)=3,SUMIFS(BD_Segmentos!H:H,BD_Segmentos!$C:$C,$B20,BD_Segmentos!$A:$A,"S4")*ValorUnidad,SUMIFS(BD_Segmentos!H:H,BD_Segmentos!$C:$C,$B20,BD_Segmentos!$A:$A,"S4")*ValorUnidad-SUMIFS(BD_Segmentos!G:G,BD_Segmentos!$C:$C,$B20,BD_Segmentos!$A:$A,"S4")*ValorUnidad) -> 37.0606306 | J20: =IF(MONTH(J$7)=3,SUMIFS(BD_Segmentos!I:I,BD_Segmentos!$C:$C,$B20,BD_Segmentos!$A:$A,"S4")*ValorUnidad,SUMIFS(BD_Segmentos!I:I,BD_Segmentos!$C:$C,$B20,BD_Segmentos!$A:$A,"S4")*ValorUnidad-SUMIFS(BD_Segmentos!H:H,BD_Segmentos!$C:$C,$B20,BD_Segmentos!$A:$A,"S4")*ValorUnidad) -> 2.550237438 | K20: =IF(MONTH(K$7)=3,SUMIFS(BD_Segmentos!J:J,BD_Segmentos!$C:$C,$B20,BD_Segmentos!$A:$A,"S4")*ValorUnidad,SUMIFS(BD_Segmentos!J:J,BD_Segmentos!$C:$C,$B20,BD_Segmentos!$A:$A,"S4")*ValorUnidad-SUMIFS(BD_Segmentos!I:I,BD_Segmentos!$C:$C,$B20,BD_Segmentos!$A:$A,"S4")*ValorUnidad) -> -49.15242586 | L20: =IF(MONTH(L$7)=3,SUMIFS(BD_Segmentos!K:K,BD_Segmentos!$C:$C,$B20,BD_Segmentos!$A:$A,"S4")*ValorUnidad,SUMIFS(BD_Segmentos!K:K,BD_Segmentos!$C:$C,$B20,BD_Segmentos!$A:$A,"S4")*ValorUnidad-SUMIFS(BD_Segmentos!J:J,BD_Segmentos!$C:$C,$B20,BD_Segmentos!$A:$A,"S4")*ValorUnidad) -> 112.7514591 | M20: =IF(MONTH(M$7)=3,SUMIFS(BD_Segmentos!L:L,BD_Segmentos!$C:$C,$B20,BD_Segmentos!$A:$A,"S4")*ValorUnidad,SUMIFS(BD_Segmentos!L:L,BD_Segmentos!$C:$C,$B20,BD_Segmentos!$A:$A,"S4")*ValorUnidad-SUMIFS(BD_Segmentos!K:K,BD_Segmentos!$C:$C,$B20,BD_Segmentos!$A:$A,"S4")*ValorUnidad) -> -154.1743527 | N20: =IF(MONTH(N$7)=3,SUMIFS(BD_Segmentos!M:M,BD_Segmentos!$C:$C,$B20,BD_Segmentos!$A:$A,"S4")*ValorUnidad,SUMIFS(BD_Segmentos!M:M,BD_Segmentos!$C:$C,$B20,BD_Segmentos!$A:$A,"S4")*ValorUnidad-SUMIFS(BD_Segmentos!L:L,BD_Segmentos!$C:$C,$B20,BD_Segmentos!$A:$A,"S4")*ValorUnidad) -> 13.26110989 | O20: =IF(MONTH(O$7)=3,SUMIFS(BD_Segmentos!N:N,BD_Segmentos!$C:$C,$B20,BD_Segmentos!$A:$A,"S4")*ValorUnidad,SUMIFS(BD_Segmentos!N:N,BD_Segmentos!$C:$C,$B20,BD_Segmentos!$A:$A,"S4")*ValorUnidad-SUMIFS(BD_Segmentos!M:M,BD_Segmentos!$C:$C,$B20,BD_Segmentos!$A:$A,"S4")*ValorUnidad) -> 176.1251326 | P20: =IF(MONTH(P$7)=3,SUMIFS(BD_Segmentos!O:O,BD_Segmentos!$C:$C,$B20,BD_Segmentos!$A:$A,"S4")*ValorUnidad,SUMIFS(BD_Segmentos!O:O,BD_Segmentos!$C:$C,$B20,BD_Segmentos!$A:$A,"S4")*ValorUnidad-SUMIFS(BD_Segmentos!N:N,BD_Segmentos!$C:$C,$B20,BD_Segmentos!$A:$A,"S4")*ValorUnidad) -> 130.671432 | Q20: =IF(MONTH(Q$7)=3,SUMIFS(BD_Segmentos!P:P,BD_Segmentos!$C:$C,$B20,BD_Segmentos!$A:$A,"S4")*ValorUnidad,SUMIFS(BD_Segmentos!P:P,BD_Segmentos!$C:$C,$B20,BD_Segmentos!$A:$A,"S4")*ValorUnidad-SUMIFS(BD_Segmentos!O:O,BD_Segmentos!$C:$C,$B20,BD_Segmentos!$A:$A,"S4")*ValorUnidad) -> 70.78693962 | R20: =IF(MONTH(R$7)=3,SUMIFS(BD_Segmentos!Q:Q,BD_Segmentos!$C:$C,$B20,BD_Segmentos!$A:$A,"S4")*ValorUnidad,SUMIFS(BD_Segmentos!Q:Q,BD_Segmentos!$C:$C,$B20,BD_Segmentos!$A:$A,"S4")*ValorUnidad-SUMIFS(BD_Segmentos!P:P,BD_Segmentos!$C:$C,$B20,BD_Segmentos!$A:$A,"S4")*ValorUnidad) -> 73.47193633 | S20: =IF(MONTH(S$7)=3,SUMIFS(BD_Segmentos!R:R,BD_Segmentos!$C:$C,$B20,BD_Segmentos!$A:$A,"S4")*ValorUnidad,SUMIFS(BD_Segmentos!R:R,BD_Segmentos!$C:$C,$B20,BD_Segmentos!$A:$A,"S4")*ValorUnidad-SUMIFS(BD_Segmentos!Q:Q,BD_Segmentos!$C:$C,$B20,BD_Segmentos!$A:$A,"S4")*ValorUnidad) -> 171.918425 | T20: =IF(MONTH(T$7)=3,SUMIFS(BD_Segmentos!S:S,BD_Segmentos!$C:$C,$B20,BD_Segmentos!$A:$A,"S4")*ValorUnidad,SUMIFS(BD_Segmentos!S:S,BD_Segmentos!$C:$C,$B20,BD_Segmentos!$A:$A,"S4")*ValorUnidad-SUMIFS(BD_Segmentos!R:R,BD_Segmentos!$C:$C,$B20,BD_Segmentos!$A:$A,"S4")*ValorUnidad) -> -291.3770569 | U20: =IF(MONTH(U$7)=3,SUMIFS(BD_Segmentos!T:T,BD_Segmentos!$C:$C,$B20,BD_Segmentos!$A:$A,"S4")*ValorUnidad,SUMIFS(BD_Segmentos!T:T,BD_Segmentos!$C:$C,$B20,BD_Segmentos!$A:$A,"S4")*ValorUnidad-SUMIFS(BD_Segmentos!S:S,BD_Segmentos!$C:$C,$B20,BD_Segmentos!$A:$A,"S4")*ValorUnidad) -> 2.658421175 | V20: =IF(MONTH(V$7)=3,SUMIFS(BD_Segmentos!U:U,BD_Segmentos!$C:$C,$B20,BD_Segmentos!$A:$A,"S4")*ValorUnidad,SUMIFS(BD_Segmentos!U:U,BD_Segmentos!$C:$C,$B20,BD_Segmentos!$A:$A,"S4")*ValorUnidad-SUMIFS(BD_Segmentos!T:T,BD_Segmentos!$C:$C,$B20,BD_Segmentos!$A:$A,"S4")*ValorUnidad) -> -153.0865174
B21: 79 | C21: Income from rental of investment property | E21: =IF(MONTH(E$7)=3,SUMIFS(BD_Segmentos!D:D,BD_Segmentos!$C:$C,$B21,BD_Segmentos!$A:$A,"S4")*ValorUnidad,SUMIFS(BD_Segmentos!D:D,BD_Segmentos!$C:$C,$B21,BD_Segmentos!$A:$A,"S4")*ValorUnidad-SUMIFS(BD_Segmentos!C:C,BD_Segmentos!$C:$C,$B21,BD_Segmentos!$A:$A,"S4")*ValorUnidad) -> 6.722014 | F21: =IF(MONTH(F$7)=3,SUMIFS(BD_Segmentos!E:E,BD_Segmentos!$C:$C,$B21,BD_Segmentos!$A:$A,"S4")*ValorUnidad,SUMIFS(BD_Segmentos!E:E,BD_Segmentos!$C:$C,$B21,BD_Segmentos!$A:$A,"S4")*ValorUnidad-SUMIFS(BD_Segmentos!D:D,BD_Segmentos!$C:$C,$B21,BD_Segmentos!$A:$A,"S4")*ValorUnidad) -> 7.38812241 | G21: =IF(MONTH(G$7)=3,SUMIFS(BD_Segmentos!F:F,BD_Segmentos!$C:$C,$B21,BD_Segmentos!$A:$A,"S4")*ValorUnidad,SUMIFS(BD_Segmentos!F:F,BD_Segmentos!$C:$C,$B21,BD_Segmentos!$A:$A,"S4")*ValorUnidad-SUMIFS(BD_Segmentos!E:E,BD_Segmentos!$C:$C,$B21,BD_Segmentos!$A:$A,"S4")*ValorUnidad) -> 10.11735934 | H21: =IF(MONTH(H$7)=3,SUMIFS(BD_Segmentos!G:G,BD_Segmentos!$C:$C,$B21,BD_Segmentos!$A:$A,"S4")*ValorUnidad,SUMIFS(BD_Segmentos!G:G,BD_Segmentos!$C:$C,$B21,BD_Segmentos!$A:$A,"S4")*ValorUnidad-SUMIFS(BD_Segmentos!F:F,BD_Segmentos!$C:$C,$B21,BD_Segmentos!$A:$A,"S4")*ValorUnidad) -> 8.65043145 | I21: =IF(MONTH(I$7)=3,SUMIFS(BD_Segmentos!H:H,BD_Segmentos!$C:$C,$B21,BD_Segmentos!$A:$A,"S4")*ValorUnidad,SUMIFS(BD_Segmentos!H:H,BD_Segmentos!$C:$C,$B21,BD_Segmentos!$A:$A,"S4")*ValorUnidad-SUMIFS(BD_Segmentos!G:G,BD_Segmentos!$C:$C,$B21,BD_Segmentos!$A:$A,"S4")*ValorUnidad) -> 10.55170407 | J21: =IF(MONTH(J$7)=3,SUMIFS(BD_Segmentos!I:I,BD_Segmentos!$C:$C,$B21,BD_Segmentos!$A:$A,"S4")*ValorUnidad,SUMIFS(BD_Segmentos!I:I,BD_Segmentos!$C:$C,$B21,BD_Segmentos!$A:$A,"S4")*ValorUnidad-SUMIFS(BD_Segmentos!H:H,BD_Segmentos!$C:$C,$B21,BD_Segmentos!$A:$A,"S4")*ValorUnidad) -> 12.30083727 | K21: =IF(MONTH(K$7)=3,SUMIFS(BD_Segmentos!J:J,BD_Segmentos!$C:$C,$B21,BD_Segmentos!$A:$A,"S4")*ValorUnidad,SUMIFS(BD_Segmentos!J:J,BD_Segmentos!$C:$C,$B21,BD_Segmentos!$A:$A,"S4")*ValorUnidad-SUMIFS(BD_Segmentos!I:I,BD_Segmentos!$C:$C,$B21,BD_Segmentos!$A:$A,"S4")*ValorUnidad) -> 13.62078549 | L21: =IF(MONTH(L$7)=3,SUMIFS(BD_Segmentos!K:K,BD_Segmentos!$C:$C,$B21,BD_Segmentos!$A:$A,"S4")*ValorUnidad,SUMIFS(BD_Segmentos!K:K,BD_Segmentos!$C:$C,$B21,BD_Segmentos!$A:$A,"S4")*ValorUnidad-SUMIFS(BD_Segmentos!J:J,BD_Segmentos!$C:$C,$B21,BD_Segmentos!$A:$A,"S4")*ValorUnidad) -> 12.36553252 | M21: =IF(MONTH(M$7)=3,SUMIFS(BD_Segmentos!L:L,BD_Segmentos!$C:$C,$B21,BD_Segmentos!$A:$A,"S4")*ValorUnidad,SUMIFS(BD_Segmentos!L:L,BD_Segmentos!$C:$C,$B21,BD_Segmentos!$A:$A,"S4")*ValorUnidad-SUMIFS(BD_Segmentos!K:K,BD_Segmentos!$C:$C,$B21,BD_Segmentos!$A:$A,"S4")*ValorUnidad) -> 10.46190102 | N21: =IF(MONTH(N$7)=3,SUMIFS(BD_Segmentos!M:M,BD_Segmentos!$C:$C,$B21,BD_Segmentos!$A:$A,"S4")*ValorUnidad,SUMIFS(BD_Segmentos!M:M,BD_Segmentos!$C:$C,$B21,BD_Segmentos!$A:$A,"S4")*ValorUnidad-SUMIFS(BD_Segmentos!L:L,BD_Segmentos!$C:$C,$B21,BD_Segmentos!$A:$A,"S4")*ValorUnidad) -> 8.918709365 | O21: =IF(MONTH(O$7)=3,SUMIFS(BD_Segmentos!N:N,BD_Segmentos!$C:$C,$B21,BD_Segmentos!$A:$A,"S4")*ValorUnidad,SUMIFS(BD_Segmentos!N:N,BD_Segmentos!$C:$C,$B21,BD_Segmentos!$A:$A,"S4")*ValorUnidad-SUMIFS(BD_Segmentos!M:M,BD_Segmentos!$C:$C,$B21,BD_Segmentos!$A:$A,"S4")*ValorUnidad) -> 9.907939305 | P21: =IF(MONTH(P$7)=3,SUMIFS(BD_Segmentos!O:O,BD_Segmentos!$C:$C,$B21,BD_Segmentos!$A:$A,"S4")*ValorUnidad,SUMIFS(BD_Segmentos!O:O,BD_Segmentos!$C:$C,$B21,BD_Segmentos!$A:$A,"S4")*ValorUnidad-SUMIFS(BD_Segmentos!N:N,BD_Segmentos!$C:$C,$B21,BD_Segmentos!$A:$A,"S4")*ValorUnidad) -> 10.20270655 | Q21: =IF(MONTH(Q$7)=3,SUMIFS(BD_Segmentos!P:P,BD_Segmentos!$C:$C,$B21,BD_Segmentos!$A:$A,"S4")*ValorUnidad,SUMIFS(BD_Segmentos!P:P,BD_Segmentos!$C:$C,$B21,BD_Segmentos!$A:$A,"S4")*ValorUnidad-SUMIFS(BD_Segmentos!O:O,BD_Segmentos!$C:$C,$B21,BD_Segmentos!$A:$A,"S4")*ValorUnidad) -> 8.50124244 | R21: =IF(MONTH(R$7)=3,SUMIFS(BD_Segmentos!Q:Q,BD_Segmentos!$C:$C,$B21,BD_Segmentos!$A:$A,"S4")*ValorUnidad,SUMIFS(BD_Segmentos!Q:Q,BD_Segmentos!$C:$C,$B21,BD_Segmentos!$A:$A,"S4")*ValorUnidad-SUMIFS(BD_Segmentos!P:P,BD_Segmentos!$C:$C,$B21,BD_Segmentos!$A:$A,"S4")*ValorUnidad) -> 15.41729192 | S21: =IF(MONTH(S$7)=3,SUMIFS(BD_Segmentos!R:R,BD_Segmentos!$C:$C,$B21,BD_Segmentos!$A:$A,"S4")*ValorUnidad,SUMIFS(BD_Segmentos!R:R,BD_Segmentos!$C:$C,$B21,BD_Segmentos!$A:$A,"S4")*ValorUnidad-SUMIFS(BD_Segmentos!Q:Q,BD_Segmentos!$C:$C,$B21,BD_Segmentos!$A:$A,"S4")*ValorUnidad) -> 16.63577974 | T21: =IF(MONTH(T$7)=3,SUMIFS(BD_Segmentos!S:S,BD_Segmentos!$C:$C,$B21,BD_Segmentos!$A:$A,"S4")*ValorUnidad,SUMIFS(BD_Segmentos!S:S,BD_Segmentos!$C:$C,$B21,BD_Segmentos!$A:$A,"S4")*ValorUnidad-SUMIFS(BD_Segmentos!R:R,BD_Segmentos!$C:$C,$B21,BD_Segmentos!$A:$A,"S4")*ValorUnidad) -> 16.8753227 | U21: =IF(MONTH(U$7)=3,SUMIFS(BD_Segmentos!T:T,BD_Segmentos!$C:$C,$B21,BD_Segmentos!$A:$A,"S4")*ValorUnidad,SUMIFS(BD_Segmentos!T:T,BD_Segmentos!$C:$C,$B21,BD_Segmentos!$A:$A,"S4")*ValorUnidad-SUMIFS(BD_Segmentos!S:S,BD_Segmentos!$C:$C,$B21,BD_Segmentos!$A:$A,"S4")*ValorUnidad) -> 16.96232153 | V21: =IF(MONTH(V$7)=3,SUMIFS(BD_Segmentos!U:U,BD_Segmentos!$C:$C,$B21,BD_Segmentos!$A:$A,"S4")*ValorUnidad,SUMIFS(BD_Segmentos!U:U,BD_Segmentos!$C:$C,$B21,BD_Segmentos!$A:$A,"S4")*ValorUnidad-SUMIFS(BD_Segmentos!T:T,BD_Segmentos!$C:$C,$B21,BD_Segmentos!$A:$A,"S4")*ValorUnidad) -> 17.89970689
B22: 80 | C22: (Loss) gain on sale of investment property | E22: =IF(MONTH(E$7)=3,SUMIFS(BD_Segmentos!D:D,BD_Segmentos!$C:$C,$B22,BD_Segmentos!$A:$A,"S4")*ValorUnidad,SUMIFS(BD_Segmentos!D:D,BD_Segmentos!$C:$C,$B22,BD_Segmentos!$A:$A,"S4")*ValorUnidad-SUMIFS(BD_Segmentos!C:C,BD_Segmentos!$C:$C,$B22,BD_Segmentos!$A:$A,"S4")*ValorUnidad) -> 1.558582 | F22: =IF(MONTH(F$7)=3,SUMIFS(BD_Segmentos!E:E,BD_Segmentos!$C:$C,$B22,BD_Segmentos!$A:$A,"S4")*ValorUnidad,SUMIFS(BD_Segmentos!E:E,BD_Segmentos!$C:$C,$B22,BD_Segmentos!$A:$A,"S4")*ValorUnidad-SUMIFS(BD_Segmentos!D:D,BD_Segmentos!$C:$C,$B22,BD_Segmentos!$A:$A,"S4")*ValorUnidad) -> 0 | G22: =IF(MONTH(G$7)=3,SUMIFS(BD_Segmentos!F:F,BD_Segmentos!$C:$C,$B22,BD_Segmentos!$A:$A,"S4")*ValorUnidad,SUMIFS(BD_Segmentos!F:F,BD_Segmentos!$C:$C,$B22,BD_Segmentos!$A:$A,"S4")*ValorUnidad-SUMIFS(BD_Segmentos!E:E,BD_Segmentos!$C:$C,$B22,BD_Segmentos!$A:$A,"S4")*ValorUnidad) -> 0 | H22: =IF(MONTH(H$7)=3,SUMIFS(BD_Segmentos!G:G,BD_Segmentos!$C:$C,$B22,BD_Segmentos!$A:$A,"S4")*ValorUnidad,SUMIFS(BD_Segmentos!G:G,BD_Segmentos!$C:$C,$B22,BD_Segmentos!$A:$A,"S4")*ValorUnidad-SUMIFS(BD_Segmentos!F:F,BD_Segmentos!$C:$C,$B22,BD_Segmentos!$A:$A,"S4")*ValorUnidad) -> 3.096532 | I22: =IF(MONTH(I$7)=3,SUMIFS(BD_Segmentos!H:H,BD_Segmentos!$C:$C,$B22,BD_Segmentos!$A:$A,"S4")*ValorUnidad,SUMIFS(BD_Segmentos!H:H,BD_Segmentos!$C:$C,$B22,BD_Segmentos!$A:$A,"S4")*ValorUnidad-SUMIFS(BD_Segmentos!G:G,BD_Segmentos!$C:$C,$B22,BD_Segmentos!$A:$A,"S4")*ValorUnidad) -> 0 | J22: =IF(MONTH(J$7)=3,SUMIFS(BD_Segmentos!I:I,BD_Segmentos!$C:$C,$B22,BD_Segmentos!$A:$A,"S4")*ValorUnidad,SUMIFS(BD_Segmentos!I:I,BD_Segmentos!$C:$C,$B22,BD_Segmentos!$A:$A,"S4")*ValorUnidad-SUMIFS(BD_Segmentos!H:H,BD_Segmentos!$C:$C,$B22,BD_Segmentos!$A:$A,"S4")*ValorUnidad) -> -1.555619279 | K22: =IF(MONTH(K$7)=3,SUMIFS(BD_Segmentos!J:J,BD_Segmentos!$C:$C,$B22,BD_Segmentos!$A:$A,"S4")*ValorUnidad,SUMIFS(BD_Segmentos!J:J,BD_Segmentos!$C:$C,$B22,BD_Segmentos!$A:$A,"S4")*ValorUnidad-SUMIFS(BD_Segmentos!I:I,BD_Segmentos!$C:$C,$B22,BD_Segmentos!$A:$A,"S4")*ValorUnidad) -> -4.380663721 | L22: =IF(MONTH(L$7)=3,SUMIFS(BD_Segmentos!K:K,BD_Segmentos!$C:$C,$B22,BD_Segmentos!$A:$A,"S4")*ValorUnidad,SUMIFS(BD_Segmentos!K:K,BD_Segmentos!$C:$C,$B22,BD_Segmentos!$A:$A,"S4")*ValorUnidad-SUMIFS(BD_Segmentos!J:J,BD_Segmentos!$C:$C,$B22,BD_Segmentos!$A:$A,"S4")*ValorUnidad) -> -1.227329 | M22: =IF(MONTH(M$7)=3,SUMIFS(BD_Segmentos!L:L,BD_Segmentos!$C:$C,$B22,BD_Segmentos!$A:$A,"S4")*ValorUnidad,SUMIFS(BD_Segmentos!L:L,BD_Segmentos!$C:$C,$B22,BD_Segmentos!$A:$A,"S4")*ValorUnidad-SUMIFS(BD_Segmentos!K:K,BD_Segmentos!$C:$C,$B22,BD_Segmentos!$A:$A,"S4")*ValorUnidad) -> 0 | N22: =IF(MONTH(N$7)=3,SUMIFS(BD_Segmentos!M:M,BD_Segmentos!$C:$C,$B22,BD_Segmentos!$A:$A,"S4")*ValorUnidad,SUMIFS(BD_Segmentos!M:M,BD_Segmentos!$C:$C,$B22,BD_Segmentos!$A:$A,"S4")*ValorUnidad-SUMIFS(BD_Segmentos!L:L,BD_Segmentos!$C:$C,$B22,BD_Segmentos!$A:$A,"S4")*ValorUnidad) -> 0 | O22: =IF(MONTH(O$7)=3,SUMIFS(BD_Segmentos!N:N,BD_Segmentos!$C:$C,$B22,BD_Segmentos!$A:$A,"S4")*ValorUnidad,SUMIFS(BD_Segmentos!N:N,BD_Segmentos!$C:$C,$B22,BD_Segmentos!$A:$A,"S4")*ValorUnidad-SUMIFS(BD_Segmentos!M:M,BD_Segmentos!$C:$C,$B22,BD_Segmentos!$A:$A,"S4")*ValorUnidad) -> 0 | P22: =IF(MONTH(P$7)=3,SUMIFS(BD_Segmentos!O:O,BD_Segmentos!$C:$C,$B22,BD_Segmentos!$A:$A,"S4")*ValorUnidad,SUMIFS(BD_Segmentos!O:O,BD_Segmentos!$C:$C,$B22,BD_Segmentos!$A:$A,"S4")*ValorUnidad-SUMIFS(BD_Segmentos!N:N,BD_Segmentos!$C:$C,$B22,BD_Segmentos!$A:$A,"S4")*ValorUnidad) -> 0 | Q22: =IF(MONTH(Q$7)=3,SUMIFS(BD_Segmentos!P:P,BD_Segmentos!$C:$C,$B22,BD_Segmentos!$A:$A,"S4")*ValorUnidad,SUMIFS(BD_Segmentos!P:P,BD_Segmentos!$C:$C,$B22,BD_Segmentos!$A:$A,"S4")*ValorUnidad-SUMIFS(BD_Segmentos!O:O,BD_Segmentos!$C:$C,$B22,BD_Segmentos!$A:$A,"S4")*ValorUnidad) -> 0 | R22: =IF(MONTH(R$7)=3,SUMIFS(BD_Segmentos!Q:Q,BD_Segmentos!$C:$C,$B22,BD_Segmentos!$A:$A,"S4")*ValorUnidad,SUMIFS(BD_Segmentos!Q:Q,BD_Segmentos!$C:$C,$B22,BD_Segmentos!$A:$A,"S4")*ValorUnidad-SUMIFS(BD_Segmentos!P:P,BD_Segmentos!$C:$C,$B22,BD_Segmentos!$A:$A,"S4")*ValorUnidad) -> 0 | S22: =IF(MONTH(S$7)=3,SUMIFS(BD_Segmentos!R:R,BD_Segmentos!$C:$C,$B22,BD_Segmentos!$A:$A,"S4")*ValorUnidad,SUMIFS(BD_Segmentos!R:R,BD_Segmentos!$C:$C,$B22,BD_Segmentos!$A:$A,"S4")*ValorUnidad-SUMIFS(BD_Segmentos!Q:Q,BD_Segmentos!$C:$C,$B22,BD_Segmentos!$A:$A,"S4")*ValorUnidad) -> 0 | T22: =IF(MONTH(T$7)=3,SUMIFS(BD_Segmentos!S:S,BD_Segmentos!$C:$C,$B22,BD_Segmentos!$A:$A,"S4")*ValorUnidad,SUMIFS(BD_Segmentos!S:S,BD_Segmentos!$C:$C,$B22,BD_Segmentos!$A:$A,"S4")*ValorUnidad-SUMIFS(BD_Segmentos!R:R,BD_Segmentos!$C:$C,$B22,BD_Segmentos!$A:$A,"S4")*ValorUnidad) -> 0 | U22: =IF(MONTH(U$7)=3,SUMIFS(BD_Segmentos!T:T,BD_Segmentos!$C:$C,$B22,BD_Segmentos!$A:$A,"S4")*ValorUnidad,SUMIFS(BD_Segmentos!T:T,BD_Segmentos!$C:$C,$B22,BD_Segmentos!$A:$A,"S4")*ValorUnidad-SUMIFS(BD_Segmentos!S:S,BD_Segmentos!$C:$C,$B22,BD_Segmentos!$A:$A,"S4")*ValorUnidad) -> 0 | V22: =IF(MONTH(V$7)=3,SUMIFS(BD_Segmentos!U:U,BD_Segmentos!$C:$C,$B22,BD_Segmentos!$A:$A,"S4")*ValorUnidad,SUMIFS(BD_Segmentos!U:U,BD_Segmentos!$C:$C,$B22,BD_Segmentos!$A:$A,"S4")*ValorUnidad-SUMIFS(BD_Segmentos!T:T,BD_Segmentos!$C:$C,$B22,BD_Segmentos!$A:$A,"S4")*ValorUnidad) -> 0
B23: 81 | C23: Gain (loss) on valuation of investment property | E23: =IF(MONTH(E$7)=3,SUMIFS(BD_Segmentos!D:D,BD_Segmentos!$C:$C,$B23,BD_Segmentos!$A:$A,"S4")*ValorUnidad,SUMIFS(BD_Segmentos!D:D,BD_Segmentos!$C:$C,$B23,BD_Segmentos!$A:$A,"S4")*ValorUnidad-SUMIFS(BD_Segmentos!C:C,BD_Segmentos!$C:$C,$B23,BD_Segmentos!$A:$A,"S4")*ValorUnidad) -> -5.105709481 | F23: =IF(MONTH(F$7)=3,SUMIFS(BD_Segmentos!E:E,BD_Segmentos!$C:$C,$B23,BD_Segmentos!$A:$A,"S4")*ValorUnidad,SUMIFS(BD_Segmentos!E:E,BD_Segmentos!$C:$C,$B23,BD_Segmentos!$A:$A,"S4")*ValorUnidad-SUMIFS(BD_Segmentos!D:D,BD_Segmentos!$C:$C,$B23,BD_Segmentos!$A:$A,"S4")*ValorUnidad) -> 11.53804248 | G23: =IF(MONTH(G$7)=3,SUMIFS(BD_Segmentos!F:F,BD_Segmentos!$C:$C,$B23,BD_Segmentos!$A:$A,"S4")*ValorUnidad,SUMIFS(BD_Segmentos!F:F,BD_Segmentos!$C:$C,$B23,BD_Segmentos!$A:$A,"S4")*ValorUnidad-SUMIFS(BD_Segmentos!E:E,BD_Segmentos!$C:$C,$B23,BD_Segmentos!$A:$A,"S4")*ValorUnidad) -> 24.716914 | H23: =IF(MONTH(H$7)=3,SUMIFS(BD_Segmentos!G:G,BD_Segmentos!$C:$C,$B23,BD_Segmentos!$A:$A,"S4")*ValorUnidad,SUMIFS(BD_Segmentos!G:G,BD_Segmentos!$C:$C,$B23,BD_Segmentos!$A:$A,"S4")*ValorUnidad-SUMIFS(BD_Segmentos!F:F,BD_Segmentos!$C:$C,$B23,BD_Segmentos!$A:$A,"S4")*ValorUnidad) -> 16.615884 | I23: =IF(MONTH(I$7)=3,SUMIFS(BD_Segmentos!H:H,BD_Segmentos!$C:$C,$B23,BD_Segmentos!$A:$A,"S4")*ValorUnidad,SUMIFS(BD_Segmentos!H:H,BD_Segmentos!$C:$C,$B23,BD_Segmentos!$A:$A,"S4")*ValorUnidad-SUMIFS(BD_Segmentos!G:G,BD_Segmentos!$C:$C,$B23,BD_Segmentos!$A:$A,"S4")*ValorUnidad) -> 1.322001 | J23: =IF(MONTH(J$7)=3,SUMIFS(BD_Segmentos!I:I,BD_Segmentos!$C:$C,$B23,BD_Segmentos!$A:$A,"S4")*ValorUnidad,SUMIFS(BD_Segmentos!I:I,BD_Segmentos!$C:$C,$B23,BD_Segmentos!$A:$A,"S4")*ValorUnidad-SUMIFS(BD_Segmentos!H:H,BD_Segmentos!$C:$C,$B23,BD_Segmentos!$A:$A,"S4")*ValorUnidad) -> 20.65904328 | K23: =IF(MONTH(K$7)=3,SUMIFS(BD_Segmentos!J:J,BD_Segmentos!$C:$C,$B23,BD_Segmentos!$A:$A,"S4")*ValorUnidad,SUMIFS(BD_Segmentos!J:J,BD_Segmentos!$C:$C,$B23,BD_Segmentos!$A:$A,"S4")*ValorUnidad-SUMIFS(BD_Segmentos!I:I,BD_Segmentos!$C:$C,$B23,BD_Segmentos!$A:$A,"S4")*ValorUnidad) -> 22.67438572 | L23: =IF(MONTH(L$7)=3,SUMIFS(BD_Segmentos!K:K,BD_Segmentos!$C:$C,$B23,BD_Segmentos!$A:$A,"S4")*ValorUnidad,SUMIFS(BD_Segmentos!K:K,BD_Segmentos!$C:$C,$B23,BD_Segmentos!$A:$A,"S4")*ValorUnidad-SUMIFS(BD_Segmentos!J:J,BD_Segmentos!$C:$C,$B23,BD_Segmentos!$A:$A,"S4")*ValorUnidad) -> 9.837543 | M23: =IF(MONTH(M$7)=3,SUMIFS(BD_Segmentos!L:L,BD_Segmentos!$C:$C,$B23,BD_Segmentos!$A:$A,"S4")*ValorUnidad,SUMIFS(BD_Segmentos!L:L,BD_Segmentos!$C:$C,$B23,BD_Segmentos!$A:$A,"S4")*ValorUnidad-SUMIFS(BD_Segmentos!K:K,BD_Segmentos!$C:$C,$B23,BD_Segmentos!$A:$A,"S4")*ValorUnidad) -> 11.481 | N23: =IF(MONTH(N$7)=3,SUMIFS(BD_Segmentos!M:M,BD_Segmentos!$C:$C,$B23,BD_Segmentos!$A:$A,"S4")*ValorUnidad,SUMIFS(BD_Segmentos!M:M,BD_Segmentos!$C:$C,$B23,BD_Segmentos!$A:$A,"S4")*ValorUnidad-SUMIFS(BD_Segmentos!L:L,BD_Segmentos!$C:$C,$B23,BD_Segmentos!$A:$A,"S4")*ValorUnidad) -> -4.998274792 | O23: =IF(MONTH(O$7)=3,SUMIFS(BD_Segmentos!N:N,BD_Segmentos!$C:$C,$B23,BD_Segmentos!$A:$A,"S4")*ValorUnidad,SUMIFS(BD_Segmentos!N:N,BD_Segmentos!$C:$C,$B23,BD_Segmentos!$A:$A,"S4")*ValorUnidad-SUMIFS(BD_Segmentos!M:M,BD_Segmentos!$C:$C,$B23,BD_Segmentos!$A:$A,"S4")*ValorUnidad) -> 5.435774792 | P23: =IF(MONTH(P$7)=3,SUMIFS(BD_Segmentos!O:O,BD_Segmentos!$C:$C,$B23,BD_Segmentos!$A:$A,"S4")*ValorUnidad,SUMIFS(BD_Segmentos!O:O,BD_Segmentos!$C:$C,$B23,BD_Segmentos!$A:$A,"S4")*ValorUnidad-SUMIFS(BD_Segmentos!N:N,BD_Segmentos!$C:$C,$B23,BD_Segmentos!$A:$A,"S4")*ValorUnidad) -> -6.48086359 | Q23: =IF(MONTH(Q$7)=3,SUMIFS(BD_Segmentos!P:P,BD_Segmentos!$C:$C,$B23,BD_Segmentos!$A:$A,"S4")*ValorUnidad,SUMIFS(BD_Segmentos!P:P,BD_Segmentos!$C:$C,$B23,BD_Segmentos!$A:$A,"S4")*ValorUnidad-SUMIFS(BD_Segmentos!O:O,BD_Segmentos!$C:$C,$B23,BD_Segmentos!$A:$A,"S4")*ValorUnidad) -> 35.506094 | R23: =IF(MONTH(R$7)=3,SUMIFS(BD_Segmentos!Q:Q,BD_Segmentos!$C:$C,$B23,BD_Segmentos!$A:$A,"S4")*ValorUnidad,SUMIFS(BD_Segmentos!Q:Q,BD_Segmentos!$C:$C,$B23,BD_Segmentos!$A:$A,"S4")*ValorUnidad-SUMIFS(BD_Segmentos!P:P,BD_Segmentos!$C:$C,$B23,BD_Segmentos!$A:$A,"S4")*ValorUnidad) -> 21.089017 | S23: =IF(MONTH(S$7)=3,SUMIFS(BD_Segmentos!R:R,BD_Segmentos!$C:$C,$B23,BD_Segmentos!$A:$A,"S4")*ValorUnidad,SUMIFS(BD_Segmentos!R:R,BD_Segmentos!$C:$C,$B23,BD_Segmentos!$A:$A,"S4")*ValorUnidad-SUMIFS(BD_Segmentos!Q:Q,BD_Segmentos!$C:$C,$B23,BD_Segmentos!$A:$A,"S4")*ValorUnidad) -> 12.623889 | T23: =IF(MONTH(T$7)=3,SUMIFS(BD_Segmentos!S:S,BD_Segmentos!$C:$C,$B23,BD_Segmentos!$A:$A,"S4")*ValorUnidad,SUMIFS(BD_Segmentos!S:S,BD_Segmentos!$C:$C,$B23,BD_Segmentos!$A:$A,"S4")*ValorUnidad-SUMIFS(BD_Segmentos!R:R,BD_Segmentos!$C:$C,$B23,BD_Segmentos!$A:$A,"S4")*ValorUnidad) -> -47.250406 | U23: =IF(MONTH(U$7)=3,SUMIFS(BD_Segmentos!T:T,BD_Segmentos!$C:$C,$B23,BD_Segmentos!$A:$A,"S4")*ValorUnidad,SUMIFS(BD_Segmentos!T:T,BD_Segmentos!$C:$C,$B23,BD_Segmentos!$A:$A,"S4")*ValorUnidad-SUMIFS(BD_Segmentos!S:S,BD_Segmentos!$C:$C,$B23,BD_Segmentos!$A:$A,"S4")*ValorUnidad) -> -30.76758 | V23: =IF(MONTH(V$7)=3,SUMIFS(BD_Segmentos!U:U,BD_Segmentos!$C:$C,$B23,BD_Segmentos!$A:$A,"S4")*ValorUnidad,SUMIFS(BD_Segmentos!U:U,BD_Segmentos!$C:$C,$B23,BD_Segmentos!$A:$A,"S4")*ValorUnidad-SUMIFS(BD_Segmentos!T:T,BD_Segmentos!$C:$C,$B23,BD_Segmentos!$A:$A,"S4")*ValorUnidad) -> 59.672598
B24: 47 | C24: Other income | E24: =IF(MONTH(E$7)=3,SUMIFS(BD_Segmentos!D:D,BD_Segmentos!$C:$C,$B24,BD_Segmentos!$A:$A,"S4")*ValorUnidad,SUMIFS(BD_Segmentos!D:D,BD_Segmentos!$C:$C,$B24,BD_Segmentos!$A:$A,"S4")*ValorUnidad-SUMIFS(BD_Segmentos!C:C,BD_Segmentos!$C:$C,$B24,BD_Segmentos!$A:$A,"S4")*ValorUnidad) -> 14.41167859 | F24: =IF(MONTH(F$7)=3,SUMIFS(BD_Segmentos!E:E,BD_Segmentos!$C:$C,$B24,BD_Segmentos!$A:$A,"S4")*ValorUnidad,SUMIFS(BD_Segmentos!E:E,BD_Segmentos!$C:$C,$B24,BD_Segmentos!$A:$A,"S4")*ValorUnidad-SUMIFS(BD_Segmentos!D:D,BD_Segmentos!$C:$C,$B24,BD_Segmentos!$A:$A,"S4")*ValorUnidad) -> 9.875678471 | G24: =IF(MONTH(G$7)=3,SUMIFS(BD_Segmentos!F:F,BD_Segmentos!$C:$C,$B24,BD_Segmentos!$A:$A,"S4")*ValorUnidad,SUMIFS(BD_Segmentos!F:F,BD_Segmentos!$C:$C,$B24,BD_Segmentos!$A:$A,"S4")*ValorUnidad-SUMIFS(BD_Segmentos!E:E,BD_Segmentos!$C:$C,$B24,BD_Segmentos!$A:$A,"S4")*ValorUnidad) -> 16.11176463 | H24: =IF(MONTH(H$7)=3,SUMIFS(BD_Segmentos!G:G,BD_Segmentos!$C:$C,$B24,BD_Segmentos!$A:$A,"S4")*ValorUnidad,SUMIFS(BD_Segmentos!G:G,BD_Segmentos!$C:$C,$B24,BD_Segmentos!$A:$A,"S4")*ValorUnidad-SUMIFS(BD_Segmentos!F:F,BD_Segmentos!$C:$C,$B24,BD_Segmentos!$A:$A,"S4")*ValorUnidad) -> 28.64341711 | I24: =IF(MONTH(I$7)=3,SUMIFS(BD_Segmentos!H:H,BD_Segmentos!$C:$C,$B24,BD_Segmentos!$A:$A,"S4")*ValorUnidad,SUMIFS(BD_Segmentos!H:H,BD_Segmentos!$C:$C,$B24,BD_Segmentos!$A:$A,"S4")*ValorUnidad-SUMIFS(BD_Segmentos!G:G,BD_Segmentos!$C:$C,$B24,BD_Segmentos!$A:$A,"S4")*ValorUnidad) -> 18.73014851 | J24: =IF(MONTH(J$7)=3,SUMIFS(BD_Segmentos!I:I,BD_Segmentos!$C:$C,$B24,BD_Segmentos!$A:$A,"S4")*ValorUnidad,SUMIFS(BD_Segmentos!I:I,BD_Segmentos!$C:$C,$B24,BD_Segmentos!$A:$A,"S4")*ValorUnidad-SUMIFS(BD_Segmentos!H:H,BD_Segmentos!$C:$C,$B24,BD_Segmentos!$A:$A,"S4")*ValorUnidad) -> 13.38288208 | K24: =IF(MONTH(K$7)=3,SUMIFS(BD_Segmentos!J:J,BD_Segmentos!$C:$C,$B24,BD_Segmentos!$A:$A,"S4")*ValorUnidad,SUMIFS(BD_Segmentos!J:J,BD_Segmentos!$C:$C,$B24,BD_Segmentos!$A:$A,"S4")*ValorUnidad-SUMIFS(BD_Segmentos!I:I,BD_Segmentos!$C:$C,$B24,BD_Segmentos!$A:$A,"S4")*ValorUnidad) -> 15.584785 | L24: =IF(MONTH(L$7)=3,SUMIFS(BD_Segmentos!K:K,BD_Segmentos!$C:$C,$B24,BD_Segmentos!$A:$A,"S4")*ValorUnidad,SUMIFS(BD_Segmentos!K:K,BD_Segmentos!$C:$C,$B24,BD_Segmentos!$A:$A,"S4")*ValorUnidad-SUMIFS(BD_Segmentos!J:J,BD_Segmentos!$C:$C,$B24,BD_Segmentos!$A:$A,"S4")*ValorUnidad) -> 22.96174214 | M24: =IF(MONTH(M$7)=3,SUMIFS(BD_Segmentos!L:L,BD_Segmentos!$C:$C,$B24,BD_Segmentos!$A:$A,"S4")*ValorUnidad,SUMIFS(BD_Segmentos!L:L,BD_Segmentos!$C:$C,$B24,BD_Segmentos!$A:$A,"S4")*ValorUnidad-SUMIFS(BD_Segmentos!K:K,BD_Segmentos!$C:$C,$B24,BD_Segmentos!$A:$A,"S4")*ValorUnidad) -> 11.91653472 | N24: =IF(MONTH(N$7)=3,SUMIFS(BD_Segmentos!M:M,BD_Segmentos!$C:$C,$B24,BD_Segmentos!$A:$A,"S4")*ValorUnidad,SUMIFS(BD_Segmentos!M:M,BD_Segmentos!$C:$C,$B24,BD_Segmentos!$A:$A,"S4")*ValorUnidad-SUMIFS(BD_Segmentos!L:L,BD_Segmentos!$C:$C,$B24,BD_Segmentos!$A:$A,"S4")*ValorUnidad) -> 2.901286699 | O24: =IF(MONTH(O$7)=3,SUMIFS(BD_Segmentos!N:N,BD_Segmentos!$C:$C,$B24,BD_Segmentos!$A:$A,"S4")*ValorUnidad,SUMIFS(BD_Segmentos!N:N,BD_Segmentos!$C:$C,$B24,BD_Segmentos!$A:$A,"S4")*ValorUnidad-SUMIFS(BD_Segmentos!M:M,BD_Segmentos!$C:$C,$B24,BD_Segmentos!$A:$A,"S4")*ValorUnidad) -> 21.33966718 | P24: =IF(MONTH(P$7)=3,SUMIFS(BD_Segmentos!O:O,BD_Segmentos!$C:$C,$B24,BD_Segmentos!$A:$A,"S4")*ValorUnidad,SUMIFS(BD_Segmentos!O:O,BD_Segmentos!$C:$C,$B24,BD_Segmentos!$A:$A,"S4")*ValorUnidad-SUMIFS(BD_Segmentos!N:N,BD_Segmentos!$C:$C,$B24,BD_Segmentos!$A:$A,"S4")*ValorUnidad) -> 25.95982142 | Q24: =IF(MONTH(Q$7)=3,SUMIFS(BD_Segmentos!P:P,BD_Segmentos!$C:$C,$B24,BD_Segmentos!$A:$A,"S4")*ValorUnidad,SUMIFS(BD_Segmentos!P:P,BD_Segmentos!$C:$C,$B24,BD_Segmentos!$A:$A,"S4")*ValorUnidad-SUMIFS(BD_Segmentos!O:O,BD_Segmentos!$C:$C,$B24,BD_Segmentos!$A:$A,"S4")*ValorUnidad) -> 15.27450732 | R24: =IF(MONTH(R$7)=3,SUMIFS(BD_Segmentos!Q:Q,BD_Segmentos!$C:$C,$B24,BD_Segmentos!$A:$A,"S4")*ValorUnidad,SUMIFS(BD_Segmentos!Q:Q,BD_Segmentos!$C:$C,$B24,BD_Segmentos!$A:$A,"S4")*ValorUnidad-SUMIFS(BD_Segmentos!P:P,BD_Segmentos!$C:$C,$B24,BD_Segmentos!$A:$A,"S4")*ValorUnidad) -> 23.95422529 | S24: =IF(MONTH(S$7)=3,SUMIFS(BD_Segmentos!R:R,BD_Segmentos!$C:$C,$B24,BD_Segmentos!$A:$A,"S4")*ValorUnidad,SUMIFS(BD_Segmentos!R:R,BD_Segmentos!$C:$C,$B24,BD_Segmentos!$A:$A,"S4")*ValorUnidad-SUMIFS(BD_Segmentos!Q:Q,BD_Segmentos!$C:$C,$B24,BD_Segmentos!$A:$A,"S4")*ValorUnidad) -> 12.53983963 | T24: =IF(MONTH(T$7)=3,SUMIFS(BD_Segmentos!S:S,BD_Segmentos!$C:$C,$B24,BD_Segmentos!$A:$A,"S4")*ValorUnidad,SUMIFS(BD_Segmentos!S:S,BD_Segmentos!$C:$C,$B24,BD_Segmentos!$A:$A,"S4")*ValorUnidad-SUMIFS(BD_Segmentos!R:R,BD_Segmentos!$C:$C,$B24,BD_Segmentos!$A:$A,"S4")*ValorUnidad) -> 37.72939584 | U24: =IF(MONTH(U$7)=3,SUMIFS(BD_Segmentos!T:T,BD_Segmentos!$C:$C,$B24,BD_Segmentos!$A:$A,"S4")*ValorUnidad,SUMIFS(BD_Segmentos!T:T,BD_Segmentos!$C:$C,$B24,BD_Segmentos!$A:$A,"S4")*ValorUnidad-SUMIFS(BD_Segmentos!S:S,BD_Segmentos!$C:$C,$B24,BD_Segmentos!$A:$A,"S4")*ValorUnidad) -> 37.02570817 | V24: =IF(MONTH(V$7)=3,SUMIFS(BD_Segmentos!U:U,BD_Segmentos!$C:$C,$B24,BD_Segmentos!$A:$A,"S4")*ValorUnidad,SUMIFS(BD_Segmentos!U:U,BD_Segmentos!$C:$C,$B24,BD_Segmentos!$A:$A,"S4")*ValorUnidad-SUMIFS(BD_Segmentos!T:T,BD_Segmentos!$C:$C,$B24,BD_Segmentos!$A:$A,"S4")*ValorUnidad) -> 59.22292964
C25: Other income | E25: =+SUM(E17:E24) -> 96.89667024 | F25: =+SUM(F17:F24) -> 75.02102309 | G25: 136.424076 | H25: 100.3775949 | I25: 138.8870254 | J25: 129.360982 | K25: 141.9410067 | L25: 181.8901116 | M25: 39.31190108 | N25: 187.3304874 | O25: 267.8372214 | P25: =+SUM(P17:P24) -> 282.2548071 | Q25: 387.6587491 | R25: =+SUM(R17:R24) -> 268.1074111 | S25: 377.1221754 | T25: =+SUM(T17:T24) -> -127.2474152 | U25: 103.9776894 | V25: =+SUM(V17:V24) -> -4.812897221
B26: ST15 | C26: Total premiums earned minus claims and benefits | E26: =IF(MONTH(E$7)=3,SUMIFS(BD_Segmentos!D:D,BD_Segmentos!$C:$C,$B26,BD_Segmentos!$A:$A,"S4")*ValorUnidad,SUMIFS(BD_Segmentos!D:D,BD_Segmentos!$C:$C,$B26,BD_Segmentos!$A:$A,"S4")*ValorUnidad-SUMIFS(BD_Segmentos!C:C,BD_Segmentos!$C:$C,$B26,BD_Segmentos!$A:$A,"S4")*ValorUnidad) -> -78.76276815 | F26: =IF(MONTH(F$7)=3,SUMIFS(BD_Segmentos!E:E,BD_Segmentos!$C:$C,$B26,BD_Segmentos!$A:$A,"S4")*ValorUnidad,SUMIFS(BD_Segmentos!E:E,BD_Segmentos!$C:$C,$B26,BD_Segmentos!$A:$A,"S4")*ValorUnidad-SUMIFS(BD_Segmentos!D:D,BD_Segmentos!$C:$C,$B26,BD_Segmentos!$A:$A,"S4")*ValorUnidad) -> -184.5038117 | G26: =IF(MONTH(G$7)=3,SUMIFS(BD_Segmentos!F:F,BD_Segmentos!$C:$C,$B26,BD_Segmentos!$A:$A,"S4")*ValorUnidad,SUMIFS(BD_Segmentos!F:F,BD_Segmentos!$C:$C,$B26,BD_Segmentos!$A:$A,"S4")*ValorUnidad-SUMIFS(BD_Segmentos!E:E,BD_Segmentos!$C:$C,$B26,BD_Segmentos!$A:$A,"S4")*ValorUnidad) -> -72.53422788 | H26: =IF(MONTH(H$7)=3,SUMIFS(BD_Segmentos!G:G,BD_Segmentos!$C:$C,$B26,BD_Segmentos!$A:$A,"S4")*ValorUnidad,SUMIFS(BD_Segmentos!G:G,BD_Segmentos!$C:$C,$B26,BD_Segmentos!$A:$A,"S4")*ValorUnidad-SUMIFS(BD_Segmentos!F:F,BD_Segmentos!$C:$C,$B26,BD_Segmentos!$A:$A,"S4")*ValorUnidad) -> -64.95676169 | I26: =IF(MONTH(I$7)=3,SUMIFS(BD_Segmentos!H:H,BD_Segmentos!$C:$C,$B26,BD_Segmentos!$A:$A,"S4")*ValorUnidad,SUMIFS(BD_Segmentos!H:H,BD_Segmentos!$C:$C,$B26,BD_Segmentos!$A:$A,"S4")*ValorUnidad-SUMIFS(BD_Segmentos!G:G,BD_Segmentos!$C:$C,$B26,BD_Segmentos!$A:$A,"S4")*ValorUnidad) -> -70.23448669 | J26: =IF(MONTH(J$7)=3,SUMIFS(BD_Segmentos!I:I,BD_Segmentos!$C:$C,$B26,BD_Segmentos!$A:$A,"S4")*ValorUnidad,SUMIFS(BD_Segmentos!I:I,BD_Segmentos!$C:$C,$B26,BD_Segmentos!$A:$A,"S4")*ValorUnidad-SUMIFS(BD_Segmentos!H:H,BD_Segmentos!$C:$C,$B26,BD_Segmentos!$A:$A,"S4")*ValorUnidad) -> -75.62394596 | K26: =IF(MONTH(K$7)=3,SUMIFS(BD_Segmentos!J:J,BD_Segmentos!$C:$C,$B26,BD_Segmentos!$A:$A,"S4")*ValorUnidad,SUMIFS(BD_Segmentos!J:J,BD_Segmentos!$C:$C,$B26,BD_Segmentos!$A:$A,"S4")*ValorUnidad-SUMIFS(BD_Segmentos!I:I,BD_Segmentos!$C:$C,$B26,BD_Segmentos!$A:$A,"S4")*ValorUnidad) -> -59.32791653 | L26: =IF(MONTH(L$7)=3,SUMIFS(BD_Segmentos!K:K,BD_Segmentos!$C:$C,$B26,BD_Segmentos!$A:$A,"S4")*ValorUnidad,SUMIFS(BD_Segmentos!K:K,BD_Segmentos!$C:$C,$B26,BD_Segmentos!$A:$A,"S4")*ValorUnidad-SUMIFS(BD_Segmentos!J:J,BD_Segmentos!$C:$C,$B26,BD_Segmentos!$A:$A,"S4")*ValorUnidad) -> -74.44516597 | M26: =IF(MONTH(M$7)=3,SUMIFS(BD_Segmentos!L:L,BD_Segmentos!$C:$C,$B26,BD_Segmentos!$A:$A,"S4")*ValorUnidad,SUMIFS(BD_Segmentos!L:L,BD_Segmentos!$C:$C,$B26,BD_Segmentos!$A:$A,"S4")*ValorUnidad-SUMIFS(BD_Segmentos!K:K,BD_Segmentos!$C:$C,$B26,BD_Segmentos!$A:$A,"S4")*ValorUnidad) -> -60.78981798 | N26: =IF(MONTH(N$7)=3,SUMIFS(BD_Segmentos!M:M,BD_Segmentos!$C:$C,$B26,BD_Segmentos!$A:$A,"S4")*ValorUnidad,SUMIFS(BD_Segmentos!M:M,BD_Segmentos!$C:$C,$B26,BD_Segmentos!$A:$A,"S4")*ValorUnidad-SUMIFS(BD_Segmentos!L:L,BD_Segmentos!$C:$C,$B26,BD_Segmentos!$A:$A,"S4")*ValorUnidad) -> -65.3461368 | O26: =IF(MONTH(O$7)=3,SUMIFS(BD_Segmentos!N:N,BD_Segmentos!$C:$C,$B26,BD_Segmentos!$A:$A,"S4")*ValorUnidad,SUMIFS(BD_Segmentos!N:N,BD_Segmentos!$C:$C,$B26,BD_Segmentos!$A:$A,"S4")*ValorUnidad-SUMIFS(BD_Segmentos!M:M,BD_Segmentos!$C:$C,$B26,BD_Segmentos!$A:$A,"S4")*ValorUnidad) -> -63.27089703 | P26: =IF(MONTH(P$7)=3,SUMIFS(BD_Segmentos!O:O,BD_Segmentos!$C:$C,$B26,BD_Segmentos!$A:$A,"S4")*ValorUnidad,SUMIFS(BD_Segmentos!O:O,BD_Segmentos!$C:$C,$B26,BD_Segmentos!$A:$A,"S4")*ValorUnidad-SUMIFS(BD_Segmentos!N:N,BD_Segmentos!$C:$C,$B26,BD_Segmentos!$A:$A,"S4")*ValorUnidad) -> -89.66253604 | Q26: =IF(MONTH(Q$7)=3,SUMIFS(BD_Segmentos!P:P,BD_Segmentos!$C:$C,$B26,BD_Segmentos!$A:$A,"S4")*ValorUnidad,SUMIFS(BD_Segmentos!P:P,BD_Segmentos!$C:$C,$B26,BD_Segmentos!$A:$A,"S4")*ValorUnidad-SUMIFS(BD_Segmentos!O:O,BD_Segmentos!$C:$C,$B26,BD_Segmentos!$A:$A,"S4")*ValorUnidad) -> -117.932656 | R26: =IF(MONTH(R$7)=3,SUMIFS(BD_Segmentos!Q:Q,BD_Segmentos!$C:$C,$B26,BD_Segmentos!$A:$A,"S4")*ValorUnidad,SUMIFS(BD_Segmentos!Q:Q,BD_Segmentos!$C:$C,$B26,BD_Segmentos!$A:$A,"S4")*ValorUnidad-SUMIFS(BD_Segmentos!P:P,BD_Segmentos!$C:$C,$B26,BD_Segmentos!$A:$A,"S4")*ValorUnidad) -> -45.9377 | S26: =IF(MONTH(S$7)=3,SUMIFS(BD_Segmentos!R:R,BD_Segmentos!$C:$C,$B26,BD_Segmentos!$A:$A,"S4")*ValorUnidad,SUMIFS(BD_Segmentos!R:R,BD_Segmentos!$C:$C,$B26,BD_Segmentos!$A:$A,"S4")*ValorUnidad-SUMIFS(BD_Segmentos!Q:Q,BD_Segmentos!$C:$C,$B26,BD_Segmentos!$A:$A,"S4")*ValorUnidad) -> -87.713968 | T26: =IF(MONTH(T$7)=3,SUMIFS(BD_Segmentos!S:S,BD_Segmentos!$C:$C,$B26,BD_Segmentos!$A:$A,"S4")*ValorUnidad,SUMIFS(BD_Segmentos!S:S,BD_Segmentos!$C:$C,$B26,BD_Segmentos!$A:$A,"S4")*ValorUnidad-SUMIFS(BD_Segmentos!R:R,BD_Segmentos!$C:$C,$B26,BD_Segmentos!$A:$A,"S4")*ValorUnidad) -> -20.493889 | U26: =IF(MONTH(U$7)=3,SUMIFS(BD_Segmentos!T:T,BD_Segmentos!$C:$C,$B26,BD_Segmentos!$A:$A,"S4")*ValorUnidad,SUMIFS(BD_Segmentos!T:T,BD_Segmentos!$C:$C,$B26,BD_Segmentos!$A:$A,"S4")*ValorUnidad-SUMIFS(BD_Segmentos!S:S,BD_Segmentos!$C:$C,$B26,BD_Segmentos!$A:$A,"S4")*ValorUnidad) -> -20.724792 | V26: =IF(MONTH(V$7)=3,SUMIFS(BD_Segmentos!U:U,BD_Segmentos!$C:$C,$B26,BD_Segmentos!$A:$A,"S4")*ValorUnidad,SUMIFS(BD_Segmentos!U:U,BD_Segmentos!$C:$C,$B26,BD_Segmentos!$A:$A,"S4")*ValorUnidad-SUMIFS(BD_Segmentos!T:T,BD_Segmentos!$C:$C,$B26,BD_Segmentos!$A:$A,"S4")*ValorUnidad) -> -60.76491282
B27: 48.1 | C27: Premiums assumed | E27: =IF(MONTH(E$7)=3,SUMIFS(BD_Segmentos!D:D,BD_Segmentos!$C:$C,$B27,BD_Segmentos!$A:$A,"S4")*ValorUnidad,SUMIFS(BD_Segmentos!D:D,BD_Segmentos!$C:$C,$B27,BD_Segmentos!$A:$A,"S4")*ValorUnidad-SUMIFS(BD_Segmentos!C:C,BD_Segmentos!$C:$C,$B27,BD_Segmentos!$A:$A,"S4")*ValorUnidad) -> 170.4157767 | F27: =IF(MONTH(F$7)=3,SUMIFS(BD_Segmentos!E:E,BD_Segmentos!$C:$C,$B27,BD_Segmentos!$A:$A,"S4")*ValorUnidad,SUMIFS(BD_Segmentos!E:E,BD_Segmentos!$C:$C,$B27,BD_Segmentos!$A:$A,"S4")*ValorUnidad-SUMIFS(BD_Segmentos!D:D,BD_Segmentos!$C:$C,$B27,BD_Segmentos!$A:$A,"S4")*ValorUnidad) -> 194.829526 | G27: =IF(MONTH(G$7)=3,SUMIFS(BD_Segmentos!F:F,BD_Segmentos!$C:$C,$B27,BD_Segmentos!$A:$A,"S4")*ValorUnidad,SUMIFS(BD_Segmentos!F:F,BD_Segmentos!$C:$C,$B27,BD_Segmentos!$A:$A,"S4")*ValorUnidad-SUMIFS(BD_Segmentos!E:E,BD_Segmentos!$C:$C,$B27,BD_Segmentos!$A:$A,"S4")*ValorUnidad) -> 215.0707606 | H27: =IF(MONTH(H$7)=3,SUMIFS(BD_Segmentos!G:G,BD_Segmentos!$C:$C,$B27,BD_Segmentos!$A:$A,"S4")*ValorUnidad,SUMIFS(BD_Segmentos!G:G,BD_Segmentos!$C:$C,$B27,BD_Segmentos!$A:$A,"S4")*ValorUnidad-SUMIFS(BD_Segmentos!F:F,BD_Segmentos!$C:$C,$B27,BD_Segmentos!$A:$A,"S4")*ValorUnidad) -> 218.2245423 | I27: =IF(MONTH(I$7)=3,SUMIFS(BD_Segmentos!H:H,BD_Segmentos!$C:$C,$B27,BD_Segmentos!$A:$A,"S4")*ValorUnidad,SUMIFS(BD_Segmentos!H:H,BD_Segmentos!$C:$C,$B27,BD_Segmentos!$A:$A,"S4")*ValorUnidad-SUMIFS(BD_Segmentos!G:G,BD_Segmentos!$C:$C,$B27,BD_Segmentos!$A:$A,"S4")*ValorUnidad) -> 187.3214762 | J27: =IF(MONTH(J$7)=3,SUMIFS(BD_Segmentos!I:I,BD_Segmentos!$C:$C,$B27,BD_Segmentos!$A:$A,"S4")*ValorUnidad,SUMIFS(BD_Segmentos!I:I,BD_Segmentos!$C:$C,$B27,BD_Segmentos!$A:$A,"S4")*ValorUnidad-SUMIFS(BD_Segmentos!H:H,BD_Segmentos!$C:$C,$B27,BD_Segmentos!$A:$A,"S4")*ValorUnidad) -> 174.4264702 | K27: =IF(MONTH(K$7)=3,SUMIFS(BD_Segmentos!J:J,BD_Segmentos!$C:$C,$B27,BD_Segmentos!$A:$A,"S4")*ValorUnidad,SUMIFS(BD_Segmentos!J:J,BD_Segmentos!$C:$C,$B27,BD_Segmentos!$A:$A,"S4")*ValorUnidad-SUMIFS(BD_Segmentos!I:I,BD_Segmentos!$C:$C,$B27,BD_Segmentos!$A:$A,"S4")*ValorUnidad) -> 173.1748593 | L27: =IF(MONTH(L$7)=3,SUMIFS(BD_Segmentos!K:K,BD_Segmentos!$C:$C,$B27,BD_Segmentos!$A:$A,"S4")*ValorUnidad,SUMIFS(BD_Segmentos!K:K,BD_Segmentos!$C:$C,$B27,BD_Segmentos!$A:$A,"S4")*ValorUnidad-SUMIFS(BD_Segmentos!J:J,BD_Segmentos!$C:$C,$B27,BD_Segmentos!$A:$A,"S4")*ValorUnidad) -> 167.5938987 | M27: =IF(MONTH(M$7)=3,SUMIFS(BD_Segmentos!L:L,BD_Segmentos!$C:$C,$B27,BD_Segmentos!$A:$A,"S4")*ValorUnidad,SUMIFS(BD_Segmentos!L:L,BD_Segmentos!$C:$C,$B27,BD_Segmentos!$A:$A,"S4")*ValorUnidad-SUMIFS(BD_Segmentos!K:K,BD_Segmentos!$C:$C,$B27,BD_Segmentos!$A:$A,"S4")*ValorUnidad) -> 180.6594389 | N27: =IF(MONTH(N$7)=3,SUMIFS(BD_Segmentos!M:M,BD_Segmentos!$C:$C,$B27,BD_Segmentos!$A:$A,"S4")*ValorUnidad,SUMIFS(BD_Segmentos!M:M,BD_Segmentos!$C:$C,$B27,BD_Segmentos!$A:$A,"S4")*ValorUnidad-SUMIFS(BD_Segmentos!L:L,BD_Segmentos!$C:$C,$B27,BD_Segmentos!$A:$A,"S4")*ValorUnidad) -> 122.086284 | O27: =IF(MONTH(O$7)=3,SUMIFS(BD_Segmentos!N:N,BD_Segmentos!$C:$C,$B27,BD_Segmentos!$A:$A,"S4")*ValorUnidad,SUMIFS(BD_Segmentos!N:N,BD_Segmentos!$C:$C,$B27,BD_Segmentos!$A:$A,"S4")*ValorUnidad-SUMIFS(BD_Segmentos!M:M,BD_Segmentos!$C:$C,$B27,BD_Segmentos!$A:$A,"S4")*ValorUnidad) -> 142.1582776 | P27: =IF(MONTH(P$7)=3,SUMIFS(BD_Segmentos!O:O,BD_Segmentos!$C:$C,$B27,BD_Segmentos!$A:$A,"S4")*ValorUnidad,SUMIFS(BD_Segmentos!O:O,BD_Segmentos!$C:$C,$B27,BD_Segmentos!$A:$A,"S4")*ValorUnidad-SUMIFS(BD_Segmentos!N:N,BD_Segmentos!$C:$C,$B27,BD_Segmentos!$A:$A,"S4")*ValorUnidad) -> 181.0271983 | Q27: =IF(MONTH(Q$7)=3,SUMIFS(BD_Segmentos!P:P,BD_Segmentos!$C:$C,$B27,BD_Segmentos!$A:$A,"S4")*ValorUnidad,SUMIFS(BD_Segmentos!P:P,BD_Segmentos!$C:$C,$B27,BD_Segmentos!$A:$A,"S4")*ValorUnidad-SUMIFS(BD_Segmentos!O:O,BD_Segmentos!$C:$C,$B27,BD_Segmentos!$A:$A,"S4")*ValorUnidad) -> 214.881103 | R27: =IF(MONTH(R$7)=3,SUMIFS(BD_Segmentos!Q:Q,BD_Segmentos!$C:$C,$B27,BD_Segmentos!$A:$A,"S4")*ValorUnidad,SUMIFS(BD_Segmentos!Q:Q,BD_Segmentos!$C:$C,$B27,BD_Segmentos!$A:$A,"S4")*ValorUnidad-SUMIFS(BD_Segmentos!P:P,BD_Segmentos!$C:$C,$B27,BD_Segmentos!$A:$A,"S4")*ValorUnidad) -> 228.222829 | S27: =IF(MONTH(S$7)=3,SUMIFS(BD_Segmentos!R:R,BD_Segmentos!$C:$C,$B27,BD_Segmentos!$A:$A,"S4")*ValorUnidad,SUMIFS(BD_Segmentos!R:R,BD_Segmentos!$C:$C,$B27,BD_Segmentos!$A:$A,"S4")*ValorUnidad-SUMIFS(BD_Segmentos!Q:Q,BD_Segmentos!$C:$C,$B27,BD_Segmentos!$A:$A,"S4")*ValorUnidad) -> 258.294088 | T27: =IF(MONTH(T$7)=3,SUMIFS(BD_Segmentos!S:S,BD_Segmentos!$C:$C,$B27,BD_Segmentos!$A:$A,"S4")*ValorUnidad,SUMIFS(BD_Segmentos!S:S,BD_Segmentos!$C:$C,$B27,BD_Segmentos!$A:$A,"S4")*ValorUnidad-SUMIFS(BD_Segmentos!R:R,BD_Segmentos!$C:$C,$B27,BD_Segmentos!$A:$A,"S4")*ValorUnidad) -> 349.998497 | U27: =IF(MONTH(U$7)=3,SUMIFS(BD_Segmentos!T:T,BD_Segmentos!$C:$C,$B27,BD_Segmentos!$A:$A,"S4")*ValorUnidad,SUMIFS(BD_Segmentos!T:T,BD_Segmentos!$C:$C,$B27,BD_Segmentos!$A:$A,"S4")*ValorUnidad-SUMIFS(BD_Segmentos!S:S,BD_Segmentos!$C:$C,$B27,BD_Segmentos!$A:$A,"S4")*ValorUnidad) -> 275.854718 | V27: =IF(MONTH(V$7)=3,SUMIFS(BD_Segmentos!U:U,BD_Segmentos!$C:$C,$B27,BD_Segmentos!$A:$A,"S4")*ValorUnidad,SUMIFS(BD_Segmentos!U:U,BD_Segmentos!$C:$C,$B27,BD_Segmentos!$A:$A,"S4")*ValorUnidad-SUMIFS(BD_Segmentos!T:T,BD_Segmentos!$C:$C,$B27,BD_Segmentos!$A:$A,"S4")*ValorUnidad) -> 237.3495482
B28: 48.3 | C28: Premiums ceded to reinsurers | E28: =IF(MONTH(E$7)=3,SUMIFS(BD_Segmentos!D:D,BD_Segmentos!$C:$C,$B28,BD_Segmentos!$A:$A,"S4")*ValorUnidad,SUMIFS(BD_Segmentos!D:D,BD_Segmentos!$C:$C,$B28,BD_Segmentos!$A:$A,"S4")*ValorUnidad-SUMIFS(BD_Segmentos!C:C,BD_Segmentos!$C:$C,$B28,BD_Segmentos!$A:$A,"S4")*ValorUnidad) -> -28.122919 | F28: =IF(MONTH(F$7)=3,SUMIFS(BD_Segmentos!E:E,BD_Segmentos!$C:$C,$B28,BD_Segmentos!$A:$A,"S4")*ValorUnidad,SUMIFS(BD_Segmentos!E:E,BD_Segmentos!$C:$C,$B28,BD_Segmentos!$A:$A,"S4")*ValorUnidad-SUMIFS(BD_Segmentos!D:D,BD_Segmentos!$C:$C,$B28,BD_Segmentos!$A:$A,"S4")*ValorUnidad) -> -28.34997 | G28: =IF(MONTH(G$7)=3,SUMIFS(BD_Segmentos!F:F,BD_Segmentos!$C:$C,$B28,BD_Segmentos!$A:$A,"S4")*ValorUnidad,SUMIFS(BD_Segmentos!F:F,BD_Segmentos!$C:$C,$B28,BD_Segmentos!$A:$A,"S4")*ValorUnidad-SUMIFS(BD_Segmentos!E:E,BD_Segmentos!$C:$C,$B28,BD_Segmentos!$A:$A,"S4")*ValorUnidad) -> -28.171548 | H28: =IF(MONTH(H$7)=3,SUMIFS(BD_Segmentos!G:G,BD_Segmentos!$C:$C,$B28,BD_Segmentos!$A:$A,"S4")*ValorUnidad,SUMIFS(BD_Segmentos!G:G,BD_Segmentos!$C:$C,$B28,BD_Segmentos!$A:$A,"S4")*ValorUnidad-SUMIFS(BD_Segmentos!F:F,BD_Segmentos!$C:$C,$B28,BD_Segmentos!$A:$A,"S4")*ValorUnidad) -> -32.07096 | I28: =IF(MONTH(I$7)=3,SUMIFS(BD_Segmentos!H:H,BD_Segmentos!$C:$C,$B28,BD_Segmentos!$A:$A,"S4")*ValorUnidad,SUMIFS(BD_Segmentos!H:H,BD_Segmentos!$C:$C,$B28,BD_Segmentos!$A:$A,"S4")*ValorUnidad-SUMIFS(BD_Segmentos!G:G,BD_Segmentos!$C:$C,$B28,BD_Segmentos!$A:$A,"S4")*ValorUnidad) -> -4.238334 | J28: =IF(MONTH(J$7)=3,SUMIFS(BD_Segmentos!I:I,BD_Segmentos!$C:$C,$B28,BD_Segmentos!$A:$A,"S4")*ValorUnidad,SUMIFS(BD_Segmentos!I:I,BD_Segmentos!$C:$C,$B28,BD_Segmentos!$A:$A,"S4")*ValorUnidad-SUMIFS(BD_Segmentos!H:H,BD_Segmentos!$C:$C,$B28,BD_Segmentos!$A:$A,"S4")*ValorUnidad) -> -3.216422 | K28: =IF(MONTH(K$7)=3,SUMIFS(BD_Segmentos!J:J,BD_Segmentos!$C:$C,$B28,BD_Segmentos!$A:$A,"S4")*ValorUnidad,SUMIFS(BD_Segmentos!J:J,BD_Segmentos!$C:$C,$B28,BD_Segmentos!$A:$A,"S4")*ValorUnidad-SUMIFS(BD_Segmentos!I:I,BD_Segmentos!$C:$C,$B28,BD_Segmentos!$A:$A,"S4")*ValorUnidad) -> -2.732894 | L28: =IF(MONTH(L$7)=3,SUMIFS(BD_Segmentos!K:K,BD_Segmentos!$C:$C,$B28,BD_Segmentos!$A:$A,"S4")*ValorUnidad,SUMIFS(BD_Segmentos!K:K,BD_Segmentos!$C:$C,$B28,BD_Segmentos!$A:$A,"S4")*ValorUnidad-SUMIFS(BD_Segmentos!J:J,BD_Segmentos!$C:$C,$B28,BD_Segmentos!$A:$A,"S4")*ValorUnidad) -> -2.982417 | M28: =IF(MONTH(M$7)=3,SUMIFS(BD_Segmentos!L:L,BD_Segmentos!$C:$C,$B28,BD_Segmentos!$A:$A,"S4")*ValorUnidad,SUMIFS(BD_Segmentos!L:L,BD_Segmentos!$C:$C,$B28,BD_Segmentos!$A:$A,"S4")*ValorUnidad-SUMIFS(BD_Segmentos!K:K,BD_Segmentos!$C:$C,$B28,BD_Segmentos!$A:$A,"S4")*ValorUnidad) -> -2.452307 | N28: =IF(MONTH(N$7)=3,SUMIFS(BD_Segmentos!M:M,BD_Segmentos!$C:$C,$B28,BD_Segmentos!$A:$A,"S4")*ValorUnidad,SUMIFS(BD_Segmentos!M:M,BD_Segmentos!$C:$C,$B28,BD_Segmentos!$A:$A,"S4")*ValorUnidad-SUMIFS(BD_Segmentos!L:L,BD_Segmentos!$C:$C,$B28,BD_Segmentos!$A:$A,"S4")*ValorUnidad) -> -2.509749 | O28: =IF(MONTH(O$7)=3,SUMIFS(BD_Segmentos!N:N,BD_Segmentos!$C:$C,$B28,BD_Segmentos!$A:$A,"S4")*ValorUnidad,SUMIFS(BD_Segmentos!N:N,BD_Segmentos!$C:$C,$B28,BD_Segmentos!$A:$A,"S4")*ValorUnidad-SUMIFS(BD_Segmentos!M:M,BD_Segmentos!$C:$C,$B28,BD_Segmentos!$A:$A,"S4")*ValorUnidad) -> -2.526173 | P28: =IF(MONTH(P$7)=3,SUMIFS(BD_Segmentos!O:O,BD_Segmentos!$C:$C,$B28,BD_Segmentos!$A:$A,"S4")*ValorUnidad,SUMIFS(BD_Segmentos!O:O,BD_Segmentos!$C:$C,$B28,BD_Segmentos!$A:$A,"S4")*ValorUnidad-SUMIFS(BD_Segmentos!N:N,BD_Segmentos!$C:$C,$B28,BD_Segmentos!$A:$A,"S4")*ValorUnidad) -> -2.670848 | Q28: =IF(MONTH(Q$7)=3,SUMIFS(BD_Segmentos!P:P,BD_Segmentos!$C:$C,$B28,BD_Segmentos!$A:$A,"S4")*ValorUnidad,SUMIFS(BD_Segmentos!P:P,BD_Segmentos!$C:$C,$B28,BD_Segmentos!$A:$A,"S4")*ValorUnidad-SUMIFS(BD_Segmentos!O:O,BD_Segmentos!$C:$C,$B28,BD_Segmentos!$A:$A,"S4")*ValorUnidad) -> -2.936356 | R28: =IF(MONTH(R$7)=3,SUMIFS(BD_Segmentos!Q:Q,BD_Segmentos!$C:$C,$B28,BD_Segmentos!$A:$A,"S4")*ValorUnidad,SUMIFS(BD_Segmentos!Q:Q,BD_Segmentos!$C:$C,$B28,BD_Segmentos!$A:$A,"S4")*ValorUnidad-SUMIFS(BD_Segmentos!P:P,BD_Segmentos!$C:$C,$B28,BD_Segmentos!$A:$A,"S4")*ValorUnidad) -> -3.173111 | S28: =IF(MONTH(S$7)=3,SUMIFS(BD_Segmentos!R:R,BD_Segmentos!$C:$C,$B28,BD_Segmentos!$A:$A,"S4")*ValorUnidad,SUMIFS(BD_Segmentos!R:R,BD_Segmentos!$C:$C,$B28,BD_Segmentos!$A:$A,"S4")*ValorUnidad-SUMIFS(BD_Segmentos!Q:Q,BD_Segmentos!$C:$C,$B28,BD_Segmentos!$A:$A,"S4")*ValorUnidad) -> -3.369483 | T28: =IF(MONTH(T$7)=3,SUMIFS(BD_Segmentos!S:S,BD_Segmentos!$C:$C,$B28,BD_Segmentos!$A:$A,"S4")*ValorUnidad,SUMIFS(BD_Segmentos!S:S,BD_Segmentos!$C:$C,$B28,BD_Segmentos!$A:$A,"S4")*ValorUnidad-SUMIFS(BD_Segmentos!R:R,BD_Segmentos!$C:$C,$B28,BD_Segmentos!$A:$A,"S4")*ValorUnidad) -> -1.384919 | U28: =IF(MONTH(U$7)=3,SUMIFS(BD_Segmentos!T:T,BD_Segmentos!$C:$C,$B28,BD_Segmentos!$A:$A,"S4")*ValorUnidad,SUMIFS(BD_Segmentos!T:T,BD_Segmentos!$C:$C,$B28,BD_Segmentos!$A:$A,"S4")*ValorUnidad-SUMIFS(BD_Segmentos!S:S,BD_Segmentos!$C:$C,$B28,BD_Segmentos!$A:$A,"S4")*ValorUnidad) -> -3.543697 | V28: =IF(MONTH(V$7)=3,SUMIFS(BD_Segmentos!U:U,BD_Segmentos!$C:$C,$B28,BD_Segmentos!$A:$A,"S4")*ValorUnidad,SUMIFS(BD_Segmentos!U:U,BD_Segmentos!$C:$C,$B28,BD_Segmentos!$A:$A,"S4")*ValorUnidad-SUMIFS(BD_Segmentos!T:T,BD_Segmentos!$C:$C,$B28,BD_Segmentos!$A:$A,"S4")*ValorUnidad) -> -3.402065
C29: Net Premiums | E29: =+SUM(E27:E28) -> 142.2928577 | F29: =+SUM(F27:F28) -> 166.479556 | G29: 186.8992126 | H29: 186.1535823 | I29: 183.0831422 | J29: 171.2100482 | K29: 170.4419653 | L29: 164.6114817 | M29: 178.2071319 | N29: 119.576535 | O29: 139.6321046 | P29: =+SUM(P27:P28) -> 178.3563503 | Q29: 211.944747 | R29: =+SUM(R27:R28) -> 225.049718 | S29: 254.924605 | T29: =+SUM(T27:T28) -> 348.613578 | U29: 272.311021 | V29: =+SUM(V27:V28) -> 233.9474832
B30: 48.2 | C30: Adjustment of technical reserves | E30: =IF(MONTH(E$7)=3,SUMIFS(BD_Segmentos!D:D,BD_Segmentos!$C:$C,$B30,BD_Segmentos!$A:$A,"S4")*ValorUnidad,SUMIFS(BD_Segmentos!D:D,BD_Segmentos!$C:$C,$B30,BD_Segmentos!$A:$A,"S4")*ValorUnidad-SUMIFS(BD_Segmentos!C:C,BD_Segmentos!$C:$C,$B30,BD_Segmentos!$A:$A,"S4")*ValorUnidad) -> -48.76896795 | F30: =IF(MONTH(F$7)=3,SUMIFS(BD_Segmentos!E:E,BD_Segmentos!$C:$C,$B30,BD_Segmentos!$A:$A,"S4")*ValorUnidad,SUMIFS(BD_Segmentos!E:E,BD_Segmentos!$C:$C,$B30,BD_Segmentos!$A:$A,"S4")*ValorUnidad-SUMIFS(BD_Segmentos!D:D,BD_Segmentos!$C:$C,$B30,BD_Segmentos!$A:$A,"S4")*ValorUnidad) -> -171.7039356 | G30: =IF(MONTH(G$7)=3,SUMIFS(BD_Segmentos!F:F,BD_Segmentos!$C:$C,$B30,BD_Segmentos!$A:$A,"S4")*ValorUnidad,SUMIFS(BD_Segmentos!F:F,BD_Segmentos!$C:$C,$B30,BD_Segmentos!$A:$A,"S4")*ValorUnidad-SUMIFS(BD_Segmentos!E:E,BD_Segmentos!$C:$C,$B30,BD_Segmentos!$A:$A,"S4")*ValorUnidad) -> -75.28683471 | H30: =IF(MONTH(H$7)=3,SUMIFS(BD_Segmentos!G:G,BD_Segmentos!$C:$C,$B30,BD_Segmentos!$A:$A,"S4")*ValorUnidad,SUMIFS(BD_Segmentos!G:G,BD_Segmentos!$C:$C,$B30,BD_Segmentos!$A:$A,"S4")*ValorUnidad-SUMIFS(BD_Segmentos!F:F,BD_Segmentos!$C:$C,$B30,BD_Segmentos!$A:$A,"S4")*ValorUnidad) -> -66.48680618 | I30: =IF(MONTH(I$7)=3,SUMIFS(BD_Segmentos!H:H,BD_Segmentos!$C:$C,$B30,BD_Segmentos!$A:$A,"S4")*ValorUnidad,SUMIFS(BD_Segmentos!H:H,BD_Segmentos!$C:$C,$B30,BD_Segmentos!$A:$A,"S4")*ValorUnidad-SUMIFS(BD_Segmentos!G:G,BD_Segmentos!$C:$C,$B30,BD_Segmentos!$A:$A,"S4")*ValorUnidad) -> -86.58800601 | J30: =IF(MONTH(J$7)=3,SUMIFS(BD_Segmentos!I:I,BD_Segmentos!$C:$C,$B30,BD_Segmentos!$A:$A,"S4")*ValorUnidad,SUMIFS(BD_Segmentos!I:I,BD_Segmentos!$C:$C,$B30,BD_Segmentos!$A:$A,"S4")*ValorUnidad-SUMIFS(BD_Segmentos!H:H,BD_Segmentos!$C:$C,$B30,BD_Segmentos!$A:$A,"S4")*ValorUnidad) -> -72.38589637 | K30: =IF(MONTH(K$7)=3,SUMIFS(BD_Segmentos!J:J,BD_Segmentos!$C:$C,$B30,BD_Segmentos!$A:$A,"S4")*ValorUnidad,SUMIFS(BD_Segmentos!J:J,BD_Segmentos!$C:$C,$B30,BD_Segmentos!$A:$A,"S4")*ValorUnidad-SUMIFS(BD_Segmentos!I:I,BD_Segmentos!$C:$C,$B30,BD_Segmentos!$A:$A,"S4")*ValorUnidad) -> -51.82582213 | L30: =IF(MONTH(L$7)=3,SUMIFS(BD_Segmentos!K:K,BD_Segmentos!$C:$C,$B30,BD_Segmentos!$A:$A,"S4")*ValorUnidad,SUMIFS(BD_Segmentos!K:K,BD_Segmentos!$C:$C,$B30,BD_Segmentos!$A:$A,"S4")*ValorUnidad-SUMIFS(BD_Segmentos!J:J,BD_Segmentos!$C:$C,$B30,BD_Segmentos!$A:$A,"S4")*ValorUnidad) -> -57.91373656 | M30: =IF(MONTH(M$7)=3,SUMIFS(BD_Segmentos!L:L,BD_Segmentos!$C:$C,$B30,BD_Segmentos!$A:$A,"S4")*ValorUnidad,SUMIFS(BD_Segmentos!L:L,BD_Segmentos!$C:$C,$B30,BD_Segmentos!$A:$A,"S4")*ValorUnidad-SUMIFS(BD_Segmentos!K:K,BD_Segmentos!$C:$C,$B30,BD_Segmentos!$A:$A,"S4")*ValorUnidad) -> -52.89108297 | N30: =IF(MONTH(N$7)=3,SUMIFS(BD_Segmentos!M:M,BD_Segmentos!$C:$C,$B30,BD_Segmentos!$A:$A,"S4")*ValorUnidad,SUMIFS(BD_Segmentos!M:M,BD_Segmentos!$C:$C,$B30,BD_Segmentos!$A:$A,"S4")*ValorUnidad-SUMIFS(BD_Segmentos!L:L,BD_Segmentos!$C:$C,$B30,BD_Segmentos!$A:$A,"S4")*ValorUnidad) -> -3.935208194 | O30: =IF(MONTH(O$7)=3,SUMIFS(BD_Segmentos!N:N,BD_Segmentos!$C:$C,$B30,BD_Segmentos!$A:$A,"S4")*ValorUnidad,SUMIFS(BD_Segmentos!N:N,BD_Segmentos!$C:$C,$B30,BD_Segmentos!$A:$A,"S4")*ValorUnidad-SUMIFS(BD_Segmentos!M:M,BD_Segmentos!$C:$C,$B30,BD_Segmentos!$A:$A,"S4")*ValorUnidad) -> 9.524256835 | P30: =IF(MONTH(P$7)=3,SUMIFS(BD_Segmentos!O:O,BD_Segmentos!$C:$C,$B30,BD_Segmentos!$A:$A,"S4")*ValorUnidad,SUMIFS(BD_Segmentos!O:O,BD_Segmentos!$C:$C,$B30,BD_Segmentos!$A:$A,"S4")*ValorUnidad-SUMIFS(BD_Segmentos!N:N,BD_Segmentos!$C:$C,$B30,BD_Segmentos!$A:$A,"S4")*ValorUnidad) -> -53.48881487 | Q30: =IF(MONTH(Q$7)=3,SUMIFS(BD_Segmentos!P:P,BD_Segmentos!$C:$C,$B30,BD_Segmentos!$A:$A,"S4")*ValorUnidad,SUMIFS(BD_Segmentos!P:P,BD_Segmentos!$C:$C,$B30,BD_Segmentos!$A:$A,"S4")*ValorUnidad-SUMIFS(BD_Segmentos!O:O,BD_Segmentos!$C:$C,$B30,BD_Segmentos!$A:$A,"S4")*ValorUnidad) -> -88.935902 | R30: =IF(MONTH(R$7)=3,SUMIFS(BD_Segmentos!Q:Q,BD_Segmentos!$C:$C,$B30,BD_Segmentos!$A:$A,"S4")*ValorUnidad,SUMIFS(BD_Segmentos!Q:Q,BD_Segmentos!$C:$C,$B30,BD_Segmentos!$A:$A,"S4")*ValorUnidad-SUMIFS(BD_Segmentos!P:P,BD_Segmentos!$C:$C,$B30,BD_Segmentos!$A:$A,"S4")*ValorUnidad) -> -46.003337 | S30: =IF(MONTH(S$7)=3,SUMIFS(BD_Segmentos!R:R,BD_Segmentos!$C:$C,$B30,BD_Segmentos!$A:$A,"S4")*ValorUnidad,SUMIFS(BD_Segmentos!R:R,BD_Segmentos!$C:$C,$B30,BD_Segmentos!$A:$A,"S4")*ValorUnidad-SUMIFS(BD_Segmentos!Q:Q,BD_Segmentos!$C:$C,$B30,BD_Segmentos!$A:$A,"S4")*ValorUnidad) -> -108.788339 | T30: =IF(MONTH(T$7)=3,SUMIFS(BD_Segmentos!S:S,BD_Segmentos!$C:$C,$B30,BD_Segmentos!$A:$A,"S4")*ValorUnidad,SUMIFS(BD_Segmentos!S:S,BD_Segmentos!$C:$C,$B30,BD_Segmentos!$A:$A,"S4")*ValorUnidad-SUMIFS(BD_Segmentos!R:R,BD_Segmentos!$C:$C,$B30,BD_Segmentos!$A:$A,"S4")*ValorUnidad) -> -151.537713 | U30: =IF(MONTH(U$7)=3,SUMIFS(BD_Segmentos!T:T,BD_Segmentos!$C:$C,$B30,BD_Segmentos!$A:$A,"S4")*ValorUnidad,SUMIFS(BD_Segmentos!T:T,BD_Segmentos!$C:$C,$B30,BD_Segmentos!$A:$A,"S4")*ValorUnidad-SUMIFS(BD_Segmentos!S:S,BD_Segmentos!$C:$C,$B30,BD_Segmentos!$A:$A,"S4")*ValorUnidad) -> -94.886763 | V30: =IF(MONTH(V$7)=3,SUMIFS(BD_Segmentos!U:U,BD_Segmentos!$C:$C,$B30,BD_Segmentos!$A:$A,"S4")*ValorUnidad,SUMIFS(BD_Segmentos!U:U,BD_Segmentos!$C:$C,$B30,BD_Segmentos!$A:$A,"S4")*ValorUnidad-SUMIFS(BD_Segmentos!T:T,BD_Segmentos!$C:$C,$B30,BD_Segmentos!$A:$A,"S4")*ValorUnidad) -> -75.287608
B31: 49 | C31: Net claims and benefits incurred | E31: =IF(MONTH(E$7)=3,SUMIFS(BD_Segmentos!D:D,BD_Segmentos!$C:$C,$B31,BD_Segmentos!$A:$A,"S4")*ValorUnidad,SUMIFS(BD_Segmentos!D:D,BD_Segmentos!$C:$C,$B31,BD_Segmentos!$A:$A,"S4")*ValorUnidad-SUMIFS(BD_Segmentos!C:C,BD_Segmentos!$C:$C,$B31,BD_Segmentos!$A:$A,"S4")*ValorUnidad) -> -172.2866579 | F31: =IF(MONTH(F$7)=3,SUMIFS(BD_Segmentos!E:E,BD_Segmentos!$C:$C,$B31,BD_Segmentos!$A:$A,"S4")*ValorUnidad,SUMIFS(BD_Segmentos!E:E,BD_Segmentos!$C:$C,$B31,BD_Segmentos!$A:$A,"S4")*ValorUnidad-SUMIFS(BD_Segmentos!D:D,BD_Segmentos!$C:$C,$B31,BD_Segmentos!$A:$A,"S4")*ValorUnidad) -> -179.2794321 | G31: =IF(MONTH(G$7)=3,SUMIFS(BD_Segmentos!F:F,BD_Segmentos!$C:$C,$B31,BD_Segmentos!$A:$A,"S4")*ValorUnidad,SUMIFS(BD_Segmentos!F:F,BD_Segmentos!$C:$C,$B31,BD_Segmentos!$A:$A,"S4")*ValorUnidad-SUMIFS(BD_Segmentos!E:E,BD_Segmentos!$C:$C,$B31,BD_Segmentos!$A:$A,"S4")*ValorUnidad) -> -184.1466058 | H31: =IF(MONTH(H$7)=3,SUMIFS(BD_Segmentos!G:G,BD_Segmentos!$C:$C,$B31,BD_Segmentos!$A:$A,"S4")*ValorUnidad,SUMIFS(BD_Segmentos!G:G,BD_Segmentos!$C:$C,$B31,BD_Segmentos!$A:$A,"S4")*ValorUnidad-SUMIFS(BD_Segmentos!F:F,BD_Segmentos!$C:$C,$B31,BD_Segmentos!$A:$A,"S4")*ValorUnidad) -> -184.6235378 | I31: =IF(MONTH(I$7)=3,SUMIFS(BD_Segmentos!H:H,BD_Segmentos!$C:$C,$B31,BD_Segmentos!$A:$A,"S4")*ValorUnidad,SUMIFS(BD_Segmentos!H:H,BD_Segmentos!$C:$C,$B31,BD_Segmentos!$A:$A,"S4")*ValorUnidad-SUMIFS(BD_Segmentos!G:G,BD_Segmentos!$C:$C,$B31,BD_Segmentos!$A:$A,"S4")*ValorUnidad) -> -166.7296229 | J31: =IF(MONTH(J$7)=3,SUMIFS(BD_Segmentos!I:I,BD_Segmentos!$C:$C,$B31,BD_Segmentos!$A:$A,"S4")*ValorUnidad,SUMIFS(BD_Segmentos!I:I,BD_Segmentos!$C:$C,$B31,BD_Segmentos!$A:$A,"S4")*ValorUnidad-SUMIFS(BD_Segmentos!H:H,BD_Segmentos!$C:$C,$B31,BD_Segmentos!$A:$A,"S4")*ValorUnidad) -> -174.4480978 | K31: =IF(MONTH(K$7)=3,SUMIFS(BD_Segmentos!J:J,BD_Segmentos!$C:$C,$B31,BD_Segmentos!$A:$A,"S4")*ValorUnidad,SUMIFS(BD_Segmentos!J:J,BD_Segmentos!$C:$C,$B31,BD_Segmentos!$A:$A,"S4")*ValorUnidad-SUMIFS(BD_Segmentos!I:I,BD_Segmentos!$C:$C,$B31,BD_Segmentos!$A:$A,"S4")*ValorUnidad) -> -177.9440597 | L31: =IF(MONTH(L$7)=3,SUMIFS(BD_Segmentos!K:K,BD_Segmentos!$C:$C,$B31,BD_Segmentos!$A:$A,"S4")*ValorUnidad,SUMIFS(BD_Segmentos!K:K,BD_Segmentos!$C:$C,$B31,BD_Segmentos!$A:$A,"S4")*ValorUnidad-SUMIFS(BD_Segmentos!J:J,BD_Segmentos!$C:$C,$B31,BD_Segmentos!$A:$A,"S4")*ValorUnidad) -> -181.1429111 | M31: =IF(MONTH(M$7)=3,SUMIFS(BD_Segmentos!L:L,BD_Segmentos!$C:$C,$B31,BD_Segmentos!$A:$A,"S4")*ValorUnidad,SUMIFS(BD_Segmentos!L:L,BD_Segmentos!$C:$C,$B31,BD_Segmentos!$A:$A,"S4")*ValorUnidad-SUMIFS(BD_Segmentos!K:K,BD_Segmentos!$C:$C,$B31,BD_Segmentos!$A:$A,"S4")*ValorUnidad) -> -186.1058669 | N31: =IF(MONTH(N$7)=3,SUMIFS(BD_Segmentos!M:M,BD_Segmentos!$C:$C,$B31,BD_Segmentos!$A:$A,"S4")*ValorUnidad,SUMIFS(BD_Segmentos!M:M,BD_Segmentos!$C:$C,$B31,BD_Segmentos!$A:$A,"S4")*ValorUnidad-SUMIFS(BD_Segmentos!L:L,BD_Segmentos!$C:$C,$B31,BD_Segmentos!$A:$A,"S4")*ValorUnidad) -> -180.9874636 | O31: =IF(MONTH(O$7)=3,SUMIFS(BD_Segmentos!N:N,BD_Segmentos!$C:$C,$B31,BD_Segmentos!$A:$A,"S4")*ValorUnidad,SUMIFS(BD_Segmentos!N:N,BD_Segmentos!$C:$C,$B31,BD_Segmentos!$A:$A,"S4")*ValorUnidad-SUMIFS(BD_Segmentos!M:M,BD_Segmentos!$C:$C,$B31,BD_Segmentos!$A:$A,"S4")*ValorUnidad) -> -212.4272585 | P31: =IF(MONTH(P$7)=3,SUMIFS(BD_Segmentos!O:O,BD_Segmentos!$C:$C,$B31,BD_Segmentos!$A:$A,"S4")*ValorUnidad,SUMIFS(BD_Segmentos!O:O,BD_Segmentos!$C:$C,$B31,BD_Segmentos!$A:$A,"S4")*ValorUnidad-SUMIFS(BD_Segmentos!N:N,BD_Segmentos!$C:$C,$B31,BD_Segmentos!$A:$A,"S4")*ValorUnidad) -> -214.5300715 | Q31: =IF(MONTH(Q$7)=3,SUMIFS(BD_Segmentos!P:P,BD_Segmentos!$C:$C,$B31,BD_Segmentos!$A:$A,"S4")*ValorUnidad,SUMIFS(BD_Segmentos!P:P,BD_Segmentos!$C:$C,$B31,BD_Segmentos!$A:$A,"S4")*ValorUnidad-SUMIFS(BD_Segmentos!O:O,BD_Segmentos!$C:$C,$B31,BD_Segmentos!$A:$A,"S4")*ValorUnidad) -> -240.941501 | R31: =IF(MONTH(R$7)=3,SUMIFS(BD_Segmentos!Q:Q,BD_Segmentos!$C:$C,$B31,BD_Segmentos!$A:$A,"S4")*ValorUnidad,SUMIFS(BD_Segmentos!Q:Q,BD_Segmentos!$C:$C,$B31,BD_Segmentos!$A:$A,"S4")*ValorUnidad-SUMIFS(BD_Segmentos!P:P,BD_Segmentos!$C:$C,$B31,BD_Segmentos!$A:$A,"S4")*ValorUnidad) -> -224.984081 | S31: =IF(MONTH(S$7)=3,SUMIFS(BD_Segmentos!R:R,BD_Segmentos!$C:$C,$B31,BD_Segmentos!$A:$A,"S4")*ValorUnidad,SUMIFS(BD_Segmentos!R:R,BD_Segmentos!$C:$C,$B31,BD_Segmentos!$A:$A,"S4")*ValorUnidad-SUMIFS(BD_Segmentos!Q:Q,BD_Segmentos!$C:$C,$B31,BD_Segmentos!$A:$A,"S4")*ValorUnidad) -> -233.850234 | T31: =IF(MONTH(T$7)=3,SUMIFS(BD_Segmentos!S:S,BD_Segmentos!$C:$C,$B31,BD_Segmentos!$A:$A,"S4")*ValorUnidad,SUMIFS(BD_Segmentos!S:S,BD_Segmentos!$C:$C,$B31,BD_Segmentos!$A:$A,"S4")*ValorUnidad-SUMIFS(BD_Segmentos!R:R,BD_Segmentos!$C:$C,$B31,BD_Segmentos!$A:$A,"S4")*ValorUnidad) -> -217.569754 | U31: =IF(MONTH(U$7)=3,SUMIFS(BD_Segmentos!T:T,BD_Segmentos!$C:$C,$B31,BD_Segmentos!$A:$A,"S4")*ValorUnidad,SUMIFS(BD_Segmentos!T:T,BD_Segmentos!$C:$C,$B31,BD_Segmentos!$A:$A,"S4")*ValorUnidad-SUMIFS(BD_Segmentos!S:S,BD_Segmentos!$C:$C,$B31,BD_Segmentos!$A:$A,"S4")*ValorUnidad) -> -198.14905 | V31: =IF(MONTH(V$7)=3,SUMIFS(BD_Segmentos!U:U,BD_Segmentos!$C:$C,$B31,BD_Segmentos!$A:$A,"S4")*ValorUnidad,SUMIFS(BD_Segmentos!U:U,BD_Segmentos!$C:$C,$B31,BD_Segmentos!$A:$A,"S4")*ValorUnidad-SUMIFS(BD_Segmentos!T:T,BD_Segmentos!$C:$C,$B31,BD_Segmentos!$A:$A,"S4")*ValorUnidad) -> -219.424788
B32: ST16 | C32: Other expenses | E32: =IF(MONTH(E$7)=3,SUMIFS(BD_Segmentos!D:D,BD_Segmentos!$C:$C,$B32,BD_Segmentos!$A:$A,"S4")*ValorUnidad,SUMIFS(BD_Segmentos!D:D,BD_Segmentos!$C:$C,$B32,BD_Segmentos!$A:$A,"S4")*ValorUnidad-SUMIFS(BD_Segmentos!C:C,BD_Segmentos!$C:$C,$B32,BD_Segmentos!$A:$A,"S4")*ValorUnidad) -> -443.865023 | F32: =IF(MONTH(F$7)=3,SUMIFS(BD_Segmentos!E:E,BD_Segmentos!$C:$C,$B32,BD_Segmentos!$A:$A,"S4")*ValorUnidad,SUMIFS(BD_Segmentos!E:E,BD_Segmentos!$C:$C,$B32,BD_Segmentos!$A:$A,"S4")*ValorUnidad-SUMIFS(BD_Segmentos!D:D,BD_Segmentos!$C:$C,$B32,BD_Segmentos!$A:$A,"S4")*ValorUnidad) -> -450.6740063 | G32: =IF(MONTH(G$7)=3,SUMIFS(BD_Segmentos!F:F,BD_Segmentos!$C:$C,$B32,BD_Segmentos!$A:$A,"S4")*ValorUnidad,SUMIFS(BD_Segmentos!F:F,BD_Segmentos!$C:$C,$B32,BD_Segmentos!$A:$A,"S4")*ValorUnidad-SUMIFS(BD_Segmentos!E:E,BD_Segmentos!$C:$C,$B32,BD_Segmentos!$A:$A,"S4")*ValorUnidad) -> -457.5086579 | H32: =IF(MONTH(H$7)=3,SUMIFS(BD_Segmentos!G:G,BD_Segmentos!$C:$C,$B32,BD_Segmentos!$A:$A,"S4")*ValorUnidad,SUMIFS(BD_Segmentos!G:G,BD_Segmentos!$C:$C,$B32,BD_Segmentos!$A:$A,"S4")*ValorUnidad-SUMIFS(BD_Segmentos!F:F,BD_Segmentos!$C:$C,$B32,BD_Segmentos!$A:$A,"S4")*ValorUnidad) -> -485.4321313 | I32: =IF(MONTH(I$7)=3,SUMIFS(BD_Segmentos!H:H,BD_Segmentos!$C:$C,$B32,BD_Segmentos!$A:$A,"S4")*ValorUnidad,SUMIFS(BD_Segmentos!H:H,BD_Segmentos!$C:$C,$B32,BD_Segmentos!$A:$A,"S4")*ValorUnidad-SUMIFS(BD_Segmentos!G:G,BD_Segmentos!$C:$C,$B32,BD_Segmentos!$A:$A,"S4")*ValorUnidad) -> -481.7153014 | J32: =IF(MONTH(J$7)=3,SUMIFS(BD_Segmentos!I:I,BD_Segmentos!$C:$C,$B32,BD_Segmentos!$A:$A,"S4")*ValorUnidad,SUMIFS(BD_Segmentos!I:I,BD_Segmentos!$C:$C,$B32,BD_Segmentos!$A:$A,"S4")*ValorUnidad-SUMIFS(BD_Segmentos!H:H,BD_Segmentos!$C:$C,$B32,BD_Segmentos!$A:$A,"S4")*ValorUnidad) -> -484.7016355 | K32: =IF(MONTH(K$7)=3,SUMIFS(BD_Segmentos!J:J,BD_Segmentos!$C:$C,$B32,BD_Segmentos!$A:$A,"S4")*ValorUnidad,SUMIFS(BD_Segmentos!J:J,BD_Segmentos!$C:$C,$B32,BD_Segmentos!$A:$A,"S4")*ValorUnidad-SUMIFS(BD_Segmentos!I:I,BD_Segmentos!$C:$C,$B32,BD_Segmentos!$A:$A,"S4")*ValorUnidad) -> -497.9657715 | L32: =IF(MONTH(L$7)=3,SUMIFS(BD_Segmentos!K:K,BD_Segmentos!$C:$C,$B32,BD_Segmentos!$A:$A,"S4")*ValorUnidad,SUMIFS(BD_Segmentos!K:K,BD_Segmentos!$C:$C,$B32,BD_Segmentos!$A:$A,"S4")*ValorUnidad-SUMIFS(BD_Segmentos!J:J,BD_Segmentos!$C:$C,$B32,BD_Segmentos!$A:$A,"S4")*ValorUnidad) -> -513.9314205 | M32: =IF(MONTH(M$7)=3,SUMIFS(BD_Segmentos!L:L,BD_Segmentos!$C:$C,$B32,BD_Segmentos!$A:$A,"S4")*ValorUnidad,SUMIFS(BD_Segmentos!L:L,BD_Segmentos!$C:$C,$B32,BD_Segmentos!$A:$A,"S4")*ValorUnidad-SUMIFS(BD_Segmentos!K:K,BD_Segmentos!$C:$C,$B32,BD_Segmentos!$A:$A,"S4")*ValorUnidad) -> -511.2036973 | N32: =IF(MONTH(N$7)=3,SUMIFS(BD_Segmentos!M:M,BD_Segmentos!$C:$C,$B32,BD_Segmentos!$A:$A,"S4")*ValorUnidad,SUMIFS(BD_Segmentos!M:M,BD_Segmentos!$C:$C,$B32,BD_Segmentos!$A:$A,"S4")*ValorUnidad-SUMIFS(BD_Segmentos!L:L,BD_Segmentos!$C:$C,$B32,BD_Segmentos!$A:$A,"S4")*ValorUnidad) -> -415.9096443 | O32: =IF(MONTH(O$7)=3,SUMIFS(BD_Segmentos!N:N,BD_Segmentos!$C:$C,$B32,BD_Segmentos!$A:$A,"S4")*ValorUnidad,SUMIFS(BD_Segmentos!N:N,BD_Segmentos!$C:$C,$B32,BD_Segmentos!$A:$A,"S4")*ValorUnidad-SUMIFS(BD_Segmentos!M:M,BD_Segmentos!$C:$C,$B32,BD_Segmentos!$A:$A,"S4")*ValorUnidad) -> -446.7329136 | P32: =IF(MONTH(P$7)=3,SUMIFS(BD_Segmentos!O:O,BD_Segmentos!$C:$C,$B32,BD_Segmentos!$A:$A,"S4")*ValorUnidad,SUMIFS(BD_Segmentos!O:O,BD_Segmentos!$C:$C,$B32,BD_Segmentos!$A:$A,"S4")*ValorUnidad-SUMIFS(BD_Segmentos!N:N,BD_Segmentos!$C:$C,$B32,BD_Segmentos!$A:$A,"S4")*ValorUnidad) -> -536.8160224 | Q32: =IF(MONTH(Q$7)=3,SUMIFS(BD_Segmentos!P:P,BD_Segmentos!$C:$C,$B32,BD_Segmentos!$A:$A,"S4")*ValorUnidad,SUMIFS(BD_Segmentos!P:P,BD_Segmentos!$C:$C,$B32,BD_Segmentos!$A:$A,"S4")*ValorUnidad-SUMIFS(BD_Segmentos!O:O,BD_Segmentos!$C:$C,$B32,BD_Segmentos!$A:$A,"S4")*ValorUnidad) -> -512.0409174 | R32: =IF(MONTH(R$7)=3,SUMIFS(BD_Segmentos!Q:Q,BD_Segmentos!$C:$C,$B32,BD_Segmentos!$A:$A,"S4")*ValorUnidad,SUMIFS(BD_Segmentos!Q:Q,BD_Segmentos!$C:$C,$B32,BD_Segmentos!$A:$A,"S4")*ValorUnidad-SUMIFS(BD_Segmentos!P:P,BD_Segmentos!$C:$C,$B32,BD_Segmentos!$A:$A,"S4")*ValorUnidad) -> -525.7883746 | S32: =IF(MONTH(S$7)=3,SUMIFS(BD_Segmentos!R:R,BD_Segmentos!$C:$C,$B32,BD_Segmentos!$A:$A,"S4")*ValorUnidad,SUMIFS(BD_Segmentos!R:R,BD_Segmentos!$C:$C,$B32,BD_Segmentos!$A:$A,"S4")*ValorUnidad-SUMIFS(BD_Segmentos!Q:Q,BD_Segmentos!$C:$C,$B32,BD_Segmentos!$A:$A,"S4")*ValorUnidad) -> -585.5573265 | T32: =IF(MONTH(T$7)=3,SUMIFS(BD_Segmentos!S:S,BD_Segmentos!$C:$C,$B32,BD_Segmentos!$A:$A,"S4")*ValorUnidad,SUMIFS(BD_Segmentos!S:S,BD_Segmentos!$C:$C,$B32,BD_Segmentos!$A:$A,"S4")*ValorUnidad-SUMIFS(BD_Segmentos!R:R,BD_Segmentos!$C:$C,$B32,BD_Segmentos!$A:$A,"S4")*ValorUnidad) -> -639.3811795 | U32: =IF(MONTH(U$7)=3,SUMIFS(BD_Segmentos!T:T,BD_Segmentos!$C:$C,$B32,BD_Segmentos!$A:$A,"S4")*ValorUnidad,SUMIFS(BD_Segmentos!T:T,BD_Segmentos!$C:$C,$B32,BD_Segmentos!$A:$A,"S4")*ValorUnidad-SUMIFS(BD_Segmentos!S:S,BD_Segmentos!$C:$C,$B32,BD_Segmentos!$A:$A,"S4")*ValorUnidad) -> -581.207534 | V32: =IF(MONTH(V$7)=3,SUMIFS(BD_Segmentos!U:U,BD_Segmentos!$C:$C,$B32,BD_Segmentos!$A:$A,"S4")*ValorUnidad,SUMIFS(BD_Segmentos!U:U,BD_Segmentos!$C:$C,$B32,BD_Segmentos!$A:$A,"S4")*ValorUnidad-SUMIFS(BD_Segmentos!T:T,BD_Segmentos!$C:$C,$B32,BD_Segmentos!$A:$A,"S4")*ValorUnidad) -> -661.4876174
B33: ST17 | C33: Income before translation result and income tax | E33: =IF(MONTH(E$7)=3,SUMIFS(BD_Segmentos!D:D,BD_Segmentos!$C:$C,$B33,BD_Segmentos!$A:$A,"S4")*ValorUnidad,SUMIFS(BD_Segmentos!D:D,BD_Segmentos!$C:$C,$B33,BD_Segmentos!$A:$A,"S4")*ValorUnidad-SUMIFS(BD_Segmentos!C:C,BD_Segmentos!$C:$C,$B33,BD_Segmentos!$A:$A,"S4")*ValorUnidad) -> 389.5140668 | F33: =IF(MONTH(F$7)=3,SUMIFS(BD_Segmentos!E:E,BD_Segmentos!$C:$C,$B33,BD_Segmentos!$A:$A,"S4")*ValorUnidad,SUMIFS(BD_Segmentos!E:E,BD_Segmentos!$C:$C,$B33,BD_Segmentos!$A:$A,"S4")*ValorUnidad-SUMIFS(BD_Segmentos!D:D,BD_Segmentos!$C:$C,$B33,BD_Segmentos!$A:$A,"S4")*ValorUnidad) -> 331.3956081 | G33: =IF(MONTH(G$7)=3,SUMIFS(BD_Segmentos!F:F,BD_Segmentos!$C:$C,$B33,BD_Segmentos!$A:$A,"S4")*ValorUnidad,SUMIFS(BD_Segmentos!F:F,BD_Segmentos!$C:$C,$B33,BD_Segmentos!$A:$A,"S4")*ValorUnidad-SUMIFS(BD_Segmentos!E:E,BD_Segmentos!$C:$C,$B33,BD_Segmentos!$A:$A,"S4")*ValorUnidad) -> 422.31957 | H33: =IF(MONTH(H$7)=3,SUMIFS(BD_Segmentos!G:G,BD_Segmentos!$C:$C,$B33,BD_Segmentos!$A:$A,"S4")*ValorUnidad,SUMIFS(BD_Segmentos!G:G,BD_Segmentos!$C:$C,$B33,BD_Segmentos!$A:$A,"S4")*ValorUnidad-SUMIFS(BD_Segmentos!F:F,BD_Segmentos!$C:$C,$B33,BD_Segmentos!$A:$A,"S4")*ValorUnidad) -> 398.6712002 | I33: =IF(MONTH(I$7)=3,SUMIFS(BD_Segmentos!H:H,BD_Segmentos!$C:$C,$B33,BD_Segmentos!$A:$A,"S4")*ValorUnidad,SUMIFS(BD_Segmentos!H:H,BD_Segmentos!$C:$C,$B33,BD_Segmentos!$A:$A,"S4")*ValorUnidad-SUMIFS(BD_Segmentos!G:G,BD_Segmentos!$C:$C,$B33,BD_Segmentos!$A:$A,"S4")*ValorUnidad) -> 452.5248451 | J33: =IF(MONTH(J$7)=3,SUMIFS(BD_Segmentos!I:I,BD_Segmentos!$C:$C,$B33,BD_Segmentos!$A:$A,"S4")*ValorUnidad,SUMIFS(BD_Segmentos!I:I,BD_Segmentos!$C:$C,$B33,BD_Segmentos!$A:$A,"S4")*ValorUnidad-SUMIFS(BD_Segmentos!H:H,BD_Segmentos!$C:$C,$B33,BD_Segmentos!$A:$A,"S4")*ValorUnidad) -> 455.1656257 | K33: =IF(MONTH(K$7)=3,SUMIFS(BD_Segmentos!J:J,BD_Segmentos!$C:$C,$B33,BD_Segmentos!$A:$A,"S4")*ValorUnidad,SUMIFS(BD_Segmentos!J:J,BD_Segmentos!$C:$C,$B33,BD_Segmentos!$A:$A,"S4")*ValorUnidad-SUMIFS(BD_Segmentos!I:I,BD_Segmentos!$C:$C,$B33,BD_Segmentos!$A:$A,"S4")*ValorUnidad) -> 470.3896733 | L33: =IF(MONTH(L$7)=3,SUMIFS(BD_Segmentos!K:K,BD_Segmentos!$C:$C,$B33,BD_Segmentos!$A:$A,"S4")*ValorUnidad,SUMIFS(BD_Segmentos!K:K,BD_Segmentos!$C:$C,$B33,BD_Segmentos!$A:$A,"S4")*ValorUnidad-SUMIFS(BD_Segmentos!J:J,BD_Segmentos!$C:$C,$B33,BD_Segmentos!$A:$A,"S4")*ValorUnidad) -> 547.5904754 | M33: =IF(MONTH(M$7)=3,SUMIFS(BD_Segmentos!L:L,BD_Segmentos!$C:$C,$B33,BD_Segmentos!$A:$A,"S4")*ValorUnidad,SUMIFS(BD_Segmentos!L:L,BD_Segmentos!$C:$C,$B33,BD_Segmentos!$A:$A,"S4")*ValorUnidad-SUMIFS(BD_Segmentos!K:K,BD_Segmentos!$C:$C,$B33,BD_Segmentos!$A:$A,"S4")*ValorUnidad) -> 244.6026901 | N33: =IF(MONTH(N$7)=3,SUMIFS(BD_Segmentos!M:M,BD_Segmentos!$C:$C,$B33,BD_Segmentos!$A:$A,"S4")*ValorUnidad,SUMIFS(BD_Segmentos!M:M,BD_Segmentos!$C:$C,$B33,BD_Segmentos!$A:$A,"S4")*ValorUnidad-SUMIFS(BD_Segmentos!L:L,BD_Segmentos!$C:$C,$B33,BD_Segmentos!$A:$A,"S4")*ValorUnidad) -> -718.5211575 | O33: =IF(MONTH(O$7)=3,SUMIFS(BD_Segmentos!N:N,BD_Segmentos!$C:$C,$B33,BD_Segmentos!$A:$A,"S4")*ValorUnidad,SUMIFS(BD_Segmentos!N:N,BD_Segmentos!$C:$C,$B33,BD_Segmentos!$A:$A,"S4")*ValorUnidad-SUMIFS(BD_Segmentos!M:M,BD_Segmentos!$C:$C,$B33,BD_Segmentos!$A:$A,"S4")*ValorUnidad) -> 373.0701791 | P33: =IF(MONTH(P$7)=3,SUMIFS(BD_Segmentos!O:O,BD_Segmentos!$C:$C,$B33,BD_Segmentos!$A:$A,"S4")*ValorUnidad,SUMIFS(BD_Segmentos!O:O,BD_Segmentos!$C:$C,$B33,BD_Segmentos!$A:$A,"S4")*ValorUnidad-SUMIFS(BD_Segmentos!N:N,BD_Segmentos!$C:$C,$B33,BD_Segmentos!$A:$A,"S4")*ValorUnidad) -> 457.1872177 | Q33: =IF(MONTH(Q$7)=3,SUMIFS(BD_Segmentos!P:P,BD_Segmentos!$C:$C,$B33,BD_Segmentos!$A:$A,"S4")*ValorUnidad,SUMIFS(BD_Segmentos!P:P,BD_Segmentos!$C:$C,$B33,BD_Segmentos!$A:$A,"S4")*ValorUnidad-SUMIFS(BD_Segmentos!O:O,BD_Segmentos!$C:$C,$B33,BD_Segmentos!$A:$A,"S4")*ValorUnidad) -> 651.04097 | R33: =IF(MONTH(R$7)=3,SUMIFS(BD_Segmentos!Q:Q,BD_Segmentos!$C:$C,$B33,BD_Segmentos!$A:$A,"S4")*ValorUnidad,SUMIFS(BD_Segmentos!Q:Q,BD_Segmentos!$C:$C,$B33,BD_Segmentos!$A:$A,"S4")*ValorUnidad-SUMIFS(BD_Segmentos!P:P,BD_Segmentos!$C:$C,$B33,BD_Segmentos!$A:$A,"S4")*ValorUnidad) -> 578.8834121 | S33: =IF(MONTH(S$7)=3,SUMIFS(BD_Segmentos!R:R,BD_Segmentos!$C:$C,$B33,BD_Segmentos!$A:$A,"S4")*ValorUnidad,SUMIFS(BD_Segmentos!R:R,BD_Segmentos!$C:$C,$B33,BD_Segmentos!$A:$A,"S4")*ValorUnidad-SUMIFS(BD_Segmentos!Q:Q,BD_Segmentos!$C:$C,$B33,BD_Segmentos!$A:$A,"S4")*ValorUnidad) -> 682.2659071 | T33: =IF(MONTH(T$7)=3,SUMIFS(BD_Segmentos!S:S,BD_Segmentos!$C:$C,$B33,BD_Segmentos!$A:$A,"S4")*ValorUnidad,SUMIFS(BD_Segmentos!S:S,BD_Segmentos!$C:$C,$B33,BD_Segmentos!$A:$A,"S4")*ValorUnidad-SUMIFS(BD_Segmentos!R:R,BD_Segmentos!$C:$C,$B33,BD_Segmentos!$A:$A,"S4")*ValorUnidad) -> 479.420973 | U33: =IF(MONTH(U$7)=3,SUMIFS(BD_Segmentos!T:T,BD_Segmentos!$C:$C,$B33,BD_Segmentos!$A:$A,"S4")*ValorUnidad,SUMIFS(BD_Segmentos!T:T,BD_Segmentos!$C:$C,$B33,BD_Segmentos!$A:$A,"S4")*ValorUnidad-SUMIFS(BD_Segmentos!S:S,BD_Segmentos!$C:$C,$B33,BD_Segmentos!$A:$A,"S4")*ValorUnidad) -> 503.4027073 | V33: =IF(MONTH(V$7)=3,SUMIFS(BD_Segmentos!U:U,BD_Segmentos!$C:$C,$B33,BD_Segmentos!$A:$A,"S4")*ValorUnidad,SUMIFS(BD_Segmentos!U:U,BD_Segmentos!$C:$C,$B33,BD_Segmentos!$A:$A,"S4")*ValorUnidad-SUMIFS(BD_Segmentos!T:T,BD_Segmentos!$C:$C,$B33,BD_Segmentos!$A:$A,"S4")*ValorUnidad) -> 396.4136412
B34: 56 | C34: Translation result | E34: =IF(MONTH(E$7)=3,SUMIFS(BD_Segmentos!D:D,BD_Segmentos!$C:$C,$B34,BD_Segmentos!$A:$A,"S4")*ValorUnidad,SUMIFS(BD_Segmentos!D:D,BD_Segmentos!$C:$C,$B34,BD_Segmentos!$A:$A,"S4")*ValorUnidad-SUMIFS(BD_Segmentos!C:C,BD_Segmentos!$C:$C,$B34,BD_Segmentos!$A:$A,"S4")*ValorUnidad) -> 5.986552647 | F34: =IF(MONTH(F$7)=3,SUMIFS(BD_Segmentos!E:E,BD_Segmentos!$C:$C,$B34,BD_Segmentos!$A:$A,"S4")*ValorUnidad,SUMIFS(BD_Segmentos!E:E,BD_Segmentos!$C:$C,$B34,BD_Segmentos!$A:$A,"S4")*ValorUnidad-SUMIFS(BD_Segmentos!D:D,BD_Segmentos!$C:$C,$B34,BD_Segmentos!$A:$A,"S4")*ValorUnidad) -> -13.90598259 | G34: =IF(MONTH(G$7)=3,SUMIFS(BD_Segmentos!F:F,BD_Segmentos!$C:$C,$B34,BD_Segmentos!$A:$A,"S4")*ValorUnidad,SUMIFS(BD_Segmentos!F:F,BD_Segmentos!$C:$C,$B34,BD_Segmentos!$A:$A,"S4")*ValorUnidad-SUMIFS(BD_Segmentos!E:E,BD_Segmentos!$C:$C,$B34,BD_Segmentos!$A:$A,"S4")*ValorUnidad) -> -10.32304372 | H34: =IF(MONTH(H$7)=3,SUMIFS(BD_Segmentos!G:G,BD_Segmentos!$C:$C,$B34,BD_Segmentos!$A:$A,"S4")*ValorUnidad,SUMIFS(BD_Segmentos!G:G,BD_Segmentos!$C:$C,$B34,BD_Segmentos!$A:$A,"S4")*ValorUnidad-SUMIFS(BD_Segmentos!F:F,BD_Segmentos!$C:$C,$B34,BD_Segmentos!$A:$A,"S4")*ValorUnidad) -> -16.74826663 | I34: =IF(MONTH(I$7)=3,SUMIFS(BD_Segmentos!H:H,BD_Segmentos!$C:$C,$B34,BD_Segmentos!$A:$A,"S4")*ValorUnidad,SUMIFS(BD_Segmentos!H:H,BD_Segmentos!$C:$C,$B34,BD_Segmentos!$A:$A,"S4")*ValorUnidad-SUMIFS(BD_Segmentos!G:G,BD_Segmentos!$C:$C,$B34,BD_Segmentos!$A:$A,"S4")*ValorUnidad) -> 10.09059975 | J34: =IF(MONTH(J$7)=3,SUMIFS(BD_Segmentos!I:I,BD_Segmentos!$C:$C,$B34,BD_Segmentos!$A:$A,"S4")*ValorUnidad,SUMIFS(BD_Segmentos!I:I,BD_Segmentos!$C:$C,$B34,BD_Segmentos!$A:$A,"S4")*ValorUnidad-SUMIFS(BD_Segmentos!H:H,BD_Segmentos!$C:$C,$B34,BD_Segmentos!$A:$A,"S4")*ValorUnidad) -> 11.91453294 | K34: =IF(MONTH(K$7)=3,SUMIFS(BD_Segmentos!J:J,BD_Segmentos!$C:$C,$B34,BD_Segmentos!$A:$A,"S4")*ValorUnidad,SUMIFS(BD_Segmentos!J:J,BD_Segmentos!$C:$C,$B34,BD_Segmentos!$A:$A,"S4")*ValorUnidad-SUMIFS(BD_Segmentos!I:I,BD_Segmentos!$C:$C,$B34,BD_Segmentos!$A:$A,"S4")*ValorUnidad) -> -16.76111383 | L34: =IF(MONTH(L$7)=3,SUMIFS(BD_Segmentos!K:K,BD_Segmentos!$C:$C,$B34,BD_Segmentos!$A:$A,"S4")*ValorUnidad,SUMIFS(BD_Segmentos!K:K,BD_Segmentos!$C:$C,$B34,BD_Segmentos!$A:$A,"S4")*ValorUnidad-SUMIFS(BD_Segmentos!J:J,BD_Segmentos!$C:$C,$B34,BD_Segmentos!$A:$A,"S4")*ValorUnidad) -> 12.52639875 | M34: =IF(MONTH(M$7)=3,SUMIFS(BD_Segmentos!L:L,BD_Segmentos!$C:$C,$B34,BD_Segmentos!$A:$A,"S4")*ValorUnidad,SUMIFS(BD_Segmentos!L:L,BD_Segmentos!$C:$C,$B34,BD_Segmentos!$A:$A,"S4")*ValorUnidad-SUMIFS(BD_Segmentos!K:K,BD_Segmentos!$C:$C,$B34,BD_Segmentos!$A:$A,"S4")*ValorUnidad) -> -23.85649383 | N34: =IF(MONTH(N$7)=3,SUMIFS(BD_Segmentos!M:M,BD_Segmentos!$C:$C,$B34,BD_Segmentos!$A:$A,"S4")*ValorUnidad,SUMIFS(BD_Segmentos!M:M,BD_Segmentos!$C:$C,$B34,BD_Segmentos!$A:$A,"S4")*ValorUnidad-SUMIFS(BD_Segmentos!L:L,BD_Segmentos!$C:$C,$B34,BD_Segmentos!$A:$A,"S4")*ValorUnidad) -> -5.740341226 | O34: =IF(MONTH(O$7)=3,SUMIFS(BD_Segmentos!N:N,BD_Segmentos!$C:$C,$B34,BD_Segmentos!$A:$A,"S4")*ValorUnidad,SUMIFS(BD_Segmentos!N:N,BD_Segmentos!$C:$C,$B34,BD_Segmentos!$A:$A,"S4")*ValorUnidad-SUMIFS(BD_Segmentos!M:M,BD_Segmentos!$C:$C,$B34,BD_Segmentos!$A:$A,"S4")*ValorUnidad) -> -12.47318692 | P34: =IF(MONTH(P$7)=3,SUMIFS(BD_Segmentos!O:O,BD_Segmentos!$C:$C,$B34,BD_Segmentos!$A:$A,"S4")*ValorUnidad,SUMIFS(BD_Segmentos!O:O,BD_Segmentos!$C:$C,$B34,BD_Segmentos!$A:$A,"S4")*ValorUnidad-SUMIFS(BD_Segmentos!N:N,BD_Segmentos!$C:$C,$B34,BD_Segmentos!$A:$A,"S4")*ValorUnidad) -> -3.65317242 | Q34: =IF(MONTH(Q$7)=3,SUMIFS(BD_Segmentos!P:P,BD_Segmentos!$C:$C,$B34,BD_Segmentos!$A:$A,"S4")*ValorUnidad,SUMIFS(BD_Segmentos!P:P,BD_Segmentos!$C:$C,$B34,BD_Segmentos!$A:$A,"S4")*ValorUnidad-SUMIFS(BD_Segmentos!O:O,BD_Segmentos!$C:$C,$B34,BD_Segmentos!$A:$A,"S4")*ValorUnidad) -> -30.58960616 | R34: =IF(MONTH(R$7)=3,SUMIFS(BD_Segmentos!Q:Q,BD_Segmentos!$C:$C,$B34,BD_Segmentos!$A:$A,"S4")*ValorUnidad,SUMIFS(BD_Segmentos!Q:Q,BD_Segmentos!$C:$C,$B34,BD_Segmentos!$A:$A,"S4")*ValorUnidad-SUMIFS(BD_Segmentos!P:P,BD_Segmentos!$C:$C,$B34,BD_Segmentos!$A:$A,"S4")*ValorUnidad) -> -20.53302356 | S34: =IF(MONTH(S$7)=3,SUMIFS(BD_Segmentos!R:R,BD_Segmentos!$C:$C,$B34,BD_Segmentos!$A:$A,"S4")*ValorUnidad,SUMIFS(BD_Segmentos!R:R,BD_Segmentos!$C:$C,$B34,BD_Segmentos!$A:$A,"S4")*ValorUnidad-SUMIFS(BD_Segmentos!Q:Q,BD_Segmentos!$C:$C,$B34,BD_Segmentos!$A:$A,"S4")*ValorUnidad) -> -16.58548013 | T34: =IF(MONTH(T$7)=3,SUMIFS(BD_Segmentos!S:S,BD_Segmentos!$C:$C,$B34,BD_Segmentos!$A:$A,"S4")*ValorUnidad,SUMIFS(BD_Segmentos!S:S,BD_Segmentos!$C:$C,$B34,BD_Segmentos!$A:$A,"S4")*ValorUnidad-SUMIFS(BD_Segmentos!R:R,BD_Segmentos!$C:$C,$B34,BD_Segmentos!$A:$A,"S4")*ValorUnidad) -> -21.61152987 | U34: =IF(MONTH(U$7)=3,SUMIFS(BD_Segmentos!T:T,BD_Segmentos!$C:$C,$B34,BD_Segmentos!$A:$A,"S4")*ValorUnidad,SUMIFS(BD_Segmentos!T:T,BD_Segmentos!$C:$C,$B34,BD_Segmentos!$A:$A,"S4")*ValorUnidad-SUMIFS(BD_Segmentos!S:S,BD_Segmentos!$C:$C,$B34,BD_Segmentos!$A:$A,"S4")*ValorUnidad) -> -4.944558452 | V34: =IF(MONTH(V$7)=3,SUMIFS(BD_Segmentos!U:U,BD_Segmentos!$C:$C,$B34,BD_Segmentos!$A:$A,"S4")*ValorUnidad,SUMIFS(BD_Segmentos!U:U,BD_Segmentos!$C:$C,$B34,BD_Segmentos!$A:$A,"S4")*ValorUnidad-SUMIFS(BD_Segmentos!T:T,BD_Segmentos!$C:$C,$B34,BD_Segmentos!$A:$A,"S4")*ValorUnidad) -> -23.51235849
B35: 57 | C35: Income tax | E35: =IF(MONTH(E$7)=3,SUMIFS(BD_Segmentos!D:D,BD_Segmentos!$C:$C,$B35,BD_Segmentos!$A:$A,"S4")*ValorUnidad,SUMIFS(BD_Segmentos!D:D,BD_Segmentos!$C:$C,$B35,BD_Segmentos!$A:$A,"S4")*ValorUnidad-SUMIFS(BD_Segmentos!C:C,BD_Segmentos!$C:$C,$B35,BD_Segmentos!$A:$A,"S4")*ValorUnidad) -> -105.5193766 | F35: =IF(MONTH(F$7)=3,SUMIFS(BD_Segmentos!E:E,BD_Segmentos!$C:$C,$B35,BD_Segmentos!$A:$A,"S4")*ValorUnidad,SUMIFS(BD_Segmentos!E:E,BD_Segmentos!$C:$C,$B35,BD_Segmentos!$A:$A,"S4")*ValorUnidad-SUMIFS(BD_Segmentos!D:D,BD_Segmentos!$C:$C,$B35,BD_Segmentos!$A:$A,"S4")*ValorUnidad) -> -112.5529188 | G35: =IF(MONTH(G$7)=3,SUMIFS(BD_Segmentos!F:F,BD_Segmentos!$C:$C,$B35,BD_Segmentos!$A:$A,"S4")*ValorUnidad,SUMIFS(BD_Segmentos!F:F,BD_Segmentos!$C:$C,$B35,BD_Segmentos!$A:$A,"S4")*ValorUnidad-SUMIFS(BD_Segmentos!E:E,BD_Segmentos!$C:$C,$B35,BD_Segmentos!$A:$A,"S4")*ValorUnidad) -> -95.85943509 | H35: =IF(MONTH(H$7)=3,SUMIFS(BD_Segmentos!G:G,BD_Segmentos!$C:$C,$B35,BD_Segmentos!$A:$A,"S4")*ValorUnidad,SUMIFS(BD_Segmentos!G:G,BD_Segmentos!$C:$C,$B35,BD_Segmentos!$A:$A,"S4")*ValorUnidad-SUMIFS(BD_Segmentos!F:F,BD_Segmentos!$C:$C,$B35,BD_Segmentos!$A:$A,"S4")*ValorUnidad) -> -101.5832125 | I35: =IF(MONTH(I$7)=3,SUMIFS(BD_Segmentos!H:H,BD_Segmentos!$C:$C,$B35,BD_Segmentos!$A:$A,"S4")*ValorUnidad,SUMIFS(BD_Segmentos!H:H,BD_Segmentos!$C:$C,$B35,BD_Segmentos!$A:$A,"S4")*ValorUnidad-SUMIFS(BD_Segmentos!G:G,BD_Segmentos!$C:$C,$B35,BD_Segmentos!$A:$A,"S4")*ValorUnidad) -> -109.8903197 | J35: =IF(MONTH(J$7)=3,SUMIFS(BD_Segmentos!I:I,BD_Segmentos!$C:$C,$B35,BD_Segmentos!$A:$A,"S4")*ValorUnidad,SUMIFS(BD_Segmentos!I:I,BD_Segmentos!$C:$C,$B35,BD_Segmentos!$A:$A,"S4")*ValorUnidad-SUMIFS(BD_Segmentos!H:H,BD_Segmentos!$C:$C,$B35,BD_Segmentos!$A:$A,"S4")*ValorUnidad) -> -116.9672136 | K35: =IF(MONTH(K$7)=3,SUMIFS(BD_Segmentos!J:J,BD_Segmentos!$C:$C,$B35,BD_Segmentos!$A:$A,"S4")*ValorUnidad,SUMIFS(BD_Segmentos!J:J,BD_Segmentos!$C:$C,$B35,BD_Segmentos!$A:$A,"S4")*ValorUnidad-SUMIFS(BD_Segmentos!I:I,BD_Segmentos!$C:$C,$B35,BD_Segmentos!$A:$A,"S4")*ValorUnidad) -> -119.1243843 | L35: =IF(MONTH(L$7)=3,SUMIFS(BD_Segmentos!K:K,BD_Segmentos!$C:$C,$B35,BD_Segmentos!$A:$A,"S4")*ValorUnidad,SUMIFS(BD_Segmentos!K:K,BD_Segmentos!$C:$C,$B35,BD_Segmentos!$A:$A,"S4")*ValorUnidad-SUMIFS(BD_Segmentos!J:J,BD_Segmentos!$C:$C,$B35,BD_Segmentos!$A:$A,"S4")*ValorUnidad) -> -147.3443308 | M35: =IF(MONTH(M$7)=3,SUMIFS(BD_Segmentos!L:L,BD_Segmentos!$C:$C,$B35,BD_Segmentos!$A:$A,"S4")*ValorUnidad,SUMIFS(BD_Segmentos!L:L,BD_Segmentos!$C:$C,$B35,BD_Segmentos!$A:$A,"S4")*ValorUnidad-SUMIFS(BD_Segmentos!K:K,BD_Segmentos!$C:$C,$B35,BD_Segmentos!$A:$A,"S4")*ValorUnidad) -> -75.84127886 | N35: =IF(MONTH(N$7)=3,SUMIFS(BD_Segmentos!M:M,BD_Segmentos!$C:$C,$B35,BD_Segmentos!$A:$A,"S4")*ValorUnidad,SUMIFS(BD_Segmentos!M:M,BD_Segmentos!$C:$C,$B35,BD_Segmentos!$A:$A,"S4")*ValorUnidad-SUMIFS(BD_Segmentos!L:L,BD_Segmentos!$C:$C,$B35,BD_Segmentos!$A:$A,"S4")*ValorUnidad) -> 266.9479315 | O35: =IF(MONTH(O$7)=3,SUMIFS(BD_Segmentos!N:N,BD_Segmentos!$C:$C,$B35,BD_Segmentos!$A:$A,"S4")*ValorUnidad,SUMIFS(BD_Segmentos!N:N,BD_Segmentos!$C:$C,$B35,BD_Segmentos!$A:$A,"S4")*ValorUnidad-SUMIFS(BD_Segmentos!M:M,BD_Segmentos!$C:$C,$B35,BD_Segmentos!$A:$A,"S4")*ValorUnidad) -> -42.07681981 | P35: =IF(MONTH(P$7)=3,SUMIFS(BD_Segmentos!O:O,BD_Segmentos!$C:$C,$B35,BD_Segmentos!$A:$A,"S4")*ValorUnidad,SUMIFS(BD_Segmentos!O:O,BD_Segmentos!$C:$C,$B35,BD_Segmentos!$A:$A,"S4")*ValorUnidad-SUMIFS(BD_Segmentos!N:N,BD_Segmentos!$C:$C,$B35,BD_Segmentos!$A:$A,"S4")*ValorUnidad) -> -76.09672559 | Q35: =IF(MONTH(Q$7)=3,SUMIFS(BD_Segmentos!P:P,BD_Segmentos!$C:$C,$B35,BD_Segmentos!$A:$A,"S4")*ValorUnidad,SUMIFS(BD_Segmentos!P:P,BD_Segmentos!$C:$C,$B35,BD_Segmentos!$A:$A,"S4")*ValorUnidad-SUMIFS(BD_Segmentos!O:O,BD_Segmentos!$C:$C,$B35,BD_Segmentos!$A:$A,"S4")*ValorUnidad) -> -91.70310426 | R35: =IF(MONTH(R$7)=3,SUMIFS(BD_Segmentos!Q:Q,BD_Segmentos!$C:$C,$B35,BD_Segmentos!$A:$A,"S4")*ValorUnidad,SUMIFS(BD_Segmentos!Q:Q,BD_Segmentos!$C:$C,$B35,BD_Segmentos!$A:$A,"S4")*ValorUnidad-SUMIFS(BD_Segmentos!P:P,BD_Segmentos!$C:$C,$B35,BD_Segmentos!$A:$A,"S4")*ValorUnidad) -> -102.7981585 | S35: =IF(MONTH(S$7)=3,SUMIFS(BD_Segmentos!R:R,BD_Segmentos!$C:$C,$B35,BD_Segmentos!$A:$A,"S4")*ValorUnidad,SUMIFS(BD_Segmentos!R:R,BD_Segmentos!$C:$C,$B35,BD_Segmentos!$A:$A,"S4")*ValorUnidad-SUMIFS(BD_Segmentos!Q:Q,BD_Segmentos!$C:$C,$B35,BD_Segmentos!$A:$A,"S4")*ValorUnidad) -> -114.1703804 | T35: =IF(MONTH(T$7)=3,SUMIFS(BD_Segmentos!S:S,BD_Segmentos!$C:$C,$B35,BD_Segmentos!$A:$A,"S4")*ValorUnidad,SUMIFS(BD_Segmentos!S:S,BD_Segmentos!$C:$C,$B35,BD_Segmentos!$A:$A,"S4")*ValorUnidad-SUMIFS(BD_Segmentos!R:R,BD_Segmentos!$C:$C,$B35,BD_Segmentos!$A:$A,"S4")*ValorUnidad) -> -193.4407688 | U35: =IF(MONTH(U$7)=3,SUMIFS(BD_Segmentos!T:T,BD_Segmentos!$C:$C,$B35,BD_Segmentos!$A:$A,"S4")*ValorUnidad,SUMIFS(BD_Segmentos!T:T,BD_Segmentos!$C:$C,$B35,BD_Segmentos!$A:$A,"S4")*ValorUnidad-SUMIFS(BD_Segmentos!S:S,BD_Segmentos!$C:$C,$B35,BD_Segmentos!$A:$A,"S4")*ValorUnidad) -> -95.15714704 | V35: =IF(MONTH(V$7)=3,SUMIFS(BD_Segmentos!U:U,BD_Segmentos!$C:$C,$B35,BD_Segmentos!$A:$A,"S4")*ValorUnidad,SUMIFS(BD_Segmentos!U:U,BD_Segmentos!$C:$C,$B35,BD_Segmentos!$A:$A,"S4")*ValorUnidad-SUMIFS(BD_Segmentos!T:T,BD_Segmentos!$C:$C,$B35,BD_Segmentos!$A:$A,"S4")*ValorUnidad) -> -121.605086
B36: ST18 | C36: Profit for the period | E36: =IF(MONTH(E$7)=3,SUMIFS(BD_Segmentos!D:D,BD_Segmentos!$C:$C,$B36,BD_Segmentos!$A:$A,"S4")*ValorUnidad,SUMIFS(BD_Segmentos!D:D,BD_Segmentos!$C:$C,$B36,BD_Segmentos!$A:$A,"S4")*ValorUnidad-SUMIFS(BD_Segmentos!C:C,BD_Segmentos!$C:$C,$B36,BD_Segmentos!$A:$A,"S4")*ValorUnidad) -> 289.9812428 | F36: =IF(MONTH(F$7)=3,SUMIFS(BD_Segmentos!E:E,BD_Segmentos!$C:$C,$B36,BD_Segmentos!$A:$A,"S4")*ValorUnidad,SUMIFS(BD_Segmentos!E:E,BD_Segmentos!$C:$C,$B36,BD_Segmentos!$A:$A,"S4")*ValorUnidad-SUMIFS(BD_Segmentos!D:D,BD_Segmentos!$C:$C,$B36,BD_Segmentos!$A:$A,"S4")*ValorUnidad) -> 204.9367067 | G36: =IF(MONTH(G$7)=3,SUMIFS(BD_Segmentos!F:F,BD_Segmentos!$C:$C,$B36,BD_Segmentos!$A:$A,"S4")*ValorUnidad,SUMIFS(BD_Segmentos!F:F,BD_Segmentos!$C:$C,$B36,BD_Segmentos!$A:$A,"S4")*ValorUnidad-SUMIFS(BD_Segmentos!E:E,BD_Segmentos!$C:$C,$B36,BD_Segmentos!$A:$A,"S4")*ValorUnidad) -> 316.1370912 | H36: =IF(MONTH(H$7)=3,SUMIFS(BD_Segmentos!G:G,BD_Segmentos!$C:$C,$B36,BD_Segmentos!$A:$A,"S4")*ValorUnidad,SUMIFS(BD_Segmentos!G:G,BD_Segmentos!$C:$C,$B36,BD_Segmentos!$A:$A,"S4")*ValorUnidad-SUMIFS(BD_Segmentos!F:F,BD_Segmentos!$C:$C,$B36,BD_Segmentos!$A:$A,"S4")*ValorUnidad) -> 280.339721 | I36: =IF(MONTH(I$7)=3,SUMIFS(BD_Segmentos!H:H,BD_Segmentos!$C:$C,$B36,BD_Segmentos!$A:$A,"S4")*ValorUnidad,SUMIFS(BD_Segmentos!H:H,BD_Segmentos!$C:$C,$B36,BD_Segmentos!$A:$A,"S4")*ValorUnidad-SUMIFS(BD_Segmentos!G:G,BD_Segmentos!$C:$C,$B36,BD_Segmentos!$A:$A,"S4")*ValorUnidad) -> 352.7251252 | J36: =IF(MONTH(J$7)=3,SUMIFS(BD_Segmentos!I:I,BD_Segmentos!$C:$C,$B36,BD_Segmentos!$A:$A,"S4")*ValorUnidad,SUMIFS(BD_Segmentos!I:I,BD_Segmentos!$C:$C,$B36,BD_Segmentos!$A:$A,"S4")*ValorUnidad-SUMIFS(BD_Segmentos!H:H,BD_Segmentos!$C:$C,$B36,BD_Segmentos!$A:$A,"S4")*ValorUnidad) -> 350.1129449 | K36: =IF(MONTH(K$7)=3,SUMIFS(BD_Segmentos!J:J,BD_Segmentos!$C:$C,$B36,BD_Segmentos!$A:$A,"S4")*ValorUnidad,SUMIFS(BD_Segmentos!J:J,BD_Segmentos!$C:$C,$B36,BD_Segmentos!$A:$A,"S4")*ValorUnidad-SUMIFS(BD_Segmentos!I:I,BD_Segmentos!$C:$C,$B36,BD_Segmentos!$A:$A,"S4")*ValorUnidad) -> 334.5041752 | L36: =IF(MONTH(L$7)=3,SUMIFS(BD_Segmentos!K:K,BD_Segmentos!$C:$C,$B36,BD_Segmentos!$A:$A,"S4")*ValorUnidad,SUMIFS(BD_Segmentos!K:K,BD_Segmentos!$C:$C,$B36,BD_Segmentos!$A:$A,"S4")*ValorUnidad-SUMIFS(BD_Segmentos!J:J,BD_Segmentos!$C:$C,$B36,BD_Segmentos!$A:$A,"S4")*ValorUnidad) -> 412.7725434 | M36: =IF(MONTH(M$7)=3,SUMIFS(BD_Segmentos!L:L,BD_Segmentos!$C:$C,$B36,BD_Segmentos!$A:$A,"S4")*ValorUnidad,SUMIFS(BD_Segmentos!L:L,BD_Segmentos!$C:$C,$B36,BD_Segmentos!$A:$A,"S4")*ValorUnidad-SUMIFS(BD_Segmentos!K:K,BD_Segmentos!$C:$C,$B36,BD_Segmentos!$A:$A,"S4")*ValorUnidad) -> 144.9049174 | N36: =IF(MONTH(N$7)=3,SUMIFS(BD_Segmentos!M:M,BD_Segmentos!$C:$C,$B36,BD_Segmentos!$A:$A,"S4")*ValorUnidad,SUMIFS(BD_Segmentos!M:M,BD_Segmentos!$C:$C,$B36,BD_Segmentos!$A:$A,"S4")*ValorUnidad-SUMIFS(BD_Segmentos!L:L,BD_Segmentos!$C:$C,$B36,BD_Segmentos!$A:$A,"S4")*ValorUnidad) -> -457.3135672 | O36: =IF(MONTH(O$7)=3,SUMIFS(BD_Segmentos!N:N,BD_Segmentos!$C:$C,$B36,BD_Segmentos!$A:$A,"S4")*ValorUnidad,SUMIFS(BD_Segmentos!N:N,BD_Segmentos!$C:$C,$B36,BD_Segmentos!$A:$A,"S4")*ValorUnidad-SUMIFS(BD_Segmentos!M:M,BD_Segmentos!$C:$C,$B36,BD_Segmentos!$A:$A,"S4")*ValorUnidad) -> 318.5201723 | P36: =IF(MONTH(P$7)=3,SUMIFS(BD_Segmentos!O:O,BD_Segmentos!$C:$C,$B36,BD_Segmentos!$A:$A,"S4")*ValorUnidad,SUMIFS(BD_Segmentos!O:O,BD_Segmentos!$C:$C,$B36,BD_Segmentos!$A:$A,"S4")*ValorUnidad-SUMIFS(BD_Segmentos!N:N,BD_Segmentos!$C:$C,$B36,BD_Segmentos!$A:$A,"S4")*ValorUnidad) -> 377.4373197 | Q36: =IF(MONTH(Q$7)=3,SUMIFS(BD_Segmentos!P:P,BD_Segmentos!$C:$C,$B36,BD_Segmentos!$A:$A,"S4")*ValorUnidad,SUMIFS(BD_Segmentos!P:P,BD_Segmentos!$C:$C,$B36,BD_Segmentos!$A:$A,"S4")*ValorUnidad-SUMIFS(BD_Segmentos!O:O,BD_Segmentos!$C:$C,$B36,BD_Segmentos!$A:$A,"S4")*ValorUnidad) -> 528.7482596 | R36: =IF(MONTH(R$7)=3,SUMIFS(BD_Segmentos!Q:Q,BD_Segmentos!$C:$C,$B36,BD_Segmentos!$A:$A,"S4")*ValorUnidad,SUMIFS(BD_Segmentos!Q:Q,BD_Segmentos!$C:$C,$B36,BD_Segmentos!$A:$A,"S4")*ValorUnidad-SUMIFS(BD_Segmentos!P:P,BD_Segmentos!$C:$C,$B36,BD_Segmentos!$A:$A,"S4")*ValorUnidad) -> 455.5522301 | S36: =IF(MONTH(S$7)=3,SUMIFS(BD_Segmentos!R:R,BD_Segmentos!$C:$C,$B36,BD_Segmentos!$A:$A,"S4")*ValorUnidad,SUMIFS(BD_Segmentos!R:R,BD_Segmentos!$C:$C,$B36,BD_Segmentos!$A:$A,"S4")*ValorUnidad-SUMIFS(BD_Segmentos!Q:Q,BD_Segmentos!$C:$C,$B36,BD_Segmentos!$A:$A,"S4")*ValorUnidad) -> 551.5100465 | T36: =IF(MONTH(T$7)=3,SUMIFS(BD_Segmentos!S:S,BD_Segmentos!$C:$C,$B36,BD_Segmentos!$A:$A,"S4")*ValorUnidad,SUMIFS(BD_Segmentos!S:S,BD_Segmentos!$C:$C,$B36,BD_Segmentos!$A:$A,"S4")*ValorUnidad-SUMIFS(BD_Segmentos!R:R,BD_Segmentos!$C:$C,$B36,BD_Segmentos!$A:$A,"S4")*ValorUnidad) -> 264.3686743 | U36: =IF(MONTH(U$7)=3,SUMIFS(BD_Segmentos!T:T,BD_Segmentos!$C:$C,$B36,BD_Segmentos!$A:$A,"S4")*ValorUnidad,SUMIFS(BD_Segmentos!T:T,BD_Segmentos!$C:$C,$B36,BD_Segmentos!$A:$A,"S4")*ValorUnidad-SUMIFS(BD_Segmentos!S:S,BD_Segmentos!$C:$C,$B36,BD_Segmentos!$A:$A,"S4")*ValorUnidad) -> 403.3010018 | V36: =IF(MONTH(V$7)=3,SUMIFS(BD_Segmentos!U:U,BD_Segmentos!$C:$C,$B36,BD_Segmentos!$A:$A,"S4")*ValorUnidad,SUMIFS(BD_Segmentos!U:U,BD_Segmentos!$C:$C,$B36,BD_Segmentos!$A:$A,"S4")*ValorUnidad-SUMIFS(BD_Segmentos!T:T,BD_Segmentos!$C:$C,$B36,BD_Segmentos!$A:$A,"S4")*ValorUnidad) -> 251.2961967
B37: 58 | C37: Non-controlling interest | E37: =IF(MONTH(E$7)=3,SUMIFS(BD_Segmentos!D:D,BD_Segmentos!$C:$C,$B37,BD_Segmentos!$A:$A,"S4")*ValorUnidad,SUMIFS(BD_Segmentos!D:D,BD_Segmentos!$C:$C,$B37,BD_Segmentos!$A:$A,"S4")*ValorUnidad-SUMIFS(BD_Segmentos!C:C,BD_Segmentos!$C:$C,$B37,BD_Segmentos!$A:$A,"S4")*ValorUnidad) -> 1.774774299 | F37: =IF(MONTH(F$7)=3,SUMIFS(BD_Segmentos!E:E,BD_Segmentos!$C:$C,$B37,BD_Segmentos!$A:$A,"S4")*ValorUnidad,SUMIFS(BD_Segmentos!E:E,BD_Segmentos!$C:$C,$B37,BD_Segmentos!$A:$A,"S4")*ValorUnidad-SUMIFS(BD_Segmentos!D:D,BD_Segmentos!$C:$C,$B37,BD_Segmentos!$A:$A,"S4")*ValorUnidad) -> 1.828225701 | G37: =IF(MONTH(G$7)=3,SUMIFS(BD_Segmentos!F:F,BD_Segmentos!$C:$C,$B37,BD_Segmentos!$A:$A,"S4")*ValorUnidad,SUMIFS(BD_Segmentos!F:F,BD_Segmentos!$C:$C,$B37,BD_Segmentos!$A:$A,"S4")*ValorUnidad-SUMIFS(BD_Segmentos!E:E,BD_Segmentos!$C:$C,$B37,BD_Segmentos!$A:$A,"S4")*ValorUnidad) -> 1.77821828 | H37: =IF(MONTH(H$7)=3,SUMIFS(BD_Segmentos!G:G,BD_Segmentos!$C:$C,$B37,BD_Segmentos!$A:$A,"S4")*ValorUnidad,SUMIFS(BD_Segmentos!G:G,BD_Segmentos!$C:$C,$B37,BD_Segmentos!$A:$A,"S4")*ValorUnidad-SUMIFS(BD_Segmentos!F:F,BD_Segmentos!$C:$C,$B37,BD_Segmentos!$A:$A,"S4")*ValorUnidad) -> 1.73314141 | I37: =IF(MONTH(I$7)=3,SUMIFS(BD_Segmentos!H:H,BD_Segmentos!$C:$C,$B37,BD_Segmentos!$A:$A,"S4")*ValorUnidad,SUMIFS(BD_Segmentos!H:H,BD_Segmentos!$C:$C,$B37,BD_Segmentos!$A:$A,"S4")*ValorUnidad-SUMIFS(BD_Segmentos!G:G,BD_Segmentos!$C:$C,$B37,BD_Segmentos!$A:$A,"S4")*ValorUnidad) -> 2.156740604 | J37: =IF(MONTH(J$7)=3,SUMIFS(BD_Segmentos!I:I,BD_Segmentos!$C:$C,$B37,BD_Segmentos!$A:$A,"S4")*ValorUnidad,SUMIFS(BD_Segmentos!I:I,BD_Segmentos!$C:$C,$B37,BD_Segmentos!$A:$A,"S4")*ValorUnidad-SUMIFS(BD_Segmentos!H:H,BD_Segmentos!$C:$C,$B37,BD_Segmentos!$A:$A,"S4")*ValorUnidad) -> 2.165247047 | K37: =IF(MONTH(K$7)=3,SUMIFS(BD_Segmentos!J:J,BD_Segmentos!$C:$C,$B37,BD_Segmentos!$A:$A,"S4")*ValorUnidad,SUMIFS(BD_Segmentos!J:J,BD_Segmentos!$C:$C,$B37,BD_Segmentos!$A:$A,"S4")*ValorUnidad-SUMIFS(BD_Segmentos!I:I,BD_Segmentos!$C:$C,$B37,BD_Segmentos!$A:$A,"S4")*ValorUnidad) -> 2.106424783 | L37: =IF(MONTH(L$7)=3,SUMIFS(BD_Segmentos!K:K,BD_Segmentos!$C:$C,$B37,BD_Segmentos!$A:$A,"S4")*ValorUnidad,SUMIFS(BD_Segmentos!K:K,BD_Segmentos!$C:$C,$B37,BD_Segmentos!$A:$A,"S4")*ValorUnidad-SUMIFS(BD_Segmentos!J:J,BD_Segmentos!$C:$C,$B37,BD_Segmentos!$A:$A,"S4")*ValorUnidad) -> 2.427796849 | M37: =IF(MONTH(M$7)=3,SUMIFS(BD_Segmentos!L:L,BD_Segmentos!$C:$C,$B37,BD_Segmentos!$A:$A,"S4")*ValorUnidad,SUMIFS(BD_Segmentos!L:L,BD_Segmentos!$C:$C,$B37,BD_Segmentos!$A:$A,"S4")*ValorUnidad-SUMIFS(BD_Segmentos!K:K,BD_Segmentos!$C:$C,$B37,BD_Segmentos!$A:$A,"S4")*ValorUnidad) -> 1.53032316 | N37: =IF(MONTH(N$7)=3,SUMIFS(BD_Segmentos!M:M,BD_Segmentos!$C:$C,$B37,BD_Segmentos!$A:$A,"S4")*ValorUnidad,SUMIFS(BD_Segmentos!M:M,BD_Segmentos!$C:$C,$B37,BD_Segmentos!$A:$A,"S4")*ValorUnidad-SUMIFS(BD_Segmentos!L:L,BD_Segmentos!$C:$C,$B37,BD_Segmentos!$A:$A,"S4")*ValorUnidad) -> -3.831503518 | O37: =IF(MONTH(O$7)=3,SUMIFS(BD_Segmentos!N:N,BD_Segmentos!$C:$C,$B37,BD_Segmentos!$A:$A,"S4")*ValorUnidad,SUMIFS(BD_Segmentos!N:N,BD_Segmentos!$C:$C,$B37,BD_Segmentos!$A:$A,"S4")*ValorUnidad-SUMIFS(BD_Segmentos!M:M,BD_Segmentos!$C:$C,$B37,BD_Segmentos!$A:$A,"S4")*ValorUnidad) -> 1.15517427 | P37: =IF(MONTH(P$7)=3,SUMIFS(BD_Segmentos!O:O,BD_Segmentos!$C:$C,$B37,BD_Segmentos!$A:$A,"S4")*ValorUnidad,SUMIFS(BD_Segmentos!O:O,BD_Segmentos!$C:$C,$B37,BD_Segmentos!$A:$A,"S4")*ValorUnidad-SUMIFS(BD_Segmentos!N:N,BD_Segmentos!$C:$C,$B37,BD_Segmentos!$A:$A,"S4")*ValorUnidad) -> 1.436021736 | Q37: =IF(MONTH(Q$7)=3,SUMIFS(BD_Segmentos!P:P,BD_Segmentos!$C:$C,$B37,BD_Segmentos!$A:$A,"S4")*ValorUnidad,SUMIFS(BD_Segmentos!P:P,BD_Segmentos!$C:$C,$B37,BD_Segmentos!$A:$A,"S4")*ValorUnidad-SUMIFS(BD_Segmentos!O:O,BD_Segmentos!$C:$C,$B37,BD_Segmentos!$A:$A,"S4")*ValorUnidad) -> 2.475769527 | R37: =IF(MONTH(R$7)=3,SUMIFS(BD_Segmentos!Q:Q,BD_Segmentos!$C:$C,$B37,BD_Segmentos!$A:$A,"S4")*ValorUnidad,SUMIFS(BD_Segmentos!Q:Q,BD_Segmentos!$C:$C,$B37,BD_Segmentos!$A:$A,"S4")*ValorUnidad-SUMIFS(BD_Segmentos!P:P,BD_Segmentos!$C:$C,$B37,BD_Segmentos!$A:$A,"S4")*ValorUnidad) -> 2.113957265 | S37: =IF(MONTH(S$7)=3,SUMIFS(BD_Segmentos!R:R,BD_Segmentos!$C:$C,$B37,BD_Segmentos!$A:$A,"S4")*ValorUnidad,SUMIFS(BD_Segmentos!R:R,BD_Segmentos!$C:$C,$B37,BD_Segmentos!$A:$A,"S4")*ValorUnidad-SUMIFS(BD_Segmentos!Q:Q,BD_Segmentos!$C:$C,$B37,BD_Segmentos!$A:$A,"S4")*ValorUnidad) -> 2.134269162 | T37: =IF(MONTH(T$7)=3,SUMIFS(BD_Segmentos!S:S,BD_Segmentos!$C:$C,$B37,BD_Segmentos!$A:$A,"S4")*ValorUnidad,SUMIFS(BD_Segmentos!S:S,BD_Segmentos!$C:$C,$B37,BD_Segmentos!$A:$A,"S4")*ValorUnidad-SUMIFS(BD_Segmentos!R:R,BD_Segmentos!$C:$C,$B37,BD_Segmentos!$A:$A,"S4")*ValorUnidad) -> 3.30007745 | U37: =IF(MONTH(U$7)=3,SUMIFS(BD_Segmentos!T:T,BD_Segmentos!$C:$C,$B37,BD_Segmentos!$A:$A,"S4")*ValorUnidad,SUMIFS(BD_Segmentos!T:T,BD_Segmentos!$C:$C,$B37,BD_Segmentos!$A:$A,"S4")*ValorUnidad-SUMIFS(BD_Segmentos!S:S,BD_Segmentos!$C:$C,$B37,BD_Segmentos!$A:$A,"S4")*ValorUnidad) -> 2.333132357 | V37: =IF(MONTH(V$7)=3,SUMIFS(BD_Segmentos!U:U,BD_Segmentos!$C:$C,$B37,BD_Segmentos!$A:$A,"S4")*ValorUnidad,SUMIFS(BD_Segmentos!U:U,BD_Segmentos!$C:$C,$B37,BD_Segmentos!$A:$A,"S4")*ValorUnidad-SUMIFS(BD_Segmentos!T:T,BD_Segmentos!$C:$C,$B37,BD_Segmentos!$A:$A,"S4")*ValorUnidad) -> 2.388092706
C38: Attributable to IFS' shareholders | E38: =+E36-E37 -> 288.2064685 | F38: =+F36-F37 -> 203.108481 | G38: 314.3588729 | H38: 278.6065796 | I38: 350.5683845 | J38: 347.9476979 | K38: 332.3977504 | L38: 410.3447465 | M38: 143.3745942 | N38: -453.4820637 | O38: 317.3649981 | P38: =+P36-P37 -> 376.001298 | Q38: 526.27249 | R38: =+R36-R37 -> 453.4382728 | S38: 549.3757774 | T38: =+T36-T37 -> 261.0685968 | U38: 400.9678694 | V38: =+V36-V37 -> 248.908104
C42: Intercorp Financial Services' Statement of financial position
C43: S/ million
E44: =TEXT(E$7,"MM.DD.YY") -> 03.31.18 | F44: =TEXT(F$7,"MM.DD.YY") -> 06.30.18 | G44: 09.30.18 | H44: 12.31.18 | I44: 03.31.19 | J44: 06.30.19 | K44: 09.30.19 | L44: 12.31.19 | M44: 03.31.20 | N44: 06.30.20 | O44: 09.30.20 | P44: 12.31.20 | Q44: 03.31.21 | R44: 06.30.21 | S44: 09.30.21 | T44: 12.31.21 | U44: 03.31.22 | V44: 06.30.22
C46: Assets
B47: ST1 | C47: Total cash and due from banks | E47: =SUMIFS(BD_Segmentos!D:D,BD_Segmentos!$C:$C,$B47,BD_Segmentos!$A:$A,"S4")*ValorUnidad -> 9616.624879 | F47: =SUMIFS(BD_Segmentos!E:E,BD_Segmentos!$C:$C,$B47,BD_Segmentos!$A:$A,"S4")*ValorUnidad -> 7709.47951 | G47: =SUMIFS(BD_Segmentos!F:F,BD_Segmentos!$C:$C,$B47,BD_Segmentos!$A:$A,"S4")*ValorUnidad -> 7176.264819 | H47: =SUMIFS(BD_Segmentos!G:G,BD_Segmentos!$C:$C,$B47,BD_Segmentos!$A:$A,"S4")*ValorUnidad -> 8380.411149 | I47: =SUMIFS(BD_Segmentos!H:H,BD_Segmentos!$C:$C,$B47,BD_Segmentos!$A:$A,"S4")*ValorUnidad -> 9660.612594 | J47: =SUMIFS(BD_Segmentos!I:I,BD_Segmentos!$C:$C,$B47,BD_Segmentos!$A:$A,"S4")*ValorUnidad -> 10592.82311 | K47: =SUMIFS(BD_Segmentos!J:J,BD_Segmentos!$C:$C,$B47,BD_Segmentos!$A:$A,"S4")*ValorUnidad -> 11710.69236 | L47: =SUMIFS(BD_Segmentos!K:K,BD_Segmentos!$C:$C,$B47,BD_Segmentos!$A:$A,"S4")*ValorUnidad -> 11128.87514 | M47: =SUMIFS(BD_Segmentos!L:L,BD_Segmentos!$C:$C,$B47,BD_Segmentos!$A:$A,"S4")*ValorUnidad -> 11583.27184 | N47: =SUMIFS(BD_Segmentos!M:M,BD_Segmentos!$C:$C,$B47,BD_Segmentos!$A:$A,"S4")*ValorUnidad -> 15124.48689 | O47: =SUMIFS(BD_Segmentos!N:N,BD_Segmentos!$C:$C,$B47,BD_Segmentos!$A:$A,"S4")*ValorUnidad -> 17573.07016 | P47: =SUMIFS(BD_Segmentos!O:O,BD_Segmentos!$C:$C,$B47,BD_Segmentos!$A:$A,"S4")*ValorUnidad -> 18765.48236 | Q47: =SUMIFS(BD_Segmentos!P:P,BD_Segmentos!$C:$C,$B47,BD_Segmentos!$A:$A,"S4")*ValorUnidad -> 19260.54767 | R47: =SUMIFS(BD_Segmentos!Q:Q,BD_Segmentos!$C:$C,$B47,BD_Segmentos!$A:$A,"S4")*ValorUnidad -> 19410.36377 | S47: =SUMIFS(BD_Segmentos!R:R,BD_Segmentos!$C:$C,$B47,BD_Segmentos!$A:$A,"S4")*ValorUnidad -> 20330.71335 | T47: =SUMIFS(BD_Segmentos!S:S,BD_Segmentos!$C:$C,$B47,BD_Segmentos!$A:$A,"S4")*ValorUnidad -> 17104.46449 | U47: =SUMIFS(BD_Segmentos!T:T,BD_Segmentos!$C:$C,$B47,BD_Segmentos!$A:$A,"S4")*ValorUnidad -> 13440.79803 | V47: =SUMIFS(BD_Segmentos!U:U,BD_Segmentos!$C:$C,$B47,BD_Segmentos!$A:$A,"S4")*ValorUnidad -> 12303.97008
B48: 3 | C48: Inter-bank funds | E48: =SUMIFS(BD_Segmentos!D:D,BD_Segmentos!$C:$C,$B48,BD_Segmentos!$A:$A,"S4")*ValorUnidad -> 179.054 | F48: =SUMIFS(BD_Segmentos!E:E,BD_Segmentos!$C:$C,$B48,BD_Segmentos!$A:$A,"S4")*ValorUnidad -> 231.848 | G48: =SUMIFS(BD_Segmentos!F:F,BD_Segmentos!$C:$C,$B48,BD_Segmentos!$A:$A,"S4")*ValorUnidad -> 30.007 | H48: =SUMIFS(BD_Segmentos!G:G,BD_Segmentos!$C:$C,$B48,BD_Segmentos!$A:$A,"S4")*ValorUnidad -> 495.037 | I48: =SUMIFS(BD_Segmentos!H:H,BD_Segmentos!$C:$C,$B48,BD_Segmentos!$A:$A,"S4")*ValorUnidad -> 70.017 | J48: =SUMIFS(BD_Segmentos!I:I,BD_Segmentos!$C:$C,$B48,BD_Segmentos!$A:$A,"S4")*ValorUnidad -> 230.137 | K48: =SUMIFS(BD_Segmentos!J:J,BD_Segmentos!$C:$C,$B48,BD_Segmentos!$A:$A,"S4")*ValorUnidad -> 0 | L48: =SUMIFS(BD_Segmentos!K:K,BD_Segmentos!$C:$C,$B48,BD_Segmentos!$A:$A,"S4")*ValorUnidad -> 85.006 | M48: =SUMIFS(BD_Segmentos!L:L,BD_Segmentos!$C:$C,$B48,BD_Segmentos!$A:$A,"S4")*ValorUnidad -> 150.005 | N48: =SUMIFS(BD_Segmentos!M:M,BD_Segmentos!$C:$C,$B48,BD_Segmentos!$A:$A,"S4")*ValorUnidad -> 31.841 | O48: =SUMIFS(BD_Segmentos!N:N,BD_Segmentos!$C:$C,$B48,BD_Segmentos!$A:$A,"S4")*ValorUnidad -> 0 | P48: =SUMIFS(BD_Segmentos!O:O,BD_Segmentos!$C:$C,$B48,BD_Segmentos!$A:$A,"S4")*ValorUnidad -> 18.105 | Q48: =SUMIFS(BD_Segmentos!P:P,BD_Segmentos!$C:$C,$B48,BD_Segmentos!$A:$A,"S4")*ValorUnidad -> 0 | R48: =SUMIFS(BD_Segmentos!Q:Q,BD_Segmentos!$C:$C,$B48,BD_Segmentos!$A:$A,"S4")*ValorUnidad -> 0 | S48: =SUMIFS(BD_Segmentos!R:R,BD_Segmentos!$C:$C,$B48,BD_Segmentos!$A:$A,"S4")*ValorUnidad -> 0 | T48: =SUMIFS(BD_Segmentos!S:S,BD_Segmentos!$C:$C,$B48,BD_Segmentos!$A:$A,"S4")*ValorUnidad -> 30.00205793 | U48: =SUMIFS(BD_Segmentos!T:T,BD_Segmentos!$C:$C,$B48,BD_Segmentos!$A:$A,"S4")*ValorUnidad -> 250.0272381 | V48: =SUMIFS(BD_Segmentos!U:U,BD_Segmentos!$C:$C,$B48,BD_Segmentos!$A:$A,"S4")*ValorUnidad -> 200.0297471
C49: Cash and due from banks and inter-bank funds | E49: =+SUM(E47:E48) -> 9795.678879 | F49: =+SUM(F47:F48) -> 7941.32751 | G49: 7206.271819 | H49: 8875.448149 | I49: 9730.629594 | J49: 10822.96011 | K49: 11710.69236 | L49: 11213.88114 | M49: 11733.27684 | N49: 15156.32789 | O49: 17573.07016 | P49: =+SUM(P47:P48) -> 18783.58736 | Q49: 19260.54767 | R49: =+SUM(R47:R48) -> 19410.36377 | S49: 20330.71335 | T49: =+SUM(T47:T48) -> 17134.46655 | U49: 13690.82527 | V49: =+SUM(V47:V48) -> 12503.99983
B50: 4 | C50: Investments at fair value through profit or loss | E50: =SUMIFS(BD_Segmentos!D:D,BD_Segmentos!$C:$C,$B50,BD_Segmentos!$A:$A,"S4")*ValorUnidad -> 1525.206571 | F50: =SUMIFS(BD_Segmentos!E:E,BD_Segmentos!$C:$C,$B50,BD_Segmentos!$A:$A,"S4")*ValorUnidad -> 1613.88879 | G50: =SUMIFS(BD_Segmentos!F:F,BD_Segmentos!$C:$C,$B50,BD_Segmentos!$A:$A,"S4")*ValorUnidad -> 1693.451371 | H50: =SUMIFS(BD_Segmentos!G:G,BD_Segmentos!$C:$C,$B50,BD_Segmentos!$A:$A,"S4")*ValorUnidad -> 1571.468412 | I50: =SUMIFS(BD_Segmentos!H:H,BD_Segmentos!$C:$C,$B50,BD_Segmentos!$A:$A,"S4")*ValorUnidad -> 1565.095729 | J50: =SUMIFS(BD_Segmentos!I:I,BD_Segmentos!$C:$C,$B50,BD_Segmentos!$A:$A,"S4")*ValorUnidad -> 1334.363419 | K50: =SUMIFS(BD_Segmentos!J:J,BD_Segmentos!$C:$C,$B50,BD_Segmentos!$A:$A,"S4")*ValorUnidad -> 1479.669666 | L50: =SUMIFS(BD_Segmentos!K:K,BD_Segmentos!$C:$C,$B50,BD_Segmentos!$A:$A,"S4")*ValorUnidad -> 1551.53764 | M50: =SUMIFS(BD_Segmentos!L:L,BD_Segmentos!$C:$C,$B50,BD_Segmentos!$A:$A,"S4")*ValorUnidad -> 1393.938127 | N50: =SUMIFS(BD_Segmentos!M:M,BD_Segmentos!$C:$C,$B50,BD_Segmentos!$A:$A,"S4")*ValorUnidad -> 1509.991713 | O50: =SUMIFS(BD_Segmentos!N:N,BD_Segmentos!$C:$C,$B50,BD_Segmentos!$A:$A,"S4")*ValorUnidad -> 1747.541081 | P50: =SUMIFS(BD_Segmentos!O:O,BD_Segmentos!$C:$C,$B50,BD_Segmentos!$A:$A,"S4")*ValorUnidad -> 2042.777441 | Q50: =SUMIFS(BD_Segmentos!P:P,BD_Segmentos!$C:$C,$B50,BD_Segmentos!$A:$A,"S4")*ValorUnidad -> 2288.44322 | R50: =SUMIFS(BD_Segmentos!Q:Q,BD_Segmentos!$C:$C,$B50,BD_Segmentos!$A:$A,"S4")*ValorUnidad -> 2535.853924 | S50: =SUMIFS(BD_Segmentos!R:R,BD_Segmentos!$C:$C,$B50,BD_Segmentos!$A:$A,"S4")*ValorUnidad -> 3017.902781 | T50: =SUMIFS(BD_Segmentos!S:S,BD_Segmentos!$C:$C,$B50,BD_Segmentos!$A:$A,"S4")*ValorUnidad -> 2706.270367 | U50: =SUMIFS(BD_Segmentos!T:T,BD_Segmentos!$C:$C,$B50,BD_Segmentos!$A:$A,"S4")*ValorUnidad -> 2469.657479 | V50: =SUMIFS(BD_Segmentos!U:U,BD_Segmentos!$C:$C,$B50,BD_Segmentos!$A:$A,"S4")*ValorUnidad -> 2311.288438
B51: 5 | C51: Financial instruments measured at fair value through other comprehensive income | E51: =SUMIFS(BD_Segmentos!D:D,BD_Segmentos!$C:$C,$B51,BD_Segmentos!$A:$A,"S4")*ValorUnidad -> 14653.53891 | F51: =SUMIFS(BD_Segmentos!E:E,BD_Segmentos!$C:$C,$B51,BD_Segmentos!$A:$A,"S4")*ValorUnidad -> 14296.09859 | G51: =SUMIFS(BD_Segmentos!F:F,BD_Segmentos!$C:$C,$B51,BD_Segmentos!$A:$A,"S4")*ValorUnidad -> 14563.16936 | H51: =SUMIFS(BD_Segmentos!G:G,BD_Segmentos!$C:$C,$B51,BD_Segmentos!$A:$A,"S4")*ValorUnidad -> 14173.9105 | I51: =SUMIFS(BD_Segmentos!H:H,BD_Segmentos!$C:$C,$B51,BD_Segmentos!$A:$A,"S4")*ValorUnidad -> 14438.94632 | J51: =SUMIFS(BD_Segmentos!I:I,BD_Segmentos!$C:$C,$B51,BD_Segmentos!$A:$A,"S4")*ValorUnidad -> 14633.75668 | K51: =SUMIFS(BD_Segmentos!J:J,BD_Segmentos!$C:$C,$B51,BD_Segmentos!$A:$A,"S4")*ValorUnidad -> 14742.73377 | L51: =SUMIFS(BD_Segmentos!K:K,BD_Segmentos!$C:$C,$B51,BD_Segmentos!$A:$A,"S4")*ValorUnidad -> 15314.19458 | M51: =SUMIFS(BD_Segmentos!L:L,BD_Segmentos!$C:$C,$B51,BD_Segmentos!$A:$A,"S4")*ValorUnidad -> 14965.10607 | N51: =SUMIFS(BD_Segmentos!M:M,BD_Segmentos!$C:$C,$B51,BD_Segmentos!$A:$A,"S4")*ValorUnidad -> 17137.80209 | O51: =SUMIFS(BD_Segmentos!N:N,BD_Segmentos!$C:$C,$B51,BD_Segmentos!$A:$A,"S4")*ValorUnidad -> 18365.96097 | P51: =SUMIFS(BD_Segmentos!O:O,BD_Segmentos!$C:$C,$B51,BD_Segmentos!$A:$A,"S4")*ValorUnidad -> 19527.04027 | Q51: =SUMIFS(BD_Segmentos!P:P,BD_Segmentos!$C:$C,$B51,BD_Segmentos!$A:$A,"S4")*ValorUnidad -> 19618.78603 | R51: =SUMIFS(BD_Segmentos!Q:Q,BD_Segmentos!$C:$C,$B51,BD_Segmentos!$A:$A,"S4")*ValorUnidad -> 18938.18522 | S51: =SUMIFS(BD_Segmentos!R:R,BD_Segmentos!$C:$C,$B51,BD_Segmentos!$A:$A,"S4")*ValorUnidad -> 18368.71775 | T51: =SUMIFS(BD_Segmentos!S:S,BD_Segmentos!$C:$C,$B51,BD_Segmentos!$A:$A,"S4")*ValorUnidad -> 18544.99354 | U51: =SUMIFS(BD_Segmentos!T:T,BD_Segmentos!$C:$C,$B51,BD_Segmentos!$A:$A,"S4")*ValorUnidad -> 18561.12733 | V51: =SUMIFS(BD_Segmentos!U:U,BD_Segmentos!$C:$C,$B51,BD_Segmentos!$A:$A,"S4")*ValorUnidad -> 17966.50047
B52: 6 | C52: Investments at amortized cost | E52: =SUMIFS(BD_Segmentos!D:D,BD_Segmentos!$C:$C,$B52,BD_Segmentos!$A:$A,"S4")*ValorUnidad -> 1871.237041 | F52: =SUMIFS(BD_Segmentos!E:E,BD_Segmentos!$C:$C,$B52,BD_Segmentos!$A:$A,"S4")*ValorUnidad -> 1893.532017 | G52: =SUMIFS(BD_Segmentos!F:F,BD_Segmentos!$C:$C,$B52,BD_Segmentos!$A:$A,"S4")*ValorUnidad -> 1861.635345 | H52: =SUMIFS(BD_Segmentos!G:G,BD_Segmentos!$C:$C,$B52,BD_Segmentos!$A:$A,"S4")*ValorUnidad -> 1884.066678 | I52: =SUMIFS(BD_Segmentos!H:H,BD_Segmentos!$C:$C,$B52,BD_Segmentos!$A:$A,"S4")*ValorUnidad -> 1848.731231 | J52: =SUMIFS(BD_Segmentos!I:I,BD_Segmentos!$C:$C,$B52,BD_Segmentos!$A:$A,"S4")*ValorUnidad -> 1867.425861 | K52: =SUMIFS(BD_Segmentos!J:J,BD_Segmentos!$C:$C,$B52,BD_Segmentos!$A:$A,"S4")*ValorUnidad -> 2130.793691 | L52: =SUMIFS(BD_Segmentos!K:K,BD_Segmentos!$C:$C,$B52,BD_Segmentos!$A:$A,"S4")*ValorUnidad -> 2206.985842 | M52: =SUMIFS(BD_Segmentos!L:L,BD_Segmentos!$C:$C,$B52,BD_Segmentos!$A:$A,"S4")*ValorUnidad -> 2275.888723 | N52: =SUMIFS(BD_Segmentos!M:M,BD_Segmentos!$C:$C,$B52,BD_Segmentos!$A:$A,"S4")*ValorUnidad -> 2550.865667 | O52: =SUMIFS(BD_Segmentos!N:N,BD_Segmentos!$C:$C,$B52,BD_Segmentos!$A:$A,"S4")*ValorUnidad -> 2674.37741 | P52: =SUMIFS(BD_Segmentos!O:O,BD_Segmentos!$C:$C,$B52,BD_Segmentos!$A:$A,"S4")*ValorUnidad -> 2707.297813 | Q52: =SUMIFS(BD_Segmentos!P:P,BD_Segmentos!$C:$C,$B52,BD_Segmentos!$A:$A,"S4")*ValorUnidad -> 2771.618106 | R52: =SUMIFS(BD_Segmentos!Q:Q,BD_Segmentos!$C:$C,$B52,BD_Segmentos!$A:$A,"S4")*ValorUnidad -> 2804.092843 | S52: =SUMIFS(BD_Segmentos!R:R,BD_Segmentos!$C:$C,$B52,BD_Segmentos!$A:$A,"S4")*ValorUnidad -> 2768.103396 | T52: =SUMIFS(BD_Segmentos!S:S,BD_Segmentos!$C:$C,$B52,BD_Segmentos!$A:$A,"S4")*ValorUnidad -> 3296.030223 | U52: =SUMIFS(BD_Segmentos!T:T,BD_Segmentos!$C:$C,$B52,BD_Segmentos!$A:$A,"S4")*ValorUnidad -> 3275.90474 | V52: =SUMIFS(BD_Segmentos!U:U,BD_Segmentos!$C:$C,$B52,BD_Segmentos!$A:$A,"S4")*ValorUnidad -> 3316.565434
C53: Financial investments | E53: =+SUM(E50:E52) -> 18049.98252 | F53: =+SUM(F50:F52) -> 17803.51939 | G53: 18118.25608 | H53: 17629.44559 | I53: 17852.77328 | J53: 17835.54596 | K53: 18353.19713 | L53: 19072.71806 | M53: 18634.93292 | N53: 21198.65947 | O53: 22787.87946 | P53: =+SUM(P50:P52) -> 24277.11553 | Q53: 24678.84736 | R53: =+SUM(R50:R52) -> 24278.13199 | S53: 24154.72392 | T53: =+SUM(T50:T52) -> 24547.29413 | U53: 24306.68955 | V53: =+SUM(V50:V52) -> 23594.35434
B54: 7 | C54: Loans, net of unearned interest | E54: =SUMIFS(BD_Segmentos!D:D,BD_Segmentos!$C:$C,$B54,BD_Segmentos!$A:$A,"S4")*ValorUnidad -> 30021.7092 | F54: =SUMIFS(BD_Segmentos!E:E,BD_Segmentos!$C:$C,$B54,BD_Segmentos!$A:$A,"S4")*ValorUnidad -> 31596.58626 | G54: =SUMIFS(BD_Segmentos!F:F,BD_Segmentos!$C:$C,$B54,BD_Segmentos!$A:$A,"S4")*ValorUnidad -> 32680.45835 | H54: =SUMIFS(BD_Segmentos!G:G,BD_Segmentos!$C:$C,$B54,BD_Segmentos!$A:$A,"S4")*ValorUnidad -> 34325.72125 | I54: =SUMIFS(BD_Segmentos!H:H,BD_Segmentos!$C:$C,$B54,BD_Segmentos!$A:$A,"S4")*ValorUnidad -> 35018.98509 | J54: =SUMIFS(BD_Segmentos!I:I,BD_Segmentos!$C:$C,$B54,BD_Segmentos!$A:$A,"S4")*ValorUnidad -> 35646.9717 | K54: =SUMIFS(BD_Segmentos!J:J,BD_Segmentos!$C:$C,$B54,BD_Segmentos!$A:$A,"S4")*ValorUnidad -> 36880.40171 | L54: =SUMIFS(BD_Segmentos!K:K,BD_Segmentos!$C:$C,$B54,BD_Segmentos!$A:$A,"S4")*ValorUnidad -> 38531.63194 | M54: =SUMIFS(BD_Segmentos!L:L,BD_Segmentos!$C:$C,$B54,BD_Segmentos!$A:$A,"S4")*ValorUnidad -> 38556.58482 | N54: =SUMIFS(BD_Segmentos!M:M,BD_Segmentos!$C:$C,$B54,BD_Segmentos!$A:$A,"S4")*ValorUnidad -> 42061.81054 | O54: =SUMIFS(BD_Segmentos!N:N,BD_Segmentos!$C:$C,$B54,BD_Segmentos!$A:$A,"S4")*ValorUnidad -> 43962.93109 | P54: =SUMIFS(BD_Segmentos!O:O,BD_Segmentos!$C:$C,$B54,BD_Segmentos!$A:$A,"S4")*ValorUnidad -> 43504.27432 | Q54: =SUMIFS(BD_Segmentos!P:P,BD_Segmentos!$C:$C,$B54,BD_Segmentos!$A:$A,"S4")*ValorUnidad -> 43491.4248 | R54: =SUMIFS(BD_Segmentos!Q:Q,BD_Segmentos!$C:$C,$B54,BD_Segmentos!$A:$A,"S4")*ValorUnidad -> 43875.22288 | S54: =SUMIFS(BD_Segmentos!R:R,BD_Segmentos!$C:$C,$B54,BD_Segmentos!$A:$A,"S4")*ValorUnidad -> 44037.26911 | T54: =SUMIFS(BD_Segmentos!S:S,BD_Segmentos!$C:$C,$B54,BD_Segmentos!$A:$A,"S4")*ValorUnidad -> 45070.4996 | U54: =SUMIFS(BD_Segmentos!T:T,BD_Segmentos!$C:$C,$B54,BD_Segmentos!$A:$A,"S4")*ValorUnidad -> 44320.2796 | V54: =SUMIFS(BD_Segmentos!U:U,BD_Segmentos!$C:$C,$B54,BD_Segmentos!$A:$A,"S4")*ValorUnidad -> 46024.87397
B55: 8 | C55: Impairment allowance for loans | E55: =SUMIFS(BD_Segmentos!D:D,BD_Segmentos!$C:$C,$B55,BD_Segmentos!$A:$A,"S4")*ValorUnidad -> -1258.1049 | F55: =SUMIFS(BD_Segmentos!E:E,BD_Segmentos!$C:$C,$B55,BD_Segmentos!$A:$A,"S4")*ValorUnidad -> -1273.553643 | G55: =SUMIFS(BD_Segmentos!F:F,BD_Segmentos!$C:$C,$B55,BD_Segmentos!$A:$A,"S4")*ValorUnidad -> -1281.150178 | H55: =SUMIFS(BD_Segmentos!G:G,BD_Segmentos!$C:$C,$B55,BD_Segmentos!$A:$A,"S4")*ValorUnidad -> -1364.804113 | I55: =SUMIFS(BD_Segmentos!H:H,BD_Segmentos!$C:$C,$B55,BD_Segmentos!$A:$A,"S4")*ValorUnidad -> -1396.243146 | J55: =SUMIFS(BD_Segmentos!I:I,BD_Segmentos!$C:$C,$B55,BD_Segmentos!$A:$A,"S4")*ValorUnidad -> -1411.861143 | K55: =SUMIFS(BD_Segmentos!J:J,BD_Segmentos!$C:$C,$B55,BD_Segmentos!$A:$A,"S4")*ValorUnidad -> -1465.058646 | L55: =SUMIFS(BD_Segmentos!K:K,BD_Segmentos!$C:$C,$B55,BD_Segmentos!$A:$A,"S4")*ValorUnidad -> -1394.778676 | M55: =SUMIFS(BD_Segmentos!L:L,BD_Segmentos!$C:$C,$B55,BD_Segmentos!$A:$A,"S4")*ValorUnidad -> -1494.532953 | N55: =SUMIFS(BD_Segmentos!M:M,BD_Segmentos!$C:$C,$B55,BD_Segmentos!$A:$A,"S4")*ValorUnidad -> -2731.347572 | O55: =SUMIFS(BD_Segmentos!N:N,BD_Segmentos!$C:$C,$B55,BD_Segmentos!$A:$A,"S4")*ValorUnidad -> -3116.45219 | P55: =SUMIFS(BD_Segmentos!O:O,BD_Segmentos!$C:$C,$B55,BD_Segmentos!$A:$A,"S4")*ValorUnidad -> -2984.850679 | Q55: =SUMIFS(BD_Segmentos!P:P,BD_Segmentos!$C:$C,$B55,BD_Segmentos!$A:$A,"S4")*ValorUnidad -> -2654.539597 | R55: =SUMIFS(BD_Segmentos!Q:Q,BD_Segmentos!$C:$C,$B55,BD_Segmentos!$A:$A,"S4")*ValorUnidad -> -2466.960882 | S55: =SUMIFS(BD_Segmentos!R:R,BD_Segmentos!$C:$C,$B55,BD_Segmentos!$A:$A,"S4")*ValorUnidad -> -2298.73734 | T55: =SUMIFS(BD_Segmentos!S:S,BD_Segmentos!$C:$C,$B55,BD_Segmentos!$A:$A,"S4")*ValorUnidad -> -2064.917148 | U55: =SUMIFS(BD_Segmentos!T:T,BD_Segmentos!$C:$C,$B55,BD_Segmentos!$A:$A,"S4")*ValorUnidad -> -2039.220875 | V55: =SUMIFS(BD_Segmentos!U:U,BD_Segmentos!$C:$C,$B55,BD_Segmentos!$A:$A,"S4")*ValorUnidad -> -2044.52459
B56: 11 | C56: Property, furniture and equipment, net | E56: =SUMIFS(BD_Segmentos!D:D,BD_Segmentos!$C:$C,$B56,BD_Segmentos!$A:$A,"S4")*ValorUnidad -> 597.5080066 | F56: =SUMIFS(BD_Segmentos!E:E,BD_Segmentos!$C:$C,$B56,BD_Segmentos!$A:$A,"S4")*ValorUnidad -> 597.9935605 | G56: =SUMIFS(BD_Segmentos!F:F,BD_Segmentos!$C:$C,$B56,BD_Segmentos!$A:$A,"S4")*ValorUnidad -> 606.0213854 | H56: =SUMIFS(BD_Segmentos!G:G,BD_Segmentos!$C:$C,$B56,BD_Segmentos!$A:$A,"S4")*ValorUnidad -> 622.5252933 | I56: =SUMIFS(BD_Segmentos!H:H,BD_Segmentos!$C:$C,$B56,BD_Segmentos!$A:$A,"S4")*ValorUnidad -> 948.5125628 | J56: =SUMIFS(BD_Segmentos!I:I,BD_Segmentos!$C:$C,$B56,BD_Segmentos!$A:$A,"S4")*ValorUnidad -> 900.2379265 | K56: =SUMIFS(BD_Segmentos!J:J,BD_Segmentos!$C:$C,$B56,BD_Segmentos!$A:$A,"S4")*ValorUnidad -> 879.8363259 | L56: =SUMIFS(BD_Segmentos!K:K,BD_Segmentos!$C:$C,$B56,BD_Segmentos!$A:$A,"S4")*ValorUnidad -> 950.9434758 | M56: =SUMIFS(BD_Segmentos!L:L,BD_Segmentos!$C:$C,$B56,BD_Segmentos!$A:$A,"S4")*ValorUnidad -> 935.5924868 | N56: =SUMIFS(BD_Segmentos!M:M,BD_Segmentos!$C:$C,$B56,BD_Segmentos!$A:$A,"S4")*ValorUnidad -> 899.2510374 | O56: =SUMIFS(BD_Segmentos!N:N,BD_Segmentos!$C:$C,$B56,BD_Segmentos!$A:$A,"S4")*ValorUnidad -> 874.9937644 | P56: =SUMIFS(BD_Segmentos!O:O,BD_Segmentos!$C:$C,$B56,BD_Segmentos!$A:$A,"S4")*ValorUnidad -> 844.4269428 | Q56: =SUMIFS(BD_Segmentos!P:P,BD_Segmentos!$C:$C,$B56,BD_Segmentos!$A:$A,"S4")*ValorUnidad -> 814.8082603 | R56: =SUMIFS(BD_Segmentos!Q:Q,BD_Segmentos!$C:$C,$B56,BD_Segmentos!$A:$A,"S4")*ValorUnidad -> 788.6313461 | S56: =SUMIFS(BD_Segmentos!R:R,BD_Segmentos!$C:$C,$B56,BD_Segmentos!$A:$A,"S4")*ValorUnidad -> 795.0076262 | T56: =SUMIFS(BD_Segmentos!S:S,BD_Segmentos!$C:$C,$B56,BD_Segmentos!$A:$A,"S4")*ValorUnidad -> 815.1179023 | U56: =SUMIFS(BD_Segmentos!T:T,BD_Segmentos!$C:$C,$B56,BD_Segmentos!$A:$A,"S4")*ValorUnidad -> 807.6573221 | V56: =SUMIFS(BD_Segmentos!U:U,BD_Segmentos!$C:$C,$B56,BD_Segmentos!$A:$A,"S4")*ValorUnidad -> 843.6444843
B57: 10 | C57: Investments in associates | E57: =SUMIFS(BD_Segmentos!D:D,BD_Segmentos!$C:$C,$B57,BD_Segmentos!$A:$A,"S4")*ValorUnidad -> 62.10392987 | F57: =SUMIFS(BD_Segmentos!E:E,BD_Segmentos!$C:$C,$B57,BD_Segmentos!$A:$A,"S4")*ValorUnidad -> 53.57780082 | G57: =SUMIFS(BD_Segmentos!F:F,BD_Segmentos!$C:$C,$B57,BD_Segmentos!$A:$A,"S4")*ValorUnidad -> 58.91050767 | H57: =SUMIFS(BD_Segmentos!G:G,BD_Segmentos!$C:$C,$B57,BD_Segmentos!$A:$A,"S4")*ValorUnidad -> 63.23285944 | I57: =SUMIFS(BD_Segmentos!H:H,BD_Segmentos!$C:$C,$B57,BD_Segmentos!$A:$A,"S4")*ValorUnidad -> 66.50796892 | J57: =SUMIFS(BD_Segmentos!I:I,BD_Segmentos!$C:$C,$B57,BD_Segmentos!$A:$A,"S4")*ValorUnidad -> 60.93591577 | K57: =SUMIFS(BD_Segmentos!J:J,BD_Segmentos!$C:$C,$B57,BD_Segmentos!$A:$A,"S4")*ValorUnidad -> 66.77783834 | L57: =SUMIFS(BD_Segmentos!K:K,BD_Segmentos!$C:$C,$B57,BD_Segmentos!$A:$A,"S4")*ValorUnidad -> 72.30109454 | M57: =SUMIFS(BD_Segmentos!L:L,BD_Segmentos!$C:$C,$B57,BD_Segmentos!$A:$A,"S4")*ValorUnidad -> 76.97851974 | N57: =SUMIFS(BD_Segmentos!M:M,BD_Segmentos!$C:$C,$B57,BD_Segmentos!$A:$A,"S4")*ValorUnidad -> 69.38332338 | O57: =SUMIFS(BD_Segmentos!N:N,BD_Segmentos!$C:$C,$B57,BD_Segmentos!$A:$A,"S4")*ValorUnidad -> 64.42126547 | P57: =SUMIFS(BD_Segmentos!O:O,BD_Segmentos!$C:$C,$B57,BD_Segmentos!$A:$A,"S4")*ValorUnidad -> 70.34387327 | Q57: =SUMIFS(BD_Segmentos!P:P,BD_Segmentos!$C:$C,$B57,BD_Segmentos!$A:$A,"S4")*ValorUnidad -> 77.99776041 | R57: =SUMIFS(BD_Segmentos!Q:Q,BD_Segmentos!$C:$C,$B57,BD_Segmentos!$A:$A,"S4")*ValorUnidad -> 80.50421504 | S57: =SUMIFS(BD_Segmentos!R:R,BD_Segmentos!$C:$C,$B57,BD_Segmentos!$A:$A,"S4")*ValorUnidad -> 90.05890163 | T57: =SUMIFS(BD_Segmentos!S:S,BD_Segmentos!$C:$C,$B57,BD_Segmentos!$A:$A,"S4")*ValorUnidad -> 99.76669158 | U57: =SUMIFS(BD_Segmentos!T:T,BD_Segmentos!$C:$C,$B57,BD_Segmentos!$A:$A,"S4")*ValorUnidad -> 109.089192 | V57: =SUMIFS(BD_Segmentos!U:U,BD_Segmentos!$C:$C,$B57,BD_Segmentos!$A:$A,"S4")*ValorUnidad -> 13.74662827
B58: 9 | C58: Investment property | E58: =SUMIFS(BD_Segmentos!D:D,BD_Segmentos!$C:$C,$B58,BD_Segmentos!$A:$A,"S4")*ValorUnidad -> 943.5272243 | F58: =SUMIFS(BD_Segmentos!E:E,BD_Segmentos!$C:$C,$B58,BD_Segmentos!$A:$A,"S4")*ValorUnidad -> 939.560888 | G58: =SUMIFS(BD_Segmentos!F:F,BD_Segmentos!$C:$C,$B58,BD_Segmentos!$A:$A,"S4")*ValorUnidad -> 981.703922 | H58: =SUMIFS(BD_Segmentos!G:G,BD_Segmentos!$C:$C,$B58,BD_Segmentos!$A:$A,"S4")*ValorUnidad -> 986.5376673 | I58: =SUMIFS(BD_Segmentos!H:H,BD_Segmentos!$C:$C,$B58,BD_Segmentos!$A:$A,"S4")*ValorUnidad -> 989.5946324 | J58: =SUMIFS(BD_Segmentos!I:I,BD_Segmentos!$C:$C,$B58,BD_Segmentos!$A:$A,"S4")*ValorUnidad -> 999.7733104 | K58: =SUMIFS(BD_Segmentos!J:J,BD_Segmentos!$C:$C,$B58,BD_Segmentos!$A:$A,"S4")*ValorUnidad -> 962.1957514 | L58: =SUMIFS(BD_Segmentos!K:K,BD_Segmentos!$C:$C,$B58,BD_Segmentos!$A:$A,"S4")*ValorUnidad -> 972.0958494 | M58: =SUMIFS(BD_Segmentos!L:L,BD_Segmentos!$C:$C,$B58,BD_Segmentos!$A:$A,"S4")*ValorUnidad -> 985.362453 | N58: =SUMIFS(BD_Segmentos!M:M,BD_Segmentos!$C:$C,$B58,BD_Segmentos!$A:$A,"S4")*ValorUnidad -> 1031.239799 | O58: =SUMIFS(BD_Segmentos!N:N,BD_Segmentos!$C:$C,$B58,BD_Segmentos!$A:$A,"S4")*ValorUnidad -> 1044.770734 | P58: =SUMIFS(BD_Segmentos!O:O,BD_Segmentos!$C:$C,$B58,BD_Segmentos!$A:$A,"S4")*ValorUnidad -> 1043.978033 | Q58: =SUMIFS(BD_Segmentos!P:P,BD_Segmentos!$C:$C,$B58,BD_Segmentos!$A:$A,"S4")*ValorUnidad -> 1203.898141 | R58: =SUMIFS(BD_Segmentos!Q:Q,BD_Segmentos!$C:$C,$B58,BD_Segmentos!$A:$A,"S4")*ValorUnidad -> 1226.745698 | S58: =SUMIFS(BD_Segmentos!R:R,BD_Segmentos!$C:$C,$B58,BD_Segmentos!$A:$A,"S4")*ValorUnidad -> 1242.171941 | T58: =SUMIFS(BD_Segmentos!S:S,BD_Segmentos!$C:$C,$B58,BD_Segmentos!$A:$A,"S4")*ValorUnidad -> 1224.454296 | U58: =SUMIFS(BD_Segmentos!T:T,BD_Segmentos!$C:$C,$B58,BD_Segmentos!$A:$A,"S4")*ValorUnidad -> 1199.759825 | V58: =SUMIFS(BD_Segmentos!U:U,BD_Segmentos!$C:$C,$B58,BD_Segmentos!$A:$A,"S4")*ValorUnidad -> 1280.321808
B59: 12 | C59: Other accounts receivable and other assets, net | E59: =SUMIFS(BD_Segmentos!D:D,BD_Segmentos!$C:$C,$B59,BD_Segmentos!$A:$A,"S4")*ValorUnidad -> 1378.997429 | F59: =SUMIFS(BD_Segmentos!E:E,BD_Segmentos!$C:$C,$B59,BD_Segmentos!$A:$A,"S4")*ValorUnidad -> 1333.288648 | G59: =SUMIFS(BD_Segmentos!F:F,BD_Segmentos!$C:$C,$B59,BD_Segmentos!$A:$A,"S4")*ValorUnidad -> 1239.521147 | H59: =SUMIFS(BD_Segmentos!G:G,BD_Segmentos!$C:$C,$B59,BD_Segmentos!$A:$A,"S4")*ValorUnidad -> 1439.32196 | I59: =SUMIFS(BD_Segmentos!H:H,BD_Segmentos!$C:$C,$B59,BD_Segmentos!$A:$A,"S4")*ValorUnidad -> 1427.141998 | J59: =SUMIFS(BD_Segmentos!I:I,BD_Segmentos!$C:$C,$B59,BD_Segmentos!$A:$A,"S4")*ValorUnidad -> 1237.811679 | K59: =SUMIFS(BD_Segmentos!J:J,BD_Segmentos!$C:$C,$B59,BD_Segmentos!$A:$A,"S4")*ValorUnidad -> 2886.081487 | L59: =SUMIFS(BD_Segmentos!K:K,BD_Segmentos!$C:$C,$B59,BD_Segmentos!$A:$A,"S4")*ValorUnidad -> 979.5707257 | M59: =SUMIFS(BD_Segmentos!L:L,BD_Segmentos!$C:$C,$B59,BD_Segmentos!$A:$A,"S4")*ValorUnidad -> 1251.175438 | N59: =SUMIFS(BD_Segmentos!M:M,BD_Segmentos!$C:$C,$B59,BD_Segmentos!$A:$A,"S4")*ValorUnidad -> 2756.226096 | O59: =SUMIFS(BD_Segmentos!N:N,BD_Segmentos!$C:$C,$B59,BD_Segmentos!$A:$A,"S4")*ValorUnidad -> 1537.138663 | P59: =SUMIFS(BD_Segmentos!O:O,BD_Segmentos!$C:$C,$B59,BD_Segmentos!$A:$A,"S4")*ValorUnidad -> 1284.684185 | Q59: =SUMIFS(BD_Segmentos!P:P,BD_Segmentos!$C:$C,$B59,BD_Segmentos!$A:$A,"S4")*ValorUnidad -> 1785.835132 | R59: =SUMIFS(BD_Segmentos!Q:Q,BD_Segmentos!$C:$C,$B59,BD_Segmentos!$A:$A,"S4")*ValorUnidad -> 1930.389418 | S59: =SUMIFS(BD_Segmentos!R:R,BD_Segmentos!$C:$C,$B59,BD_Segmentos!$A:$A,"S4")*ValorUnidad -> 2650.521388 | T59: =SUMIFS(BD_Segmentos!S:S,BD_Segmentos!$C:$C,$B59,BD_Segmentos!$A:$A,"S4")*ValorUnidad -> 1787.686058 | U59: =SUMIFS(BD_Segmentos!T:T,BD_Segmentos!$C:$C,$B59,BD_Segmentos!$A:$A,"S4")*ValorUnidad -> 1699.401608 | V59: =SUMIFS(BD_Segmentos!U:U,BD_Segmentos!$C:$C,$B59,BD_Segmentos!$A:$A,"S4")*ValorUnidad -> 1927.636275
B60: 12.1 | C60: Intangibles and goodwill, net | E60: =SUMIFS(BD_Segmentos!D:D,BD_Segmentos!$C:$C,$B60,BD_Segmentos!$A:$A,"S4")*ValorUnidad -> 902.975938 | F60: =SUMIFS(BD_Segmentos!E:E,BD_Segmentos!$C:$C,$B60,BD_Segmentos!$A:$A,"S4")*ValorUnidad -> 922.9365988 | G60: =SUMIFS(BD_Segmentos!F:F,BD_Segmentos!$C:$C,$B60,BD_Segmentos!$A:$A,"S4")*ValorUnidad -> 927.6217153 | H60: =SUMIFS(BD_Segmentos!G:G,BD_Segmentos!$C:$C,$B60,BD_Segmentos!$A:$A,"S4")*ValorUnidad -> 954.5454724 | I60: =SUMIFS(BD_Segmentos!H:H,BD_Segmentos!$C:$C,$B60,BD_Segmentos!$A:$A,"S4")*ValorUnidad -> 946.7927539 | J60: =SUMIFS(BD_Segmentos!I:I,BD_Segmentos!$C:$C,$B60,BD_Segmentos!$A:$A,"S4")*ValorUnidad -> 955.8643756 | K60: =SUMIFS(BD_Segmentos!J:J,BD_Segmentos!$C:$C,$B60,BD_Segmentos!$A:$A,"S4")*ValorUnidad -> 953.4259712 | L60: =SUMIFS(BD_Segmentos!K:K,BD_Segmentos!$C:$C,$B60,BD_Segmentos!$A:$A,"S4")*ValorUnidad -> 979.2622323 | M60: =SUMIFS(BD_Segmentos!L:L,BD_Segmentos!$C:$C,$B60,BD_Segmentos!$A:$A,"S4")*ValorUnidad -> 1015.005889 | N60: =SUMIFS(BD_Segmentos!M:M,BD_Segmentos!$C:$C,$B60,BD_Segmentos!$A:$A,"S4")*ValorUnidad -> 1027.929536 | O60: =SUMIFS(BD_Segmentos!N:N,BD_Segmentos!$C:$C,$B60,BD_Segmentos!$A:$A,"S4")*ValorUnidad -> 1030.437902 | P60: =SUMIFS(BD_Segmentos!O:O,BD_Segmentos!$C:$C,$B60,BD_Segmentos!$A:$A,"S4")*ValorUnidad -> 1042.584927 | Q60: =SUMIFS(BD_Segmentos!P:P,BD_Segmentos!$C:$C,$B60,BD_Segmentos!$A:$A,"S4")*ValorUnidad -> 1030.822284 | R60: =SUMIFS(BD_Segmentos!Q:Q,BD_Segmentos!$C:$C,$B60,BD_Segmentos!$A:$A,"S4")*ValorUnidad -> 1023.967955 | S60: =SUMIFS(BD_Segmentos!R:R,BD_Segmentos!$C:$C,$B60,BD_Segmentos!$A:$A,"S4")*ValorUnidad -> 1031.831316 | T60: =SUMIFS(BD_Segmentos!S:S,BD_Segmentos!$C:$C,$B60,BD_Segmentos!$A:$A,"S4")*ValorUnidad -> 1044.749427 | U60: =SUMIFS(BD_Segmentos!T:T,BD_Segmentos!$C:$C,$B60,BD_Segmentos!$A:$A,"S4")*ValorUnidad -> 1036.743441 | V60: =SUMIFS(BD_Segmentos!U:U,BD_Segmentos!$C:$C,$B60,BD_Segmentos!$A:$A,"S4")*ValorUnidad -> 1293.252663
B61: 14 | C61: Deferred Income Tax asset, net | E61: =SUMIFS(BD_Segmentos!D:D,BD_Segmentos!$C:$C,$B61,BD_Segmentos!$A:$A,"S4")*ValorUnidad -> 75.55635097 | F61: =SUMIFS(BD_Segmentos!E:E,BD_Segmentos!$C:$C,$B61,BD_Segmentos!$A:$A,"S4")*ValorUnidad -> 65.74433186 | G61: =SUMIFS(BD_Segmentos!F:F,BD_Segmentos!$C:$C,$B61,BD_Segmentos!$A:$A,"S4")*ValorUnidad -> 56.17838749 | H61: =SUMIFS(BD_Segmentos!G:G,BD_Segmentos!$C:$C,$B61,BD_Segmentos!$A:$A,"S4")*ValorUnidad -> 79.47529789 | I61: =SUMIFS(BD_Segmentos!H:H,BD_Segmentos!$C:$C,$B61,BD_Segmentos!$A:$A,"S4")*ValorUnidad -> 81.76489337 | J61: =SUMIFS(BD_Segmentos!I:I,BD_Segmentos!$C:$C,$B61,BD_Segmentos!$A:$A,"S4")*ValorUnidad -> 66.31263728 | K61: =SUMIFS(BD_Segmentos!J:J,BD_Segmentos!$C:$C,$B61,BD_Segmentos!$A:$A,"S4")*ValorUnidad -> 52.63584136 | L61: =SUMIFS(BD_Segmentos!K:K,BD_Segmentos!$C:$C,$B61,BD_Segmentos!$A:$A,"S4")*ValorUnidad -> 44.98306836 | M61: =SUMIFS(BD_Segmentos!L:L,BD_Segmentos!$C:$C,$B61,BD_Segmentos!$A:$A,"S4")*ValorUnidad -> 85.12989511 | N61: =SUMIFS(BD_Segmentos!M:M,BD_Segmentos!$C:$C,$B61,BD_Segmentos!$A:$A,"S4")*ValorUnidad -> 293.7362366 | O61: =SUMIFS(BD_Segmentos!N:N,BD_Segmentos!$C:$C,$B61,BD_Segmentos!$A:$A,"S4")*ValorUnidad -> 237.5406363 | P61: =SUMIFS(BD_Segmentos!O:O,BD_Segmentos!$C:$C,$B61,BD_Segmentos!$A:$A,"S4")*ValorUnidad -> 353.5650023 | Q61: =SUMIFS(BD_Segmentos!P:P,BD_Segmentos!$C:$C,$B61,BD_Segmentos!$A:$A,"S4")*ValorUnidad -> 280.199253 | R61: =SUMIFS(BD_Segmentos!Q:Q,BD_Segmentos!$C:$C,$B61,BD_Segmentos!$A:$A,"S4")*ValorUnidad -> 255.4519489 | S61: =SUMIFS(BD_Segmentos!R:R,BD_Segmentos!$C:$C,$B61,BD_Segmentos!$A:$A,"S4")*ValorUnidad -> 261.5497345 | T61: =SUMIFS(BD_Segmentos!S:S,BD_Segmentos!$C:$C,$B61,BD_Segmentos!$A:$A,"S4")*ValorUnidad -> 142.3666063 | U61: =SUMIFS(BD_Segmentos!T:T,BD_Segmentos!$C:$C,$B61,BD_Segmentos!$A:$A,"S4")*ValorUnidad -> 204.5119525 | V61: =SUMIFS(BD_Segmentos!U:U,BD_Segmentos!$C:$C,$B61,BD_Segmentos!$A:$A,"S4")*ValorUnidad -> 228.773952
B62: 20 | C62: Due from customers on acceptances | E62: =SUMIFS(BD_Segmentos!D:D,BD_Segmentos!$C:$C,$B62,BD_Segmentos!$A:$A,"S4")*ValorUnidad -> 65.07 | F62: =SUMIFS(BD_Segmentos!E:E,BD_Segmentos!$C:$C,$B62,BD_Segmentos!$A:$A,"S4")*ValorUnidad -> 84.146 | G62: =SUMIFS(BD_Segmentos!F:F,BD_Segmentos!$C:$C,$B62,BD_Segmentos!$A:$A,"S4")*ValorUnidad -> 117.392 | H62: =SUMIFS(BD_Segmentos!G:G,BD_Segmentos!$C:$C,$B62,BD_Segmentos!$A:$A,"S4")*ValorUnidad -> 132.961 | I62: =SUMIFS(BD_Segmentos!H:H,BD_Segmentos!$C:$C,$B62,BD_Segmentos!$A:$A,"S4")*ValorUnidad -> 89.748 | J62: =SUMIFS(BD_Segmentos!I:I,BD_Segmentos!$C:$C,$B62,BD_Segmentos!$A:$A,"S4")*ValorUnidad -> 57.685 | K62: =SUMIFS(BD_Segmentos!J:J,BD_Segmentos!$C:$C,$B62,BD_Segmentos!$A:$A,"S4")*ValorUnidad -> 124.69 | L62: =SUMIFS(BD_Segmentos!K:K,BD_Segmentos!$C:$C,$B62,BD_Segmentos!$A:$A,"S4")*ValorUnidad -> 139.685 | M62: =SUMIFS(BD_Segmentos!L:L,BD_Segmentos!$C:$C,$B62,BD_Segmentos!$A:$A,"S4")*ValorUnidad -> 32.068 | N62: =SUMIFS(BD_Segmentos!M:M,BD_Segmentos!$C:$C,$B62,BD_Segmentos!$A:$A,"S4")*ValorUnidad -> 16.577 | O62: =SUMIFS(BD_Segmentos!N:N,BD_Segmentos!$C:$C,$B62,BD_Segmentos!$A:$A,"S4")*ValorUnidad -> 15.693 | P62: =SUMIFS(BD_Segmentos!O:O,BD_Segmentos!$C:$C,$B62,BD_Segmentos!$A:$A,"S4")*ValorUnidad -> 16.32 | Q62: =SUMIFS(BD_Segmentos!P:P,BD_Segmentos!$C:$C,$B62,BD_Segmentos!$A:$A,"S4")*ValorUnidad -> 72.45327759 | R62: =SUMIFS(BD_Segmentos!Q:Q,BD_Segmentos!$C:$C,$B62,BD_Segmentos!$A:$A,"S4")*ValorUnidad -> 137.2596834 | S62: =SUMIFS(BD_Segmentos!R:R,BD_Segmentos!$C:$C,$B62,BD_Segmentos!$A:$A,"S4")*ValorUnidad -> 91.48790544 | T62: =SUMIFS(BD_Segmentos!S:S,BD_Segmentos!$C:$C,$B62,BD_Segmentos!$A:$A,"S4")*ValorUnidad -> 152.422769 | U62: =SUMIFS(BD_Segmentos!T:T,BD_Segmentos!$C:$C,$B62,BD_Segmentos!$A:$A,"S4")*ValorUnidad -> 48.17415829 | V62: =SUMIFS(BD_Segmentos!U:U,BD_Segmentos!$C:$C,$B62,BD_Segmentos!$A:$A,"S4")*ValorUnidad -> 36.40618535
C63: Other assets | E63: =+SUM(E57:E62) -> 3428.230872 | F63: =+SUM(F57:F62) -> 3399.254267 | G63: 3381.327679 | H63: 3656.074257 | I63: 3601.550246 | J63: 3378.382918 | K63: 5045.806889 | L63: 3187.89797 | M63: 3445.720195 | N63: 5195.091991 | O63: 3930.002202 | P63: =+SUM(P57:P62) -> 3811.47602 | Q63: 4451.205848 | R63: =+SUM(R57:R62) -> 4654.318918 | S63: 5367.621186 | T63: =+SUM(T57:T62) -> 4451.445848 | U63: 4297.680177 | V63: =+SUM(V57:V62) -> 4780.137512
B64: ST4 | C64: Total assets | E64: =SUMIFS(BD_Segmentos!D:D,BD_Segmentos!$C:$C,$B64,BD_Segmentos!$A:$A,"S4")*ValorUnidad -> 60635.00457 | F64: =SUMIFS(BD_Segmentos!E:E,BD_Segmentos!$C:$C,$B64,BD_Segmentos!$A:$A,"S4")*ValorUnidad -> 60065.12735 | G64: =SUMIFS(BD_Segmentos!F:F,BD_Segmentos!$C:$C,$B64,BD_Segmentos!$A:$A,"S4")*ValorUnidad -> 60711.18514 | H64: =SUMIFS(BD_Segmentos!G:G,BD_Segmentos!$C:$C,$B64,BD_Segmentos!$A:$A,"S4")*ValorUnidad -> 63744.41043 | I64: =SUMIFS(BD_Segmentos!H:H,BD_Segmentos!$C:$C,$B64,BD_Segmentos!$A:$A,"S4")*ValorUnidad -> 65756.20762 | J64: =SUMIFS(BD_Segmentos!I:I,BD_Segmentos!$C:$C,$B64,BD_Segmentos!$A:$A,"S4")*ValorUnidad -> 67172.23747 | K64: =SUMIFS(BD_Segmentos!J:J,BD_Segmentos!$C:$C,$B64,BD_Segmentos!$A:$A,"S4")*ValorUnidad -> 71404.87577 | L64: =SUMIFS(BD_Segmentos!K:K,BD_Segmentos!$C:$C,$B64,BD_Segmentos!$A:$A,"S4")*ValorUnidad -> 71562.29391 | M64: =SUMIFS(BD_Segmentos!L:L,BD_Segmentos!$C:$C,$B64,BD_Segmentos!$A:$A,"S4")*ValorUnidad -> 71811.57432 | N64: =SUMIFS(BD_Segmentos!M:M,BD_Segmentos!$C:$C,$B64,BD_Segmentos!$A:$A,"S4")*ValorUnidad -> 81779.79335 | O64: =SUMIFS(BD_Segmentos!N:N,BD_Segmentos!$C:$C,$B64,BD_Segmentos!$A:$A,"S4")*ValorUnidad -> 86012.4245 | P64: =SUMIFS(BD_Segmentos!O:O,BD_Segmentos!$C:$C,$B64,BD_Segmentos!$A:$A,"S4")*ValorUnidad -> 88236.02949 | Q64: =SUMIFS(BD_Segmentos!P:P,BD_Segmentos!$C:$C,$B64,BD_Segmentos!$A:$A,"S4")*ValorUnidad -> 90042.29433 | R64: =SUMIFS(BD_Segmentos!Q:Q,BD_Segmentos!$C:$C,$B64,BD_Segmentos!$A:$A,"S4")*ValorUnidad -> 90539.70802 | S64: =SUMIFS(BD_Segmentos!R:R,BD_Segmentos!$C:$C,$B64,BD_Segmentos!$A:$A,"S4")*ValorUnidad -> 92386.59786 | T64: =SUMIFS(BD_Segmentos!S:S,BD_Segmentos!$C:$C,$B64,BD_Segmentos!$A:$A,"S4")*ValorUnidad -> 89953.90688 | U64: =SUMIFS(BD_Segmentos!T:T,BD_Segmentos!$C:$C,$B64,BD_Segmentos!$A:$A,"S4")*ValorUnidad -> 85383.91104 | V64: =SUMIFS(BD_Segmentos!U:U,BD_Segmentos!$C:$C,$B64,BD_Segmentos!$A:$A,"S4")*ValorUnidad -> 85702.48555
C66: Liabilities and equity
B67: ST6 | C67: Deposits and obligations | E67: =SUMIFS(BD_Segmentos!D:D,BD_Segmentos!$C:$C,$B67,BD_Segmentos!$A:$A,"S4")*ValorUnidad -> 31220.37235 | F67: =SUMIFS(BD_Segmentos!E:E,BD_Segmentos!$C:$C,$B67,BD_Segmentos!$A:$A,"S4")*ValorUnidad -> 30910.20431 | G67: =SUMIFS(BD_Segmentos!F:F,BD_Segmentos!$C:$C,$B67,BD_Segmentos!$A:$A,"S4")*ValorUnidad -> 31071.87456 | H67: =SUMIFS(BD_Segmentos!G:G,BD_Segmentos!$C:$C,$B67,BD_Segmentos!$A:$A,"S4")*ValorUnidad -> 33681.95 | I67: =SUMIFS(BD_Segmentos!H:H,BD_Segmentos!$C:$C,$B67,BD_Segmentos!$A:$A,"S4")*ValorUnidad -> 34789.99958 | J67: =SUMIFS(BD_Segmentos!I:I,BD_Segmentos!$C:$C,$B67,BD_Segmentos!$A:$A,"S4")*ValorUnidad -> 35373.77589 | K67: =SUMIFS(BD_Segmentos!J:J,BD_Segmentos!$C:$C,$B67,BD_Segmentos!$A:$A,"S4")*ValorUnidad -> 36277.17026 | L67: =SUMIFS(BD_Segmentos!K:K,BD_Segmentos!$C:$C,$B67,BD_Segmentos!$A:$A,"S4")*ValorUnidad -> 38093.224 | M67: =SUMIFS(BD_Segmentos!L:L,BD_Segmentos!$C:$C,$B67,BD_Segmentos!$A:$A,"S4")*ValorUnidad -> 37568.89553 | N67: =SUMIFS(BD_Segmentos!M:M,BD_Segmentos!$C:$C,$B67,BD_Segmentos!$A:$A,"S4")*ValorUnidad -> 44144.71827 | O67: =SUMIFS(BD_Segmentos!N:N,BD_Segmentos!$C:$C,$B67,BD_Segmentos!$A:$A,"S4")*ValorUnidad -> 45208.86382 | P67: =SUMIFS(BD_Segmentos!O:O,BD_Segmentos!$C:$C,$B67,BD_Segmentos!$A:$A,"S4")*ValorUnidad -> 47149.27525 | Q67: =SUMIFS(BD_Segmentos!P:P,BD_Segmentos!$C:$C,$B67,BD_Segmentos!$A:$A,"S4")*ValorUnidad -> 49396.14443 | R67: =SUMIFS(BD_Segmentos!Q:Q,BD_Segmentos!$C:$C,$B67,BD_Segmentos!$A:$A,"S4")*ValorUnidad -> 49491.72352 | S67: =SUMIFS(BD_Segmentos!R:R,BD_Segmentos!$C:$C,$B67,BD_Segmentos!$A:$A,"S4")*ValorUnidad -> 50904.6863 | T67: =SUMIFS(BD_Segmentos!S:S,BD_Segmentos!$C:$C,$B67,BD_Segmentos!$A:$A,"S4")*ValorUnidad -> 48897.94423 | U67: =SUMIFS(BD_Segmentos!T:T,BD_Segmentos!$C:$C,$B67,BD_Segmentos!$A:$A,"S4")*ValorUnidad -> 46502.71248 | V67: =SUMIFS(BD_Segmentos!U:U,BD_Segmentos!$C:$C,$B67,BD_Segmentos!$A:$A,"S4")*ValorUnidad -> 47277.70494
B68: 17 | C68: Inter-bank funds | E68: =SUMIFS(BD_Segmentos!D:D,BD_Segmentos!$C:$C,$B68,BD_Segmentos!$A:$A,"S4")*ValorUnidad -> 129.539 | F68: =SUMIFS(BD_Segmentos!E:E,BD_Segmentos!$C:$C,$B68,BD_Segmentos!$A:$A,"S4")*ValorUnidad -> 311.166 | G68: =SUMIFS(BD_Segmentos!F:F,BD_Segmentos!$C:$C,$B68,BD_Segmentos!$A:$A,"S4")*ValorUnidad -> 233.553 | H68: =SUMIFS(BD_Segmentos!G:G,BD_Segmentos!$C:$C,$B68,BD_Segmentos!$A:$A,"S4")*ValorUnidad -> 0 | I68: =SUMIFS(BD_Segmentos!H:H,BD_Segmentos!$C:$C,$B68,BD_Segmentos!$A:$A,"S4")*ValorUnidad -> 106.524 | J68: =SUMIFS(BD_Segmentos!I:I,BD_Segmentos!$C:$C,$B68,BD_Segmentos!$A:$A,"S4")*ValorUnidad -> 50.013 | K68: =SUMIFS(BD_Segmentos!J:J,BD_Segmentos!$C:$C,$B68,BD_Segmentos!$A:$A,"S4")*ValorUnidad -> 15.001 | L68: =SUMIFS(BD_Segmentos!K:K,BD_Segmentos!$C:$C,$B68,BD_Segmentos!$A:$A,"S4")*ValorUnidad -> 169.138 | M68: =SUMIFS(BD_Segmentos!L:L,BD_Segmentos!$C:$C,$B68,BD_Segmentos!$A:$A,"S4")*ValorUnidad -> 111.504 | N68: =SUMIFS(BD_Segmentos!M:M,BD_Segmentos!$C:$C,$B68,BD_Segmentos!$A:$A,"S4")*ValorUnidad -> 0 | O68: =SUMIFS(BD_Segmentos!N:N,BD_Segmentos!$C:$C,$B68,BD_Segmentos!$A:$A,"S4")*ValorUnidad -> 0 | P68: =SUMIFS(BD_Segmentos!O:O,BD_Segmentos!$C:$C,$B68,BD_Segmentos!$A:$A,"S4")*ValorUnidad -> 28.971 | Q68: =SUMIFS(BD_Segmentos!P:P,BD_Segmentos!$C:$C,$B68,BD_Segmentos!$A:$A,"S4")*ValorUnidad -> 0 | R68: =SUMIFS(BD_Segmentos!Q:Q,BD_Segmentos!$C:$C,$B68,BD_Segmentos!$A:$A,"S4")*ValorUnidad -> 0 | S68: =SUMIFS(BD_Segmentos!R:R,BD_Segmentos!$C:$C,$B68,BD_Segmentos!$A:$A,"S4")*ValorUnidad -> 100.002764 | T68: =SUMIFS(BD_Segmentos!S:S,BD_Segmentos!$C:$C,$B68,BD_Segmentos!$A:$A,"S4")*ValorUnidad -> 0 | U68: =SUMIFS(BD_Segmentos!T:T,BD_Segmentos!$C:$C,$B68,BD_Segmentos!$A:$A,"S4")*ValorUnidad -> 0 | V68: =SUMIFS(BD_Segmentos!U:U,BD_Segmentos!$C:$C,$B68,BD_Segmentos!$A:$A,"S4")*ValorUnidad -> 0
B69: 18 | C69: Due to banks and correspondents | E69: =SUMIFS(BD_Segmentos!D:D,BD_Segmentos!$C:$C,$B69,BD_Segmentos!$A:$A,"S4")*ValorUnidad -> 4141.376989 | F69: =SUMIFS(BD_Segmentos!E:E,BD_Segmentos!$C:$C,$B69,BD_Segmentos!$A:$A,"S4")*ValorUnidad -> 4281.718192 | G69: =SUMIFS(BD_Segmentos!F:F,BD_Segmentos!$C:$C,$B69,BD_Segmentos!$A:$A,"S4")*ValorUnidad -> 4153.471638 | H69: =SUMIFS(BD_Segmentos!G:G,BD_Segmentos!$C:$C,$B69,BD_Segmentos!$A:$A,"S4")*ValorUnidad -> 4293.36086 | I69: =SUMIFS(BD_Segmentos!H:H,BD_Segmentos!$C:$C,$B69,BD_Segmentos!$A:$A,"S4")*ValorUnidad -> 3726.118966 | J69: =SUMIFS(BD_Segmentos!I:I,BD_Segmentos!$C:$C,$B69,BD_Segmentos!$A:$A,"S4")*ValorUnidad -> 4596.946776 | K69: =SUMIFS(BD_Segmentos!J:J,BD_Segmentos!$C:$C,$B69,BD_Segmentos!$A:$A,"S4")*ValorUnidad -> 4453.83983 | L69: =SUMIFS(BD_Segmentos!K:K,BD_Segmentos!$C:$C,$B69,BD_Segmentos!$A:$A,"S4")*ValorUnidad -> 3979.636706 | M69: =SUMIFS(BD_Segmentos!L:L,BD_Segmentos!$C:$C,$B69,BD_Segmentos!$A:$A,"S4")*ValorUnidad -> 5334.596625 | N69: =SUMIFS(BD_Segmentos!M:M,BD_Segmentos!$C:$C,$B69,BD_Segmentos!$A:$A,"S4")*ValorUnidad -> 7997.696192 | O69: =SUMIFS(BD_Segmentos!N:N,BD_Segmentos!$C:$C,$B69,BD_Segmentos!$A:$A,"S4")*ValorUnidad -> 10554.99838 | P69: =SUMIFS(BD_Segmentos!O:O,BD_Segmentos!$C:$C,$B69,BD_Segmentos!$A:$A,"S4")*ValorUnidad -> 9660.876667 | Q69: =SUMIFS(BD_Segmentos!P:P,BD_Segmentos!$C:$C,$B69,BD_Segmentos!$A:$A,"S4")*ValorUnidad -> 9003.321452 | R69: =SUMIFS(BD_Segmentos!Q:Q,BD_Segmentos!$C:$C,$B69,BD_Segmentos!$A:$A,"S4")*ValorUnidad -> 9027.441873 | S69: =SUMIFS(BD_Segmentos!R:R,BD_Segmentos!$C:$C,$B69,BD_Segmentos!$A:$A,"S4")*ValorUnidad -> 8373.796249 | T69: =SUMIFS(BD_Segmentos!S:S,BD_Segmentos!$C:$C,$B69,BD_Segmentos!$A:$A,"S4")*ValorUnidad -> 8522.848838 | U69: =SUMIFS(BD_Segmentos!T:T,BD_Segmentos!$C:$C,$B69,BD_Segmentos!$A:$A,"S4")*ValorUnidad -> 7516.159605 | V69: =SUMIFS(BD_Segmentos!U:U,BD_Segmentos!$C:$C,$B69,BD_Segmentos!$A:$A,"S4")*ValorUnidad -> 8062.187493
C70: Due to banks and correspondents and inter-bank funds | E70: =+SUM(E68:E69) -> 4270.915989 | F70: =+SUM(F68:F69) -> 4592.884192 | G70: 4387.024638 | H70: 4293.36086 | I70: 3832.642966 | J70: 4646.959776 | K70: 4468.84083 | L70: 4148.774706 | M70: 5446.100625 | N70: 7997.696192 | O70: 10554.99838 | P70: =+SUM(P68:P69) -> 9689.847667 | Q70: 9003.321452 | R70: =+SUM(R68:R69) -> 9027.441873 | S70: 8473.799013 | T70: =+SUM(T68:T69) -> 8522.848838 | U70: 7516.159605 | V70: =+SUM(V68:V69) -> 8062.187493
B71: 19 | C71: Bonds, notes and other obligations | E71: =SUMIFS(BD_Segmentos!D:D,BD_Segmentos!$C:$C,$B71,BD_Segmentos!$A:$A,"S4")*ValorUnidad -> 6240.17418 | F71: =SUMIFS(BD_Segmentos!E:E,BD_Segmentos!$C:$C,$B71,BD_Segmentos!$A:$A,"S4")*ValorUnidad -> 6306.720894 | G71: =SUMIFS(BD_Segmentos!F:F,BD_Segmentos!$C:$C,$B71,BD_Segmentos!$A:$A,"S4")*ValorUnidad -> 6378.576312 | H71: =SUMIFS(BD_Segmentos!G:G,BD_Segmentos!$C:$C,$B71,BD_Segmentos!$A:$A,"S4")*ValorUnidad -> 6496.777983 | I71: =SUMIFS(BD_Segmentos!H:H,BD_Segmentos!$C:$C,$B71,BD_Segmentos!$A:$A,"S4")*ValorUnidad -> 6663.212535 | J71: =SUMIFS(BD_Segmentos!I:I,BD_Segmentos!$C:$C,$B71,BD_Segmentos!$A:$A,"S4")*ValorUnidad -> 6606.218911 | K71: =SUMIFS(BD_Segmentos!J:J,BD_Segmentos!$C:$C,$B71,BD_Segmentos!$A:$A,"S4")*ValorUnidad -> 8339.277568 | L71: =SUMIFS(BD_Segmentos!K:K,BD_Segmentos!$C:$C,$B71,BD_Segmentos!$A:$A,"S4")*ValorUnidad -> 6890.28971 | M71: =SUMIFS(BD_Segmentos!L:L,BD_Segmentos!$C:$C,$B71,BD_Segmentos!$A:$A,"S4")*ValorUnidad -> 6973.376696 | N71: =SUMIFS(BD_Segmentos!M:M,BD_Segmentos!$C:$C,$B71,BD_Segmentos!$A:$A,"S4")*ValorUnidad -> 7495.438642 | O71: =SUMIFS(BD_Segmentos!N:N,BD_Segmentos!$C:$C,$B71,BD_Segmentos!$A:$A,"S4")*ValorUnidad -> 7696.094448 | P71: =SUMIFS(BD_Segmentos!O:O,BD_Segmentos!$C:$C,$B71,BD_Segmentos!$A:$A,"S4")*ValorUnidad -> 7778.751396 | Q71: =SUMIFS(BD_Segmentos!P:P,BD_Segmentos!$C:$C,$B71,BD_Segmentos!$A:$A,"S4")*ValorUnidad -> 8020.355146 | R71: =SUMIFS(BD_Segmentos!Q:Q,BD_Segmentos!$C:$C,$B71,BD_Segmentos!$A:$A,"S4")*ValorUnidad -> 8250.906873 | S71: =SUMIFS(BD_Segmentos!R:R,BD_Segmentos!$C:$C,$B71,BD_Segmentos!$A:$A,"S4")*ValorUnidad -> 8640.272977 | T71: =SUMIFS(BD_Segmentos!S:S,BD_Segmentos!$C:$C,$B71,BD_Segmentos!$A:$A,"S4")*ValorUnidad -> 8389.671988 | U71: =SUMIFS(BD_Segmentos!T:T,BD_Segmentos!$C:$C,$B71,BD_Segmentos!$A:$A,"S4")*ValorUnidad -> 7821.777257 | V71: =SUMIFS(BD_Segmentos!U:U,BD_Segmentos!$C:$C,$B71,BD_Segmentos!$A:$A,"S4")*ValorUnidad -> 7905.433456
B72: 22 | C72: Insurance contract liabilities | E72: =SUMIFS(BD_Segmentos!D:D,BD_Segmentos!$C:$C,$B72,BD_Segmentos!$A:$A,"S4")*ValorUnidad -> 10554.74086 | F72: =SUMIFS(BD_Segmentos!E:E,BD_Segmentos!$C:$C,$B72,BD_Segmentos!$A:$A,"S4")*ValorUnidad -> 9938.409717 | G72: =SUMIFS(BD_Segmentos!F:F,BD_Segmentos!$C:$C,$B72,BD_Segmentos!$A:$A,"S4")*ValorUnidad -> 10038.25819 | H72: =SUMIFS(BD_Segmentos!G:G,BD_Segmentos!$C:$C,$B72,BD_Segmentos!$A:$A,"S4")*ValorUnidad -> 10350.65335 | I72: =SUMIFS(BD_Segmentos!H:H,BD_Segmentos!$C:$C,$B72,BD_Segmentos!$A:$A,"S4")*ValorUnidad -> 10470.51561 | J72: =SUMIFS(BD_Segmentos!I:I,BD_Segmentos!$C:$C,$B72,BD_Segmentos!$A:$A,"S4")*ValorUnidad -> 11002.69076 | K72: =SUMIFS(BD_Segmentos!J:J,BD_Segmentos!$C:$C,$B72,BD_Segmentos!$A:$A,"S4")*ValorUnidad -> 11533.68771 | L72: =SUMIFS(BD_Segmentos!K:K,BD_Segmentos!$C:$C,$B72,BD_Segmentos!$A:$A,"S4")*ValorUnidad -> 11426.63157 | M72: =SUMIFS(BD_Segmentos!L:L,BD_Segmentos!$C:$C,$B72,BD_Segmentos!$A:$A,"S4")*ValorUnidad -> 11157.398 | N72: =SUMIFS(BD_Segmentos!M:M,BD_Segmentos!$C:$C,$B72,BD_Segmentos!$A:$A,"S4")*ValorUnidad -> 11803.01745 | O72: =SUMIFS(BD_Segmentos!N:N,BD_Segmentos!$C:$C,$B72,BD_Segmentos!$A:$A,"S4")*ValorUnidad -> 11896.615 | P72: =SUMIFS(BD_Segmentos!O:O,BD_Segmentos!$C:$C,$B72,BD_Segmentos!$A:$A,"S4")*ValorUnidad -> 12501.72339 | Q72: =SUMIFS(BD_Segmentos!P:P,BD_Segmentos!$C:$C,$B72,BD_Segmentos!$A:$A,"S4")*ValorUnidad -> 11768.34265 | R72: =SUMIFS(BD_Segmentos!Q:Q,BD_Segmentos!$C:$C,$B72,BD_Segmentos!$A:$A,"S4")*ValorUnidad -> 11567.72009 | S72: =SUMIFS(BD_Segmentos!R:R,BD_Segmentos!$C:$C,$B72,BD_Segmentos!$A:$A,"S4")*ValorUnidad -> 11412.03052 | T72: =SUMIFS(BD_Segmentos!S:S,BD_Segmentos!$C:$C,$B72,BD_Segmentos!$A:$A,"S4")*ValorUnidad -> 11958.05781 | U72: =SUMIFS(BD_Segmentos!T:T,BD_Segmentos!$C:$C,$B72,BD_Segmentos!$A:$A,"S4")*ValorUnidad -> 11031.10705 | V72: =SUMIFS(BD_Segmentos!U:U,BD_Segmentos!$C:$C,$B72,BD_Segmentos!$A:$A,"S4")*ValorUnidad -> 10351.71757
B73: 20 | C73: Due from customers on acceptances | E73: =SUMIFS(BD_Segmentos!D:D,BD_Segmentos!$C:$C,$B73,BD_Segmentos!$A:$A,"S4")*ValorUnidad -> 65.07 | F73: =SUMIFS(BD_Segmentos!E:E,BD_Segmentos!$C:$C,$B73,BD_Segmentos!$A:$A,"S4")*ValorUnidad -> 84.146 | G73: =SUMIFS(BD_Segmentos!F:F,BD_Segmentos!$C:$C,$B73,BD_Segmentos!$A:$A,"S4")*ValorUnidad -> 117.392 | H73: =SUMIFS(BD_Segmentos!G:G,BD_Segmentos!$C:$C,$B73,BD_Segmentos!$A:$A,"S4")*ValorUnidad -> 132.961 | I73: =SUMIFS(BD_Segmentos!H:H,BD_Segmentos!$C:$C,$B73,BD_Segmentos!$A:$A,"S4")*ValorUnidad -> 89.748 | J73: =SUMIFS(BD_Segmentos!I:I,BD_Segmentos!$C:$C,$B73,BD_Segmentos!$A:$A,"S4")*ValorUnidad -> 57.685 | K73: =SUMIFS(BD_Segmentos!J:J,BD_Segmentos!$C:$C,$B73,BD_Segmentos!$A:$A,"S4")*ValorUnidad -> 124.69 | L73: =SUMIFS(BD_Segmentos!K:K,BD_Segmentos!$C:$C,$B73,BD_Segmentos!$A:$A,"S4")*ValorUnidad -> 139.685 | M73: =SUMIFS(BD_Segmentos!L:L,BD_Segmentos!$C:$C,$B73,BD_Segmentos!$A:$A,"S4")*ValorUnidad -> 32.068 | N73: =SUMIFS(BD_Segmentos!M:M,BD_Segmentos!$C:$C,$B73,BD_Segmentos!$A:$A,"S4")*ValorUnidad -> 16.577 | O73: =SUMIFS(BD_Segmentos!N:N,BD_Segmentos!$C:$C,$B73,BD_Segmentos!$A:$A,"S4")*ValorUnidad -> 15.693 | P73: =SUMIFS(BD_Segmentos!O:O,BD_Segmentos!$C:$C,$B73,BD_Segmentos!$A:$A,"S4")*ValorUnidad -> 16.32 | Q73: =SUMIFS(BD_Segmentos!P:P,BD_Segmentos!$C:$C,$B73,BD_Segmentos!$A:$A,"S4")*ValorUnidad -> 72.45327759 | R73: =SUMIFS(BD_Segmentos!Q:Q,BD_Segmentos!$C:$C,$B73,BD_Segmentos!$A:$A,"S4")*ValorUnidad -> 137.2596834 | S73: =SUMIFS(BD_Segmentos!R:R,BD_Segmentos!$C:$C,$B73,BD_Segmentos!$A:$A,"S4")*ValorUnidad -> 91.48790544 | T73: =SUMIFS(BD_Segmentos!S:S,BD_Segmentos!$C:$C,$B73,BD_Segmentos!$A:$A,"S4")*ValorUnidad -> 152.422769 | U73: =SUMIFS(BD_Segmentos!T:T,BD_Segmentos!$C:$C,$B73,BD_Segmentos!$A:$A,"S4")*ValorUnidad -> 48.17415829 | V73: =SUMIFS(BD_Segmentos!U:U,BD_Segmentos!$C:$C,$B73,BD_Segmentos!$A:$A,"S4")*ValorUnidad -> 36.40618535
B74: 21 | C74: Other accounts payable, provisions and other liabilities | E74: =SUMIFS(BD_Segmentos!D:D,BD_Segmentos!$C:$C,$B74,BD_Segmentos!$A:$A,"S4")*ValorUnidad -> 1870.995352 | F74: =SUMIFS(BD_Segmentos!E:E,BD_Segmentos!$C:$C,$B74,BD_Segmentos!$A:$A,"S4")*ValorUnidad -> 1712.799076 | G74: =SUMIFS(BD_Segmentos!F:F,BD_Segmentos!$C:$C,$B74,BD_Segmentos!$A:$A,"S4")*ValorUnidad -> 1698.091163 | H74: =SUMIFS(BD_Segmentos!G:G,BD_Segmentos!$C:$C,$B74,BD_Segmentos!$A:$A,"S4")*ValorUnidad -> 1700.171234 | I74: =SUMIFS(BD_Segmentos!H:H,BD_Segmentos!$C:$C,$B74,BD_Segmentos!$A:$A,"S4")*ValorUnidad -> 2183.266673 | J74: =SUMIFS(BD_Segmentos!I:I,BD_Segmentos!$C:$C,$B74,BD_Segmentos!$A:$A,"S4")*ValorUnidad -> 2041.672986 | K74: =SUMIFS(BD_Segmentos!J:J,BD_Segmentos!$C:$C,$B74,BD_Segmentos!$A:$A,"S4")*ValorUnidad -> 2180.58212 | L74: =SUMIFS(BD_Segmentos!K:K,BD_Segmentos!$C:$C,$B74,BD_Segmentos!$A:$A,"S4")*ValorUnidad -> 1960.228315 | M74: =SUMIFS(BD_Segmentos!L:L,BD_Segmentos!$C:$C,$B74,BD_Segmentos!$A:$A,"S4")*ValorUnidad -> 2086.587268 | N74: =SUMIFS(BD_Segmentos!M:M,BD_Segmentos!$C:$C,$B74,BD_Segmentos!$A:$A,"S4")*ValorUnidad -> 2484.423053 | O74: =SUMIFS(BD_Segmentos!N:N,BD_Segmentos!$C:$C,$B74,BD_Segmentos!$A:$A,"S4")*ValorUnidad -> 2303.598707 | P74: =SUMIFS(BD_Segmentos!O:O,BD_Segmentos!$C:$C,$B74,BD_Segmentos!$A:$A,"S4")*ValorUnidad -> 2146.151951 | Q74: =SUMIFS(BD_Segmentos!P:P,BD_Segmentos!$C:$C,$B74,BD_Segmentos!$A:$A,"S4")*ValorUnidad -> 2859.973272 | R74: =SUMIFS(BD_Segmentos!Q:Q,BD_Segmentos!$C:$C,$B74,BD_Segmentos!$A:$A,"S4")*ValorUnidad -> 2745.003684 | S74: =SUMIFS(BD_Segmentos!R:R,BD_Segmentos!$C:$C,$B74,BD_Segmentos!$A:$A,"S4")*ValorUnidad -> 3064.837835 | T74: =SUMIFS(BD_Segmentos!S:S,BD_Segmentos!$C:$C,$B74,BD_Segmentos!$A:$A,"S4")*ValorUnidad -> 2477.599802 | U74: =SUMIFS(BD_Segmentos!T:T,BD_Segmentos!$C:$C,$B74,BD_Segmentos!$A:$A,"S4")*ValorUnidad -> 3441.297063 | V74: =SUMIFS(BD_Segmentos!U:U,BD_Segmentos!$C:$C,$B74,BD_Segmentos!$A:$A,"S4")*ValorUnidad -> 3052.092633
B75: 23 | C75: Deferred Income Tax liability, net | E75: =SUMIFS(BD_Segmentos!D:D,BD_Segmentos!$C:$C,$B75,BD_Segmentos!$A:$A,"S4")*ValorUnidad -> 0.30925961 | F75: =SUMIFS(BD_Segmentos!E:E,BD_Segmentos!$C:$C,$B75,BD_Segmentos!$A:$A,"S4")*ValorUnidad -> 0.051 | G75: =SUMIFS(BD_Segmentos!F:F,BD_Segmentos!$C:$C,$B75,BD_Segmentos!$A:$A,"S4")*ValorUnidad -> 0.02863614 | H75: =SUMIFS(BD_Segmentos!G:G,BD_Segmentos!$C:$C,$B75,BD_Segmentos!$A:$A,"S4")*ValorUnidad -> 0.05248381 | I75: =SUMIFS(BD_Segmentos!H:H,BD_Segmentos!$C:$C,$B75,BD_Segmentos!$A:$A,"S4")*ValorUnidad -> 0.06144927 | J75: =SUMIFS(BD_Segmentos!I:I,BD_Segmentos!$C:$C,$B75,BD_Segmentos!$A:$A,"S4")*ValorUnidad -> 0 | K75: =SUMIFS(BD_Segmentos!J:J,BD_Segmentos!$C:$C,$B75,BD_Segmentos!$A:$A,"S4")*ValorUnidad -> 0 | L75: =SUMIFS(BD_Segmentos!K:K,BD_Segmentos!$C:$C,$B75,BD_Segmentos!$A:$A,"S4")*ValorUnidad -> 0.01317447 | M75: =SUMIFS(BD_Segmentos!L:L,BD_Segmentos!$C:$C,$B75,BD_Segmentos!$A:$A,"S4")*ValorUnidad -> 0.88198139 | N75: =SUMIFS(BD_Segmentos!M:M,BD_Segmentos!$C:$C,$B75,BD_Segmentos!$A:$A,"S4")*ValorUnidad -> 1.11546424 | O75: =SUMIFS(BD_Segmentos!N:N,BD_Segmentos!$C:$C,$B75,BD_Segmentos!$A:$A,"S4")*ValorUnidad -> 1.35762513 | P75: =SUMIFS(BD_Segmentos!O:O,BD_Segmentos!$C:$C,$B75,BD_Segmentos!$A:$A,"S4")*ValorUnidad -> 0.01104674 | Q75: =SUMIFS(BD_Segmentos!P:P,BD_Segmentos!$C:$C,$B75,BD_Segmentos!$A:$A,"S4")*ValorUnidad -> 0.41924458 | R75: =SUMIFS(BD_Segmentos!Q:Q,BD_Segmentos!$C:$C,$B75,BD_Segmentos!$A:$A,"S4")*ValorUnidad -> 0.76975058 | S75: =SUMIFS(BD_Segmentos!R:R,BD_Segmentos!$C:$C,$B75,BD_Segmentos!$A:$A,"S4")*ValorUnidad -> 1.62479223 | T75: =SUMIFS(BD_Segmentos!S:S,BD_Segmentos!$C:$C,$B75,BD_Segmentos!$A:$A,"S4")*ValorUnidad -> -0.0009904 | U75: =SUMIFS(BD_Segmentos!T:T,BD_Segmentos!$C:$C,$B75,BD_Segmentos!$A:$A,"S4")*ValorUnidad -> 0.9915146 | V75: =SUMIFS(BD_Segmentos!U:U,BD_Segmentos!$C:$C,$B75,BD_Segmentos!$A:$A,"S4")*ValorUnidad -> 2.13982399
C76: Other liabilities | E76: =+SUM(E73:E75) -> 1936.374611 | F76: =+SUM(F73:F75) -> 1796.996076 | G76: 1815.511799 | H76: 1833.184718 | I76: 2273.076123 | J76: 2099.357986 | K76: 2305.27212 | L76: 2099.92649 | M76: 2119.53725 | N76: 2502.115517 | O76: 2320.649332 | P76: =+SUM(P73:P75) -> 2162.482997 | Q76: 2932.845795 | R76: =+SUM(R73:R75) -> 2883.033118 | S76: 3157.950532 | T76: =+SUM(T73:T75) -> 2630.021581 | U76: 3490.462736 | V76: =+SUM(V73:V75) -> 3090.638643
B77: ST7 | C77: Total liabilities | E77: =SUMIFS(BD_Segmentos!D:D,BD_Segmentos!$C:$C,$B77,BD_Segmentos!$A:$A,"S4")*ValorUnidad -> 54222.57799 | F77: =SUMIFS(BD_Segmentos!E:E,BD_Segmentos!$C:$C,$B77,BD_Segmentos!$A:$A,"S4")*ValorUnidad -> 53545.21519 | G77: =SUMIFS(BD_Segmentos!F:F,BD_Segmentos!$C:$C,$B77,BD_Segmentos!$A:$A,"S4")*ValorUnidad -> 53691.2455 | H77: =SUMIFS(BD_Segmentos!G:G,BD_Segmentos!$C:$C,$B77,BD_Segmentos!$A:$A,"S4")*ValorUnidad -> 56655.92692 | I77: =SUMIFS(BD_Segmentos!H:H,BD_Segmentos!$C:$C,$B77,BD_Segmentos!$A:$A,"S4")*ValorUnidad -> 58029.44681 | J77: =SUMIFS(BD_Segmentos!I:I,BD_Segmentos!$C:$C,$B77,BD_Segmentos!$A:$A,"S4")*ValorUnidad -> 59729.00332 | K77: =SUMIFS(BD_Segmentos!J:J,BD_Segmentos!$C:$C,$B77,BD_Segmentos!$A:$A,"S4")*ValorUnidad -> 62924.24849 | L77: =SUMIFS(BD_Segmentos!K:K,BD_Segmentos!$C:$C,$B77,BD_Segmentos!$A:$A,"S4")*ValorUnidad -> 62658.84648 | M77: =SUMIFS(BD_Segmentos!L:L,BD_Segmentos!$C:$C,$B77,BD_Segmentos!$A:$A,"S4")*ValorUnidad -> 63265.3081 | N77: =SUMIFS(BD_Segmentos!M:M,BD_Segmentos!$C:$C,$B77,BD_Segmentos!$A:$A,"S4")*ValorUnidad -> 73942.98607 | O77: =SUMIFS(BD_Segmentos!N:N,BD_Segmentos!$C:$C,$B77,BD_Segmentos!$A:$A,"S4")*ValorUnidad -> 77677.22098 | P77: =SUMIFS(BD_Segmentos!O:O,BD_Segmentos!$C:$C,$B77,BD_Segmentos!$A:$A,"S4")*ValorUnidad -> 79282.08071 | Q77: =SUMIFS(BD_Segmentos!P:P,BD_Segmentos!$C:$C,$B77,BD_Segmentos!$A:$A,"S4")*ValorUnidad -> 81121.00948 | R77: =SUMIFS(BD_Segmentos!Q:Q,BD_Segmentos!$C:$C,$B77,BD_Segmentos!$A:$A,"S4")*ValorUnidad -> 81220.82547 | S77: =SUMIFS(BD_Segmentos!R:R,BD_Segmentos!$C:$C,$B77,BD_Segmentos!$A:$A,"S4")*ValorUnidad -> 82588.73934 | T77: =SUMIFS(BD_Segmentos!S:S,BD_Segmentos!$C:$C,$B77,BD_Segmentos!$A:$A,"S4")*ValorUnidad -> 80398.54444 | U77: =SUMIFS(BD_Segmentos!T:T,BD_Segmentos!$C:$C,$B77,BD_Segmentos!$A:$A,"S4")*ValorUnidad -> 76362.21912 | V77: =SUMIFS(BD_Segmentos!U:U,BD_Segmentos!$C:$C,$B77,BD_Segmentos!$A:$A,"S4")*ValorUnidad -> 76687.68211
C78: Equity, net
B79: ST8 | C79: Equity attributable to IFS' shareholders | E79: =SUMIFS(BD_Segmentos!D:D,BD_Segmentos!$C:$C,$B79,BD_Segmentos!$A:$A,"S4")*ValorUnidad -> 6377.732786 | F79: =SUMIFS(BD_Segmentos!E:E,BD_Segmentos!$C:$C,$B79,BD_Segmentos!$A:$A,"S4")*ValorUnidad -> 6483.142477 | G79: =SUMIFS(BD_Segmentos!F:F,BD_Segmentos!$C:$C,$B79,BD_Segmentos!$A:$A,"S4")*ValorUnidad -> 6981.001985 | H79: =SUMIFS(BD_Segmentos!G:G,BD_Segmentos!$C:$C,$B79,BD_Segmentos!$A:$A,"S4")*ValorUnidad -> 7048.077513 | I79: =SUMIFS(BD_Segmentos!H:H,BD_Segmentos!$C:$C,$B79,BD_Segmentos!$A:$A,"S4")*ValorUnidad -> 7686.788438 | J79: =SUMIFS(BD_Segmentos!I:I,BD_Segmentos!$C:$C,$B79,BD_Segmentos!$A:$A,"S4")*ValorUnidad -> 7401.224404 | K79: =SUMIFS(BD_Segmentos!J:J,BD_Segmentos!$C:$C,$B79,BD_Segmentos!$A:$A,"S4")*ValorUnidad -> 8436.22097 | L79: =SUMIFS(BD_Segmentos!K:K,BD_Segmentos!$C:$C,$B79,BD_Segmentos!$A:$A,"S4")*ValorUnidad -> 8856.870425 | M79: =SUMIFS(BD_Segmentos!L:L,BD_Segmentos!$C:$C,$B79,BD_Segmentos!$A:$A,"S4")*ValorUnidad -> 8499.553955 | N79: =SUMIFS(BD_Segmentos!M:M,BD_Segmentos!$C:$C,$B79,BD_Segmentos!$A:$A,"S4")*ValorUnidad -> 7794.989546 | O79: =SUMIFS(BD_Segmentos!N:N,BD_Segmentos!$C:$C,$B79,BD_Segmentos!$A:$A,"S4")*ValorUnidad -> 8291.693046 | P79: =SUMIFS(BD_Segmentos!O:O,BD_Segmentos!$C:$C,$B79,BD_Segmentos!$A:$A,"S4")*ValorUnidad -> 8908.108957 | Q79: =SUMIFS(BD_Segmentos!P:P,BD_Segmentos!$C:$C,$B79,BD_Segmentos!$A:$A,"S4")*ValorUnidad -> 8874.907157 | R79: =SUMIFS(BD_Segmentos!Q:Q,BD_Segmentos!$C:$C,$B79,BD_Segmentos!$A:$A,"S4")*ValorUnidad -> 9271.459851 | S79: =SUMIFS(BD_Segmentos!R:R,BD_Segmentos!$C:$C,$B79,BD_Segmentos!$A:$A,"S4")*ValorUnidad -> 9749.992497 | T79: =SUMIFS(BD_Segmentos!S:S,BD_Segmentos!$C:$C,$B79,BD_Segmentos!$A:$A,"S4")*ValorUnidad -> 9504.037422 | U79: =SUMIFS(BD_Segmentos!T:T,BD_Segmentos!$C:$C,$B79,BD_Segmentos!$A:$A,"S4")*ValorUnidad -> 8973.334228 | V79: =SUMIFS(BD_Segmentos!U:U,BD_Segmentos!$C:$C,$B79,BD_Segmentos!$A:$A,"S4")*ValorUnidad -> 8965.779336
B80: 30 | C80: Non-controlling interest | E80: =SUMIFS(BD_Segmentos!D:D,BD_Segmentos!$C:$C,$B80,BD_Segmentos!$A:$A,"S4")*ValorUnidad -> 34.69380089 | F80: =SUMIFS(BD_Segmentos!E:E,BD_Segmentos!$C:$C,$B80,BD_Segmentos!$A:$A,"S4")*ValorUnidad -> 36.76946963 | G80: =SUMIFS(BD_Segmentos!F:F,BD_Segmentos!$C:$C,$B80,BD_Segmentos!$A:$A,"S4")*ValorUnidad -> 38.93822798 | H80: =SUMIFS(BD_Segmentos!G:G,BD_Segmentos!$C:$C,$B80,BD_Segmentos!$A:$A,"S4")*ValorUnidad -> 40.40176619 | I80: =SUMIFS(BD_Segmentos!H:H,BD_Segmentos!$C:$C,$B80,BD_Segmentos!$A:$A,"S4")*ValorUnidad -> 39.97220046 | J80: =SUMIFS(BD_Segmentos!I:I,BD_Segmentos!$C:$C,$B80,BD_Segmentos!$A:$A,"S4")*ValorUnidad -> 42.00841091 | K80: =SUMIFS(BD_Segmentos!J:J,BD_Segmentos!$C:$C,$B80,BD_Segmentos!$A:$A,"S4")*ValorUnidad -> 44.40874791 | L80: =SUMIFS(BD_Segmentos!K:K,BD_Segmentos!$C:$C,$B80,BD_Segmentos!$A:$A,"S4")*ValorUnidad -> 46.57769855 | M80: =SUMIFS(BD_Segmentos!L:L,BD_Segmentos!$C:$C,$B80,BD_Segmentos!$A:$A,"S4")*ValorUnidad -> 46.71213294 | N80: =SUMIFS(BD_Segmentos!M:M,BD_Segmentos!$C:$C,$B80,BD_Segmentos!$A:$A,"S4")*ValorUnidad -> 41.81812554 | O80: =SUMIFS(BD_Segmentos!N:N,BD_Segmentos!$C:$C,$B80,BD_Segmentos!$A:$A,"S4")*ValorUnidad -> 43.51088602 | P80: =SUMIFS(BD_Segmentos!O:O,BD_Segmentos!$C:$C,$B80,BD_Segmentos!$A:$A,"S4")*ValorUnidad -> 45.83967095 | Q80: =SUMIFS(BD_Segmentos!P:P,BD_Segmentos!$C:$C,$B80,BD_Segmentos!$A:$A,"S4")*ValorUnidad -> 46.3775949 | R80: =SUMIFS(BD_Segmentos!Q:Q,BD_Segmentos!$C:$C,$B80,BD_Segmentos!$A:$A,"S4")*ValorUnidad -> 47.42269867 | S80: =SUMIFS(BD_Segmentos!R:R,BD_Segmentos!$C:$C,$B80,BD_Segmentos!$A:$A,"S4")*ValorUnidad -> 47.86601681 | T80: =SUMIFS(BD_Segmentos!S:S,BD_Segmentos!$C:$C,$B80,BD_Segmentos!$A:$A,"S4")*ValorUnidad -> 51.32501475 | U80: =SUMIFS(BD_Segmentos!T:T,BD_Segmentos!$C:$C,$B80,BD_Segmentos!$A:$A,"S4")*ValorUnidad -> 48.35768558 | V80: =SUMIFS(BD_Segmentos!U:U,BD_Segmentos!$C:$C,$B80,BD_Segmentos!$A:$A,"S4")*ValorUnidad -> 49.02410084
B81: ST9 | C81: Total equity, net | E81: =SUMIFS(BD_Segmentos!D:D,BD_Segmentos!$C:$C,$B81,BD_Segmentos!$A:$A,"S4")*ValorUnidad -> 6412.426587 | F81: =SUMIFS(BD_Segmentos!E:E,BD_Segmentos!$C:$C,$B81,BD_Segmentos!$A:$A,"S4")*ValorUnidad -> 6519.911946 | G81: =SUMIFS(BD_Segmentos!F:F,BD_Segmentos!$C:$C,$B81,BD_Segmentos!$A:$A,"S4")*ValorUnidad -> 7019.940213 | H81: =SUMIFS(BD_Segmentos!G:G,BD_Segmentos!$C:$C,$B81,BD_Segmentos!$A:$A,"S4")*ValorUnidad -> 7088.479279 | I81: =SUMIFS(BD_Segmentos!H:H,BD_Segmentos!$C:$C,$B81,BD_Segmentos!$A:$A,"S4")*ValorUnidad -> 7726.760639 | J81: =SUMIFS(BD_Segmentos!I:I,BD_Segmentos!$C:$C,$B81,BD_Segmentos!$A:$A,"S4")*ValorUnidad -> 7443.232815 | K81: =SUMIFS(BD_Segmentos!J:J,BD_Segmentos!$C:$C,$B81,BD_Segmentos!$A:$A,"S4")*ValorUnidad -> 8480.629718 | L81: =SUMIFS(BD_Segmentos!K:K,BD_Segmentos!$C:$C,$B81,BD_Segmentos!$A:$A,"S4")*ValorUnidad -> 8903.448124 | M81: =SUMIFS(BD_Segmentos!L:L,BD_Segmentos!$C:$C,$B81,BD_Segmentos!$A:$A,"S4")*ValorUnidad -> 8546.266088 | N81: =SUMIFS(BD_Segmentos!M:M,BD_Segmentos!$C:$C,$B81,BD_Segmentos!$A:$A,"S4")*ValorUnidad -> 7836.807672 | O81: =SUMIFS(BD_Segmentos!N:N,BD_Segmentos!$C:$C,$B81,BD_Segmentos!$A:$A,"S4")*ValorUnidad -> 8335.203932 | P81: =SUMIFS(BD_Segmentos!O:O,BD_Segmentos!$C:$C,$B81,BD_Segmentos!$A:$A,"S4")*ValorUnidad -> 8953.948628 | Q81: =SUMIFS(BD_Segmentos!P:P,BD_Segmentos!$C:$C,$B81,BD_Segmentos!$A:$A,"S4")*ValorUnidad -> 8921.284752 | R81: =SUMIFS(BD_Segmentos!Q:Q,BD_Segmentos!$C:$C,$B81,BD_Segmentos!$A:$A,"S4")*ValorUnidad -> 9318.88255 | S81: =SUMIFS(BD_Segmentos!R:R,BD_Segmentos!$C:$C,$B81,BD_Segmentos!$A:$A,"S4")*ValorUnidad -> 9797.858514 | T81: =SUMIFS(BD_Segmentos!S:S,BD_Segmentos!$C:$C,$B81,BD_Segmentos!$A:$A,"S4")*ValorUnidad -> 9555.362437 | U81: =SUMIFS(BD_Segmentos!T:T,BD_Segmentos!$C:$C,$B81,BD_Segmentos!$A:$A,"S4")*ValorUnidad -> 9021.691914 | V81: =SUMIFS(BD_Segmentos!U:U,BD_Segmentos!$C:$C,$B81,BD_Segmentos!$A:$A,"S4")*ValorUnidad -> 9014.803437
B83: ST10 | C83: Total liabilities and equity net | E83: =SUMIFS(BD_Segmentos!D:D,BD_Segmentos!$C:$C,$B83,BD_Segmentos!$A:$A,"S4")*ValorUnidad -> 60635.00458 | F83: =SUMIFS(BD_Segmentos!E:E,BD_Segmentos!$C:$C,$B83,BD_Segmentos!$A:$A,"S4")*ValorUnidad -> 60065.12714 | G83: =SUMIFS(BD_Segmentos!F:F,BD_Segmentos!$C:$C,$B83,BD_Segmentos!$A:$A,"S4")*ValorUnidad -> 60711.18571 | H83: =SUMIFS(BD_Segmentos!G:G,BD_Segmentos!$C:$C,$B83,BD_Segmentos!$A:$A,"S4")*ValorUnidad -> 63744.4062 | I83: =SUMIFS(BD_Segmentos!H:H,BD_Segmentos!$C:$C,$B83,BD_Segmentos!$A:$A,"S4")*ValorUnidad -> 65756.20745 | J83: =SUMIFS(BD_Segmentos!I:I,BD_Segmentos!$C:$C,$B83,BD_Segmentos!$A:$A,"S4")*ValorUnidad -> 67172.23613 | K83: =SUMIFS(BD_Segmentos!J:J,BD_Segmentos!$C:$C,$B83,BD_Segmentos!$A:$A,"S4")*ValorUnidad -> 71404.8782 | L83: =SUMIFS(BD_Segmentos!K:K,BD_Segmentos!$C:$C,$B83,BD_Segmentos!$A:$A,"S4")*ValorUnidad -> 71562.2946 | M83: =SUMIFS(BD_Segmentos!L:L,BD_Segmentos!$C:$C,$B83,BD_Segmentos!$A:$A,"S4")*ValorUnidad -> 71811.57419 | N83: =SUMIFS(BD_Segmentos!M:M,BD_Segmentos!$C:$C,$B83,BD_Segmentos!$A:$A,"S4")*ValorUnidad -> 81779.79375 | O83: =SUMIFS(BD_Segmentos!N:N,BD_Segmentos!$C:$C,$B83,BD_Segmentos!$A:$A,"S4")*ValorUnidad -> 86012.42491 | P83: =SUMIFS(BD_Segmentos!O:O,BD_Segmentos!$C:$C,$B83,BD_Segmentos!$A:$A,"S4")*ValorUnidad -> 88236.02933 | Q83: =SUMIFS(BD_Segmentos!P:P,BD_Segmentos!$C:$C,$B83,BD_Segmentos!$A:$A,"S4")*ValorUnidad -> 90042.29423 | R83: =SUMIFS(BD_Segmentos!Q:Q,BD_Segmentos!$C:$C,$B83,BD_Segmentos!$A:$A,"S4")*ValorUnidad -> 90539.70802 | S83: =SUMIFS(BD_Segmentos!R:R,BD_Segmentos!$C:$C,$B83,BD_Segmentos!$A:$A,"S4")*ValorUnidad -> 92386.59786 | T83: =SUMIFS(BD_Segmentos!S:S,BD_Segmentos!$C:$C,$B83,BD_Segmentos!$A:$A,"S4")*ValorUnidad -> 89953.90688 | U83: =SUMIFS(BD_Segmentos!T:T,BD_Segmentos!$C:$C,$B83,BD_Segmentos!$A:$A,"S4")*ValorUnidad -> 85383.91104 | V83: =SUMIFS(BD_Segmentos!U:U,BD_Segmentos!$C:$C,$B83,BD_Segmentos!$A:$A,"S4")*ValorUnidad -> 85702.48554
C86: Validation 1 [Assets- (Liabilities + Equity)] | D86: =+D10-D29 -> 0 | E86: =+E64-E77-E81 -> -8.043706657e-06 | F86: =+F64-F77-F81 -> 0.0002167063803 | G86: -0.0005707775581 | H86: 0.004231328119 | I86: 0.0001693835939 | J86: 0.00133695326 | K86: -0.002433883074 | L86: -0.0006892186993 | M86: 0.0001338470229 | N86: -0.000394990484 | O86: -0.0004125326541 | P86: =+P64-P77-P81 -> 0.0001557093437 | Q86: 9.82164056e-05 | R86: =+R64-R77-R81 -> -2.912760465e-06 | S86: -1.2449309e-06 | T86: =+T64-T77-T81 -> 3.14853969e-06 | U86: 4.619656465e-06 | V86: =+V64-V77-V81 -> 2.423616024e-06
C87: Check 1 - ST12 | D87: =+(D38+D39)-D40 -> 0 | E87: =+E10+E11-E12 -> 0 | F87: =+F10+F11-F12 -> 0 | G87: 0 | H87: 0 | I87: 0 | J87: 0 | K87: 0 | L87: 0 | M87: 0 | N87: 0 | O87: 0 | P87: =+P10+P11-P12 -> 0 | Q87: 0 | R87: =+R10+R11-R12 -> 0 | S87: 0 | T87: =+T10+T11-T12 -> 0 | U87: 0 | V87: =+V10+V11-V12 -> 0
C88: Check 2 - ST13 | D88: =+(D40+D41+D42)-D43 -> 0 | E88: =+E13+E14-E15+E12 -> 0 | F88: =+F13+F14-F15+F12 -> 0 | G88: 0 | H88: 0 | I88: 0 | J88: 0 | K88: 0 | L88: 0 | M88: 0 | N88: 0 | O88: 0 | P88: =+P13+P14-P15+P12 -> 0 | Q88: 0 | R88: =+R13+R14-R15+R12 -> 0 | S88: 0 | T88: =+T13+T14-T15+T12 -> 0 | U88: 0 | V88: =+V13+V14-V15+V12 -> 0
C89: Check 3 - ST15 | D89: =+SUM(D59:D62)-D63 -> 0 | E89: =+E26-(E29+E30+E31) -> 0 | F89: =+F26-(F29+F30+F31) -> 0 | G89: -1.705302566e-13 | H89: 0 | I89: 0 | J89: 0 | K89: 5.684341886e-14 | L89: 0 | M89: 1.705302566e-13 | N89: 1.847411113e-13 | O89: -7.105427358e-14 | P89: =+P26-(P29+P30+P31) -> -1.193711796e-12 | Q89: 0 | R89: =+R26-(R29+R30+R31) -> 0 | S89: 0 | T89: =+T26-(T29+T30+T31) -> -2.842170943e-14 | U89: 3.552713679e-14 | V89: =+V26-(V29+V30+V31) -> 0
C90: Check 4 - ST17 | D90: =+(D43+D56+D63+D72)-D74 -> 0 | E90: =+E33-E15-E25-E26-E32-E16 -> 0 | F90: =+F33-F15-F25-F26-F32-F16 -> -2.557953849e-13 | G90: 0 | H90: -2.842170943e-13 | I90: 0 | J90: 0 | K90: 0 | L90: 0 | M90: 0 | N90: 0 | O90: 0 | P90: =+P33-P15-P25-P26-P32-P16 -> 0 | Q90: 0 | R90: =+R33-R15-R25-R26-R32-R16 -> 0 | S90: -2.842170943e-13 | T90: =+T33-T15-T25-T26-T32-T16 -> 2.842170943e-13 | U90: 0 | V90: =+V33-V15-V25-V26-V32-V16 -> 0
C91: Check 5 - ST18 | D91: =(D74+D75+D76)-D78 -> 0 | E91: =+E36-E15-E25-E26-E32-E34-E35-E16 -> 0 | F91: =+F36-F15-F25-F26-F32-F34-F35-F16 -> 0 | G91: 0 | H91: 0 | I91: 0 | J91: 0 | K91: 2.842170943e-13 | L91: 0 | M91: 0 | N91: 0 | O91: 0 | P91: =+P36-P15-P25-P26-P32-P34-P35-P16 -> 0 | Q91: 0 | R91: =+R36-R15-R25-R26-R32-R34-R35-R16 -> 0 | S91: 0 | T91: =+T36-T15-T25-T26-T32-T34-T35-T16 -> 0 | U91: 0 | V91: =+V36-V15-V25-V26-V32-V34-V35-V16 -> 0
C92: Check 6 - ST4 | E92: =+E64-SUM(E49,E53,E54:E56,E63) -> 0 | F92: =+F64-SUM(F49,F53,F54:F56,F63) -> 0 | G92: 0 | H92: 0 | I92: 0 | J92: 0 | K92: 0 | L92: 0 | M92: 0 | N92: 0 | O92: 0 | P92: =+P64-SUM(P49,P53,P54:P56,P63) -> 0 | Q92: 0 | R92: =+R64-SUM(R49,R53,R54:R56,R63) -> 0 | S92: 0 | T92: =+T64-SUM(T49,T53,T54:T56,T63) -> 0 | U92: 0 | V92: =+V64-SUM(V49,V53,V54:V56,V63) -> 0
C93: Check 7 - ST7 | E93: =+E77-SUM(E67,E70,E71,E72,E76) -> 0 | F93: =+F77-SUM(F67,F70,F71,F72,F76) -> 0 | G93: 0 | H93: 0 | I93: 0 | J93: 0 | K93: 0 | L93: 0 | M93: 0 | N93: 0 | O93: 0 | P93: =+P77-SUM(P67,P70,P71,P72,P76) -> 0 | Q93: 0 | R93: =+R77-SUM(R67,R70,R71,R72,R76) -> 0 | S93: 0 | T93: =+T77-SUM(T67,T70,T71,T72,T76) -> 0 | U93: 0 | V93: =+V77-SUM(V67,V70,V71,V72,V76) -> 0
C94: Check 8 - ST9 | E94: =+E81-E79-E80 -> -1.136868377e-13 | F94: =+F81-F79-F80 -> -5.684341886e-14 | G94: 0 | H94: 0 | I94: 2.557953849e-13 | J94: 7.389644452e-13 | K94: -4.121147867e-13 | L94: -1.044497822e-12 | M94: 1.065814104e-12 | N94: 2.344791028e-13 | O94: -3.055333764e-13 | P94: =+P81-P79-P80 -> 7.815970093e-14 | Q94: -8.526512829e-13 | R94: =+R81-R79-R80 -> -1.492139745e-12 | S94: 1.136868377e-13 | T94: =+T81-T79-T80 -> 2.913225217e-13 | U94: 0 | V94: =+V81-V79-V80 -> -7.247535905e-13
C95: Check 9 - ST10 | E95: =+E83-E81-E77 -> 0 | F95: =+F83-F81-F77 -> 0 | G95: 0 | H95: 0 | I95: 0 | J95: 0 | K95: 0 | L95: 0 | M95: 0 | N95: 0 | O95: 0 | P95: =+P83-P81-P77 -> 0 | Q95: 0 | R95: =+R83-R81-R77 -> 0 | S95: 0 | T95: =+T83-T81-T77 -> 0 | U95: 0 | V95: =+V83-V81-V77 -> 0

Sheet Banking Segment
C5: Banking Segment's P&L statement
C6: S/ million
E7: 2018-03-31 | F7: =+EOMONTH(E7,3) -> 2018-06-30 | G7: =+EOMONTH(F7,3) -> 2018-09-30 | H7: 2018-12-31 | I7: 2019-03-31 | J7: 2019-06-30 | K7: 2019-09-30 | L7: 2019-12-31 | M7: 2020-03-31 | N7: 2020-06-30 | O7: 2020-09-30 | P7: 2020-12-31 | Q7: 2021-03-31 | R7: 2021-06-30 | S7: 2021-09-30 | T7: 2021-12-31 | U7: 2022-03-31 | V7: 2022-06-30
E8: =MONTH(E$7)/3&"Q"&RIGHT(YEAR(E$7),2) -> 1Q18 | F8: =MONTH(F$7)/3&"Q"&RIGHT(YEAR(F$7),2) -> 2Q18 | G8: 3Q18 | H8: 4Q18 | I8: 1Q19 | J8: 2Q19 | K8: 3Q19 | L8: 4Q19 | M8: 1Q20 | N8: 2Q20 | O8: 3Q20 | P8: 4Q20 | Q8: 1Q21 | R8: 2Q21 | S8: 3Q21 | T8: 4Q21 | U8: 1Q22 | V8: 2Q22
B10: 41 | C10: Interest and similar income | E10: =IF(MONTH(E$7)=3,SUMIFS(BD_Segmentos!D:D,BD_Segmentos!$C:$C,$B10,BD_Segmentos!$A:$A,"S1")*ValorUnidad,SUMIFS(BD_Segmentos!D:D,BD_Segmentos!$C:$C,$B10,BD_Segmentos!$A:$A,"S1")*ValorUnidad-SUMIFS(BD_Segmentos!C:C,BD_Segmentos!$C:$C,$B10,BD_Segmentos!$A:$A,"S1")*ValorUnidad) -> 843.1320142 | F10: =IF(MONTH(F$7)=3,SUMIFS(BD_Segmentos!E:E,BD_Segmentos!$C:$C,$B10,BD_Segmentos!$A:$A,"S1")*ValorUnidad,SUMIFS(BD_Segmentos!E:E,BD_Segmentos!$C:$C,$B10,BD_Segmentos!$A:$A,"S1")*ValorUnidad-SUMIFS(BD_Segmentos!D:D,BD_Segmentos!$C:$C,$B10,BD_Segmentos!$A:$A,"S1")*ValorUnidad) -> 879.8705715 | G10: =IF(MONTH(G$7)=3,SUMIFS(BD_Segmentos!F:F,BD_Segmentos!$C:$C,$B10,BD_Segmentos!$A:$A,"S1")*ValorUnidad,SUMIFS(BD_Segmentos!F:F,BD_Segmentos!$C:$C,$B10,BD_Segmentos!$A:$A,"S1")*ValorUnidad-SUMIFS(BD_Segmentos!E:E,BD_Segmentos!$C:$C,$B10,BD_Segmentos!$A:$A,"S1")*ValorUnidad) -> 898.385148 | H10: =IF(MONTH(H$7)=3,SUMIFS(BD_Segmentos!G:G,BD_Segmentos!$C:$C,$B10,BD_Segmentos!$A:$A,"S1")*ValorUnidad,SUMIFS(BD_Segmentos!G:G,BD_Segmentos!$C:$C,$B10,BD_Segmentos!$A:$A,"S1")*ValorUnidad-SUMIFS(BD_Segmentos!F:F,BD_Segmentos!$C:$C,$B10,BD_Segmentos!$A:$A,"S1")*ValorUnidad) -> 937.7246155 | I10: =IF(MONTH(I$7)=3,SUMIFS(BD_Segmentos!H:H,BD_Segmentos!$C:$C,$B10,BD_Segmentos!$A:$A,"S1")*ValorUnidad,SUMIFS(BD_Segmentos!H:H,BD_Segmentos!$C:$C,$B10,BD_Segmentos!$A:$A,"S1")*ValorUnidad-SUMIFS(BD_Segmentos!G:G,BD_Segmentos!$C:$C,$B10,BD_Segmentos!$A:$A,"S1")*ValorUnidad) -> 964.9864452 | J10: =IF(MONTH(J$7)=3,SUMIFS(BD_Segmentos!I:I,BD_Segmentos!$C:$C,$B10,BD_Segmentos!$A:$A,"S1")*ValorUnidad,SUMIFS(BD_Segmentos!I:I,BD_Segmentos!$C:$C,$B10,BD_Segmentos!$A:$A,"S1")*ValorUnidad-SUMIFS(BD_Segmentos!H:H,BD_Segmentos!$C:$C,$B10,BD_Segmentos!$A:$A,"S1")*ValorUnidad) -> 1019.149818 | K10: =IF(MONTH(K$7)=3,SUMIFS(BD_Segmentos!J:J,BD_Segmentos!$C:$C,$B10,BD_Segmentos!$A:$A,"S1")*ValorUnidad,SUMIFS(BD_Segmentos!J:J,BD_Segmentos!$C:$C,$B10,BD_Segmentos!$A:$A,"S1")*ValorUnidad-SUMIFS(BD_Segmentos!I:I,BD_Segmentos!$C:$C,$B10,BD_Segmentos!$A:$A,"S1")*ValorUnidad) -> 1038.157422 | L10: =IF(MONTH(L$7)=3,SUMIFS(BD_Segmentos!K:K,BD_Segmentos!$C:$C,$B10,BD_Segmentos!$A:$A,"S1")*ValorUnidad,SUMIFS(BD_Segmentos!K:K,BD_Segmentos!$C:$C,$B10,BD_Segmentos!$A:$A,"S1")*ValorUnidad-SUMIFS(BD_Segmentos!J:J,BD_Segmentos!$C:$C,$B10,BD_Segmentos!$A:$A,"S1")*ValorUnidad) -> 1051.704551 | M10: =IF(MONTH(M$7)=3,SUMIFS(BD_Segmentos!L:L,BD_Segmentos!$C:$C,$B10,BD_Segmentos!$A:$A,"S1")*ValorUnidad,SUMIFS(BD_Segmentos!L:L,BD_Segmentos!$C:$C,$B10,BD_Segmentos!$A:$A,"S1")*ValorUnidad-SUMIFS(BD_Segmentos!K:K,BD_Segmentos!$C:$C,$B10,BD_Segmentos!$A:$A,"S1")*ValorUnidad) -> 1037.126676 | N10: =IF(MONTH(N$7)=3,SUMIFS(BD_Segmentos!M:M,BD_Segmentos!$C:$C,$B10,BD_Segmentos!$A:$A,"S1")*ValorUnidad,SUMIFS(BD_Segmentos!M:M,BD_Segmentos!$C:$C,$B10,BD_Segmentos!$A:$A,"S1")*ValorUnidad-SUMIFS(BD_Segmentos!L:L,BD_Segmentos!$C:$C,$B10,BD_Segmentos!$A:$A,"S1")*ValorUnidad) -> 853.1204773 | O10: =IF(MONTH(O$7)=3,SUMIFS(BD_Segmentos!N:N,BD_Segmentos!$C:$C,$B10,BD_Segmentos!$A:$A,"S1")*ValorUnidad,SUMIFS(BD_Segmentos!N:N,BD_Segmentos!$C:$C,$B10,BD_Segmentos!$A:$A,"S1")*ValorUnidad-SUMIFS(BD_Segmentos!M:M,BD_Segmentos!$C:$C,$B10,BD_Segmentos!$A:$A,"S1")*ValorUnidad) -> 986.9621199 | P10: =IF(MONTH(P$7)=3,SUMIFS(BD_Segmentos!O:O,BD_Segmentos!$C:$C,$B10,BD_Segmentos!$A:$A,"S1")*ValorUnidad,SUMIFS(BD_Segmentos!O:O,BD_Segmentos!$C:$C,$B10,BD_Segmentos!$A:$A,"S1")*ValorUnidad-SUMIFS(BD_Segmentos!N:N,BD_Segmentos!$C:$C,$B10,BD_Segmentos!$A:$A,"S1")*ValorUnidad) -> 959.2045926 | Q10: =IF(MONTH(Q$7)=3,SUMIFS(BD_Segmentos!P:P,BD_Segmentos!$C:$C,$B10,BD_Segmentos!$A:$A,"S1")*ValorUnidad,SUMIFS(BD_Segmentos!P:P,BD_Segmentos!$C:$C,$B10,BD_Segmentos!$A:$A,"S1")*ValorUnidad-SUMIFS(BD_Segmentos!O:O,BD_Segmentos!$C:$C,$B10,BD_Segmentos!$A:$A,"S1")*ValorUnidad) -> 865.0242639 | R10: =IF(MONTH(R$7)=3,SUMIFS(BD_Segmentos!Q:Q,BD_Segmentos!$C:$C,$B10,BD_Segmentos!$A:$A,"S1")*ValorUnidad,SUMIFS(BD_Segmentos!Q:Q,BD_Segmentos!$C:$C,$B10,BD_Segmentos!$A:$A,"S1")*ValorUnidad-SUMIFS(BD_Segmentos!P:P,BD_Segmentos!$C:$C,$B10,BD_Segmentos!$A:$A,"S1")*ValorUnidad) -> 881.2998996 | S10: =IF(MONTH(S$7)=3,SUMIFS(BD_Segmentos!R:R,BD_Segmentos!$C:$C,$B10,BD_Segmentos!$A:$A,"S1")*ValorUnidad,SUMIFS(BD_Segmentos!R:R,BD_Segmentos!$C:$C,$B10,BD_Segmentos!$A:$A,"S1")*ValorUnidad-SUMIFS(BD_Segmentos!Q:Q,BD_Segmentos!$C:$C,$B10,BD_Segmentos!$A:$A,"S1")*ValorUnidad) -> 907.0132132 | T10: =IF(MONTH(T$7)=3,SUMIFS(BD_Segmentos!S:S,BD_Segmentos!$C:$C,$B10,BD_Segmentos!$A:$A,"S1")*ValorUnidad,SUMIFS(BD_Segmentos!S:S,BD_Segmentos!$C:$C,$B10,BD_Segmentos!$A:$A,"S1")*ValorUnidad-SUMIFS(BD_Segmentos!R:R,BD_Segmentos!$C:$C,$B10,BD_Segmentos!$A:$A,"S1")*ValorUnidad) -> 983.472823 | U10: =IF(MONTH(U$7)=3,SUMIFS(BD_Segmentos!T:T,BD_Segmentos!$C:$C,$B10,BD_Segmentos!$A:$A,"S1")*ValorUnidad,SUMIFS(BD_Segmentos!T:T,BD_Segmentos!$C:$C,$B10,BD_Segmentos!$A:$A,"S1")*ValorUnidad-SUMIFS(BD_Segmentos!S:S,BD_Segmentos!$C:$C,$B10,BD_Segmentos!$A:$A,"S1")*ValorUnidad) -> 1009.959841 | V10: =IF(MONTH(V$7)=3,SUMIFS(BD_Segmentos!U:U,BD_Segmentos!$C:$C,$B10,BD_Segmentos!$A:$A,"S1")*ValorUnidad,SUMIFS(BD_Segmentos!U:U,BD_Segmentos!$C:$C,$B10,BD_Segmentos!$A:$A,"S1")*ValorUnidad-SUMIFS(BD_Segmentos!T:T,BD_Segmentos!$C:$C,$B10,BD_Segmentos!$A:$A,"S1")*ValorUnidad) -> 1107.393058
B11: 42 | C11: Interest and similar expenses | E11: =IF(MONTH(E$7)=3,SUMIFS(BD_Segmentos!D:D,BD_Segmentos!$C:$C,$B11,BD_Segmentos!$A:$A,"S1")*ValorUnidad,SUMIFS(BD_Segmentos!D:D,BD_Segmentos!$C:$C,$B11,BD_Segmentos!$A:$A,"S1")*ValorUnidad-SUMIFS(BD_Segmentos!C:C,BD_Segmentos!$C:$C,$B11,BD_Segmentos!$A:$A,"S1")*ValorUnidad) -> -242.4510503 | F11: =IF(MONTH(F$7)=3,SUMIFS(BD_Segmentos!E:E,BD_Segmentos!$C:$C,$B11,BD_Segmentos!$A:$A,"S1")*ValorUnidad,SUMIFS(BD_Segmentos!E:E,BD_Segmentos!$C:$C,$B11,BD_Segmentos!$A:$A,"S1")*ValorUnidad-SUMIFS(BD_Segmentos!D:D,BD_Segmentos!$C:$C,$B11,BD_Segmentos!$A:$A,"S1")*ValorUnidad) -> -261.0043252 | G11: =IF(MONTH(G$7)=3,SUMIFS(BD_Segmentos!F:F,BD_Segmentos!$C:$C,$B11,BD_Segmentos!$A:$A,"S1")*ValorUnidad,SUMIFS(BD_Segmentos!F:F,BD_Segmentos!$C:$C,$B11,BD_Segmentos!$A:$A,"S1")*ValorUnidad-SUMIFS(BD_Segmentos!E:E,BD_Segmentos!$C:$C,$B11,BD_Segmentos!$A:$A,"S1")*ValorUnidad) -> -278.8655124 | H11: =IF(MONTH(H$7)=3,SUMIFS(BD_Segmentos!G:G,BD_Segmentos!$C:$C,$B11,BD_Segmentos!$A:$A,"S1")*ValorUnidad,SUMIFS(BD_Segmentos!G:G,BD_Segmentos!$C:$C,$B11,BD_Segmentos!$A:$A,"S1")*ValorUnidad-SUMIFS(BD_Segmentos!F:F,BD_Segmentos!$C:$C,$B11,BD_Segmentos!$A:$A,"S1")*ValorUnidad) -> -285.3887126 | I11: =IF(MONTH(I$7)=3,SUMIFS(BD_Segmentos!H:H,BD_Segmentos!$C:$C,$B11,BD_Segmentos!$A:$A,"S1")*ValorUnidad,SUMIFS(BD_Segmentos!H:H,BD_Segmentos!$C:$C,$B11,BD_Segmentos!$A:$A,"S1")*ValorUnidad-SUMIFS(BD_Segmentos!G:G,BD_Segmentos!$C:$C,$B11,BD_Segmentos!$A:$A,"S1")*ValorUnidad) -> -307.417559 | J11: =IF(MONTH(J$7)=3,SUMIFS(BD_Segmentos!I:I,BD_Segmentos!$C:$C,$B11,BD_Segmentos!$A:$A,"S1")*ValorUnidad,SUMIFS(BD_Segmentos!I:I,BD_Segmentos!$C:$C,$B11,BD_Segmentos!$A:$A,"S1")*ValorUnidad-SUMIFS(BD_Segmentos!H:H,BD_Segmentos!$C:$C,$B11,BD_Segmentos!$A:$A,"S1")*ValorUnidad) -> -314.862253 | K11: =IF(MONTH(K$7)=3,SUMIFS(BD_Segmentos!J:J,BD_Segmentos!$C:$C,$B11,BD_Segmentos!$A:$A,"S1")*ValorUnidad,SUMIFS(BD_Segmentos!J:J,BD_Segmentos!$C:$C,$B11,BD_Segmentos!$A:$A,"S1")*ValorUnidad-SUMIFS(BD_Segmentos!I:I,BD_Segmentos!$C:$C,$B11,BD_Segmentos!$A:$A,"S1")*ValorUnidad) -> -314.5673733 | L11: =IF(MONTH(L$7)=3,SUMIFS(BD_Segmentos!K:K,BD_Segmentos!$C:$C,$B11,BD_Segmentos!$A:$A,"S1")*ValorUnidad,SUMIFS(BD_Segmentos!K:K,BD_Segmentos!$C:$C,$B11,BD_Segmentos!$A:$A,"S1")*ValorUnidad-SUMIFS(BD_Segmentos!J:J,BD_Segmentos!$C:$C,$B11,BD_Segmentos!$A:$A,"S1")*ValorUnidad) -> -353.2082757 | M11: =IF(MONTH(M$7)=3,SUMIFS(BD_Segmentos!L:L,BD_Segmentos!$C:$C,$B11,BD_Segmentos!$A:$A,"S1")*ValorUnidad,SUMIFS(BD_Segmentos!L:L,BD_Segmentos!$C:$C,$B11,BD_Segmentos!$A:$A,"S1")*ValorUnidad-SUMIFS(BD_Segmentos!K:K,BD_Segmentos!$C:$C,$B11,BD_Segmentos!$A:$A,"S1")*ValorUnidad) -> -302.8308208 | N11: =IF(MONTH(N$7)=3,SUMIFS(BD_Segmentos!M:M,BD_Segmentos!$C:$C,$B11,BD_Segmentos!$A:$A,"S1")*ValorUnidad,SUMIFS(BD_Segmentos!M:M,BD_Segmentos!$C:$C,$B11,BD_Segmentos!$A:$A,"S1")*ValorUnidad-SUMIFS(BD_Segmentos!L:L,BD_Segmentos!$C:$C,$B11,BD_Segmentos!$A:$A,"S1")*ValorUnidad) -> -273.8086561 | O11: =IF(MONTH(O$7)=3,SUMIFS(BD_Segmentos!N:N,BD_Segmentos!$C:$C,$B11,BD_Segmentos!$A:$A,"S1")*ValorUnidad,SUMIFS(BD_Segmentos!N:N,BD_Segmentos!$C:$C,$B11,BD_Segmentos!$A:$A,"S1")*ValorUnidad-SUMIFS(BD_Segmentos!M:M,BD_Segmentos!$C:$C,$B11,BD_Segmentos!$A:$A,"S1")*ValorUnidad) -> -244.8297068 | P11: =IF(MONTH(P$7)=3,SUMIFS(BD_Segmentos!O:O,BD_Segmentos!$C:$C,$B11,BD_Segmentos!$A:$A,"S1")*ValorUnidad,SUMIFS(BD_Segmentos!O:O,BD_Segmentos!$C:$C,$B11,BD_Segmentos!$A:$A,"S1")*ValorUnidad-SUMIFS(BD_Segmentos!N:N,BD_Segmentos!$C:$C,$B11,BD_Segmentos!$A:$A,"S1")*ValorUnidad) -> -231.8868077 | Q11: =IF(MONTH(Q$7)=3,SUMIFS(BD_Segmentos!P:P,BD_Segmentos!$C:$C,$B11,BD_Segmentos!$A:$A,"S1")*ValorUnidad,SUMIFS(BD_Segmentos!P:P,BD_Segmentos!$C:$C,$B11,BD_Segmentos!$A:$A,"S1")*ValorUnidad-SUMIFS(BD_Segmentos!O:O,BD_Segmentos!$C:$C,$B11,BD_Segmentos!$A:$A,"S1")*ValorUnidad) -> -218.0633033 | R11: =IF(MONTH(R$7)=3,SUMIFS(BD_Segmentos!Q:Q,BD_Segmentos!$C:$C,$B11,BD_Segmentos!$A:$A,"S1")*ValorUnidad,SUMIFS(BD_Segmentos!Q:Q,BD_Segmentos!$C:$C,$B11,BD_Segmentos!$A:$A,"S1")*ValorUnidad-SUMIFS(BD_Segmentos!P:P,BD_Segmentos!$C:$C,$B11,BD_Segmentos!$A:$A,"S1")*ValorUnidad) -> -211.2153049 | S11: =IF(MONTH(S$7)=3,SUMIFS(BD_Segmentos!R:R,BD_Segmentos!$C:$C,$B11,BD_Segmentos!$A:$A,"S1")*ValorUnidad,SUMIFS(BD_Segmentos!R:R,BD_Segmentos!$C:$C,$B11,BD_Segmentos!$A:$A,"S1")*ValorUnidad-SUMIFS(BD_Segmentos!Q:Q,BD_Segmentos!$C:$C,$B11,BD_Segmentos!$A:$A,"S1")*ValorUnidad) -> -225.8722719 | T11: =IF(MONTH(T$7)=3,SUMIFS(BD_Segmentos!S:S,BD_Segmentos!$C:$C,$B11,BD_Segmentos!$A:$A,"S1")*ValorUnidad,SUMIFS(BD_Segmentos!S:S,BD_Segmentos!$C:$C,$B11,BD_Segmentos!$A:$A,"S1")*ValorUnidad-SUMIFS(BD_Segmentos!R:R,BD_Segmentos!$C:$C,$B11,BD_Segmentos!$A:$A,"S1")*ValorUnidad) -> -237.9097415 | U11: =IF(MONTH(U$7)=3,SUMIFS(BD_Segmentos!T:T,BD_Segmentos!$C:$C,$B11,BD_Segmentos!$A:$A,"S1")*ValorUnidad,SUMIFS(BD_Segmentos!T:T,BD_Segmentos!$C:$C,$B11,BD_Segmentos!$A:$A,"S1")*ValorUnidad-SUMIFS(BD_Segmentos!S:S,BD_Segmentos!$C:$C,$B11,BD_Segmentos!$A:$A,"S1")*ValorUnidad) -> -261.9276621 | V11: =IF(MONTH(V$7)=3,SUMIFS(BD_Segmentos!U:U,BD_Segmentos!$C:$C,$B11,BD_Segmentos!$A:$A,"S1")*ValorUnidad,SUMIFS(BD_Segmentos!U:U,BD_Segmentos!$C:$C,$B11,BD_Segmentos!$A:$A,"S1")*ValorUnidad-SUMIFS(BD_Segmentos!T:T,BD_Segmentos!$C:$C,$B11,BD_Segmentos!$A:$A,"S1")*ValorUnidad) -> -316.9107243
B12: ST12 | C12: Net interest and similar income | E12: =IF(MONTH(E$7)=3,SUMIFS(BD_Segmentos!D:D,BD_Segmentos!$C:$C,$B12,BD_Segmentos!$A:$A,"S1")*ValorUnidad,SUMIFS(BD_Segmentos!D:D,BD_Segmentos!$C:$C,$B12,BD_Segmentos!$A:$A,"S1")*ValorUnidad-SUMIFS(BD_Segmentos!C:C,BD_Segmentos!$C:$C,$B12,BD_Segmentos!$A:$A,"S1")*ValorUnidad) -> 600.680964 | F12: =IF(MONTH(F$7)=3,SUMIFS(BD_Segmentos!E:E,BD_Segmentos!$C:$C,$B12,BD_Segmentos!$A:$A,"S1")*ValorUnidad,SUMIFS(BD_Segmentos!E:E,BD_Segmentos!$C:$C,$B12,BD_Segmentos!$A:$A,"S1")*ValorUnidad-SUMIFS(BD_Segmentos!D:D,BD_Segmentos!$C:$C,$B12,BD_Segmentos!$A:$A,"S1")*ValorUnidad) -> 618.8662463 | G12: =IF(MONTH(G$7)=3,SUMIFS(BD_Segmentos!F:F,BD_Segmentos!$C:$C,$B12,BD_Segmentos!$A:$A,"S1")*ValorUnidad,SUMIFS(BD_Segmentos!F:F,BD_Segmentos!$C:$C,$B12,BD_Segmentos!$A:$A,"S1")*ValorUnidad-SUMIFS(BD_Segmentos!E:E,BD_Segmentos!$C:$C,$B12,BD_Segmentos!$A:$A,"S1")*ValorUnidad) -> 619.5196356 | H12: =IF(MONTH(H$7)=3,SUMIFS(BD_Segmentos!G:G,BD_Segmentos!$C:$C,$B12,BD_Segmentos!$A:$A,"S1")*ValorUnidad,SUMIFS(BD_Segmentos!G:G,BD_Segmentos!$C:$C,$B12,BD_Segmentos!$A:$A,"S1")*ValorUnidad-SUMIFS(BD_Segmentos!F:F,BD_Segmentos!$C:$C,$B12,BD_Segmentos!$A:$A,"S1")*ValorUnidad) -> 652.3359028 | I12: =IF(MONTH(I$7)=3,SUMIFS(BD_Segmentos!H:H,BD_Segmentos!$C:$C,$B12,BD_Segmentos!$A:$A,"S1")*ValorUnidad,SUMIFS(BD_Segmentos!H:H,BD_Segmentos!$C:$C,$B12,BD_Segmentos!$A:$A,"S1")*ValorUnidad-SUMIFS(BD_Segmentos!G:G,BD_Segmentos!$C:$C,$B12,BD_Segmentos!$A:$A,"S1")*ValorUnidad) -> 657.5688862 | J12: =IF(MONTH(J$7)=3,SUMIFS(BD_Segmentos!I:I,BD_Segmentos!$C:$C,$B12,BD_Segmentos!$A:$A,"S1")*ValorUnidad,SUMIFS(BD_Segmentos!I:I,BD_Segmentos!$C:$C,$B12,BD_Segmentos!$A:$A,"S1")*ValorUnidad-SUMIFS(BD_Segmentos!H:H,BD_Segmentos!$C:$C,$B12,BD_Segmentos!$A:$A,"S1")*ValorUnidad) -> 704.2875646 | K12: =IF(MONTH(K$7)=3,SUMIFS(BD_Segmentos!J:J,BD_Segmentos!$C:$C,$B12,BD_Segmentos!$A:$A,"S1")*ValorUnidad,SUMIFS(BD_Segmentos!J:J,BD_Segmentos!$C:$C,$B12,BD_Segmentos!$A:$A,"S1")*ValorUnidad-SUMIFS(BD_Segmentos!I:I,BD_Segmentos!$C:$C,$B12,BD_Segmentos!$A:$A,"S1")*ValorUnidad) -> 723.5900491 | L12: =IF(MONTH(L$7)=3,SUMIFS(BD_Segmentos!K:K,BD_Segmentos!$C:$C,$B12,BD_Segmentos!$A:$A,"S1")*ValorUnidad,SUMIFS(BD_Segmentos!K:K,BD_Segmentos!$C:$C,$B12,BD_Segmentos!$A:$A,"S1")*ValorUnidad-SUMIFS(BD_Segmentos!J:J,BD_Segmentos!$C:$C,$B12,BD_Segmentos!$A:$A,"S1")*ValorUnidad) -> 698.4962749 | M12: =IF(MONTH(M$7)=3,SUMIFS(BD_Segmentos!L:L,BD_Segmentos!$C:$C,$B12,BD_Segmentos!$A:$A,"S1")*ValorUnidad,SUMIFS(BD_Segmentos!L:L,BD_Segmentos!$C:$C,$B12,BD_Segmentos!$A:$A,"S1")*ValorUnidad-SUMIFS(BD_Segmentos!K:K,BD_Segmentos!$C:$C,$B12,BD_Segmentos!$A:$A,"S1")*ValorUnidad) -> 734.2958556 | N12: =IF(MONTH(N$7)=3,SUMIFS(BD_Segmentos!M:M,BD_Segmentos!$C:$C,$B12,BD_Segmentos!$A:$A,"S1")*ValorUnidad,SUMIFS(BD_Segmentos!M:M,BD_Segmentos!$C:$C,$B12,BD_Segmentos!$A:$A,"S1")*ValorUnidad-SUMIFS(BD_Segmentos!L:L,BD_Segmentos!$C:$C,$B12,BD_Segmentos!$A:$A,"S1")*ValorUnidad) -> 579.3118212 | O12: =IF(MONTH(O$7)=3,SUMIFS(BD_Segmentos!N:N,BD_Segmentos!$C:$C,$B12,BD_Segmentos!$A:$A,"S1")*ValorUnidad,SUMIFS(BD_Segmentos!N:N,BD_Segmentos!$C:$C,$B12,BD_Segmentos!$A:$A,"S1")*ValorUnidad-SUMIFS(BD_Segmentos!M:M,BD_Segmentos!$C:$C,$B12,BD_Segmentos!$A:$A,"S1")*ValorUnidad) -> 742.1324132 | P12: =IF(MONTH(P$7)=3,SUMIFS(BD_Segmentos!O:O,BD_Segmentos!$C:$C,$B12,BD_Segmentos!$A:$A,"S1")*ValorUnidad,SUMIFS(BD_Segmentos!O:O,BD_Segmentos!$C:$C,$B12,BD_Segmentos!$A:$A,"S1")*ValorUnidad-SUMIFS(BD_Segmentos!N:N,BD_Segmentos!$C:$C,$B12,BD_Segmentos!$A:$A,"S1")*ValorUnidad) -> 727.3177848 | Q12: =IF(MONTH(Q$7)=3,SUMIFS(BD_Segmentos!P:P,BD_Segmentos!$C:$C,$B12,BD_Segmentos!$A:$A,"S1")*ValorUnidad,SUMIFS(BD_Segmentos!P:P,BD_Segmentos!$C:$C,$B12,BD_Segmentos!$A:$A,"S1")*ValorUnidad-SUMIFS(BD_Segmentos!O:O,BD_Segmentos!$C:$C,$B12,BD_Segmentos!$A:$A,"S1")*ValorUnidad) -> 646.9609606 | R12: =IF(MONTH(R$7)=3,SUMIFS(BD_Segmentos!Q:Q,BD_Segmentos!$C:$C,$B12,BD_Segmentos!$A:$A,"S1")*ValorUnidad,SUMIFS(BD_Segmentos!Q:Q,BD_Segmentos!$C:$C,$B12,BD_Segmentos!$A:$A,"S1")*ValorUnidad-SUMIFS(BD_Segmentos!P:P,BD_Segmentos!$C:$C,$B12,BD_Segmentos!$A:$A,"S1")*ValorUnidad) -> 670.0845946 | S12: =IF(MONTH(S$7)=3,SUMIFS(BD_Segmentos!R:R,BD_Segmentos!$C:$C,$B12,BD_Segmentos!$A:$A,"S1")*ValorUnidad,SUMIFS(BD_Segmentos!R:R,BD_Segmentos!$C:$C,$B12,BD_Segmentos!$A:$A,"S1")*ValorUnidad-SUMIFS(BD_Segmentos!Q:Q,BD_Segmentos!$C:$C,$B12,BD_Segmentos!$A:$A,"S1")*ValorUnidad) -> 681.1409413 | T12: =IF(MONTH(T$7)=3,SUMIFS(BD_Segmentos!S:S,BD_Segmentos!$C:$C,$B12,BD_Segmentos!$A:$A,"S1")*ValorUnidad,SUMIFS(BD_Segmentos!S:S,BD_Segmentos!$C:$C,$B12,BD_Segmentos!$A:$A,"S1")*ValorUnidad-SUMIFS(BD_Segmentos!R:R,BD_Segmentos!$C:$C,$B12,BD_Segmentos!$A:$A,"S1")*ValorUnidad) -> 745.5630815 | U12: =IF(MONTH(U$7)=3,SUMIFS(BD_Segmentos!T:T,BD_Segmentos!$C:$C,$B12,BD_Segmentos!$A:$A,"S1")*ValorUnidad,SUMIFS(BD_Segmentos!T:T,BD_Segmentos!$C:$C,$B12,BD_Segmentos!$A:$A,"S1")*ValorUnidad-SUMIFS(BD_Segmentos!S:S,BD_Segmentos!$C:$C,$B12,BD_Segmentos!$A:$A,"S1")*ValorUnidad) -> 748.0321792 | V12: =IF(MONTH(V$7)=3,SUMIFS(BD_Segmentos!U:U,BD_Segmentos!$C:$C,$B12,BD_Segmentos!$A:$A,"S1")*ValorUnidad,SUMIFS(BD_Segmentos!U:U,BD_Segmentos!$C:$C,$B12,BD_Segmentos!$A:$A,"S1")*ValorUnidad-SUMIFS(BD_Segmentos!T:T,BD_Segmentos!$C:$C,$B12,BD_Segmentos!$A:$A,"S1")*ValorUnidad) -> 790.4823342
B13: 43 | C13: Impairment loss on loans, net of recoveries | E13: =IF(MONTH(E$7)=3,SUMIFS(BD_Segmentos!D:D,BD_Segmentos!$C:$C,$B13,BD_Segmentos!$A:$A,"S1")*ValorUnidad,SUMIFS(BD_Segmentos!D:D,BD_Segmentos!$C:$C,$B13,BD_Segmentos!$A:$A,"S1")*ValorUnidad-SUMIFS(BD_Segmentos!C:C,BD_Segmentos!$C:$C,$B13,BD_Segmentos!$A:$A,"S1")*ValorUnidad) -> -173.2681428 | F13: =IF(MONTH(F$7)=3,SUMIFS(BD_Segmentos!E:E,BD_Segmentos!$C:$C,$B13,BD_Segmentos!$A:$A,"S1")*ValorUnidad,SUMIFS(BD_Segmentos!E:E,BD_Segmentos!$C:$C,$B13,BD_Segmentos!$A:$A,"S1")*ValorUnidad-SUMIFS(BD_Segmentos!D:D,BD_Segmentos!$C:$C,$B13,BD_Segmentos!$A:$A,"S1")*ValorUnidad) -> -112.9610432 | G13: =IF(MONTH(G$7)=3,SUMIFS(BD_Segmentos!F:F,BD_Segmentos!$C:$C,$B13,BD_Segmentos!$A:$A,"S1")*ValorUnidad,SUMIFS(BD_Segmentos!F:F,BD_Segmentos!$C:$C,$B13,BD_Segmentos!$A:$A,"S1")*ValorUnidad-SUMIFS(BD_Segmentos!E:E,BD_Segmentos!$C:$C,$B13,BD_Segmentos!$A:$A,"S1")*ValorUnidad) -> -165.801725 | H13: =IF(MONTH(H$7)=3,SUMIFS(BD_Segmentos!G:G,BD_Segmentos!$C:$C,$B13,BD_Segmentos!$A:$A,"S1")*ValorUnidad,SUMIFS(BD_Segmentos!G:G,BD_Segmentos!$C:$C,$B13,BD_Segmentos!$A:$A,"S1")*ValorUnidad-SUMIFS(BD_Segmentos!F:F,BD_Segmentos!$C:$C,$B13,BD_Segmentos!$A:$A,"S1")*ValorUnidad) -> -208.827137 | I13: =IF(MONTH(I$7)=3,SUMIFS(BD_Segmentos!H:H,BD_Segmentos!$C:$C,$B13,BD_Segmentos!$A:$A,"S1")*ValorUnidad,SUMIFS(BD_Segmentos!H:H,BD_Segmentos!$C:$C,$B13,BD_Segmentos!$A:$A,"S1")*ValorUnidad-SUMIFS(BD_Segmentos!G:G,BD_Segmentos!$C:$C,$B13,BD_Segmentos!$A:$A,"S1")*ValorUnidad) -> -186.3416814 | J13: =IF(MONTH(J$7)=3,SUMIFS(BD_Segmentos!I:I,BD_Segmentos!$C:$C,$B13,BD_Segmentos!$A:$A,"S1")*ValorUnidad,SUMIFS(BD_Segmentos!I:I,BD_Segmentos!$C:$C,$B13,BD_Segmentos!$A:$A,"S1")*ValorUnidad-SUMIFS(BD_Segmentos!H:H,BD_Segmentos!$C:$C,$B13,BD_Segmentos!$A:$A,"S1")*ValorUnidad) -> -192.9547884 | K13: =IF(MONTH(K$7)=3,SUMIFS(BD_Segmentos!J:J,BD_Segmentos!$C:$C,$B13,BD_Segmentos!$A:$A,"S1")*ValorUnidad,SUMIFS(BD_Segmentos!J:J,BD_Segmentos!$C:$C,$B13,BD_Segmentos!$A:$A,"S1")*ValorUnidad-SUMIFS(BD_Segmentos!I:I,BD_Segmentos!$C:$C,$B13,BD_Segmentos!$A:$A,"S1")*ValorUnidad) -> -223.6110973 | L13: =IF(MONTH(L$7)=3,SUMIFS(BD_Segmentos!K:K,BD_Segmentos!$C:$C,$B13,BD_Segmentos!$A:$A,"S1")*ValorUnidad,SUMIFS(BD_Segmentos!K:K,BD_Segmentos!$C:$C,$B13,BD_Segmentos!$A:$A,"S1")*ValorUnidad-SUMIFS(BD_Segmentos!J:J,BD_Segmentos!$C:$C,$B13,BD_Segmentos!$A:$A,"S1")*ValorUnidad) -> -147.8800474 | M13: =IF(MONTH(M$7)=3,SUMIFS(BD_Segmentos!L:L,BD_Segmentos!$C:$C,$B13,BD_Segmentos!$A:$A,"S1")*ValorUnidad,SUMIFS(BD_Segmentos!L:L,BD_Segmentos!$C:$C,$B13,BD_Segmentos!$A:$A,"S1")*ValorUnidad-SUMIFS(BD_Segmentos!K:K,BD_Segmentos!$C:$C,$B13,BD_Segmentos!$A:$A,"S1")*ValorUnidad) -> -312.6109612 | N13: =IF(MONTH(N$7)=3,SUMIFS(BD_Segmentos!M:M,BD_Segmentos!$C:$C,$B13,BD_Segmentos!$A:$A,"S1")*ValorUnidad,SUMIFS(BD_Segmentos!M:M,BD_Segmentos!$C:$C,$B13,BD_Segmentos!$A:$A,"S1")*ValorUnidad-SUMIFS(BD_Segmentos!L:L,BD_Segmentos!$C:$C,$B13,BD_Segmentos!$A:$A,"S1")*ValorUnidad) -> -1290.528121 | O13: =IF(MONTH(O$7)=3,SUMIFS(BD_Segmentos!N:N,BD_Segmentos!$C:$C,$B13,BD_Segmentos!$A:$A,"S1")*ValorUnidad,SUMIFS(BD_Segmentos!N:N,BD_Segmentos!$C:$C,$B13,BD_Segmentos!$A:$A,"S1")*ValorUnidad-SUMIFS(BD_Segmentos!M:M,BD_Segmentos!$C:$C,$B13,BD_Segmentos!$A:$A,"S1")*ValorUnidad) -> -463.2173905 | P13: =IF(MONTH(P$7)=3,SUMIFS(BD_Segmentos!O:O,BD_Segmentos!$C:$C,$B13,BD_Segmentos!$A:$A,"S1")*ValorUnidad,SUMIFS(BD_Segmentos!O:O,BD_Segmentos!$C:$C,$B13,BD_Segmentos!$A:$A,"S1")*ValorUnidad-SUMIFS(BD_Segmentos!N:N,BD_Segmentos!$C:$C,$B13,BD_Segmentos!$A:$A,"S1")*ValorUnidad) -> -327.5660524 | Q13: =IF(MONTH(Q$7)=3,SUMIFS(BD_Segmentos!P:P,BD_Segmentos!$C:$C,$B13,BD_Segmentos!$A:$A,"S1")*ValorUnidad,SUMIFS(BD_Segmentos!P:P,BD_Segmentos!$C:$C,$B13,BD_Segmentos!$A:$A,"S1")*ValorUnidad-SUMIFS(BD_Segmentos!O:O,BD_Segmentos!$C:$C,$B13,BD_Segmentos!$A:$A,"S1")*ValorUnidad) -> -188.9439821 | R13: =IF(MONTH(R$7)=3,SUMIFS(BD_Segmentos!Q:Q,BD_Segmentos!$C:$C,$B13,BD_Segmentos!$A:$A,"S1")*ValorUnidad,SUMIFS(BD_Segmentos!Q:Q,BD_Segmentos!$C:$C,$B13,BD_Segmentos!$A:$A,"S1")*ValorUnidad-SUMIFS(BD_Segmentos!P:P,BD_Segmentos!$C:$C,$B13,BD_Segmentos!$A:$A,"S1")*ValorUnidad) -> -177.8869799 | S13: =IF(MONTH(S$7)=3,SUMIFS(BD_Segmentos!R:R,BD_Segmentos!$C:$C,$B13,BD_Segmentos!$A:$A,"S1")*ValorUnidad,SUMIFS(BD_Segmentos!R:R,BD_Segmentos!$C:$C,$B13,BD_Segmentos!$A:$A,"S1")*ValorUnidad-SUMIFS(BD_Segmentos!Q:Q,BD_Segmentos!$C:$C,$B13,BD_Segmentos!$A:$A,"S1")*ValorUnidad) -> -109.9762373 | T13: =IF(MONTH(T$7)=3,SUMIFS(BD_Segmentos!S:S,BD_Segmentos!$C:$C,$B13,BD_Segmentos!$A:$A,"S1")*ValorUnidad,SUMIFS(BD_Segmentos!S:S,BD_Segmentos!$C:$C,$B13,BD_Segmentos!$A:$A,"S1")*ValorUnidad-SUMIFS(BD_Segmentos!R:R,BD_Segmentos!$C:$C,$B13,BD_Segmentos!$A:$A,"S1")*ValorUnidad) -> 97.77353259 | U13: =IF(MONTH(U$7)=3,SUMIFS(BD_Segmentos!T:T,BD_Segmentos!$C:$C,$B13,BD_Segmentos!$A:$A,"S1")*ValorUnidad,SUMIFS(BD_Segmentos!T:T,BD_Segmentos!$C:$C,$B13,BD_Segmentos!$A:$A,"S1")*ValorUnidad-SUMIFS(BD_Segmentos!S:S,BD_Segmentos!$C:$C,$B13,BD_Segmentos!$A:$A,"S1")*ValorUnidad) -> -151.6935123 | V13: =IF(MONTH(V$7)=3,SUMIFS(BD_Segmentos!U:U,BD_Segmentos!$C:$C,$B13,BD_Segmentos!$A:$A,"S1")*ValorUnidad,SUMIFS(BD_Segmentos!U:U,BD_Segmentos!$C:$C,$B13,BD_Segmentos!$A:$A,"S1")*ValorUnidad-SUMIFS(BD_Segmentos!T:T,BD_Segmentos!$C:$C,$B13,BD_Segmentos!$A:$A,"S1")*ValorUnidad) -> -193.4210533
